Workbook

Sheet Start
B5: Lozinka: ABC

Sheet Vodič kroz program
A1: VODIČ KROZ PROGRAM
A2: 1. | B2: Općenito
B3: Ova verzija programa predstavlja nadogradnju prethodnih verzija te sadrži dodatno prilagođavanje prikaza i ispisa EC7 te poboljšanja preciznosti pojedinih proračuna. U odnosu na starije verzije programa, razlike u Faktorima sigurnosti su minimalne. Program je izrađen u Excelu uz podršku VBA (Visaual basic) modula. Ulazni podaci upisuju se u 7 Formi: 1. Karakteristike tla, 2. Djelovanja, 3. Dimenzije zida, 4. Sidra i konzola, 5. Kontrafore, 6. Gradivo i 7. Profil terena, koje se pojavljuju nakon upisa lozinke. Nove podatke treba potvrditi na svakoj formi sa tipkom Potvrda unosa novih podataka. Ovaj Vodič kroz program i dodatni tekstovi u komentarima pojedinih ćelija na stranici (sheet): Analiza i dimenzioniranje pripremljeni su tako da bi trebali dati dovoljno objašnjenja za korištenje programa. Ukoliko korisnik ima dodatnih pitanja, ista se mogu poslati autoru na priloženu e-mail adresu ili na broj: +385 98 213 632.
A4: 2. | B4: Analiza stabilnosti
A5: 2.1. | B5: Potpornog, obložnog, potporno-obložnog i gravitacijskog zida, sa ili bez rasteretne konzole, sa ili bez sidara (do 4 reda sidara), sa ili bez kontrafora, zida iza kojeg mogu biti tri sloja tla (tlo u zoni temeljenja je četvrti sloj) i raznovrsna opterećenja (prometno, opterećenje temeljem, linijsko i točkasto). Umjesto Opterećenja temeljem može se upisati bilo koje drugo opterećenje (npr. specijalno vozilo). Osim navedenih opterećenja moguće je u analizi, osim NPV (nivo podzemne vode) iza zida, imati i vodu ispred zida (rijeka, jezero). Ovi podaci ulaze u kontrole graničnih stanja nosivosti i dimenzioniranje zida. Na gravitacijskom zidu, konzole, sidra i kontrafore se ne izvode ali je ovim programom moguće napraviti i takve analize. Nakon izbora: Projektnog pristupa, popunjavanja svih čelija s plavom bojom (ostale vrijednosti su računske) u Formama od 1 do 7 i napravljene Potvrde unosa novih podataka, dobivaju se konačni Stupnjevi iskorištenosti (Faktori sigurnosti) za prevrtanje, klizanje i nosivost tla ispod zida. Program je u potpunosti usklađen s EC2, EC7 i EC8. Ukoliko ne koristite EC, u čelije N27 do N45, P31 do P34 i R31 do R34, stranici (sheet) Analiza i dimenzioniranje, mogu se upisati vrijednosti parcijalnih koeficijenata koje su u skladu s propisima pojedine države (prema uputama u komentaru čelije N24). U navedenim čelijama izvorno su upisane vrijednosti parcijalnih faktora propisanih u Hrvatskoj gdje je predviđen Projektni pristup 3.
A6: 2.2. | B6: Obložni zid: Ako se npr. ispred sloja 2 i 3 izvodi obložni zid, tada su kutevi trenja za te slojeve - fiktivni (j*), odnosno oni kutevi koji u vrijednosti Q=45+j/2 daju pokos prirodnog terena Q, odnosno klizne plohe (plohe aktivnog klina). Na primjer: Prirodni pokos (ujedno klizna ploha) ima kut Q=80o. Računski - fiktivni kut unutrašnjeg trenja: j* = (80-45)*2=70o, i kohezija C=0. Ukoliko je zid po čitavoj visini obložni, tada se takvi fiktivni kutevi unutrašnjeg trenja upisuju za sva tri sloja.
A7: 2.3. | B7: Masivni -gravitacijski zid: Ukoliko se projektira Masivni zid, u Formi 3, ispod podataka o masivnom zidu, izaberi DA, a ako je predviđen armirano betonski zid izaberi NE. Oblikovanje zida predviđeno je prema Švicarskim propisima. U tako oblikovanom zidu, u bilo kojem presjeku, nema vlačnih naprezanja, pa prema tome nije potrebna nikakva armatura. Ipak, predlažem iz konstruktivnih razloga ugraditi samo sidrenu armaturu (ankere) iz temelja s pripadajućom razdjelnom armaturom. - Projektant određuje i upisuje samo visinu zida i širinu zida u kruni, a sve ostale dimenzije određuju se automatski. - Nakon Potvrde unosa novih podataka, proračun je završen. Ukoliko kontrola iskorištenosti (faktori sigurnosti) za klizanje, prevrtanje i nosivost tla (vidi u Formi 3, Dimenzije zida) ne zadovoljava (Iskorištenost>100% ili Fs<1) ili je preniska (Iskorištenost<50%, Fs previsoki), nije nužno ali je moguće navedeni postupak ponoviti s promjenom dimenzija zida ili smanjenom širinom zida u kruni.
A8: 3. | B8: Konzola
B9: Ukoliko zid ima rasteretnu konzolu u Formi 4. Sidra i konzola, izaberi DA, a ako nema konzole, izaberi NE. Konzola se može koristiti za povećanje stabilnosti na prevrtanje ali u tom slučaju treba povećati širinu konzole, koja u tom slučaju treba biti veća odširine temelja iza zida. Izvedbom konzole smanjuje se moment savijanja u presjeku zid-temelj, što utječe na uštedu betona i armature. Napomena: Analiza i dimenzioniranje u ovom programu predviđeni su za konzolu na visinama većim od 1/2 ukupne visine zida (H). Na manjim visinama korist od konzole je zanemariva i nije ekonomski opravdana. U originalnom programu to je 6,0 m/2=3,0 m tj. +E48/2<E79 (u Analizi i dimenzioniranje). Budući da su rezne sile izračunate za unaprijed određene presjeke, preporučam visine podgleda konzole postaviti u jedan takav presjek, označen u sheet Analiza i dimenzioniranje (čelije K72 do K81)
A10: 4. | B10: Sidra
B11: Proračun nosivosti sidara i određivanje slobodne i sidrišne dionice
B12: Ukoliko je zid projektiran sa sidrima, u Formi 4. Sidra i konzola, izaberi DA, a ako sidara nema, izaberi NE. Zadane sile u sidrima su sile po m' zida. Orijentacijska nosivost sidara računa se automatski nakon upisa podataka o sidrima. Nakon Potvrde unosa novih podataka obavezno treba provjeriti da li je minimalna duljina slobodne dionice veća od zadane (u Formi 4.). Ukoliko je predviđena slobodna dionica pojedinog sidra manja od minimalne potrebno je slobodnu dionicu produljiti na vrijednost iznad minimalne. U programu su predviđena 1 do 4 reda sidara. Ukoliko projektant stavlja samo jedan red tada se drugi i svi ostali redovi ne zadaju (početne programske upisane vrijednosti se brišu s DELETE). Ukoliko je razmak sidara I. i II. III. i IV. reda različit, treba taj razmak ujednačiti iz estetskih razloga. Razmak sidara mijenja se produljivanjem ili skraćivanjem sidrišne dionice. Nakon svake promjene sidrišne dionice napravite Potvrdu unosa novih podataka kako bi ustanovili da li ste postigli željeni razmak sidara. Za postizanje tog cilja, postupak će vjerojatno trebati ponoviti. Važno: I. red sidara je uvijek najviši red, II. red je ispod I. reda itd.
A13: 5. | B13: Kontrafore
B14: Ukoliko je predviđena izvedba kontrafora, u Formi 5. Kontrafore, izaberi DA, a ako kontrafora nema izaberi NE. Izvedbom kontrafora može se uštedjeti na betonu zida, smanjenjem visine presjeka zida u kruni i na kontaktu sa temeljem, ali pri izradi kontrafora treba voditi računa i o troškovima betona, oplate i rada za izradu kontrafora. Smatram da, sa toga stanovišta, pri odluci o korištenju kontrafora treba izvršiti detaljniju analizu isplativosti korištenja kontrafora. S produženjem temelja na mjestu kontrafora efikasno se može povećati stabilnost zida a da pri tome nije potrebno povećavati širinu temelja "B" po čitavoj duljini zida. To naročito vrijedi za temelje u stjenovitom tlu jer se u tom slučaju bitno smanjuju troškovi iskopa u stijeni (iskop samo za temelje kontrafore). Čak niti sa ovakvom izvedbom (što se tiče duljine temelja kontrafore) ne treba pretjerivati jer se u tom slučaju znatno povećava potresna sila (ukoliko se zid računa sa potresom). Zadovoljavajući rezultat dobiva se produljenjem temelja kontrafore već za cca 1 m (kao u originalu ovog programa).
A15: 6. | B15: Gradivo
B16: Klasu betona i armaturu, posebno za temelje, a posebno za zid, konzolu i kontrafore, izabire projektant u Formi 6. Gradivo. Ovim programom armiranje temelja i zida moguće je sa rebrastom armaturom ili armaturnim mrežama. Izbor profila rebraste armature moguć je putem padajućeg menija. Ukoliko se predvidi ugradnja armature mreže u zidu a pri tome najjača armaturna mreža nema dovoljno površine, slijedi upozorenje o potrebi ugradnje rebraste armature. I tada je moguće odabrati armaturnu mrežu, ali izvan ovog programa, jer će u tom slučaju biti potrebno preklopiti 2 ili više mreža što programom nije predviđeno. Isto vrijedi i za armaturu temelja. Ukoliko se za zid odabere armaturna mreža, broj sidrenih šipki (ankera) iz temelja odgovara broju nosivih šipki po m' armaturne mreže (radi nastavka sidrenih šopki na nosivu armaturne mreže). Bitno je u oba slučaja zadovoljiti proračunom predviđenu površinu armature.
A17: 7. | B17: Dimenzioniranje | E17: (za gravitacioni zid nije potrebno)
B18: Dimenzioniranje armirano betonskog zida provodi se, prema Metodi graničnog stanja (EC2), u pet programiranih presjeka kroz zid i temelj (presjeci od I-I do V-V) i presjek kroz konzolu. Presjek IV-IV je na visini zida gdje je računski moment savijanja minimalan (Mmin), osim presjeka III-III koji je uvijek minimalan kada nema konzole. Presjek V-V je na mjestu maksimalnog računskog momenta savijanja (Mmax), osim 0. Projektant može izvršiti i provjeru armature u bilo kojem presjeku, koristeći pri tome vrijednosti momenata savijanja i uzdužnih sila iz čelija T43 do AI51 u stranici (sheet) Analiza i dimenzioniranje.
A19: 8. | B19: Dijagram momenata, poprečnih i uzdužnih sila
B20: Prikazan je na stranici (sheet) Analiza i dimenzioniranje (izvan zone ispisa). Uz presjeke kroz zid I-I do V-V, za koje je izvršeno i dimenzioniranje, izračunati su momenti savijanja u približno petnaestinama visine zida. Na ovaj način, dobivena je realna raspodjela momenata savijanja duž zida.
A21: 9. | B21: Iskaz armature i sidara | E21: (za gravitacioni zid potrebna je samo Poz. 5)
B22: Nacrt armature prikazan je na stranici (sheet) Analiza stabilnosti, a iskaz armature i sidara na stranici (sheet) Iskaz armature, koji daje uvid u oblike i količinu armature i sidara.
A23: 10. | B23: Dokaznica mjera | E23: (za gravitacijski zid, stavke 3. i 4.2 u Troškovniku nisu potrebne)
B24: Količine betona, armature, drenaže i ostalih materijala na stranicu (sheet) Troškovnik ulaze automatski. Za proračun količina, potrebno je u Formi 6. Profil terena popuniti ćelije s plavom bojom. Ukoliko se ove vrijednosti u postojećim ćelijama ne izmijene, na stranici (sheet) Troškovnik, sve količine potrebne za izradu količina, rezultat su prethodnog proračuna.
A25: 11. | B25: Troškovnik | E25: (za gravitacijski zid, stavke 3. i 4.2 u Troškovniku nisu potrebne)
B26: Stranica (sheet) Troškovnik daje, nakon upisivanja jediničnih cijena, iznos troškova gradnje projektiranog potpornog zida. Ovdje je, za razliku od ostalih stranica (sheetova), moguća izmjena teksta (ćelije s plavom i crnom bojom). Stranica (sheet) je zaštićena samo u dijelu gdje podaci dolaze s drugih stranica (npr: jedinice, količina iskopa, betona, armature, sidara i sl). Promjena valute izvodi se preko padajućeg menija u čeliji Q53.
A27: 12. | B27: Proračun i ispis dokumenta
B28: Nakon ispunjavanja svih 7 Formi i Potvrde unosa novih podataka, proračun je završen. Postupak se može, prije izlaza iz programa, ponavljati neograničeno puta. Svaki proračun može se spremiti kao "Save as ....", kao XLSM dokument, kao PDF dokument ili ispisati kompletni dokument s tipkom Ispis dokumenta koja se nalazi na kraju upisa svih podataka u Formi 7. Profil terena. Ispis obuhvaća: Analizu i dimenzioniranje s nacrtom armature (10 stranica), Presjek zida (1), Tlocrt i pogled na zid (1), Iskaz armature (2) i Troškovnik (2). Moguć je ispis i pojedine stranice (sheet). Ispisati se može i sve što se selektira, što je povoljno kada potporni zid nema konzole, sidara ili kontrafora.
A29: 13. | B29: Napomene:
B30: NIKADA NE SPREMAJTE RADNU KNJIGU (FILE) NA KOJOJ RADITE NA STICK S ORIGINALNIM PROGRAMOM. UKOLIKO TO NAPRAVITE, PROGRAM ĆE SE BLOKIRATI BEZ MOGUĆNOSTI OPORAVKA. SVOJU RADNU KNJIGU (UPISANE PODATKE) SPREMAJTE NA DRUGI MEDIJ (RAČUNALO, DRUGI STICK) KAO PDF ILI SAVE AS…..
A31: 13.1. | B31: Nakon Potvrde unosa novih podataka, ukoliko se pojavi natpis o grešci, vjerojatno je došlo do greške pri upisu podataka. Za nastavak rada bez izlaska iz programa treba ići na stranicu (sheet) Start, kliknuti na Start i nakon toga pojavit će se jedna od Formi, pa je moguć normalni nastavak rada na programu.
A32: 13.2. | B32: Programom PotporniZID moguće je izraditi analizu stabilnosti i dimenzioniranje SVIH vrsta zidova bez obzira na oblik, dimenzije zida i vrstu opterećenja.
A33: 13.3. | B33: Nacrt armature prikazan je na stranici (sheet) Analiza i dimenzioniranje, a iskaz armature i sidara na stranici (sheet) Iskaz armature, koji daje uvid u oblike, dimenzije i količinu armature i sidara.
A34: 13.4. | B34: Program se otvara isključivo lozinkom po izboru autora ili zainteresirane strane.
A35: 13.5. | B35: Ukoliko zid ima preveliku konzolu i ili prevelike sile prednaprezanja u sidrima, vlačna zona moguća je i na licu zida. Zbog toga, uz svaki dimenzionirani presjek postoji napomena o položaju glavne armature. Ista je u nacrtu armature prikazana na pravom mjestu tj. u vlačnoj zoni.
A36: 13.6. | B36: Program je testiran za "sve" moguće vrijednosti djelovanja, oblike i dimenzije temelja i zida. Međutim, ukoliko korisnik tijekom rada naiđe na problem koji nije uočen tijekom testiranja, obavijestite me o tome na priloženi e-mail i problem će biti riješen u kratkom roku. Ukoliko je to greška u programu, svi korisnici programa dobit će, u zamjenu za stari, novi DVD s odgovarajućim ispravcima.
A37: 13.7. | B37: Svi dijagrami i crteži mogu se promjenama vrijednosti na osima x i y, prilagoditi veličini zida pri čemu, radi realne slike, treba zadržati postojeći omjer na osima (Nacrt armature u programu je 12:7). Kada na zidu nema npr. kontrafora, konzole ili sidara, crtež se može i pomaknuti na dio bez teksta, jednostavnim dodirom miša sa okvirom crteža i pomicanjem crteža na prazan prostor.
A38: 13.8. | B38: Vertikalna komponenta potresa Ukoliko se u analizu uključuje i vertikalna komponenta potresa, na stranici (sheet) Analiza i dimenzioniranje u ćeliju B149 upišite odgovarajuću vrijednost (+ za djelovanje prema dole, - za djelovanje prema gore ili 0 ukoliko analiza ne ukljućuje vertikalnu komponentu potresa) prema komentaru u ćeliji.
B39: Autor: Nikola Sapunar, dipl. ing. građ.

Sheet Unos podataka (hidden)
N1: Projektni pristup | O1: =+IF(L11=N9,N9,IF(L11=O9,O9,IF(L11=P9,2,IF(L11=Q9,Q9,R9)))) -> 3 | P1: Stupanj iskorišt. U% | Q1: Fs | R1: Napomena | Y1: Ukoliko kontrafore ima u čeliju AB81 automatski dolazi upis | AB1: DA
A2: NAZIV I STACIONAŽA ZIDA | N2: prevrtanje | P2: =+'Analiza i dimenzioniranje'!B179 ->  | Q2: =+IF(P2="","",1/P2) ->  | R2: =IF(P2="","",+IF(P2<100%,"Zadovoljava","NE zadovoljava")) ->  | Y2: =+IF(AB1="","","Kontrafore") -> Kontrafore
A3: KARAKTERISTIKE TLA | F3: 1. sloj | G3: 2. sloj | H3: 3. sloj | I3: tlo ispod temelja | L3: =+IF(L2='P X-X'!M1,"","Password?") -> Password? | N3: klizanje | P3: =+'Analiza i dimenzioniranje'!G179 ->  | Q3: =+IF(P3="","",1/P3) ->  | R3: =IF(P3="","",+IF(P3<100%,"Zadovoljava","NE zadovoljava")) ->  | Y3: =+IF(AB1="","","duljina temelja kontrafore") -> duljina temelja kontrafore | AA3: =+IF(AB1="","","lk =") -> lk = | AB3: 1 | AC3: =+AB3+0.000001 -> 1.000001
A4: kut unutrašnjag trenja .................... | D4: j | E4: ° | F4: 22 | G4: 18 | H4: 20 | I4: 18 | L4: ADD-Ins | N4: projektna otpornost tla | P4: =+'Analiza i dimenzioniranje'!F249 ->  | Q4: =+IF(P4="","",1/P4) ->  | R4: =IF(P4="","",+IF(P4<100%,"Zadovoljava","NE zadovoljava")) ->  | Y4: =+IF(AB1="","","širina temelja kontrafore") -> širina temelja kontrafore | AA4: =+IF(AB1="","","b =") -> b = | AB4: 1 | AC4: =+AB4 -> 1
A5: kohezija ........................................... | D5: =+'Analiza i dimenzioniranje'!C15 -> c (kPa) | E5: (kPa) | F5: 10 | G5: 22 | H5: 12 | I5: 25 | L5: Unos podataka | Y5: =+IF(AB1="","","broj kontrafora sa 2 na kraju zida") -> broj kontrafora sa 2 na kraju zida | AA5: =+IF(AB1="","","n =") -> n = | AB5: 3 | AC5: =+AB5 -> 3
A6: zapreminska težina ......................... | D6: g | E6: (kN/m3) | F6: 20 | G6: 20 | H6: 20 | I6: 20 | Y6: =+IF(AB1="","","širina kontrafore") -> širina kontrafore | AA6: =+IF(AB1="","","bk=") -> bk= | AB6: 0.25 | AC6: =+AB6 -> 0.25
A7: debljina sloja ................................... | D7: =+'Analiza i dimenzioniranje'!C17 -> h (m) | E7: (m) | F7: 2 | G7: 2.8 | H7: =+F41 -> 1.2 | J7: =+IF(O48="",G7,O38-F7-H7) -> 2.8 | Y7: =+IF(AB1="","","duljina kontrafore na temelju do zida") -> duljina kontrafore na temelju do zida | AA7: =+IF(AB1="","","dk=") -> dk= | AB7: =IF(AB1="","",+Kontrafore!E7) -> 1.9000001
A8: nagib slojeva tla .............................. | D8: e | E8: ° | F8: 6 | G8: 4 | H8: 2 | I8: =+IF(F10>F4,F4,F10) -> 10 | N8: FAKTORI ZA PROJEKTNE PRISTUPE EC7 | S8: EC8 | Y8: =+IF(AB1="","","visina kontrafore s temeljem") -> visina kontrafore s temeljem | AA8: =+IF(AB1="","","hk=") -> hk= | AB8: =IF(AB1="","",+Kontrafore!E10) -> 5.5
A9: nadvišenje tla iznad zida ................. | D9: hn | E9: (m) | F9: 0 | G9: =+'Analiza i dimenzioniranje'!E20 ->  | H9: =+'Analiza i dimenzioniranje'!E20 ->  | I9: =+IF('Analiza i dimenzioniranje'!G55="","","Nosivost tla na kosini Ne zadovoljava") ->  | N9: 1K1 | O9: 1K2 | P9: 2 | Q9: 3 | R9: EQU | S9: Potres | T9: Propisi | Y9: =+IF(AB1="","","udaljenost kontr. od ruba temelja") -> udaljenost kontr. od ruba temelja | AA9: =+IF(AB1="","","l =") -> l = | AB9: =IF(AB1="","",0.5) -> 0.5
A10: nagib kosine iza zida ...................... | D10: b1 | E10: ° | F10: 10 | G10: =+F9+0.000001 -> 1e-06 | H10: nagib padine ispred zida b2⁰ = | J10: 0 | N10: A1+M1+R1 | O10: A2+M2+R1 | P10: A1+M1+R2 | Q10: A2+M2+R3 | R10: Kruta podlloga i zid ne utjeće bitno na prevrtanje, klizanje i nosivost | T10: Ovu kolonu NE dirati | U10: Faktori bez potresa | V10: Naziv faktora | Y10: =+IF(AB1="","","osni razmak kontrafora") -> osni razmak kontrafora | AA10: =+IF(AB1="","","lk=") -> lk= | AB10: =IF(AB1="","",+Kontrafore!E8) -> 4
A11: Poissonov koeficijent ....................... | C11: ............................ | D11: =+'Analiza i dimenzioniranje'!C21 -> n | F11: 0.3 | G11: =+F10+0.000001 -> 10.000001 | I11: j Zasipa= | J11: 30 | K11: =+'Analiza i dimenzioniranje'!M23 -> EC7 | L11: 3 | N11: Parcijani faktori svojstava tla | Y11: =+IF(AB1="","","širina temelja zida") -> širina temelja zida | AA11: =+IF(AB1="","","B =") -> B = | AB11: =IF(AB1="","",+Kontrafore!E9) -> 2.9000022
A12: prosječni modul stišljivosti tla ispod temelja Ms (kN/m2) | F12: 8000 | J12: Parcijalni faktori svojstava tla: | N12: M1 | O12: M2 | P12: M1 | Q12: M2 | Y12: =+IF(AB1="","","visina zida s temeljem") -> visina zida s temeljem | AA12: =+IF(AB1="","","H=") -> H= | AB12: =IF(AB1="","",+Kontrafore!E12) -> 6
A13: Ukoliko se pritisci računaju sa Ka u čeliju F13 automatski se upisuje Ka | F13: Ka | G13: a ako ne, Ko | J13: kut unutrašnjeg trenja | K13: gj = | L13: =IF(L11=T9,T13,IF(L11=S9,S13,IF(L11=R9,R13,IF($L$11=$N$9,N13,IF($L$11=$O$9,O13,IF($L$11=$P$9,P13,Q13)))))) -> 1.25 | N13: 1 | O13: 1.25 | P13: 1 | Q13: 1.25 | R13: 1.25 | S13: 1 | T13: =+U13 -> 1.25 | U13: =+'Analiza i dimenzioniranje'!N27 -> 1.25 | V13: gj
A14: DJELOVANJA | I14: 0 | J14: kohezija | K14: gc = | L14: =IF(L11=T9,T14,IF(S9=L11,S14,IF(L11=R9,R14,IF($L$11=$N$9,N14,IF($L$11=$O$9,O14,IF($L$11=$P$9,P14,Q14)))))) -> 1.25 | N14: 1 | O14: 1.25 | P14: 1 | Q14: 1.25 | R14: 1.25 | S14: 1 | T14: =+U14 -> 1.25 | U14: =+'Analiza i dimenzioniranje'!N28 -> 1.25 | V14: gc
A15: PROMETNO OPTEREĆENJE ............................. | E15: Pp= | F15: 10 | G15: kN/m2 | H15: =+F15+0 -> 10 | J15: Parcijalni faktori djelovanja: | N15: Parcijalni faktori djelovanja
A16: širina opterećenja ................................................................. | E16: B = | F16: 3 | G16: m | J16: trajna | N16: A1 | O16: A2 | P16: A1 | Q16: A2
A17: udaljenost opterećenja od vrha zida ................ | E17: x = | F17: 4.5 | G17: m | J17: nepovoljna | K17: gG= | L17: =IF(L11=T9,T17,IF(S9=L11,S17,IF(L11=R9,R17,IF($L$11=$N$9,N17,IF($L$11=$O$9,O17,IF($L$11=$P$9,P17,Q17)))))) -> 1 | N17: 1.35 | O17: 1 | P17: 1.35 | Q17: 1 | R17: 1.1 | S17: 1 | T17: =+U17 -> 1.1 | U17: =+'Analiza i dimenzioniranje'!N31 -> 1.1 | V17: gG,dst
A18: hor. udaljenost vrha pokosa od zida ................. | E18: b = | F18: 1.5 | G18: m | H18: =+F18+0.000001 -> 1.500001 | J18: povoljna | K18: gG= | L18: =IF(L11=T9,T18,IF(S9=L11,S18,IF(L11=R9,R18,IF($L$11=$N$9,N18,IF($L$11=$O$9,O18,IF($L$11=$P$9,P18,Q18)))))) -> 1 | N18: 1 | O18: 1 | P18: 1 | Q18: 1 | R18: 0.9 | S18: 1 | T18: =+U18 -> 0.9 | U18: =+'Analiza i dimenzioniranje'!N32 -> 0.9 | V18: gG,stb
A19: OPTEREĆENJE TEMELJEM .................... | D19: ..................................... | E19: =+IF(A19="OPTEREĆENJE TEMELJEM ....................","Qt="," Qv=") -> Qt= | F19: 120 | G19: kN/m2 | J19: promjenjiva | N19: A1 | O19: A2 | P19: A1 | Q19: A2
A20: =+IF(A19="OPTEREĆENJE TEMELJEM ....................","širina temelja .................................................................","širina vozila .........................................................") -> širina temelja ................................................................. | E20: =+IF(A19="OPTEREĆENJE TEMELJEM ....................","B ="," Bv=") -> B = | F20: 1 | G20: m | J20: nepovoljno | K20: gQ= | L20: =IF(L11=T9,T20,IF(S9=L11,S20,IF(L11=R9,R20,IF($L$11=$N$9,N20,IF($L$11=$O$9,O20,IF($L$11=$P$9,P20,Q20)))))) -> 1.3 | N20: 1.5 | O20: 1.3 | P20: 1.5 | Q20: 1.3 | R20: 1.5 | S20: 1 | T20: =+U20 -> 1.5 | U20: =+'Analiza i dimenzioniranje'!N33 -> 1.5 | V20: gQ,dst
A21: =+IF(A19="OPTEREĆENJE TEMELJEM ....................","duljina temelja ............................................................................","duljina vozila ..................................................") -> duljina temelja ............................................................................ | E21: =+IF(A19="OPTEREĆENJE TEMELJEM ....................","L ="," Lv=") -> L = | F21: 10 | G21: m | J21: povoljno | K21: gQ= | L21: =IF(L11=T10,T21,IF(S10=L12,S21,IF(L12=R10,R21,IF($L$11=$N$9,N21,IF($L$11=$O$9,O21,IF($L$11=$P$9,P21,Q21)))))) -> 0 | N21: 0 | O21: 0 | P21: 0 | Q21: 0 | R21: 0 | S21: 0 | T21: =+U21 -> 0 | U21: =+'Analiza i dimenzioniranje'!N34 -> 0 | V21: gQ,stb
A22: =+IF(A19="OPTEREĆENJE TEMELJEM ....................","dubina temeljenja (ispod vrha zida) .................................................","visina vozila iznad zida ..................................") -> dubina temeljenja (ispod vrha zida) ................................................. | E22: =+IF(A19="OPTEREĆENJE TEMELJEM ....................","Df=","vv=") -> Df= | F22: -1 | G22: m | H22: =+IF(E22="vv=",'Analiza i dimenzioniranje'!E20,F22) -> -1 | N22: Parcijalni faktori otpora
A23: =+IF(A19="OPTEREĆENJE TEMELJEM ....................","hor. udaljenost temelja od vrha zida .......................","hor. udaljenost vozila od vrha zida ........................................................") -> hor. udaljenost temelja od vrha zida ....................... | E23: x = | F23: 3 | G23: m | J23: Dimenzioniranje (EC2) | O23: R1 | P23: R2 | Q23: R3 | R23: R4
A24: =+IF(A19="OPTEREĆENJE TEMELJEM ....................","visina temelja .......................................................","") -> visina temelja ....................................................... | E24: =+IF(A19="OPTEREĆENJE TEMELJEM ....................","h =","") -> h = | F24: 1 | G24: =+IF(A19="Opterećenje temeljem ....................","m","") -> m | H24: =+IF(E24="","",F24) -> 1 | J24: Parcijalni faktori za gradivo: | N24: prevrtanje | O24: 1 | P24: 1 | Q24: 1 | R24: 1 | S24: 1 | T24: =+U24 -> 1 | U24: =+'Analiza i dimenzioniranje'!N36 -> 1 | V24: gR
A25: LINIJSKO IZA ZIDA ......................................... | E25: PL= | F25: 20 | G25: kN/m' | H25: =+F25+0.000001 -> 20.000001 | J25: čelik | K25: gs = | L25: =IF(L11=T9,T27,IF(L11=S9,S27,O27)) -> 1.15 | N25: klizanje | O25: 1 | P25: 1.1 | Q25: 1 | R25: 1 | S25: 1.1 | T25: 1 | U25: =+'Analiza i dimenzioniranje'!N37 -> 1 | V25: gR;h
A26: udaljenost opterećenja od vrha zida ................ | E26: x = | F26: 2.5 | G26: m | J26: beton | K26: gc = | L26: =IF(L11=T9,T28,IF(L11=S9,S28,O28)) -> 1.5 | N26: nosivost | O26: 1 | P26: 1.4 | Q26: 1 | R26: 1 | S26: 1.4 | T26: 1 | U26: =+'Analiza i dimenzioniranje'!N38 -> 1 | V26: gR;v
A27: TOČKASTO OPTEREĆENJE .............................. | E27: PT= | F27: 20 | G27: kN | H27: =+F27+0.000001 -> 20.000001 | N27: čelik | O27: 1.15 | P27: =+O27 -> 1.15 | Q27: =+P27 -> 1.15 | R27: 1.15 | S27: 1.15 | T27: 1.15 | U27: =+'Analiza i dimenzioniranje'!N41 -> 1.15 | V27: gs
A28: udaljenost centra opterećenja od vrha zida ............. | E28: x = | F28: 1.5 | G28: m | H28: =+F28-0.5 -> 1 | J28: Parcijalni faktori djelovanja: | N28: beton | O28: 1.5 | P28: =+O28 -> 1.5 | Q28: 1.5 | R28: 1.5 | S28: =+R28 -> 1.5 | T28: 1.5 | U28: =+'Analiza i dimenzioniranje'!N42 -> 1.5 | V28: gc
A29: SILA U SIDRIMA (ukupna)................................. | E29: PS= | F29: =IF(G63="",0,'Analiza i dimenzioniranje'!E38) -> -100.0000001 | G29: kN/m' | J29: trajna | K29: gG= | L29: =IF(L11=T9,T29,IF(L11=S9,S29,O29)) -> 1.35 | N29: stalno djelovanje | O29: 1.35 | P29: =+O29 -> 1.35 | Q29: 1.35 | R29: 1.35 | S29: =+R29 -> 1.35 | T29: 1.35 | U29: =+'Analiza i dimenzioniranje'!N44 -> 1.35 | V29: gG
A30: otklon sidara od horizontale ............................. | E30: a = | F30: 15 | G30: ° | J30: promjenjiva | K30: gQ= | L30: =IF(L11=T9,T30,IF(L11=S9,S30,O30)) -> 1.5 | N30: promjenjivo djelovanje | O30: 1.5 | P30: =+O30 -> 1.5 | Q30: 1.5 | R30: 1.5 | S30: =+R30 -> 1.5 | T30: 1.5 | U30: =+'Analiza i dimenzioniranje'!N45 -> 1.5 | V30: gQ
A31: visina rezultante (iznad točke A) ....................... | E31: hs= | F31: =+'Analiza i dimenzioniranje'!E40 -> 3.999999996 | G31: m | J31: Voda ispred zida | Q31: 0 | R31: 0
A32: NPV IZA ZIDA .................................................. | E32: hw= | F32: 0.6 | G32: m | J32: 0.8
A33: POTRES (y) Fwy=SG*kh ..................................... | E33: Fwy= | F33: =+'Analiza i dimenzioniranje'!E43 ->  | G33: kN/m'
A34: kh= amax*S/r | B34: r= | C34: =+'Analiza i dimenzioniranje'!E45 -> 1 | E34: amax = | F34: 0.1 | G34: S= | H34: 1
A35: Ukoliko se zid računa s potresom, u čeliju F34 se autom upisuje vrijednost amax>0 a ako NE, u čeliju F34, upisuje 0.
A36: DIMENZIJE ZIDA | F36: =-G38 -> -4 | N36: Masivni zid
A37: visina zida i temelja ........................................... | E37: H = | F37: =+'Analiza i dimenzioniranje'!E48 -> 6 | G37: m | N37: prema Švicarskim propisima
A38: dužina zida ........................................................ | E38: L = | F38: 12 | G38: =+IF(G39=0,0.000001,G39) -> 4 | N38: H = | O38: 6 | P38: m
A39: otklon zida uz tlo od vertikale............................ | E39: b = | F39: 4 | G39: =IF(O48="DA",0,+F39) -> 4 | I39: Crtež kontrafore | K39: Crtež kontrafore kada zid ide od 0 a ne od 2 | N39: b = | O39: 0 | P39: °
A40: visina temelja prema padini .............................. | E40: hA= | F40: 0.7 | G40: =+IF(O48="DA",O40,F40) -> 0.7 | I40: Temelj kontrafore | K40: Temelj kontrafore | N40: hA= | O40: =ROUND((O41-(O43+O44-G49)/5),2) -> 1.06 | P40: m
A41: visina temelja prema zasipu ............................. | E41: hB= | F41: 1.2 | G41: =+IF(O48="DA",O41,F41) -> 1.2 | I41: =IF(AB1="",0,'C III-V'!B3+G49) -> 2 | J41: =IF(AB1="",0,IF(Kontrafore!E1="",'C III-V'!C2,(('Analiza i dimenzioniranje'!E52-'Analiza i dimenzioniranje'!E51)-('Analiza i dimenzioniranje'!E61*'Analiza i dimenzioniranje'!E52-'Analiza i dimenzioniranje'!E61*'Analiza i dimenzioniranje'!E51)/('Analiza i dimenzioniranje'!E61+'Unos podataka'!AC3)))) -> 0.1282051512 | K41: =IF('Analiza i dimenzioniranje'!A83="",0,+I41-2) -> 0 | L41: =+J41 -> 0.1282051512 | N41: hB= | O41: =+(0.28*O38) -> 1.68 | P41: m
A42: nagib dna temelja .................................................. | D42: 1: n2 ..... | E42: n2= | F42: =+'Analiza i dimenzioniranje'!E53 -> 7.8000044 | I42: =IF(I41=0,0,'C III-V'!B3) -> 2 | J42: =IF(AB1="",0,'C III-V'!C3) -> 1.2 | K42: =IF('Analiza i dimenzioniranje'!A83="",0,+I42-2) -> 0 | L42: =+J42 -> 1.2 | N42: d = | O42: 1.4 | P42: m
A43: širina zida u kruni .............................................. | E43: d = | F43: 0.6 | G43: =+IF(O48="DA",O42,F43) -> 0.6 | I43: =2+F50-MT!G13 -> 1.75 | J43: =IF(AB1="",0,J42) -> 1.2 | K43: =+I43-2 -> -0.25 | L43: =+J43 -> 1.2 | N43: d1= | O43: =ROUND(O42+0.144*O38,2) -> 2.26 | P43: m
A44: širina zida na temelju ........................................ | E44: d1= | F44: 0.8 | G44: =+IF(O48="DA",O43,F44) -> 0.8 | I44: =+I45-'Analiza i dimenzioniranje'!$E$60 -> 1 | J44: =+J43 -> 1.2 | K44: =IF('Analiza i dimenzioniranje'!A83="",0,+I44-2) -> -1 | L44: =+J44 -> 1.2 | N44: b1= | O44: =0.14*O38 -> 0.84 | P44: m
A45: nagib lica zida ................................................. | D45: n1: 1 ..... | E45: n1= | F45: =+'Analiza i dimenzioniranje'!E56 ->  | I45: =2-Kontrafore!$E$3+'Analiza i dimenzioniranje'!$E$60 -> 1 | J45: =+L45 -> 0 | K45: =+I45-2 -> -1 | L45: 0 | N45: b2= | O45: 0 | P45: m
A46: nagib zida uz tlo .......................................................... | D46: n3: 1 ..... | E46: n3= | F46: =+IF(G46>100,">100",G46) ->  | G46: =+'Analiza i dimenzioniranje'!F57 ->  | I46: =IF(AB1="",0,I43+G49) -> 1.75 | J46: =+Kontrafore!B17 -> 0.09615389546 | K46: =IF('Analiza i dimenzioniranje'!A83="",0,+I46-2) -> -0.25 | L46: =+J46 -> 0.09615389546 | N46: n = | O46: =+O41/5 -> 0.336 | P46: m | Q46: Sidra | S46: 1. | T46: 2. | U46: 3. | V46: 4.
A47: širina temelja ispred zida .................................. | E47: b1= | F47: 0.7 | G47: =IF(O48="DA",O44,+F47+0.000001) -> 0.700001 | I47: =+I41 -> 2 | J47: =+J41 -> 0.1282051512 | K47: =+K41 -> 0 | L47: =+J47 -> 0.1282051512 | O47: DA ili NE | P47: kut otklona temelja od vertikale | Q47: visina sidra od dna temelja | S47: =IF(G63="DA",F67,0) -> 5 | T47: =IF(G63="DA",G67,0) -> 3 | U47: =IF(G63="DA",H67,0) -> 0 | V47: =IF(G63="DA",I67,0) -> 0
A48: širina temelja iza zida ....................................... | E48: b2= | F48: 1.4 | G48: =IF(O48="DA",O45,+F48+0.0000001) -> 1.4000001 | I48: Rebro kontrafore | P48: =IF(O48="",0,ATAN(+O46/O41)*180/PI()) -> 0 | Q48: slobodna dionica | S48: =IF(G63="DA",F68,0) -> 5.9 | T48: =IF(G63="DA",G68,0) -> 4.9 | U48: =IF(G63="DA",H68,0) -> 0 | V48: =IF(G63="DA",I68,0) -> 0
A49: nagib temeljne plohe uz tlo ........................ | D49: hB: n ..... | E49: n = | F49: 0 | G49: =+IF(O48="DA",O46,F49) -> 0 | I49: =IF(AB1="",0,+'C III-V'!B4-Kontrafore!E11) -> 1.500001 | J49: =IF(AB1="",0,J42) -> 1.2 | K49: =+I49-2 -> -0.499999 | L49: =+J49 -> 1.2 | Q49: sidrišna dionica dionica | S49: =IF(G63="DA",F69,0) -> 6.7 | T49: =IF(G63="DA",G69,0) -> 4.8 | U49: =IF(G63="DA",H69,0) -> 0 | V49: =IF(G63="DA",I69,0) -> 0
A50: ukupna širina temelja ........................................ | E50: B = | F50: =+'Analiza i dimenzioniranje'!E61 -> 2.9000022 | G50: m | I50: =+I49 -> 1.500001 | J50: =IF(J49=0,0,J49+0.5) -> 1.7 | K50: -0.499999 | L50: 1.7 | O50: =+'Analiza i dimenzioniranje'!L462 -> 2.9000022 | P50: =+'Analiza i dimenzioniranje'!M462 -> 1.2 | Q50: sila prednaprezanja | S50: =IF(G63="DA",F70,0) -> 50 | T50: =IF(G63="DA",G70,0) -> 50 | U50: =IF(G63="DA",H70,0) -> 0 | V50: =IF(G63="DA",I70,0) -> 0
A51: zapreminska težina zida i temelja...................... | E51: gb= | F51: 25 | G51: kN/m3 | I51: =IF(AB1="",0,IF(G39=0,I52-0.5,IF(AB1="",0,IF(G39=0,I53-0.5,(2+'Analiza i dimenzioniranje'!E59-('Analiza i dimenzioniranje'!E48-'Analiza i dimenzioniranje'!E52-0.5)/'Analiza i dimenzioniranje'!F57))-0.5))) ->  | J51: =IF(AB1="",0,IF(I51=0,0,IF(F9>=0,F37-0.5,IF(AB1="",0, 'Analiza i dimenzioniranje'!$E$48-0.5+F9)))) ->  | O51: =+'Analiza i dimenzioniranje'!L461 -> 5 | P51: =+'Analiza i dimenzioniranje'!M461 -> 1.2 | Q51: nosivost sidra | S51: =+'Analiza i dimenzioniranje'!P26 ->  | T51: =+'Analiza i dimenzioniranje'!Q26 ->  | U51: =+'Analiza i dimenzioniranje'!R26 ->  | V51: =+'Analiza i dimenzioniranje'!S26 -> 
A52: zapreminska težina zasipa (drenaže i klina)....... | E52: gz= | F52: 20 | G52: kN/m3 | I52: =IF(G39=0,I53,+I53-(J52-J54)/G46) ->  | J52: =+J51 ->  | Q52: razmak sidara | S52: =+'Analiza i dimenzioniranje'!P27 ->  | T52: =+'Analiza i dimenzioniranje'!Q27 ->  | U52: =+'Analiza i dimenzioniranje'!R27 ->  | V52: =+'Analiza i dimenzioniranje'!S27 ->  | W52: =+'Analiza i dimenzioniranje'!T26 -> 
A53: debljina zasipa (drenaže) iza zida ..................... | E53: d = | F53: 0.5 | G53: m | I53: =+IF(AB1="",0,+'C III-V'!$AE$108) -> 3.4000001 | J53: =IF(AB1="",0,+'C III-V'!$AF$108) -> 1.2 | K53: 1.4000001 | L53: 1.2 | Q53: Minimalna duljina slobodne dionice | S53: =+'Analiza i dimenzioniranje'!P28 ->  | T53: =+'Analiza i dimenzioniranje'!Q28 ->  | U53: =+'Analiza i dimenzioniranje'!R28 ->  | V53: =+'Analiza i dimenzioniranje'!S28 ->  | W53: =+'Analiza i dimenzioniranje'!T27 -> 
A54: visina nasipa na temelju ispred zida ................. | E54: hn= | F54: 0.3 | G54: =+F54+0.000001 -> 0.300001 | I54: =+I49 -> 1.500001 | J54: =+J49 -> 1.2 | K54: -0.499999 | L54: 1.2
A55: zapreminska težina nasipa ............................... | E55: gn= | F55: 20 | G55: kN/m3 | L55: =+T59 ->  | P55: tg | Q55: =+I8 -> 10 | R55: =+TAN(Q55*PI()/180) -> 0.1763269807 | S55: =IF(T55=T56,S56,'C III-V'!U7) ->  | T55: =+'C III-V'!V7 -> 6 | U55: =+'Analiza i dimenzioniranje'!F95 ->  | V55: =+'Analiza i dimenzioniranje'!G94 -> 6
C56: Ukoliko zid ima konzolu u čeliju G57 automatski se upisuje DA a ako konzole nema, čelija se briše sa DELETE | L56: =+T60 ->  | Q56: rač. nadviš h= | R56: =IF(F8<=F4,0,IF(H15>0,(T57-T56)-H18*R55,X60-R55*(-X59+S56)-T55)) -> 0 | S56: =2+G48-(T56-F41)/G46 ->  | T56: =IF(H15=0,+'C III-V'!V8,'C III-V'!V8) -> 6 | U56: =+'Analiza i dimenzioniranje'!F98 -> -8 | V56: =+T56+(U55-U56)*TAN(F10*PI()/180) -> 
A57: KONZOLA | G57: DA | P57: tg | Q57: =+F10 -> 10 | R57: =+TAN(Q57*PI()/180) -> 0.1763269807 | T57: =IF(F12<F4,T56+H18*+R57,IF(H15=0,T56+H18*TAN(F10*PI()/180),T56+H18*TAN(F10*PI()/180))) -> 6.264490647
A58: duljina konzole (zida) .............................................................. | D58: =+IF(G57=0,"","............................") -> ............................ | E58: lk= | F58: =+'Analiza i dimenzioniranje'!E78 -> 12 | G58: =+'Analiza i dimenzioniranje'!F78 -> m | H58: F37/2= | I58: =+'Analiza i dimenzioniranje'!E48/2 -> 3 | P58: tg | Q58: =+Q57-Q55 -> 0 | R58: =+TAN(Q58*PI()/180)*(S55-'C III-V'!AE104) ->  | S58: -8 | T58: =IF(H15>0,T57,V56) -> 6.264490647
A59: visina podgleda konzole (od dna temelja) ............ | E59: vk= | F59: 3.14 | G59: =+'Analiza i dimenzioniranje'!F81 -> m | H59: =+F59 -> 3.14 | Q59: Nadvišenje terena kada ima prometa | S59: =IF('Unos podataka'!F9>0,+S55,"") ->  | T59: =+IF(F9>0,'Analiza i dimenzioniranje'!G94,"") -> 
A60: širina konzole ................................................. | D60: =+IF(G57="","","................") -> ................ | E60: bk= | F60: 1 | G60: =+'Analiza i dimenzioniranje'!F79 -> m | J60: MASA ZIDA I TEMELJA ZA UZGON | Q60: =IF(H15>0,(T57-T55)+'Unos podataka'!R58,'Unos podataka'!R58) ->  | S60: =+IF(F9<=0,"",S55) ->  | T60: =+IF(F9<=0,"",T55) -> 
A61: visina presjeka konzole .................................. | D61: =+IF(G57="","","................") -> ................ | E61: hk= | F61: 0.3 | G61: =+'Analiza i dimenzioniranje'!F80 -> m | Q61: Linija terena s prometom
C62: Ukoliko zid ima sidra u čeliju G63automatski se upisuje DA a ako sidara nemabrisati sa DELETE. | Q62: =IF('Analiza i dimenzioniranje'!E24=0,'Analiza i dimenzioniranje'!L457,S55-2) ->  | R62: =IF('Analiza i dimenzioniranje'!E24=0,'Analiza i dimenzioniranje'!M457,T55) -> 6
A63: SIDRA | G63: DA | Q63: =IF('Analiza i dimenzioniranje'!E24=0,'Analiza i dimenzioniranje'!L457,S56-2) ->  | R63: =IF('Analiza i dimenzioniranje'!E24=0,'Analiza i dimenzioniranje'!M457,T56) -> 6
A64: =+IF(G63="","","promjer injektirane bušotine .............................") -> promjer injektirane bušotine ............................. | E64: d≈ | F64: 0.1 | G64: m | Q64: =IF('Analiza i dimenzioniranje'!E24=0,'Analiza i dimenzioniranje'!L457,+B105-2) ->  | R64: =IF('Analiza i dimenzioniranje'!E24=0,'Analiza i dimenzioniranje'!M457,+T57) -> 6.264490647
A65: =+IF(G63="","","faktor sigurnosti ( za dop. opt. sidra) ................ ") -> faktor sigurnosti ( za dop. opt. sidra) ................ | E65: gs= | F65: 2 | M65: Padajući menu za klase betona | N65: 20 | Q65: =IF('Analiza i dimenzioniranje'!E24=0,'Analiza i dimenzioniranje'!L456,Q64-8) ->  | R65: =IF('Analiza i dimenzioniranje'!E24=0,'Analiza i dimenzioniranje'!M456,T58) -> 6.264490647
A66: =+IF(G63="",""," Nosivost i razmak sidara") -> Nosivost i razmak sidara | F66: I. red | G66: II. red | H66: III. red | I66: IV. red | N66: 25 | Q66: =IF('Analiza i dimenzioniranje'!E24=0,'Analiza i dimenzioniranje'!L456,Q65-3) ->  | R66: =+IF('Analiza i dimenzioniranje'!E24=0,'Analiza i dimenzioniranje'!M456,R65+3) -> 9.264490647
A67: =+IF(G63="","","visina sidra od dna temelja (m) ..........................") -> visina sidra od dna temelja (m) .......................... | E67: hs= | F67: 5 | G67: 3 | N67: 30 | P67: Koordinate točaka pravaca | V67: Linija terena
A68: =+IF(G63="","","duljina slobodne dionice (m) .............................") -> duljina slobodne dionice (m) ............................. | E68: lsl= | F68: 5.9 | G68: 4.9 | N68: 37 | P68: x= | Q68: =+Q65 ->  | R68: =+Q66 ->  | S68: =+'Analiza i dimenzioniranje'!L455 ->  | T68: =+'Analiza i dimenzioniranje'!M455 ->  | V68: =IF(H15>0,S56-H18,X59) ->  | W68: =+T57 -> 6.264490647
A69: =+IF(G63="","","duljina sidrišne dionice (m) ................................") -> duljina sidrišne dionice (m) ................................ | E69: lsidr= | F69: 6.7 | G69: 4.8 | N69: 45 | P69: Y= | Q69: =+R65 -> 6.264490647 | R69: =+R66 -> 9.264490647 | S69: =+'Analiza i dimenzioniranje'!L456 -> -21.16 | T69: =+'Analiza i dimenzioniranje'!M456 ->  | V69: =+S56 ->  | W69: =IF(F8<=F4,T56,IF(H15>0,#REF!,+#REF!+R56)) -> 6
A70: =IF(G63="","",IF(T49>0,"sile u sidrima (kN) ..............................................","sila u sidru (kN) ......................................................")) -> sile u sidrima (kN) .............................................. | E70: Ps= | F70: 50 | G70: 50 | N70: 50 | P70: Jednadžbe pravaca | T70: x | U70: y | V70: =+S55 ->  | W70: ='C III-V'!C9 -> A
A71: =+IF(G63="","","Dop. opterećenje sidra .................................... ") -> Dop. opterećenje sidra .................................... | E71: Pdop= | F71: =+'Analiza i dimenzioniranje'!D74 ->  | G71: =+'Analiza i dimenzioniranje'!E74 ->  | H71: =+IF(H70="","",'Analiza i dimenzioniranje'!F74) ->  | I71: =+'Analiza i dimenzioniranje'!G74 ->  | N71: 55 | P71: Y= | Q71: =(R69-Q69)/(R68-Q68) ->  | R71: *x + | S71: =-Q71*Q68+Q69 ->  | T71: =+Q65 ->  | U71: =Q71*T71+S71 -> 
A72: =+IF(G63="","","Razmak sidara .................................................") -> Razmak sidara ................................................. | E72: b< | F72: =IF(G63="","",'Analiza i dimenzioniranje'!P27) ->  | G72: =IF(G63="","",'Analiza i dimenzioniranje'!Q27) ->  | H72: =IF(G63="","",'Analiza i dimenzioniranje'!R27) ->  | I72: =IF(G63="","",'Analiza i dimenzioniranje'!S27) ->  | J72: =IF(G63="","",'Analiza i dimenzioniranje'!T27) ->  | N72: 60 | P72: Y= | Q72: =+(T69-T68)/(S69-S68) ->  | R72: *x + | S72: =-Q72*S69+T69 ->  | T72: =+'Analiza i dimenzioniranje'!L455 ->  | U72: =Q72*T72+S72 -> 
A73: Minimalna duljina slobodne dionice ...................... | E73: lsl>= | F73: =+'Analiza i dimenzioniranje'!P28 ->  | G73: =+'Analiza i dimenzioniranje'!Q28 ->  | H73: =+'Analiza i dimenzioniranje'!R28 ->  | I73: =+'Analiza i dimenzioniranje'!S28 ->  | J73: =+'Analiza i dimenzioniranje'!T28 ->  | M73: Padajući menu za profil armatuire | N73: 8 | P73: sjecište
A74: Padajući menu | N74: 10 | P74: X= | Q74: =IF('Analiza i dimenzioniranje'!E24=0,'Unos podataka'!S69,-(S72-S71)/(1+Q72)) ->  | R74: Y= | S74: =IF('Analiza i dimenzioniranje'!E24=0,'Unos podataka'!T69,+Q71*Q74+S71) -> 
A75: OPTERECENJE TEMELJEM ............................ | N75: 12 | P75: X= | Q75: =+Q65 ->  | R75: Y= | S75: =+R65 -> 6.264490647
A76: OPTERECENJE VOZILOM .............................. | E76: Rezultat | N76: 14 | P76: X= | Q76: =IF('Analiza i dimenzioniranje'!E24=0,'Unos podataka'!Q75,+Q64) ->  | R76: Y= | S76: =IF('Analiza i dimenzioniranje'!E24=0,'Unos podataka'!S75,+R64) -> 6.264490647
E77: Projektni pristup | G77: Stupanj iskorištenost | H77: Fs | I77: Napomena | N77: 16 | P77: X= | Q77: =+S55-2 ->  | R77: Y= | S77: =+T56 -> 6
E78: prevrtanje | G78: =+'Analiza i dimenzioniranje'!B179 ->  | H78: =100/G78/100 ->  | I78: =+'Analiza i dimenzioniranje'!C179 -> (Zadovoljava) | N78: 18 | Q78: Koordinate točaka pravaca
E79: klizanje | G79: =+'Analiza i dimenzioniranje'!G179 ->  | H79: =100/G79/100 ->  | I79: =+'Analiza i dimenzioniranje'!H179 ->  | N79: 20 | P79: x= | Q79: =+'Analiza i dimenzioniranje'!Y538 ->  | R79: =+'Analiza i dimenzioniranje'!Y539 -> -1
E80: projektna otpornost tla | G80: =+'Analiza i dimenzioniranje'!F249 ->  | H80: =100/G80/100 ->  | I80: =+'Analiza i dimenzioniranje'!G249 ->  | N80: 22 | P80: Y= | Q80: =+'Analiza i dimenzioniranje'!Z538 ->  | R80: =+'Analiza i dimenzioniranje'!Z539 -> 1.2
A81: GRADIVO | N81: 25 | P81: Jednadžbe pravaca | T81: x | U81: y
A82: Beton | B82: Temelj | D82: =+IF(G57="","Zid","Zid i konzola") -> Zid i konzola | N82: 28 | P82: Y= | Q82: =(R80-Q80)/(R79-Q79) ->  | R82: *x + | S82: =-Q82*Q79+Q80 ->  | T82: =-(S82-U82)/Q82 ->  | U82: =+R65 -> 6.264490647
A83: Razred C | B83: =IF(B84=20,16,IF(B84=25,20,IF(B84=30,25,IF(B84=37,30,IF(B84=45,35,IF(B84=50,40,IF(B84=55,45,IF(B84=60,50,"")))))))) -> 25 | C83: C | D83: =IF(D84=20,16,IF(D84=25,20,IF(D84=30,25,IF(D84=37,30,IF(D84=45,35,IF(D84=50,40,IF(D84=55,45,IF(D84=60,50,"")))))))) -> 30 | N83: 32
B84: 30 | D84: 37 | I84: MASA ZIDA I TEMELJA ZA UZGON | N84: 36 | P84: Jednadžba pravca | Q84: točke 6 i 7 | S84: jednadžba pravca privremenog iskopa
A85: Armatura | N85: 40 | P85: x= | Q85: =+K117 -> -2 | R85: =+K118 -> 5 | S85: 0 | T85: =+K112 -> 
A86: Temelj | D86: Zarebrastu armaturu u čeliju G86 dolazi iz VBA RA a za mreže MA | G86: RA | P86: Y= | Q86: =+L117 -> 7 | R86: =+L118 -> 1.2 | S86: =+'Analiza i dimenzioniranje'!E52 -> 1.2 | T86: =+L112 -> 
B87: =IF(+G86="RA","šipka","mreža") -> šipka | C87: B500B | D87: =+'Analiza i dimenzioniranje'!J48 ->  | P87: Y= | Q87: =(R86-Q86)/(R85-Q85) -> -0.8285714286 | R87: *x + | S87: =-Q87*Q85+Q86 -> 5.342857143
B88: Glavna | C88: kom/m' zida | E88: Razdjelna | F88: razmak | P88: Y= | Q88: =-(T86-S86)/(S85-T85) ->  | R88: *x + | S88: =-(S85*Q88-S86) -> 
A89: f | B89: 14 | C89: =+'Analiza i dimenzioniranje'!P52 -> 0 | D89: f | E89: 8 | F89: 40 | G89: cm | P89: X= | Q89: =+(S88-S87)/(Q87-Q88) ->  | R89: Y= | S89: =+Q88*Q89+S88 -> 
A90: f | B90: 14 | C90: =+'Analiza i dimenzioniranje'!P55 ->  | P90: koord. pravac 2-sjecište s prometom
A91: Zid | D91: Za rebrastu armaturu u čeliju G91 dolazi iz VBA RA a za mreže MA | G91: RA | P91: x= | Q91: =+Q74 ->  | R91: =+Troškovnik!AC73 -> -21.16
B92: =IF(+G91="RA","šipka","mreža") -> šipka | C92: B500B | D92: =+'Analiza i dimenzioniranje'!J52 ->  | P92: y= | Q92: =+S74 ->  | R92: =+Troškovnik!AC74 -> 
B93: Glavna | C93: kom/m' zida | E93: Razdjelna | F93: razmak
A94: f | B94: 12 | C94: =+'Analiza i dimenzioniranje'!P58 ->  | D94: f | E94: =+E89 -> 8 | F94: 40 | G94: cm
A95: =+IF(G57="",""," Konzola") -> Konzola | B95: šipka | C95: B500B
B96: =+IF(G57="","","Glavna") -> Glavna | C96: =+IF(G57="","","kom/m' zida") -> kom/m' zida | E96: =+IF(G57="","","Razdjelna") -> Razdjelna | F96: =+IF(G57="","","razmak") -> razmak
A97: =+IF(G57="","","f") -> f | B97: 12 | C97: =+'Analiza i dimenzioniranje'!P67 ->  | D97: =+IF(G57="","","f") -> f | E97: =+E94 -> 8 | F97: 40 | G97: cm
A99: Zaštitni sloj d= | C99: 5 | D99: cm
A101: Pukotine -ograničenje | C101: 0.3 | D101: mm
A102: Koordinate površine i slojeva tla
A103: Teren | B103: =B104-(C103-C104)/G46 ->  | C103: =+'Analiza i dimenzioniranje'!$E$48 -> 6 | D103: Koordinate klizne plohe | H103: Površina i volumen tla iznad zida
B104: =+V69 ->  | C104: =+T55 -> 6 | D104: j1= | E104: =+'Unos podataka'!F4 -> 22
B105: =S56-H18 ->  | C105: =+W68 -> 6.264490647 | D105: j2= | E105: =+'Unos podataka'!G4 -> 18 | F105: x | G105: y
B106: -8 | C106: =IF(F9<0,C105,IF('Analiza i dimenzioniranje'!$E$24=0,'Unos podataka'!G106,IF(C104<C103,C105-'Analiza i dimenzioniranje'!$E$20,IF('Analiza i dimenzioniranje'!$E$24=0,'Unos podataka'!C104-('Unos podataka'!B106-'Unos podataka'!B103)*TAN('Analiza i dimenzioniranje'!$H$20*PI()/180),'Unos podataka'!C105)))) -> 6.264490647 | D106: j3= | E106: =+'Unos podataka'!H4 -> 20 | F106: =+B106 -> -8 | G106: =+C105+TAN('Analiza i dimenzioniranje'!$H$20*PI()/180)*(B105-B106) -> 
A107: sloj 1. | B107: =+'C III-V'!B29 ->  | C107: =+'Analiza i dimenzioniranje'!E48-'Analiza i dimenzioniranje'!D17 -> 4 | J107: m= | K107: 1.5 | L107: Nagib iskopa iza zida m:1
B108: -8 | C108: ='Unos podataka'!C107+('Unos podataka'!B107-'Unos podataka'!B108)*TAN('Analiza i dimenzioniranje'!D18*PI()/180) -> 
A109: Sloj 2. | B109: 2 | C109: =+'Analiza i dimenzioniranje'!$F$17 -> 1.2 | J109: =+'Analiza i dimenzioniranje'!K454 -> Oznaka točke | K109: Koordinate točaka
B110: -8 | C110: =+C109+(B109-B110)*TAN('Analiza i dimenzioniranje'!$E$18*PI()/180) -> 1.899268119 | K110: TEREN i iskop | M110: Zid | O110: Koordinate zida - zida ide od 0 a ne od 2 (crtež za troškovnik)
A111: Sloj 3. | B111: 2 | C111: 0 | K111: =+'Analiza i dimenzioniranje'!L454 -> x | L111: =+'Analiza i dimenzioniranje'!M454 -> y | M111: x | N111: y | O111: točke na zidu | P111: x | Q111: y
B112: =+B110 -> -8 | C112: =+C111+(B111-B112)*TAN('Analiza i dimenzioniranje'!$F$18*PI()/180) -> 0.3492076949 | J112: =+'Analiza i dimenzioniranje'!K455 -> 1 | K112: =+'Analiza i dimenzioniranje'!L455 ->  | L112: =+'Analiza i dimenzioniranje'!M455 ->  | M112: =+'C III-V'!B2 -> 2 | N112: =+'C III-V'!C2 -> 0.1282051512 | O112: 2 | P112: =+'C III-V'!$B$2-2 -> 0 | Q112: =+'C III-V'!C2 -> 0.1282051512 | R112: Jednadžba projektiranog pokosa iza zida
A113: horizontala na vrhu zida | E113: Jednadžbe pravaca terena i klizne plohe iza zia | J113: =+'Analiza i dimenzioniranje'!K456 -> 2 | K113: =+'Analiza i dimenzioniranje'!L456 -> -21.16 | L113: =+'Analiza i dimenzioniranje'!M456 ->  | M113: =+'C III-V'!B3 -> 2 | N113: =+'C III-V'!C3 -> 1.2 | O113: 3 | P113: =+'C III-V'!B3-2 -> 0 | Q113: =+'C III-V'!C3 -> 1.2 | R113: x= | S113: =+P119 ->  | T113: =+K113 -> -21.16
A114: -5 | B114: =+C104 -> 6 | C114: Točke | D114: Horizontala | F114: Teren | H114: Klizna | J114: =+'Analiza i dimenzioniranje'!K457 -> 3 | K114: -15 | L114: 9.5 | M114: =+'C III-V'!B4 -> 3.4000011 | N114: =+'C III-V'!C4 -> 1.2 | O114: 4 | P114: =+'C III-V'!B4-2 -> 1.4000011 | Q114: =+'C III-V'!C4 -> 1.2 | R114: y= | S114: =+Q119 -> A | T114: =S114-TAN(V114*PI()/180)*(T113-S113) ->  | U114: b = | V114: =+'Analiza i dimenzioniranje'!H20 -> 10.000001 | W114: o
A115: =+B103 ->  | B115: =+C103 -> 6 | D115: T1 | E115: T2 | F115: T3 | G115: T4 | H115: T5 | I115: T6 | J115: =+'Analiza i dimenzioniranje'!K458 -> 4 | K115: -10 | L115: 9 | M115: =+'C III-V'!B5 ->  | N115: =+'C III-V'!C5 -> 3.14 | O115: 5 | P115: =+'C III-V'!B5-2 ->  | Q115: =+'C III-V'!C5 -> 3.14 | R115: Y= | S115: =(T114-S114)/(T113-S113) ->  | T115: *x + | U115: =-S115*S113+S114 -> 
C116: x= | D116: =+A114 -> -5 | E116: =+A115 ->  | F116: =+B105 ->  | G116: =+B106 -> -8 | H116: =+H121 -> -1.057240442 | I116: =+H122 ->  | J116: =+'Analiza i dimenzioniranje'!K459 -> 5 | K116: -4 | L116: 8 | M116: =+'C III-V'!B6 ->  | N116: =+'C III-V'!C6 -> 3.14 | O116: 6 | P116: =+'C III-V'!B6-2 ->  | Q116: =+'C III-V'!C6 -> 3.14
C117: Y= | D117: =+B114 -> 6 | E117: =+B115 -> 6 | F117: =+C105 -> 6.264490647 | G117: =+C106 -> 6.264490647 | H117: 4.2 | I117: =+I122 ->  | J117: =+'Analiza i dimenzioniranje'!K460 -> 6 | K117: -2 | L117: 7 | M117: =+'C III-V'!B7 ->  | N117: =+'C III-V'!C7 -> 3.44 | O117: 7 | P117: =+'C III-V'!B7-2 ->  | Q117: =+'C III-V'!C7 -> 3.44
C118: Y= | D118: =-(I117-H117)/(H116-I116) ->  | E118: * x + | F118: =-(H116*D118-H117) ->  | G118: Klizna | H118: Klizna ploha | J118: =+'Analiza i dimenzioniranje'!K461 -> 7 | K118: 5 | L118: 1.2 | M118: =+'C III-V'!B8 ->  | N118: =+'C III-V'!C8 -> 3.44 | O118: 8 | P118: =+'C III-V'!B8-2 ->  | Q118: =+'C III-V'!C8 -> 3.44
C119: Y= | D119: =-(G117-F117)/(F116-G116) ->  | E119: * x + | F119: =-(F116*D119-F117) ->  | G119: Teren | H119: =+'Analiza i dimenzioniranje'!$A94 -> 1.75 | I119: =+'Analiza i dimenzioniranje'!$B94 -> 0 | J119: =+'Analiza i dimenzioniranje'!K462 -> 8 | K119: =+'Analiza i dimenzioniranje'!L462+G49 -> 2.9000022 | L119: =+'Analiza i dimenzioniranje'!M462 -> 1.2 | M119: =+'C III-V'!B9 ->  | N119: =+'C III-V'!C9 -> A | O119: 9 | P119: =+'C III-V'!B9-2 ->  | Q119: =+'C III-V'!C9 -> A
C120: X= | D120: =+(F119-F118)/(D118-D119) ->  | E120: Y= | F120: =+D119*D120+F119 ->  | G120: Klizna teren | H120: =+'Analiza i dimenzioniranje'!$A95 -> 0.9770786366 | I120: =+'Analiza i dimenzioniranje'!$B95 -> 1.2 | J120: =+'Analiza i dimenzioniranje'!K463 -> 9 | K120: =+'Analiza i dimenzioniranje'!L463+G49 -> 2.9000022 | L120: =+'Analiza i dimenzioniranje'!M463 -> 0.5 | M120: =+'C III-V'!B10 ->  | N120: =+'C III-V'!C10 -> A | O120: 10 | P120: =+'C III-V'!B10-2 ->  | Q120: =+'C III-V'!C10 -> A
C121: Y= | D121: =(E117-D117)/(E116-D116) ->  | E121: *x + | F121: =-D121*D116+D117 ->  | G121: Horizontala | H121: =+'Analiza i dimenzioniranje'!$A96 -> -1.057240442 | I121: =+'Analiza i dimenzioniranje'!$B96 -> 4 | J121: =+'Analiza i dimenzioniranje'!K464 -> 10 | K121: =+G49 -> 0 | L121: =+'Analiza i dimenzioniranje'!M464 -> 0 | M121: =+'C III-V'!B11 -> 4.2000011 | N121: =+'C III-V'!C11 -> 1.2 | O121: 11 | P121: =+'C III-V'!B11-2 -> 2.2000011 | Q121: =+'C III-V'!C12 -> 1.2
C122: X= | D122: =+(F121-F118)/(D118-D121) ->  | E122: Y= | F122: =+D121*D122+F121 ->  | G122: Klizna Horiz | H122: =+'Analiza i dimenzioniranje'!$A97 ->  | I122: =+'Analiza i dimenzioniranje'!$B97 ->  | J122: =+'Analiza i dimenzioniranje'!K465 -> 11 | K122: =+'Analiza i dimenzioniranje'!L465 -> -1 | L122: =+'Analiza i dimenzioniranje'!M465 -> 1.2 | M122: =+'C III-V'!B12 -> 4.2000011 | N122: =+'C III-V'!C12 -> 1.2 | O122: 12 | P122: =+'C III-V'!B12-2 -> 2.2000011 | Q122: =+'C III-V'!C12 -> 1.2
J123: =+'Analiza i dimenzioniranje'!K468 -> 1 | K123: =+'Analiza i dimenzioniranje'!L468 ->  | L123: =+'Analiza i dimenzioniranje'!M468 ->  | M123: =+'C III-V'!B13 -> 4.2000011 | N123: =+'C III-V'!C13 -> 1.2 | O123: 13 | P123: =+'C III-V'!B13-2 -> 2.2000011 | Q123: =+'C III-V'!C13 -> 1.2
K124: =+'Analiza i dimenzioniranje'!$L$469 ->  | L124: =+'Analiza i dimenzioniranje'!$U$515 ->  | M124: =+'C III-V'!B14 -> 4.9000022 | N124: =+'C III-V'!C14 -> 1.2 | O124: 14 | P124: =+'C III-V'!B14-2 -> 2.9000022 | Q124: =+'C III-V'!C14 -> 1.2
A125: Količine betona temelja, betona zida i drenažnog materijala automatski se računaju i prenose u Troškovnik. | K125: 1.5 | M125: =+'C III-V'!B15 -> 4.9000022 | N125: =+'C III-V'!C15 -> 0.5 | O125: 15 | P125: =+'C III-V'!B15-2 -> 2.9000022 | Q125: =+'C III-V'!C15 -> 0.5
A126: Za količine iskopa i zasipa potrebno je upisati koordinate terena prije iskopa, u tablicu (čelije K114 do L118) i nagib iskopa (čelija K107). | M126: =+'C III-V'!B16 -> 2 | N126: =+'C III-V'!C16 -> 0.1282051512 | O126: 1 | P126: =+'C III-V'!B16-2 -> 0 | Q126: =+'C III-V'!C16 -> 0.1282051512
O127: Voda ispred zida
A128: ='Analiza i dimenzioniranje'!L460 -> -2 | B128: ='Analiza i dimenzioniranje'!M460 -> 7 | C128: =+'Analiza i dimenzioniranje'!$L$460 -> -2 | D128: =+'Analiza i dimenzioniranje'!$M$460 -> 7 | E128: =+'Analiza i dimenzioniranje'!L455 ->  | F128: =+'Analiza i dimenzioniranje'!M455 ->  | H128: =+('Analiza i dimenzioniranje'!$L$455+'Analiza i dimenzioniranje'!$L$465)/2 ->  | I128: =+('Analiza i dimenzioniranje'!$M$455+'Analiza i dimenzioniranje'!$M$465)/2 -> 
A129: ='Analiza i dimenzioniranje'!L461 -> 5 | B129: ='Analiza i dimenzioniranje'!M461 -> 1.2 | C129: =+C128 -> -2 | D129: =+D128+2 -> 9 | E129: =+E128 ->  | F129: =+F128+2 ->  | H129: =+H128-3.5 ->  | I129: =+I128 -> 
O130: =+'Analiza i dimenzioniranje'!E42 -> 0.8 | R130: nagib zida prema tlu 1: | S130: =+'Analiza i dimenzioniranje'!$E$57 ->  | T130: visina vode iznad temelja | V130: =+'Analiza i dimenzioniranje'!$E$42-'Analiza i dimenzioniranje'!$E$52 -> -0.4
R131: nagib lica zida 1: | S131: =+'Analiza i dimenzioniranje'!$E$56 ->  | T131: volumen temelja i zida do vode
P132: Temelj kontrafore | R132: Temelj | T132: presjek kroz zid s vodom
P133: =+I41 -> 2 | Q133: =+J41 -> 0.1282051512 | R133: =+P137 -> 1.75 | S133: =+Q137 -> 0.09615389546 | T133: =+'Analiza i dimenzioniranje'!$A$92+1.5 -> 6.4000022 | U133: ='Analiza i dimenzioniranje'!E42 -> 0.8
P134: =+I42 -> 2 | Q134: 1.2 | R134: =+P136 -> 1.75 | S134: =IF('Analiza i dimenzioniranje'!E42=0,0,IF(+Q136>'Analiza i dimenzioniranje'!E42,'Analiza i dimenzioniranje'!E42,Q136)) -> 0.8 | T134: =+P135-0.5 -> 1.25 | U134: =+U133 -> 0.8
P135: 1.75 | Q135: 1.2 | R135: =+M114 -> 3.4000011 | S135: =+S134 -> 0.8
P136: =+P135 -> 1.75 | Q136: 1.2 | R136: =+M115 ->  | S136: =IF(S134=0,0,S135+(U133-S135)) -> 0.8
P137: =+P136 -> 1.75 | Q137: =+Q138 -> 0.09615389546 | R137: =+'Analiza i dimenzioniranje'!A92 -> 4.9000022 | S137: =IF(S134=0,0,+U133) -> 0.8
P138: =+I46 -> 1.75 | Q138: 0.09615389546 | R138: =+M123 -> 4.2000011 | S138: =IF(S134=0,0,IF(+N123>'Analiza i dimenzioniranje'!E42,'Analiza i dimenzioniranje'!E42,N123)) -> 0.8
P139: =+I47 -> 2 | Q139: =+J47 -> 0.1282051512 | R139: 4.9000022 | S139: =+S138 -> 0.8
R140: 4.9000022 | S140: 0.5
R141: =+R133 -> 1.75 | S141: =+S133 -> 0.09615389546
Q142: A= | R142: =IF(-0.5*(+(R133*S134-R134*S133)+(R134*S135-R135*S134)+(R135*S136-R136*S135)+(R136*S137-R137*S136)+(R137*S138-R138*S137)+(R138*S139-R139*S138)+(R139*S140-R140*S139)+(R140*S141-R141*S140))<0,0,-0.5*(+(R133*S134-R134*S133)+(R134*S135-R135*S134)+(R135*S136-R136*S135)+(R136*S137-R137*S136)+(R137*S138-R138*S137)+(R138*S139-R139*S138)+(R139*S140-R140*S139)+(R140*S141-R141*S140))) ->  | S142: m3
Q143: xt= | R143: =IF(R142=0,0,-((R133*S134-R134*S133)*(R133+R134)+(R134*S135-R135*S134)*(R134+R135)+(R135*S136-R136*S135)*(R135+R136)+(R136*S137-R137*S136)*(R136+R137)+(R137*S138-R138*S137)*(R137+R138)+(R138*S139-R139*S138)*(R138+R139)+(R139*S140-R140*S139)*(R139+R140)+(R140*S141-R141*S140)*(R140+R141))/6/R142) ->  | S143: m
Q144: yt= | R144: =IF(R142=0,0,-((R133*S134-R134*S133)*(S133+S134)+(R134*S135-R135*S134)*(S134+S135)+(R135*S136-R136*S135)*(S135+S136)+(R136*S137-R137*S136)*(S136+S137)+(R137*S138-R138*S137)*(S137+S138)+(R138*S139-R139*S138)*(S138+S139)+(R139*S140-R140*S139)*(S139+S140)+(R140*S141-R141*S140)*(S140+S141))/6/R142) ->  | S144: m

Sheet Analiza i dimenzioniranje
A1: Autor i vlasnik programa: Nikola Sapunar, d.i.g. Zagreb, Gundulićeva 36, mob. +385 98 213 632 e-mail: niksapunar@gmail.com | X1: V11 | Y1: v22 | Z1: v33 | AA1: Vtem | AB1: h11 | AC1: h22 | AD1: h33 | AE1: Htem | AF1: Za stabilnost oko toćke A x y | AH1: krak x | AI1: krak y | AJ1: M destab. i stab. | AK1: za Mzida krakovi x y | AM1: Moment zida III-III | AN1: za M u presjeku II-II krakovi x y | AP1: Moment II-II | AQ1: za M u temelju ispod zida krakovi x y | AS1: Moment | AT1: za M u presjeku I-I krakovi x y | AV1: Moment I-I
AF2: =2+E61 -> 4.9000022 | AG2: =+'C III-V'!C15 -> 0.5 | AK2: =2+E61-G57-E55/2 -> 3.8000011 | AL2: =+E52 -> 1.2 | AN2: =2+'Unos podataka'!$G$49+F46+Kontrafore!E3 -> 4.4000011 | AO2: ='C III-V'!AC46+(E52-'C III-V'!AC46)/2 -> 0.7538461376 | AQ2: =2+F46+E55/2 -> 3.8000011 | AR2: =+'C III-V'!AC43 -> 0.3589742975 | AT2: =2+F46+E55 -> 4.2000011 | AU2: ='C III-V'!AC49+(E52-'C III-V'!AC49)/2 -> 0.8051281599
AD3: =-C110 ->  | AJ3: =+C110*AI3 ->  | AW3: Eh1 .....................................................
AD4: =-C111 ->  | AW4: Eh2 .............................................
AC5: =-C112 ->  | AG5: =+F122 ->  | AI5: =+AG5-$AG$2 ->  | AJ5: =AC5*AI5 ->  | AO5: =-AO2+'C III-V'!F93 ->  | AP5: =+AO5*AC5 ->  | AW5: Eh3 .....................................................
AD6: =-B124 ->  | AW6: EPrometno ....................................
G7: Program je autorski zaštićen. | AD7: =-B125 ->  | AG7: =+F125 -> 0 | AI7: =+AG7-$AG$2 -> -0.5 | AJ7: =AD7*AI7 ->  | AL7: =+AG7-$AL$2 -> -1.2 | AM7: =AL7*AD7 ->  | AW7: EPTočkasto ......................................
Y8: =-B126 ->  | AD8: =+Y8 ->  | AG8: =+F126 ->  | AI8: =+AG8-$AG$2 ->  | AJ8: =+Y8*AI8 ->  | AL8: =+AG8-$AL$2 ->  | AM8: =AL8*AD8 ->  | AW8: EPLinijsko ................................
A9: =IF(A68="","",'Unos podataka'!G57) -> DA | B9: =+'Unos podataka'!G63 -> DA | C9: =+'Unos podataka'!F13 -> Ka | Y9: =-B127 ->  | AD9: =+Y9 ->  | AG9: =+F127 -> 0 | AI9: =+IF(D83="",-0.2) -> FALSE | AJ9: =+Y9*AI9 ->  | AL9: =+AG9-$AL$2 -> -1.2 | AM9: =AL9*AD9 ->  | AU9: =+E40-AU2 -> 3.194871836 | AV9: =+AB10*AU9 -> 0 | AW9: EQTemelj ....................................................
A10: =IF('Unos podataka'!F44='Unos podataka'!O43,"ANALIZA STABILNOSTI GRAVITACIONOG ZIDA",+IF(F14>60,"ANALIZA STABILNOSTI I DIMENZIONIRANJE POTPORNO OBLOŽNOG ZIDA"," ANALIZA STABILNOSTI I DIMENZIONIRANJE POTPORNOG ZIDA ")) -> ANALIZA STABILNOSTI I DIMENZIONIRANJE POTPORNOG ZIDA | L10: Marka betona (staro) | M10: 20 | N10: 25 | O10: 30 | P10: 40 | Q10: 45 | R10: 50 | S10: 55 | Y10: =-B128 -> -96.59258273 | AB10: =IF(E40<=E52,Y10,0) -> 0 | AD10: =IF(E40<=E52,0,Y10) -> -96.59258273 | AG10: =+#REF! ->  | AI10: =+AG10-$AG$2 ->  | AJ10: =-Y10*AI10 ->  | AL10: =+AG10-$AL$2 ->  | AM10: =IF(E40<E52,0,AL10*AD10) ->  | AW10: HSidro ...............................
A11: =+'Unos podataka'!A2 -> NAZIV I STACIONAŽA ZIDA | M11: EC2 | U11: =+O78 -> 0 | Y11: =-E43 ->  | AC11: =+Y11-AD11 ->  | AD11: =+'P III-III'!M16 -> 0 | AG11: =+F130 ->  | AI11: =+AG11-$AG$2 ->  | AJ11: =+Y11*AI11 ->  | AL11: =F130-E52 ->  | AM11: =AL11*AD11 ->  | AO11: =-AO2+'C III-V'!U115 -> 0.04615386243 | AP11: =+AC11*AO11 ->  | AW11: HPotres .........................................
C12: =IF('C III-V'!B6<'C III-V'!D110,+'C III-V'!B71*0.5/SQRT(F112)+F15,F15) ->  | F12: =IF('C III-V'!B6<'C III-V'!D110,+'C III-V'!B71*0.5/SQRT(F111)+E15,E15) ->  | L12: Razred (klasa) betona C | M12: 16/20 | N12: 20/25 | O12: 25/30 | P12: 30/37 | Q12: 35/45 | R12: 40/50 | S12: 45/55 | U12: *x + | W12: Sidro 1 | AB12: =SUM(AB3:AB6) -> 0 | AC12: =SUM(AC3:AC11) ->  | AD12: =SUM(AD3:AD11) ->  | AE12: =SUM(AE3:AE11) -> 0 | AH12: x | AP12: =SUM(AP3:AP11) ->  | AS12: =SUM(AS3:AS11) -> 0 | AV12: =SUM(AV3:AV11) -> 0
A13: KARAKTERISTIKE TLA | D13: 1. sloj | E13: 2. sloj | F13: 3. sloj | G13: 4. sloj temeljno tlo zasip | L13: fcm (N/mm2) | M13: 24 | N13: 28 | O13: 33 | P13: 38 | Q13: 43 | R13: 48 | S13: 53 | U13: Y= | Y13: 77.5000025 | AA13: 21.67741943 | AF13: =+J137 -> 0 | AH13: =+$AF$2-AF13 -> 4.9000022 | AJ13: =+Y13*AH13 -> 379.7501828 | AN13: =AN2-'C III-V'!V59-Kontrafore!E3 -> 1.258824099 | AP13: =+AN13*Y16 -> 79.01545783 | AQ13: =+AQ2-'C III-V'!X59 -> 0.00813007612 | AS13: =+'C III-V'!X61*AQ13 -> 0.1367520596 | AT13: =AT2-'C III-V'!Z59 -> -0.3429724199 | AV13: =+'C III-V'!Z61*AT13 -> -4.470740731 | AW13: Gtem .......U61+Q61+S61.............................
A14: kut unutrašnjeg trenja .............................. | C14: j (°) | D14: =+'Unos podataka'!F4 -> 22 | E14: =+'Unos podataka'!G4 -> 18 | F14: =+'Unos podataka'!H4 -> 20 | G14: =+'Unos podataka'!I4 -> 18 | H14: =+'Unos podataka'!$J$11 -> 30 | L14: ecu (%0) | M14: 3.5 | N14: 3.5 | O14: 3.5 | P14: 3.5 | Q14: 3.8 | R14: 4.1 | S14: 4.2 | U14: =+U11 -> 0 | Y14: =+B136 ->  | Z14: =+Y14 ->  | AA14: Duljine: | AB14: Koord. | AF14: 0 | AH14: 4.9000022 | AJ14: =+Y14*AH14 ->  | AK14: =+$AK$2-AF14 -> 3.8000011 | AM14: =+Z14*AK14 ->  | AW14: Gzid+konz ....................................
A15: kohezija ................................................. | C15: c (kPa) | D15: =+'Unos podataka'!F5 -> 10 | E15: =+'Unos podataka'!G5 -> 22 | F15: =+'Unos podataka'!H5 -> 12 | G15: =+'Unos podataka'!I5 -> 25 | H15: 0 | L15: fck valjak (N/mm2) | M15: 16 | N15: 20 | O15: 25 | P15: 30 | Q15: 35 | R15: 40 | S15: 45 | U15: *x + | W15: sidro 2 | Z15: =+B138 ->  | AA15: Sidro 1 | AB15: =+P100 ->  | AC15: =+Q100 -> 5 | AJ15: =+B138*AH15 ->  | AK15: =+$AK$2-AF15 ->  | AM15: =+Z15*AK15 ->  | AW15: Gnasip na konzoli.............................
A16: jedinična težina ................................. | C16: g (kN/m3) | D16: =+'Unos podataka'!F6 -> 20 | E16: =+'Unos podataka'!G6 -> 20 | F16: =+'Unos podataka'!H6 -> 20 | G16: =+'Unos podataka'!I6 -> 20 | H16: =+'Unos podataka'!F52 -> 20 | L16: fck kocka (N/mm2) | M16: 20 | N16: 25 | O16: 30 | P16: 37 | Q16: 45 | R16: 50 | S16: 55 | U16: Y= | X16: 41.22580886 | Y16: =+'C III-V'!V61 -> 62.76926051 | AA16: sidro.kl.ploha | AN16: =+AN2-AF16-Kontrafore!E3 ->  | AP16: =+B139*AN16 ->  | AW16: Gnasipa na temelju iza.............
A17: debljina slojeva tla ....................................... | C17: h (m) | D17: =+'Unos podataka'!F7 -> 2 | E17: =IF('Unos podataka'!$O$48="",'Unos podataka'!$J$7,'Unos podataka'!$O$38-F17-D17) -> 2.8 | F17: =+E52 -> 1.2 | G17: =+IF(E41<=-2,"","γ'=") -> γ'= | H17: =+IF(H18=G16,"",G16-10) -> 10 | I17: =+IF(G17="","","(kN/m³)") -> (kN/m³) | L17: Ecm (N/mm2) | M17: 29000 | N17: 30000 | O17: 31000 | P17: 33000 | Q17: 34000 | R17: 35000 | S17: 36000 | U17: =+U14 -> 0 | X17: =+Y23 ->  | AA17: Sidro 2 | AB17: =+P105 ->  | AC17: =+Q105 -> 3 | AJ17: =+Y23*AH17 ->  | AT17: =AT2-(2+E61-G57/2) -> -0.35000055 | AV17: =+AT17*X17 ->  | AW17: Gnasipa na temelju ispred ........................
A18: nagib slojeva tla ....................................... | C18: e (°) | D18: =+'Unos podataka'!F8 -> 6 | E18: =+'Unos podataka'!G8 -> 4 | F18: =+'Unos podataka'!H8 -> 2 | H18: =+IF(E41<=-2,G16,(G16-10)) -> 10 | L18: Visina temelja | P18: PODACI ZA CRTANJE I PRORAČUN SIDARA | U18: =+AG17 -> 0 | W18: sidro 3 | Y18: =+Y24 ->  | AA18: sidro.kl.ploha | AN18: =+$AN$2-AH18 ->  | AP18: =+Y24*AN18 ->  | AW18: PPrometno .......................
A19: trenje zid-tlo ......................................... | C19: d (°) | D19: =+IF(D14<=23,0,IF(D14<=28,0.5*D14,2*D14/3)) -> 0 | E19: =+IF(E14<=23,0,IF(E14<=28,0.5*E14,2*E14/3)) -> 0 | F19: =+IF(F14<=23,0,IF(F14<=28,0.5*F14,2*F14/3)) -> 0 | H19: nagib terena iznad zida | J19: =+IF(E24>0,+TAN((H20+L119)*PI()/180)*E27+'Unos podataka'!$G$10,(TAN((H20+L119)*PI()/180)-TAN(F103*PI()/180))*C103+'Unos podataka'!$G$10) -> 0.430374567 | N19: =A177 -> MEd,dst = | P19: =+'Unos podataka'!F64 -> 0.1 | Q19: I. red sidara je najviši red!! | U19: Y= | Y19: =+Y25 ->  | AA19: Sidro3 | AB19: =+P110 -> -20 | AC19: =+Q110 -> 0 | AN19: =+$AN$2-AH19 ->  | AP19: =+Y25*AN19 ->  | AW19: PTočkasto ......................
A20: =+IF(E24>0,"računsko nadvišenje tla iznad zida .................","nadvišenje tla iznad vrha zida .................") -> računsko nadvišenje tla iznad zida ................. | C20: hn (m) | D20: =+IF(E24>0.000001,E20,'Unos podataka'!F9) ->  | E20: =+IF(E43=0,J20,IF(E24=0,IF((H20-F103+L119)<0,J20,J19),J20)) ->  | F20: =+E20 ->  | G20: b1= | H20: =+'Unos podataka'!G11 -> 10.000001 | I20: ° | J20: =+IF(H20>F103,IF(E24>0,+TAN(H20*PI()/180)*E27+'Unos podataka'!$G$10,(TAN(H20*PI()/180)-TAN(F103*PI()/180))*C103+'Unos podataka'!$G$10),IF(E24>0,+TAN(H20*PI()/180)*E27+'Unos podataka'!$G$10,'Unos podataka'!$G$10)) -> 0.2644916744 | N20: MOMENTI SAVIJANJA U PRESJECIMA | P20: =+'Unos podataka'!F65 -> 2 | Q20: =+P22 -> 5 | R20: =+P23 -> 5.9 | U20: =+U17 -> 0 | Y20: =+Y26 ->  | AA20: sidro.kl.ploha | AN20: =+$AN$2-AH20 ->  | AP20: =+Y26*AN20 ->  | AW20: PLinijsko .........................
A21: Poissonov koeficijent .................................. | C21: n | D21: =+'Unos podataka'!F11 -> 0.3 | F21: =+'Unos podataka'!I8 -> 10 | H21: nagib terena ispod zida | N21: Temelj | P21: I. red | Q21: II. red | R21: III. red | S21: IV. red | U21: =AI19 -> 0 | W21: sidro 4 | Y21: =+Y27 ->  | AA21: Sidro 4 | AB21: =+P115 -> -20 | AC21: =+Q115 -> 0 | AN21: =+$AN$2-AH21 ->  | AP21: =+Y27*AN21 ->  | AW21: QTemelj ..............................
A22: prosj.modul stišlj.tla ispod temelja …........ | C22: Ms (kN/m2) | D22: =+'Unos podataka'!F12 -> 8000 | F22: =+IF(F21>E18,F21,E18) -> 10 | G22: b2= | H22: =+'Unos podataka'!J10 -> 0 | I22: ° | J22: =+IF(E19>F18,E19,F18) -> 2 | N22: M I-I | P22: =IF('Unos podataka'!$G$63="DA",'Unos podataka'!S47,0) -> 5 | Q22: =IF('Unos podataka'!$G$63="DA",'Unos podataka'!T47,0) -> 3 | R22: =IF('Unos podataka'!$G$63="DA",'Unos podataka'!U47,0) -> 0 | S22: =IF('Unos podataka'!$G$63="DA",'Unos podataka'!V47,0) -> 0 | U22: Y= | Z22: =+Y28 -> 25.88190454 | AA22: sidro.kl.ploha | AK22: =+$AK$2-AF22 ->  | AM22: =IF(E40<E52,0,Z22*AK22) ->  | AW22: VSidro ..............................
A23: DJELOVANJA | C23: =+E34+0.00000000001 -> 20.000001 | L23: Ulazni podaci: | M23: =+IF(M24="Propisi","","EC7") -> EC7 | N23: Država | P23: =IF('Unos podataka'!$G$63="DA",'Unos podataka'!S48,0) -> 5.9 | Q23: =IF('Unos podataka'!$G$63="DA",'Unos podataka'!T48,0) -> 4.9 | R23: =IF('Unos podataka'!$G$63="DA",'Unos podataka'!U48,0) -> 0 | S23: =IF('Unos podataka'!$G$63="DA",'Unos podataka'!V48,0) -> 0 | U23: =+U12 -> *x + | Y23: =+B140 ->  | Z23: =+Y29 ->  | AA23: Sidro 5 | AB23: =+P120 -> -20 | AC23: =+Q120 -> 0 | AK23: =+$AK$2-AF23 ->  | AM23: =+Z23*AK23 ->  | AW23: Ev1 ....................................
A24: PROMETNO OPTEREĆENJE ........................................ | D24: Pp= | E24: =+'Unos podataka'!H15 -> 10 | F24: kN/m2 | H24: =+IF('Unos podataka'!L11="Propisi","Propisi:","") ->  | I24: =IF(H24="Regulations:",N24,+M23) -> EC7 | L24: =+IF(M24="Propisi","","Projektni pristup") -> Projektni pristup | M24: =+'Unos podataka'!L11 -> 3 | N24: HRVATSKA | P24: =IF('Unos podataka'!$G$63="DA",'Unos podataka'!S49,0) -> 6.7 | Q24: =IF('Unos podataka'!$G$63="DA",'Unos podataka'!T49,0) -> 4.8 | R24: =IF('Unos podataka'!$G$63="DA",'Unos podataka'!U49,0) -> 0 | S24: =IF('Unos podataka'!$G$63="DA",'Unos podataka'!V49,0) -> 0 | T24: =+SUM(P24:S24) -> 11.5 | U24: *x + | W24: sidro 5 | AA24: sidro.kl.ploha | AK24: =+$AK$2-AF24 ->  | AW24: Ev2 ..........................
A25: širina opterećenja ............................................... | C25: ........................ | D25: B = | E25: =IF(E24=0,0,'Unos podataka'!F16) -> 3 | F25: m | I25: =+IF(H24="Propisi:",""," Projektni pristup: ") -> Projektni pristup: | J25: =IF(M24="Propisi","",+'Unos podataka'!L11) -> 3 | K25: =+E26-E27 -> 2.999999 | P25: =IF('Unos podataka'!$G$63="DA",'Unos podataka'!S50,0) -> 50 | Q25: =IF('Unos podataka'!$G$63="DA",'Unos podataka'!T50,0) -> 50 | R25: =IF('Unos podataka'!$G$63="DA",'Unos podataka'!U50,0) -> 0 | S25: =IF('Unos podataka'!$G$63="DA",'Unos podataka'!V50,0) -> 0 | U25: Y= | AF25: =+J128 ->  | AN25: =+$AN$2-'C III-V'!E93 -> 2.4000011 | AP25: =+B148*(G58+Kontrafore!E3) ->  | AQ25: =+$AN$2-AN25 -> 2 | AW25: Ev3 (na temelj) ........................................
A26: udaljenost opterećenja od zida .................................... | D26: x = | E26: =IF(E24=0,0,'Unos podataka'!F17) -> 4.5 | F26: m | G26: Parcijalni koeficijenti svojstava tla: M | L26: Parcijalni koeficijenti za svojstva tla: M | P26: =IF(P25=0,"",D74) ->  | Q26: =IF(Q25=0,"",E74) ->  | R26: =IF(R25=0,"",F74) ->  | S26: =IF(S25=0,"",G74) ->  | T26: =IF(T25=0,"",$P$19*PI()*T24*('C III-V'!$AK$21*$D$16)/$P$20) ->  | U26: =+SUM(S29:T29) -> 0 | AA26: =SUM(AA25:AA25) -> 0 | AP26: =SUM(AP13:AP24) ->  | AS26: =SUM(AS13:AS25) -> 0.1367520596 | AV26: =SUM(AV13:AV25) -> 
A27: udaljenost vrha pokosa od zida ............................. | C27: ......................... | D27: b = | E27: =IF(E24=0,0,'Unos podataka'!H18) -> 1.500001 | F27: m | G27: za kut unutrašnjeg trenja | I27: gj= | J27: =+M27 -> 1.25 | K27: =+E27+0.000001 -> 1.500002 | L27: za kut unutr. trenja gj= | M27: =IF(M24="Propisi",N27,ProjektniPristupi!B23) -> 1.25 | N27: 1.25 | P27: =IF(P25=0,"",ABS((P26/P25))) ->  | Q27: =IF(Q25=0,"",ABS((Q26/Q25))) ->  | R27: =IF(R25=0,"",ABS((R26/R25))) ->  | S27: =IF(S25=0,"",ABS((S26/S25))) ->  | T27: =IF(T25=0,"",ABS((T26/T25))) ->  | U27: =+IF(P22=T22,T25,IF(P22=S22,S25,IF(P22=R22,R25,IF(P22=Q22,Q25,IF(P22=P22,P25,""))))) -> 50 | X27: V-V | AH27: II-II | AI27: sredina | AJ27: I-I
A28: =+'Unos podataka'!A19 -> OPTEREĆENJE TEMELJEM .................... | C28: ...................... | D28: =+'Unos podataka'!E19 -> Qt= | E28: =+'Unos podataka'!F19 -> 120 | F28: kN/m2 | G28: za koheziju | I28: gc= | J28: =+M28 -> 1.25 | K28: =+IF(E35=0,0.0000000001,E35) -> 2.5 | L28: za koheziju gc = | M28: =IF(M24="Propisi",N28,ProjektniPristupi!B24) -> 1.25 | N28: 1.25 | P28: =+IF(P25="","",'C III-V'!BE14) ->  | Q28: =+IF(Q25="","",'C III-V'!BE20) ->  | R28: =+IF(R25="","",'C III-V'!BE26) ->  | S28: =IF(S25=0,"",'C III-V'!BE32) ->  | T28: =IF(T25=0,"",+'C III-V'!BE38) ->  | U28: =SUM(P25:S25)+0.0000001 -> 100.0000001 | X28: VI-VI | Y28: 25.88190454 | AA28: =+'C III-V'!X76 ->  | AH28: =+'C III-V'!V76 ->  | AI28: =+'C III-V'!X76 ->  | AJ28: =+'C III-V'!Z76 ->  | AN28: =$AN$2-'C III-V'!V77-Kontrafore!E3 ->  | AP28: =+AH28*AN28 ->  | AQ28: =$AQ$2-'C III-V'!X77 ->  | AS28: =+AQ28*AI28 ->  | AT28: =+AT2-'C III-V'!Z77 ->  | AV28: =+AJ28*AT28 ->  | AW28: Kont naponi U76, S76, Q76.....................
A29: =+'Unos podataka'!A20 -> širina temelja ................................................................. | C29: ................. | D29: =+'Unos podataka'!E20 -> B = | E29: =IF(E28=0,0,'Unos podataka'!F20) -> 1 | F29: m | H29: Parcijalni.koeficijenti djelovanja: A | K29: =+K27+K25 -> 4.500001 | L29: Parcijalni koeficijenti djelovanja: A | N29: =+'Sile i krakovi'!Q259 ->  | P29: =IF(P25=0,"",4.5*$P$19*PI()*P24*('C III-V'!$AC$21*(($D$16*$D$17+$E$16*$E$17+$F$16*$F$17)/($D$17+$E$17+$F$17))*(($E$103*$D$17+$E$104*$E$17+$E$105*$F$17)/($D$17+$E$17+$F$17)))/$P$20) ->  | Q29: =IF(Q25=0,"",4.5*$P$19*PI()*Q24*('C III-V'!$AE$21*(($D$16*$D$17+$E$16*$E$17+$F$16*$F$17)/($D$17+$E$17+$F$17))*(($E$103*$D$17+$E$104*$E$17+$E$105*$F$17)/($D$17+$E$17+$F$17)))/$P$20) ->  | R29: =IF(R25=0,"",4.5*$P$19*PI()*R24*('C III-V'!$AG$21*(($D$16*$D$17+$E$16*$E$17+$F$16*$F$17)/($D$17+$E$17+$F$17))*(($E$103*$D$17+$E$104*$E$17+$E$105*$F$17)/($D$17+$E$17+$F$17)))/$P$20) ->  | S29: =IF(S25=0,"",4.5*$P$19*PI()*S24*('C III-V'!$AI$21*(($D$16*$D$17+$E$16*$E$17+$F$16*$F$17)/($D$17+$E$17+$F$17))*(($E$103*$D$17+$E$104*$E$17+$E$105*$F$17)/($D$17+$E$17+$F$17)))/$P$20) ->  | U29: 0 | X29: VII-VII | AB29: =+AJ29 ->  | AC29: =+AH29 ->  | AE29: =+AI29 ->  | AH29: =+X35*(F46+Kontrafore!E3)/(E61+Kontrafore!E3) ->  | AI29: =+X35*E55/E61 ->  | AJ29: =+X35*(G57-'Unos podataka'!G49)/(E61+Kontrafore!E3) ->  | AO29: =+AO2-'C III-V'!AC44 ->  | AP29: =-AC29*AO29 ->  | AR29: =+AR2-'C III-V'!AC43 -> 0 | AS29: =AI29*AR29 ->  | AU29: =+AU2-'C III-V'!AC52 ->  | AV29: =-AJ29*AU29 ->  | AW29: Trenje ...................................
A30: =+'Unos podataka'!A21 -> duljina temelja ............................................................................ | C30: ................... | D30: =+'Unos podataka'!E21 -> L = | E30: =IF(E28=0,0,'Unos podataka'!F21) -> 10 | F30: m | G30: Djelovanja | H30: EQU | I30: STR | J30: GEO | M30: EQU | O30: STR | Q30: GEO | U30: =P22*P25 -> 250 | X30: VIII-VIII | Y30: =+AH28 ->  | AA30: =+AA26+AA28 ->  | AB30: =AB12+AB29 ->  | AC30: =AC12+AC29 ->  | AD30: =AD12+AD28+AD29 ->  | AE30: =+AE12+AE29 ->  | AJ30: =SUM(AH29:AJ29) -> 
A31: =+'Unos podataka'!A22 -> dubina temeljenja (ispod vrha zida) ................................................. | C31: ..................... | D31: =+'Unos podataka'!E22 -> Df= | E31: =IF(E28=0,0,'Unos podataka'!H22) -> -1 | F31: m | G31: Trajna nepovoljna | H31: =M31 -> 1.1 | I31: =+O31 -> 1.35 | J31: =+Q31 -> 1 | K31: =-E31 -> 1 | L31: Trajna nepovoljna | M31: =IF(M24="Propisi",N31,ProjektniPristupi!B13) -> 1.1 | N31: 1.1 | O31: =IF(M24="Propisi",P31,ProjektniPristupi!B28) -> 1.35 | P31: 1.35 | Q31: =IF(M24="Propisi",R31,ProjektniPristupi!B34) -> 1 | R31: 1 | U31: =P22*P25+Q22*Q25 -> 400 | X31: IX-IX | Z31: =+AB30+AC30+AD30+AE30 ->  | AP31: =+AP12+AP25+AP26+AP28+AP29 ->  | AS31: =+AS12+AS26+AS28+AS29 ->  | AV31: =+AV12+AV26+AV28+AV29 -> 
A32: =+'Unos podataka'!A23 -> hor. udaljenost temelja od vrha zida ....................... | C32: .................... | D32: =+'Unos podataka'!E23 -> x = | E32: =IF(E28=0,0,'Unos podataka'!F23) -> 3 | F32: m | G32: Trajna povoljna | H32: =M32 -> 0.9 | I32: =+O32 -> 1 | J32: =+Q32 -> 1 | L32: Trajna povoljna | M32: =IF(M24="Propisi",N32,ProjektniPristupi!B14) -> 0.9 | N32: 0.9 | O32: =IF(M24="Propisi",P32,ProjektniPristupi!B29) -> 1 | P32: 1 | Q32: =IF(M24="Propisi",R32,ProjektniPristupi!B35) -> 1 | R32: 1 | U32: =P22*P25+Q22*Q25+R22*R25 -> 400 | X32: X-X | AI32: y | AJ32: x
A33: =+'Unos podataka'!A24 -> visina temelja ....................................................... | C33: =+IF(D31="vv=","","........................") -> ........................ | D33: =+'Unos podataka'!E24 -> h = | E33: =IF(E28=0,0,'Unos podataka'!H24) -> 1 | F33: =+IF(E33="h","m","") ->  | G33: Promjenjiva nepovoljna | H33: =M33 -> 1.5 | I33: =+O33 -> 1.5 | J33: =+Q33 -> 1.3 | L33: Promjenjiva nepovoljna | M33: =IF(M24="Propisi",N33,ProjektniPristupi!B15) -> 1.5 | N33: 1.5 | O33: =IF(M24="Propisi",P33,ProjektniPristupi!B30) -> 1.5 | P33: 1.5 | Q33: =IF(M24="Propisi",R33,ProjektniPristupi!B36) -> 1.3 | R33: 1.3 | U33: =P22*P25+Q22*Q25+R22*R25+S22*S25 -> 400 | X33: XI-XI | AI33: =+AN2 -> 4.4000011 | AJ33: =+AO2 -> 0.7538461376
A34: LINIJSKO OPTEREĆENJE ......................................... | D34: PL= | E34: =+'Unos podataka'!H25 -> 20.000001 | F34: kN/m' | G34: Promjenjiva povoljna | H34: =M34 -> 0 | I34: =+O34 -> 0 | J34: =+Q34 -> 0 | L34: Promjenjiva povoljna | M34: =IF(M24="Propisi",N34,ProjektniPristupi!B16) -> 0 | N34: 0 | O34: =IF(M24="Propisi",P34,ProjektniPristupi!B31) -> 0 | P34: 0 | Q34: =IF(M24="Propisi",R34,ProjektniPristupi!B37) -> 0 | R34: 0 | U34: =P22*P25+Q22*Q25+R22*R25+S22*S25+T22*T25 -> 400
A35: udaljenost centra opterećenja od vrha zida ..................... | D35: x = | E35: =IF('Unos podataka'!$H$25=0.000001,0,'Unos podataka'!F26) -> 2.5 | F35: m | H35: Parcijalni koeficijenti otpora: R | L35: Parcijalni koeficijenti za otpornost: R | X35: =B167 ->  | CA35: omega
A36: TOČKASTO OPTEREĆENJE ....................................... | D36: PT= | E36: =+'Unos podataka'!H27 -> 20.000001 | F36: kN | H36: Prevrtanje | I36: gR = | J36: =+M36 -> 1 | L36: Prevrtanje gR = | M36: =IF(M24="Propisi",N36,ProjektniPristupi!B40) -> 1 | N36: 1 | S36: IV-IV | T36: V-V | U36: III-III | V36: VI-VI | W36: VII-VII | X36: VIII-VIII | Y36: IX-IX | Z36: X-X | AA36: XI-XI | AB36: XII-XII | AC36: XIII-XIII | AD36: XIV-XIV | AE36: XV-XV | AF36: XVI-XVI | AG36: XVII-XVII | AH36: XVIII-XVIII | AI36: XIX-XIX | AJ36: XX-XX | AK36: Vrh | BY36: a° | BZ36: b° | CA36: b-a | CB36: eta°
A37: udaljenost centra opterećenja od vrha zida .................. | D37: x = | E37: =IF('Unos podataka'!H27=0.000001,0,'Unos podataka'!$F$28) -> 1.5 | F37: m | H37: Klizanje | I37: gRh= | J37: =+M37 -> 1 | K37: =+IF(H77=0,-2,0) -> 0 | L37: Klizanje gRh= | M37: =IF(M24="Propisi",N37,ProjektniPristupi!B41) -> 1 | N37: 1 | S37: =IF($J$53<AN44,0,10*($J$53-AN44)*($J$53-AN44)/2) ->  | T37: =IF($J$53<AO44,0,10*($J$53-AO44)*($J$53-AO44)/2) ->  | V37: =IF($J$53<V44,0,10*($J$53-V44)*($J$53-V44)/2) -> 0 | W37: 0 | X37: 0 | Y37: 0 | Z37: 0 | AA37: 0 | AB37: 0 | AC37: 0 | AD37: 0 | AE37: 0 | AF37: 0 | AG37: 0 | AH37: 0 | AI37: 0 | AJ37: =IF($J$53<U44,0,10*($J$53-U44)*($J$53-U44)/2) -> 0 | AK37: =IF($J$53<AJ52,0,10*($J$53-AJ52)*($J$53-AJ52)/2) -> 1.8 | AL37: Pritisak vode | BQ37: =IF(BG35=0,0,ATAN(BH35/BG35)*180/PI()) -> 0 | BR37: =IF(BG35=0,0,ATAN(BJ35/BG35)*180/PI()) -> 0 | BS37: =BR37-BQ37 -> 0 | BT37: =BQ37+BS37/2 -> 0
A38: =+'Unos podataka'!A29:D29 -> SILA U SIDRIMA (ukupna)................................. | C38: ........................ | D38: PS= | E38: =-K39 -> -100.0000001 | F38: kN/m' | H38: Nosivost | I38: gRv= | J38: =+M38 -> 1 | K38: =+IF(H77=0,-2,1) -> 1 | L38: Nosivost gRv= | M38: =IF(M24="Propisi",N38,ProjektniPristupi!B42) -> 1 | N38: 1 | S38: =IF(($J$53-AN44)/3<0,0,($J$53-AN44)/3) ->  | T38: =IF(($J$53-AO44)/3<0,0,($J$53-AO44)/3) ->  | V38: =IF(($J$53-V44)/3<0,0,($J$53-V44)/3) -> 0 | W38: 0 | X38: 0 | Y38: 0 | Z38: 0 | AA38: 0 | AB38: 0 | AC38: 0 | AD38: 0 | AE38: 0 | AF38: 0 | AG38: 0 | AH38: 0 | AI38: 0 | AJ38: =IF(($J$53-U44)/3<0,0,($J$53-U44)/3) -> 0 | AK38: =IF(($J$53-AJ52)/3<0,0,($J$53-AJ52)/3) -> 0.2 | AL38: težište od presjeka | BO38: =IF(BE36=0,0,ATAN(BF36/BE36)*180/PI()) -> 0 | BP38: =IF(BE36=0,0,ATAN(BH36/BE36)*180/PI()) -> 0 | BQ38: =BP38-BO38 -> 0 | BR38: =BO38+BQ38/2 -> 0
A39: otklon rezultante od horizontale ................................. | D39: a = | E39: =+'Unos podataka'!F30 -> 15 | F39: ° | I39: EC2 | K39: =+U28 -> 100.0000001 | L39: Dimenzioniranje EC2 | R39: UTROŠAK GRADIVA | S39: =+IF($E$44=0,S37*S38*$J$44,S37*S38) ->  | T39: =+IF($E$44=0,T37*T38*$J$44,T37*T38) ->  | V39: =+IF($E$44=0,V37*V38*$J$44,V37*V38) -> 0 | W39: 0 | X39: 0 | Y39: 0 | Z39: 0 | AA39: 0 | AB39: 0 | AC39: 0 | AD39: 0 | AE39: 0 | AF39: 0 | AG39: 0 | AH39: 0 | AI39: 0 | AJ39: 0 | AK39: 0.36 | AL39: Dodatni M od vode
A40: visina rezultante ....................................................... | D40: hs= | E40: =IF(U34=0,0,U34/U28) -> 3.999999996 | F40: m | H40: Parcijalni koeficijenti za gradivo: | L40: Parcijalni koeficijenti za gradivo: | P40: KONTAKTNI NAPONI | R40: beton m3 | S40: =IF(AN44>=$P$22,0,IF(AN44>=$Q$22,$P$25,IF(AN44>=$R$22,SUM($P$31:$Q$31),IF(AN44>=$S$22,SUM($P$31:$R$31),IF(AN44>=$T$22,SUM($P$30:$S$30),SUM($P$30:$T$30)))))) ->  | T40: =IF(AO44>=$P$22,0,IF(AO44>=$Q$22,$P$25,IF(AO44>=$R$22,SUM($P$31:$Q$31),IF(AO44>=$S$22,SUM($P$31:$R$31),IF(AO44>=$T$22,SUM($P$30:$S$30),SUM($P$30:$T$30)))))) ->  | U40: =IF(E52>=$P$22,0,IF(E52>=$Q$22,$P$25,IF(E52>=$R$22,SUM($P$31:$Q$31),IF(E52>=$S$22,SUM($P$31:$R$31),IF(E52>=$T$22,SUM($P$30:$S$30),SUM($P$30:$T$30)))))) -> 2.35 | V40: =IF(V44>=$P$22,0,IF(V44>=$Q$22,$P$25,IF(V44>=$R$22,SUM($P$31:$Q$31),IF(V44>=$S$22,SUM($P$31:$R$31),IF(V44>=$T$22,SUM($P$30:$S$30),SUM($P$30:$T$30)))))) -> 2.35 | W40: 2.35 | X40: 2.35 | Y40: 2.35 | Z40: 2.35 | AA40: 50 | AB40: 50 | AC40: 50 | AD40: 50 | AE40: 50 | AF40: 50 | AG40: 0 | AH40: 0 | AI40: 0 | AJ40: =IF(U44>=$P$22,0,IF(U44>=$Q$22,$P$25,IF(U44>=$R$22,SUM($P$31:$Q$31),IF(U44>=$S$22,SUM($P$31:$R$31),IF(U44>=$T$22,SUM($P$30:$S$30),SUM($P$30:$T$30)))))) -> 2.35 | AK40: =IF(AJ52>=$P$22,0,IF(AJ52>=$Q$22,$P$25,IF(AJ52>=$R$22,SUM($P$31:$Q$31),IF(AJ52>=$S$22,SUM($P$31:$R$31),IF(AJ52>=$T$22,SUM($P$30:$S$30),SUM($P$30:$T$30)))))) -> 2.35 | AL40: sila
A41: NPV IZA ZIDA ................................................................. | D41: hw= | E41: =+'Unos podataka'!F32 -> 0.6 | F41: m | H41: Čelik | I41: gs= | J41: =+M41 -> 1.15 | L41: Čelik gs= | M41: =+'Unos podataka'!$L$25 -> 1.15 | N41: 1.15 | O41: Fskl | P41: sA (kN/m2) | Q41: sB (kN/m2) | R41: čelik RA kg | S41: =+IF(AN44<$T$22,$U$34,IF(AN44<$S$22,$U$33,IF(AN44<$R$22,$U$32,IF(AN44<$Q$22,$U$31,IF(AN44<$P$22,$U$30,$U$29))))) ->  | T41: =+IF(AO44<$T$22,$U$34,IF(AO44<$S$22,$U$33,IF(AO44<$R$22,$U$32,IF(AO44<$Q$22,$U$31,IF(AO44<$P$22,$U$30,$U$29))))) ->  | U41: =+IF(P44<$T$22,$U$34,IF(P44<$S$22,$U$33,IF(P44<$R$22,$U$32,IF(P44<$Q$22,$U$31,IF(P44<$P$22,$U$30,$U$29))))) -> 400 | V41: =+IF(V44<$T$22,$U$34,IF(V44<$S$22,$U$33,IF(V44<$R$22,$U$32,IF(V44<$Q$22,$U$31,IF(V44<$P$22,$U$30,$U$29))))) -> 400 | W41: 400 | X41: 400 | Y41: 400 | Z41: 400 | AA41: 250 | AB41: 250 | AC41: 250 | AD41: 250 | AE41: 250 | AF41: 250 | AG41: 0 | AH41: 0 | AI41: 0 | AJ41: =+IF(U44<$T$22,$U$34,IF(U44<$S$22,$U$33,IF(U44<$R$22,$U$32,IF(U44<$Q$22,$U$31,IF(U44<$P$22,$U$30,$U$29))))) -> 400 | AK41: =+IF(AJ52<$T$22,$U$34,IF(AJ52<$S$22,$U$33,IF(AJ52<$R$22,$U$32,IF(AJ52<$Q$22,$U$31,IF(AJ52<$P$22,$U$30,$U$29))))) -> 400 | AL41: M sidra
A42: NIVO VODE ISPRED ZIDA ................................................... | D42: h = | E42: =IF('Unos podataka'!J32="",0,'Unos podataka'!J32) -> 0.8 | F42: m | H42: Beton | I42: gc= | J42: =+M42 -> 1.5 | L42: Beton gc= | M42: =+'Unos podataka'!L26 -> 1.5 | N42: 1.5 | O42: =J177 ->  | P42: =F190 ->  | Q42: =F193 ->  | R42: mreža MA kg | S42: =+IF(S40=0,0,S41/S40) ->  | T42: =IF(T40=0,0,T41/T40) ->  | U42: =+IF(U40=0,0,U41/U40) -> 170.212766 | V42: =IF(V40=0,0,V41/V40) -> 170.212766 | W42: 170.212766 | X42: 170.212766 | Y42: 170.212766 | Z42: 170.212766 | AA42: 5 | AB42: 5 | AC42: 5 | AD42: 5 | AE42: 5 | AF42: 5 | AG42: 0 | AH42: 0 | AI42: 0 | AJ42: 170.212766 | AK42: 170.212766 | AL42: krak
A43: POTRES (y) Fy=SG*kh kh= | C43: amax*S/r ..... | D43: Fy= | E43: ='C III-V'!$AM$132 ->  | F43: kN/m' | H43: Parcijalni koeficijenti djelovanja: | Q43: Momenti na koti + (m) | S43: =+E79 -> 3.14 | T43: oznaka presjeka | U43: MIII | V43: Mz VI-VI | W43: Mz VII-VII | X43: Mz VIII-VIII | Y43: M IX-IX | Z43: M X-X | AA43: M XI-XI | AB43: M XII-XII | AC43: M XIII-XIII | AD43: M XIV-XIV | AE43: M XV-XV | AF43: M XVI-XVI | AG43: M XVII-XVII | AH43: M XVIII-XVIII | AI43: M XIX-XIX | AJ43: Vrh | AL43: VEd max | AM43: VEd min | AN43: M IV-IV M min | AO43: M V-V M max
A44: projektno seizmičko ubrzanje ......................................... | D44: amax= | E44: =+'Unos podataka'!F34 -> 0.1 | F44: =+E42 -> 0.8 | H44: Trajno | I44: gG= | J44: =+'Unos podataka'!L29 -> 1.35 | L44: Trajno gG= | M44: =+'Unos podataka'!L29 -> 1.35 | N44: 1.35 | O44: Temelj | Q44: =+AN44 ->  | R44: =+AO44 ->  | S44: Mkonzole (kNm/m') | T44: presjek na visini (m) | U44: =+U52 -> 1.2 | V44: =+U53 -> 1.52 | W44: =+U54 -> 1.84 | X44: =+U55 -> 2.16 | Y44: =+U56 -> 2.48 | Z44: =+U57 -> 2.8 | AA44: =+U58 -> 3.14 | AB44: =+U59 -> 3.44 | AC44: =+U60 -> 3.76 | AD44: =+U61 -> 4.08 | AE44: =+U62 -> 4.4 | AF44: =+U63 -> 4.72 | AG44: =+U64 -> 5.04 | AH44: =+U65 -> 5.36 | AI44: =+U66 -> 5.68 | AJ44: =+'Unos podataka'!F37 -> 6 | AL44: =+U44 -> 1.2 | AM44: =+IF(AM51=U51,U44,IF(AM51=V51,V44,IF(AM51=W51,W44,IF(AM51=X51,X44,IF(AM51=Y51,Y44,IF(AM51=Z51,Z44,IF(AM51=AA51,AA44,IF(AM51=AB51,AB44,IF(AM51=AC51,AC44,IF(AM51=AD51,AD44,IF(AM51=AE51,AE44,IF(AM51=AF51,AF44,IF(AM51=AG51,AG44,IF(AM51=AH51,AH44,IF(AM51=AI51,AI44))))))))))))))) ->  | AN44: =+'Dijagram momenata'!$Q$21 ->  | AO44: =+'Dijagram momenata'!$Q$22 -> 
A45: parametar dozvoljenog pomaka zida .......................... | D45: r= | E45: =IF('Unos podataka'!$O$48="",1,1.5) -> 1 | F45: =+IF(G78=0,E52,H77) -> 3.14 | H45: Promjenjivo | I45: gQ= | J45: =+'Unos podataka'!L30 -> 1.5 | L45: Promjenjiva gQ= | M45: =+'Unos podataka'!L30 -> 1.5 | N45: 1.5 | O45: M II-II | Q45: Mz min | R45: Mz max | S45: =+'C III-V'!D63 ->  | T45: Mg | U45: =-'Sile i krakovi'!T$173 ->  | V45: =-'Sile i krakovi'!U$173 ->  | W45: =-'Sile i krakovi'!V$173 ->  | X45: =-'Sile i krakovi'!W$173 ->  | Y45: =-'Sile i krakovi'!X$173 ->  | Z45: =-'Sile i krakovi'!Y$173 ->  | AA45: =-'Sile i krakovi'!Z$173 ->  | AB45: =-'Sile i krakovi'!AA$173 ->  | AC45: =-'Sile i krakovi'!AB$173 ->  | AD45: =-'Sile i krakovi'!AC$173 ->  | AE45: =-'Sile i krakovi'!AD$173 ->  | AF45: =-'Sile i krakovi'!AE$173 ->  | AG45: =-'Sile i krakovi'!AF$173 ->  | AH45: =-'Sile i krakovi'!AG$173 ->  | AI45: =-'Sile i krakovi'!AH$173 ->  | AJ45: 0 | AN45: =+Q46 ->  | AO45: =+IF($V$44=$AO$44,V45,IF($W$44=$AO$44,W45,IF($X$44=$AO$44,X45,IF($Y$44=$AO$44,Y45,IF($Z$44=$AO$44,Z45,IF($AA$44=$AO$44,AA45,IF($AB$44=$AO$44,AB45,IF($AC$44=$AO$44,AC45,IF($AD$44=$AO$44,AD45,IF($AE$44=$AO$44,AE45,IF($AF$44=$AO$44,AF45,IF($AG$44=$AO$44,AG45,IF($AH$44=$AO$44,AH45,AI45))))))))))))) -> 
A46: parametar tipa tla .............................................................. | D46: S= | E46: =+'Unos podataka'!H34 -> 1 | F46: =+G58+0.000001 -> 1.4000011 | H46: Gradivo temelja i zida: | O46: stalno opterećenje | Q46: =+IF(Q44=V44,V45,IF(Q44=W44,W45,IF(Q44=X44,X45,IF(Q44=Y44,Y45,IF(Q44=Z44,Z45,IF(Q44=AA44,AA45,IF(Q44=AB44,AB45,IF(Q44=AC44,AC45,IF(Q44=AD44,AD45,IF(Q44=AE44,AE45,IF(Q44=AF44,AF45,IF(Q44=AG44,AG45,IF(Q44=AH44,AH45,IF(Q44=AI44,AI45,IF(Q44=U44,U45,""))))))))))))))) ->  | T46: Mp | U46: ='Sile i krakovi'!T129 ->  | V46: ='Sile i krakovi'!U129 ->  | W46: ='Sile i krakovi'!V129 ->  | X46: ='Sile i krakovi'!W129 ->  | Y46: ='Sile i krakovi'!X129 ->  | Z46: ='Sile i krakovi'!Y129 ->  | AA46: ='Sile i krakovi'!Z129 ->  | AB46: ='Sile i krakovi'!AA129 ->  | AC46: ='Sile i krakovi'!AB129 ->  | AD46: ='Sile i krakovi'!AC129 ->  | AE46: ='Sile i krakovi'!AD129 ->  | AF46: ='Sile i krakovi'!AE129 ->  | AG46: ='Sile i krakovi'!AF129 ->  | AH46: ='Sile i krakovi'!AG129 ->  | AI46: ='Sile i krakovi'!AH129 ->  | AJ46: 0 | AN46: =+Q47 ->  | AO46: =+IF($V$44=$AO$44,V46,IF($W$44=$AO$44,W46,IF($X$44=$AO$44,X46,IF($Y$44=$AO$44,Y46,IF($Z$44=$AO$44,Z46,IF($AA$44=$AO$44,AA46,IF($AB$44=$AO$44,AB46,IF($AC$44=$AO$44,AC46,IF($AD$44=$AO$44,AD46,IF($AE$44=$AO$44,AE46,IF($AF$44=$AO$44,AF46,IF($AG$44=$AO$44,AG46,IF($AH$44=$AO$44,AH46,AI46))))))))))))) -> 
A47: DIMENZIJE ZIDA | C47: =+'Unos podataka'!F36 -> -4 | D47: =+ATAN('Unos podataka'!F49)*180/PI()*(-1) -> 0 | E47: =IF('Unos podataka'!L2="","A",IF('Unos podataka'!L2='P X-X'!M1,E48,"A")) -> A | I47: Temelj: | J47: =+IF(E78="","",1) -> 1 | K47: =+IF(E78="","",0) -> 0 | O47: dinamičko opterećenje | Q47: =+IF(Q44=V44,V46,IF(Q44=W44,W46,IF(Q44=X44,X46,IF(Q44=Y44,Y46,IF(Q44=Z44,Z46,IF(Q44=AA44,AA46,IF(Q44=AB44,AB46,IF(Q44=AC44,AC46,IF(Q44=AD44,AD46,IF(Q44=AE44,AE46,IF(Q44=AF44,AF46,IF(Q44=AG44,AG46,IF(Q44=AH44,AH46,IF(Q44=AI44,AI46,IF(Q44=U44,U46,""))))))))))))))) ->  | S47: (Kozasipa/Ki)≈ | T47: MEd (kNm/m') | U47: =IF($E$44=0,+U45*$J$44+U46*$J$45,U45+U46) ->  | AJ47: 0 | AN47: =IF($E$44>0,+AN45*$J$44+AN46*$J$45,AN45+AN46) ->  | AO47: =+IF($V$44=$AO$44,V47,IF($W$44=$AO$44,W47,IF($X$44=$AO$44,X47,IF($Y$44=$AO$44,Y47,IF($Z$44=$AO$44,Z47,IF($AA$44=$AO$44,AA47,IF($AB$44=$AO$44,AB47,IF($AC$44=$AO$44,AC47,IF($AD$44=$AO$44,AD47,IF($AE$44=$AO$44,AE47,IF($AF$44=$AO$44,AF47,IF($AG$44=$AO$44,AG47,IF($AH$44=$AO$44,AH47,AI47))))))))))))) -> 
A48: visina zida i temelja .................................................... | D48: H = | E48: =+D17+E17+F17 -> 6 | F48: m | H48: C | I48: =+'Unos podataka'!B83 -> 25 | J48: =+IF(H50="šipka","",IF(I271>7.85,"KORISTI ŠIPKE","")) ->  | K48: =+IF(E78="","",4) -> 4 | N48: GORNJE VRIJEDNOSTI MOMENATA SU BEZ PARCIJALNIH FAKTORA ZA DIMENZIONIRANJE | S48: 1 | T48: NG (kN/m') | U48: =-('Sile i krakovi'!T151) ->  | V48: =-'Sile i krakovi'!U151 ->  | W48: =-'Sile i krakovi'!V151 ->  | X48: =-'Sile i krakovi'!W151 ->  | Y48: =-'Sile i krakovi'!X151 ->  | Z48: =-'Sile i krakovi'!Y151 ->  | AA48: =-'Sile i krakovi'!Z151 ->  | AB48: =-'Sile i krakovi'!AA151 ->  | AC48: =-'Sile i krakovi'!AB151 ->  | AD48: =-'Sile i krakovi'!AC151 ->  | AE48: =-'Sile i krakovi'!AD151 ->  | AF48: =-'Sile i krakovi'!AE151 ->  | AG48: =-'Sile i krakovi'!AF151 ->  | AH48: =-'Sile i krakovi'!AG151 ->  | AI48: =-'Sile i krakovi'!AH151 ->  | AJ48: 0 | AM48: =+AF48 ->  | AN48: =IF($V$44=$AN$44,V48,IF($W$44=$AN$44,W48,IF($X$44=$AN$44,X48,IF($Y$44=$AN$44,Y48,IF($Z$44=$AN$44,Z48,IF($AA$44=$AN$44,AA48,IF($AB$44=$AN$44,AB48,IF($AC$44=$AN$44,AC48,IF($AD$44=$AN$44,AD48,IF($AE$44=$AN$44,AE48,IF($AF$44=$AN$44,AF48,IF($AG$44=$AN$44,AG48,IF($AH$44=$AN$44,AH48,AH48))))))))))))) ->  | AO48: =IF($V$44=$AO$44,V48,IF($W$44=$AO$44,W48,IF($X$44=$AO$44,X48,IF($Y$44=$AO$44,Y48,IF($Z$44=$AO$44,Z48,IF($AA$44=$AO$44,AA48,IF($AB$44=$AO$44,AB48,IF($AC$44=$AO$44,AC48,IF($AD$44=$AO$44,AD48,IF($AE$44=$AO$44,AE48,IF($AF$44=$AO$44,AF48,IF($AG$44=$AO$44,AG48,IF($AH$44=$AO$44,AH48,AI48))))))))))))) -> 
A49: dužina zida ...................................................................... | C49: ....................... | D49: L = | E49: =+'Unos podataka'!F38 -> 12 | F49: m | I49: =+'Unos podataka'!B84 -> 30 | L49: =+IF(I57="","",0.05) -> 0.05 | M49: 0 | N49: PODACI O ARMATURI | Q49: =+IF(J48="MA","","zaštitni sloj") -> zaštitni sloj | S49: Ko=1-sinj zasipa | T49: visina presjeka (cm) | U49: =('C III-V'!$P12-'C III-V'!$P11)*100 ->  | V49: =('C III-V'!$S7-'C III-V'!$S6)*100 ->  | W49: =('C III-V'!$S9-'C III-V'!$S8)*100 ->  | X49: =('C III-V'!$S11-'C III-V'!$S10)*100 ->  | Y49: =('C III-V'!$S13-'C III-V'!$S12)*100 ->  | Z49: =('C III-V'!$S15-'C III-V'!$S14)*100 ->  | AA49: =('C III-V'!$S17-'C III-V'!$S16)*100 ->  | AB49: =('C III-V'!$S19-'C III-V'!$S18)*100 ->  | AC49: =('C III-V'!$S21-'C III-V'!$S20)*100 ->  | AD49: =('C III-V'!$S23-'C III-V'!$S22)*100 ->  | AE49: =('C III-V'!$P2-'C III-V'!$P1)*100 ->  | AF49: =('C III-V'!$P4-'C III-V'!$P3)*100 ->  | AG49: =('C III-V'!$P6-'C III-V'!$P5)*100 ->  | AH49: =('C III-V'!$P8-'C III-V'!$P7)*100 ->  | AI49: =('C III-V'!$P10-'C III-V'!$P9)*100 ->  | AJ49: 0 | AM49: =+IF(AM44=U44,U49,IF(AM44=V44,V49,IF(AM44=W44,W49,IF(AM44=X44,X49,IF(AM44=Y44,Y49,IF(AM44=Z44,Z49,IF(AM44=AA44,AA49,IF(AM44=AB44,AB49,IF(AM44=AC44,AC49,IF(AM44=AD44,AD44,IF(AM44=AE44,AE49,IF(AM44=AF44,AF49,IF(AM44=AG44,AG49,IF(AM44=AH44,AH49,IF(AM44=AI44,AI49))))))))))))))) ->  | AN49: =('C III-V'!S3-'C III-V'!S2)*100 ->  | AO49: =+IF($V$44=$AO$44,V49,IF($W$44=$AO$44,W49,IF($X$44=$AO$44,X49,IF($Y$44=$AO$44,Y49,IF($Z$44=$AO$44,Z49,IF($AA$44=$AO$44,AA49,IF($AB$44=$AO$44,AB49,IF($AC$44=$AO$44,AC49,IF($AD$44=$AO$44,AD49,IF($AE$44=$AO$44,AE49,IF($AF$44=$AO$44,AF49,IF($AG$44=$AO$44,AG49,IF($AH$44=$AO$44,AH49,AI49))))))))))))) -> 
A50: otklon zida (od vertikale) uz tlo ....................................... | C50: ......................... | D50: b = | E50: =+'Unos podataka'!$G$39 -> 4 | F50: ° | H50: =+'Unos podataka'!B87 -> šipka | I50: B500B | L50: =+IF(I57="","",0.05) -> 0.05 | M50: =+IF(I57="","",1) -> 1 | N50: =+IF(H50="MA","","Armatura") -> Armatura | O50: =+IF(H50="MA","","f") -> f | P50: =+IF(H50="MA","","kom/m'") -> kom/m' | Q50: (m) | R50: (m) | S50: =+M105 -> 0.5806860653 | T50: MEds | U50: =(U47+U48*(U49/2-'Unos podataka'!$C$99)/100) ->  | V50: =IF(V45>0,V47+V48*(V49/2-'Unos podataka'!$C$99)/100,(V47+V48*(V49/2-'Unos podataka'!$C$99)/100)) ->  | W50: =IF(W45>0,W47+W48*(W49/2-'Unos podataka'!$C$99)/100,(W47+W48*(W49/2-'Unos podataka'!$C$99)/100)) ->  | X50: =IF(X45>0,X47+X48*(X49/2-'Unos podataka'!$C$99)/100,(X47+X48*(X49/2-'Unos podataka'!$C$99)/100)) ->  | Y50: =IF(Y45>0,Y47+Y48*(Y49/2-'Unos podataka'!$C$99)/100,(Y47+Y48*(Y49/2-'Unos podataka'!$C$99)/100)) ->  | Z50: =IF(Z45>0,Z47+Z48*(Z49/2-'Unos podataka'!$C$99)/100,(Z47+Z48*(Z49/2-'Unos podataka'!$C$99)/100)) ->  | AA50: =IF(AA45>0,AA47+AA48*(AA49/2-'Unos podataka'!$C$99)/100,(AA47+AA48*(AA49/2-'Unos podataka'!$C$99)/100)) ->  | AB50: =IF(AB45>0,AB47+AB48*(AB49/2-'Unos podataka'!$C$99)/100,(AB47+AB48*(AB49/2-'Unos podataka'!$C$99)/100)) ->  | AC50: =IF(AC45>0,AC47+AC48*(AC49/2-'Unos podataka'!$C$99)/100,(AC47+AC48*(AC49/2-'Unos podataka'!$C$99)/100)) ->  | AD50: =IF(AD45>0,AD47+AD48*(AD49/2-'Unos podataka'!$C$99)/100,(AD47+AD48*(AD49/2-'Unos podataka'!$C$99)/100)) ->  | AE50: =IF(AE45>0,AE47+AE48*(AE49/2-'Unos podataka'!$C$99)/100,(AE47+AE48*(AE49/2-'Unos podataka'!$C$99)/100)) ->  | AF50: =IF(AF45>0,AF47+AF48*(AF49/2-'Unos podataka'!$C$99)/100,(AF47+AF48*(AF49/2-'Unos podataka'!$C$99)/100)) ->  | AG50: =IF(AG45>0,AG47+AG48*(AG49/2-'Unos podataka'!$C$99)/100,(AG47+AG48*(AG49/2-'Unos podataka'!$C$99)/100)) ->  | AH50: =IF(AH45>0,AH47+AH48*(AH49/2-'Unos podataka'!$C$99)/100,(AH47+AH48*(AH49/2-'Unos podataka'!$C$99)/100)) ->  | AI50: =IF(AI45>0,AI47+AI48*(AI49/2-'Unos podataka'!$C$99)/100,(AI47+AI48*(AI49/2-'Unos podataka'!$C$99)/100)) ->  | AJ50: 0 | AN50: =+IF($V$44=$AN$44,V50,IF($W$44=$AN$44,W50,IF($X$44=$AN$44,X50,IF($Y$44=$AN$44,Y50,IF($Z$44=$AN$44,Z50,IF($AA$44=$AN$44,AA50,IF($AB$44=$AN$44,AB50,IF($AC$44=$AN$44,AC50,IF($AD$44=$AN$44,AD50,IF($AE$44=$AN$44,AE50,IF($AF$44=$AN$44,AF50,IF($AG$44=$AN$44,AG50,IF($AH$44=$AN$44,AH50,AH50))))))))))))) ->  | AO50: =+IF($V$44=$AO$44,V50,IF($W$44=$AO$44,W50,IF($X$44=$AO$44,X50,IF($Y$44=$AO$44,Y50,IF($Z$44=$AO$44,Z50,IF($AA$44=$AO$44,AA50,IF($AB$44=$AO$44,AB50,IF($AC$44=$AO$44,AC50,IF($AD$44=$AO$44,AD50,IF($AE$44=$AO$44,AE50,IF($AF$44=$AO$44,AF50,IF($AG$44=$AO$44,AG50,IF($AH$44=$AO$44,AH50,AI50))))))))))))) -> 
A51: visina temelja prema padini ............................... | C51: ....................... | D51: hA= | E51: =+'Unos podataka'!G40 -> 0.7 | F51: m | H51: =-'Unos podataka'!F36 -> 4 | I51: Zid: | N51: =+IF(H50="šipka","Armatura temelja Presjek I-I","Armatura temelja Presjek I-I mreža") -> Armatura temelja Presjek I-I | R51: Glavna armatura na dnu temelja | T51: VG (kN/m') | U51: =+'Sile i krakovi'!T112 ->  | V51: =+'Sile i krakovi'!U112 ->  | W51: =+'Sile i krakovi'!V112 ->  | X51: =+'Sile i krakovi'!W112 ->  | Y51: =+'Sile i krakovi'!X112 ->  | Z51: =+'Sile i krakovi'!Y112 ->  | AA51: =+'Sile i krakovi'!Z112 ->  | AB51: =+'Sile i krakovi'!AA112 ->  | AC51: =+'Sile i krakovi'!AB112 ->  | AD51: =+'Sile i krakovi'!AC112 ->  | AE51: =+'Sile i krakovi'!AD112 ->  | AF51: =+'Sile i krakovi'!AE112 ->  | AG51: =+'Sile i krakovi'!AF112 ->  | AH51: =+'Sile i krakovi'!AG112 ->  | AI51: =+'Sile i krakovi'!AH112 ->  | AJ51: 0 | AM51: =MIN(U51:AI51) ->  | AN51: =IF($V$44=$AN$44,V51,IF($W$44=$AN$44,W51,IF($X$44=$AN$44,X51,IF($Y$44=$AN$44,Y51,IF($Z$44=$AN$44,Z51,IF($AA$44=$AN$44,AA51,IF($AB$44=$AN$44,AB51,IF($AC$44=$AN$44,AC51,IF($AD$44=$AN$44,AD51,IF($AE$44=$AN$44,AE51,IF($AF$44=$AN$44,AF51,IF($AG$44=$AN$44,AG51,IF($AH$44=$AN$44,AH51,AH51))))))))))))) ->  | AO51: =IF($V$44=$AO$44,V51,IF($W$44=$AO$44,W51,IF($X$44=$AO$44,X51,IF($Y$44=$AO$44,Y51,IF($Z$44=$AO$44,Z51,IF($AA$44=$AO$44,AA51,IF($AB$44=$AO$44,AB51,IF($AC$44=$AO$44,AC51,IF($AD$44=$AO$44,AD51,IF($AE$44=$AO$44,AE51,IF($AF$44=$AO$44,AF51,IF($AG$44=$AO$44,AG51,IF($AH$44=$AO$44,AH51,AI51))))))))))))) -> 
A52: visina temelja prema zasipu ................................. | C52: ......................... | D52: h = | E52: =+'Unos podataka'!G41 -> 1.2 | F52: m | H52: C | I52: =IF(I53=20,16,IF(I53=25,20,IF(I53=30,25,IF(I53=37,30,IF(I53=45,35,IF(I53=50,40,IF(I53=55,45,IF(I53=60,50,"")))))))) -> 30 | J52: =IF(H54="šipka","",IF(F320>7.85,"KORISTI ŠIPKE","")) ->  | O52: =IF(H50="MA","",'Unos podataka'!B89) -> 14 | Q52: =IF(H50="MA","",Q58) -> 0.05 | T52: =+U52 -> 1.2 | U52: =+E52 -> 1.2 | V52: III-III | AD52: DIMENZIONIRANJE PRESJEKA NA POPREČNU SILA U PRESJEKU III-III | AL52: DIMENZIONIRANJE PRESJEKA NA POPREČNU SILU NA KONZOLI | AS52: =+C335 ->  | AT52: m
A53: nagib dna temelja .................................... | C53: .............. 1:n2 ... | D53: n2= | E53: =IF(E52=E51,"0,00",(E61+D83)/(E52-E51)) -> 7.8000044 | I53: =+'Unos podataka'!D84 -> 37 | J53: =IF(E41<=0,0,E41) -> 0.6 | N53: =+IF(H50="mreža","","Razdjelna") -> Razdjelna | P53: =+B270 ->  | R53: =+'Unos podataka'!F89/100 -> 0.4 | T53: =+T52+X53 -> 1.52 | U53: =+U52+X$53 -> 1.52 | V53: VI-VI | W53: =IF('Unos podataka'!F9>0,+'Unos podataka'!$T$55-U52-'Unos podataka'!F9,+'Unos podataka'!$T$55-U52) -> 4.8 | X53: =+W53/15 -> 0.32 | AC53: Poprečna sila | AF53: Uzdužna sila: | AL53: Poprečna sila | AO53: Uzdužna sila
A54: širina zida u kruni ................................................ | C54: ........................ | D54: d= | E54: =+'Unos podataka'!G43 -> 0.6 | F54: m | H54: =+'Unos podataka'!B92 -> šipka | I54: B500B | N54: =+IF(H50="šipka","Armatura temelja Presjek II-II","Armatura temelja Presjek II-II mreža") -> Armatura temelja Presjek II-II | R54: Glavna armatura na vrhu temelja | T54: =+T53+$X$53 -> 1.84 | U54: 1.84 | V54: VII-VII | W54: =+IF(Y54=0,U52+2*X53,Y54) -> 1.84 | X54: =+$E$79 -> 3.14 | Y54: =+IF(X54>$U$52+2*$X$53-$X$53/2,IF(X54<$U$52+2*$X$53+$X$53/2,X54,$U$52+2*$X$53)) -> 1.84 | Z54: =+IF(AB54=0,X52+2*Y51,AB54) -> 1.84 | AA54: =+$E$79+$E$81 -> 3.44 | AB54: =+IF(AA54>$U$52+2*$X$53-$X$53/2,IF(AA54<$U$52+2*$X$53+$X$53/2,AA54,$U$52+2*$X$53)) -> 1.84 | AC54: VG = | AD54: =+U51 ->  | AE54: kN | AF54: NG = | AG54: =+AG56/1.35 ->  | AH54: kN | AL54: VG = | AM54: =+B138+E80*E81*E62 ->  | AN54: kN | AO54: NG = | AP54: =+AP56/1.35 ->  | AQ54: kN
A55: širina zida na temelju .......….......................................... | C55: ............................ | D55: d1= | E55: =+'Unos podataka'!G44 -> 0.8 | F55: m | H55: Ograničenje pukotina | N55: =+IF(H50="MA","","Glavna") -> Glavna | O55: =+'Unos podataka'!B90 -> 14 | P55: =IF(H50="MA","",B297) ->  | Q55: =+Q52 -> 0.05 | R55: =+IF(H50="MA","",1/P55) ->  | T55: 2.16 | U55: 2.16 | V55: VIII-VIII | W55: =+IF(Y55=0,$U$52+3*$X$53,Y55) -> 2.16 | X55: 3.14 | Y55: =+IF(X55>$U$52+3*$X$53-$X$53/2,IF(X55<$U$52+3*$X$53+$X$53/2,X55,$U$52+3*$X$53)) -> 2.16 | AA55: 3.44 | AB55: =+IF(AA55>$U$52+3*$X$53-$X$53/2,IF(AA55<$U$52+3*$X$53+$X$53/2,AA55,$U$52+3*$X$53)) -> 2.16 | AC55: VQ = | AD55: 0 | AE55: kN | AF55: NQ = | AG55: =+AP55 -> 0 | AH55: kN | AI55: za presjek temelj kontrafora | AL55: VQ = | AM55: 0 | AN55: kN | AO55: NQ = | AP55: 0 | AQ55: kN
A56: nagib lica zida .............................................. | C56: …........ n1:1 … | D56: n1= | E56: =+IF(F56>100,">100",F56) ->  | F56: =IF('C III-V'!B10-'C III-V'!B11=0,">100",IF('C III-V'!C10-'C III-V'!C11/(0+'C III-V'!B11-'C III-V'!B10)>100,">100",('C III-V'!C10-'C III-V'!C11)/('C III-V'!B11-'C III-V'!B10))) ->  | I56: =+'Unos podataka'!C101 -> 0.3 | J56: mm | N56: =+IF(H50="mreža","","Razdjelna") -> Razdjelna | P56: =+B297 ->  | R56: =+R53 -> 0.4 | T56: 2.48 | U56: 2.48 | V56: IX-IX | W56: =+IF(Y56=0,$U$52+4*$X$53,Y56) -> 2.48 | X56: 3.14 | Y56: =+IF(X56>$U$52+4*$X$53-$X$53/2,IF(X56<$U$52+4*$X$53+$X$53/2,X56,$U$52+4*$X$53)) -> 2.48 | AA56: 3.44 | AB56: =+IF(AA56>$U$52+4*$X$53-$X$53/2,IF(AA56<$U$52+4*$X$53+$X$53/2,AA56,$U$52+4*$X$53)) -> 2.48 | AC56: VEd= | AD56: =+U51*N44+U52*N45 ->  | AE56: kN | AF56: NEd= | AG56: =+U48 ->  | AH56: kN | AI56: VEd= | AJ56: =+AD56*H84 ->  | AK56: kN | AL56: VEd= | AM56: =+AM54*N44+AM55*N45 ->  | AN56: kN | AO56: NEd= | AP56: =+AR56-AR57 ->  | AQ56: kN | AR56: =+IF($Y$44=$E$79,Y51,IF(Z44=E79,Z51,IF(AA44=E79,AA51,IF(AB44=739,AB51,IF(AC44=E79,AC51,AD51))))) -> 
A57: nagib zida uz tlo ..................................... | C57: ........ n3:1 ... | D57: n3= | E57: =+IF(F57>100,">100",'Unos podataka'!G46) ->  | F57: =+'C III-V'!F15 ->  | G57: =+E58+0.0000001 -> 0.7000011 | I57: =+IF(G78=0,"","Konzola:") -> Konzola: | N57: Armatura zida Presjek III-III | R57: =+F415 -> Armatura u Presjeku III-III pokrivena sa Poz. 5, Poz. 15 i Poz. 19 | T57: 2.8 | U57: =IF(U56=$Y$66,$AB$66,W57) -> 2.8 | V57: X-X | W57: =+IF(Y57=0,$U$52+5*$X$53,Y57) -> 2.8 | X57: 3.14 | Y57: =+IF(X57>$U$52+5*$X$53-$X$53/2,IF(X57<$U$52+5*$X$53+$X$53/2,X57,$U$52+5*$X$53)) -> 2.8 | AA57: 3.44 | AB57: =+IF(AA57>$U$52+5*$X$53-$X$53/2,IF(AA57<$U$52+5*$X$53+$X$53/2,AA57,$U$52+5*$X$53)) -> 2.8 | AR57: =+IF($X$44=$E$79+$E$81,X51,IF(Y44=E79+E81,Y51,IF(Z44=E79+E81,AZ51,IF(AA44=E79+E81,AA51,IF(AB44=E79+E81,AB51,IF(AC44=E79+E81,AC51,AD51)))))) -> 
A58: širina temelja ispred zida ............................................. | C58: ................. | D58: b1= | E58: =+'Unos podataka'!G47 -> 0.700001 | F58: m | G58: =+E59+0.0000000000000001 -> 1.4000001 | H58: =+IF(G78=0,"","C") -> C | I58: =IF(I59=20,16,IF(I59=25,20,IF(I59=30,25,IF(I59=37,30,IF(I59=45,35,IF(I59=50,40,IF(I59=55,45,IF(I59=60,50,"")))))))) -> 30 | N58: =+IF(H54="MA","","Glavna") -> Glavna | O58: =+IF(H54="MA","mreža R",'Unos podataka'!B94) -> 12 | P58: =IF(H54="MA","",B321) ->  | Q58: =+'Unos podataka'!C99/100 -> 0.05 | R58: =+IF(P58=0,"",IF(H54="MA","",1/P58)) ->  | T58: 3.12 | U58: 3.14 | V58: XI-XI | W58: =+IF(Y58=0,$U$52+6*$X$53,Y58) -> 3.14 | X58: 3.14 | Y58: =+IF(X58>$U$52+6*$X$53-$X$53/2,IF(X58<$U$52+6*$X$53+$X$53/2,X58,$U$52+6*$X$53)) -> 3.14 | AA58: 3.44 | AB58: =+IF(AA58>$U$52+6*$X$53-$X$53/2,IF(AA58<$U$52+6*$X$53+$X$53/2,AA58,$U$52+6*$X$53)) -> 3.12 | AC58: Dimenzije presjeka: na visini: | AE58: =+U44 -> 1.2 | AF58: m | AG58: Gradivo: | AL58: Dimenzije presjeka: | AP58: Gradivo:
A59: širina temelja iza zida ................................................. | C59: ................. | D59: b2= | E59: =+'Unos podataka'!G48 -> 1.4000001 | F59: m | I59: =+IF(G78=0,"",I53) -> 37 | N59: =+IF(H54="mreža","","Razdjelna") -> Razdjelna | O59: =+'Unos podataka'!E94 -> 8 | R59: =+'Unos podataka'!F94/100 -> 0.4 | T59: 3.44 | U59: 3.44 | V59: XII-XII | W59: =+IF(Y59=0,$U$52+7*$X$53,Y59) -> 3.44 | X59: 3.14 | Y59: =+IF(X59>$U$52+7*$X$53-$X$53/2,IF(X59<$U$52+7*$X$53+$X$53/2,X59,$U$52+7*$X$53)) -> FALSE | AA59: 3.44 | AB59: =+IF(AA59>$U$52+7*$X$53-$X$53/2,IF(AA59<$U$52+7*$X$53+$X$53/2,AA59,$U$52+7*$X$53)) -> 3.44 | AD59: širina presjeka b = | AE59: 100 | AF59: cm | AG59: Beton C | AH59: =+I52 -> 30 | AM59: širina b = | AN59: =+AE59 -> 100 | AO59: cm | AP59: Beton: C | AQ59: =+I52 -> 30
A60: otklon temeljne plohe uz tlo ................... | C60: ............... n:hB ... | D60: n= | E60: =+'Unos podataka'!G49 -> 0 | F60: m | H60: =+IF(G78=0,"","šipka") -> šipka | I60: =+IF(G78=0,"",I54) -> B500B | N60: =IF(I56="mreža","","Armatura zida Presjek IV-IV") -> Armatura zida Presjek IV-IV | R60: =+F335 ->  | T60: 3.76 | U60: 3.76 | V60: XIII-XIII | W60: =+IF(Y60=0,$U$52+8*$X$53,Y60) -> 3.76 | X60: 3.14 | Y60: =+IF(X60>$U$52+8*$X$53-$X$53/2,IF(X60<$U$52+8*$X$53+$X$53/2,X60,$U$52+8*$X$53)) -> FALSE | AA60: 3.44 | AB60: =+IF(AA60>$U$52+8*$X$53-$X$53/2,IF(AA60<$U$52+8*$X$53+$X$53/2,AA60,$U$52+8*$X$53)) -> FALSE | AD60: visina presjeka h = | AE60: =+AL49 ->  | AF60: cm | AH60: =+I53 -> 37 | AM60: visina h = | AN60: =+E81*100 -> 30 | AO60: cm | AQ60: =+I53 -> 37
A61: =+IF(H83>0,"širina temelja bez kontrafore ........................................","širina temelja.............................................") -> širina temelja bez kontrafore ........................................ | C61: ......................... | D61: B = | E61: =+G57+F46+E55-'Unos podataka'!G49 -> 2.9000022 | F61: m | N61: =+IF(I56="MA","","Glavna") -> Glavna | O61: =IF(H54="MA"," mreža R",O58) -> 12 | P61: =+IF(H54="šipka",B350,G430) ->  | Q61: =IF(H54="šipka",+Q58,"") -> 0.05 | R61: =+IF(P61=0,"",IF(H60="MA","",1/P61)) ->  | T61: 4.08 | U61: 4.08 | V61: XIV-XIV | W61: =+IF(Y61=0,$U$52+9*$X$53,Y61) -> 4.08 | X61: 3.14 | Y61: =+IF(X61>$U$52+9*$X$53-$X$53/2,IF(X61<$U$52+9*$X$53+$X$53/2,X61,$U$52+9*$X$53)) -> FALSE | AA61: 3.44 | AB61: =+IF(AA61>$U$52+9*$X$53-$X$53/2,IF(AA61<$U$52+9*$X$53+$X$53/2,AA61,$U$52+9*$X$53)) -> FALSE | AD61: zaštitni sloj a = | AE61: =+Q58*100 -> 5 | AF61: cm | AG61: Čelik: RA | AH61: B 500 | AM61: zaštitni sloj a = | AN61: =+AE61 -> 5 | AO61: cm | AP61: Čelik: RA | AQ61: B 500
A62: jedinična težina zida i temelja .................................. | C62: ................. | D62: gb= | E62: =+'Unos podataka'!F51 -> 25 | F62: kN/m3 | N62: =+IF(I56="mreža","","Razdjelna") -> Razdjelna | O62: =+IF(H54="MA","",'Unos podataka'!E94) -> 8 | R62: =IF(H54="MA","",R59) -> 0.4 | T62: 4.4 | U62: 4.4 | V62: XV-XV | W62: =+IF(Y62=0,$U$52+10*$X$53,Y62) -> 4.4 | X62: 3.14 | Y62: =+IF(X62>$U$52+10*$X$53-$X$53/2,IF(X62<$U$52+10*$X$53+$X$53/2,X62,$U$52+10*$X$53)) -> FALSE | AA62: 3.44 | AB62: =+IF(AA62>$U$52+10*$X$53-$X$53/2,IF(AA62<$U$52+10*$X$53+$X$53/2,AA62,$U$52+10*$X$53)) -> FALSE | AD62: statička visina d = | AE62: =+AE60-AE61 ->  | AF62: cm | AH62: 560 | AM62: statička visina d = | AN62: =+AN60-AN61 -> 25 | AO62: cm | AQ62: 560
A63: jedinična težina zasipa iza zida.......................................... | C63: ................. | D63: gz= | E63: =+'Unos podataka'!F52 -> 20 | F63: kN/m3 | N63: =IF(H60="mreža","","Armatura zida Presjek V-V") -> Armatura zida Presjek V-V | R63: =+F363 ->  | T63: 4.72 | U63: 4.72 | V63: XVI-XVI | W63: =+IF(Y63=0,$U$52+11*$X$53,Y63) -> 4.72 | X63: 3.14 | Y63: =+IF(X63>$U$52+11*$X$53-$X$53/2,IF(X63<$U$52+11*$X$53+$X$53/2,X63,$U$52+11*$X$53)) -> FALSE | AA63: 3.44 | AB63: =+IF(AA63>$U$52+11*$X$53-$X$53/2,IF(AA63<$U$52+11*$X$53+$X$53/2,AA63,$U$52+11*$X$53)) -> FALSE | AE63: za gradivo: | AN63: za gradivo:
A64: debljina zasipa (drenaže) iza zida ..................................... | C64: ...................... | D64: d = | E64: =+'Unos podataka'!F53 -> 0.5 | F64: m | N64: =+IF(H60="MA","","Glavna") -> Glavna | O64: =IF(H54="MA"," mreža R",O61) -> 12 | P64: =+IF(H54="šipka",B377,G430) ->  | Q64: =IF(H54="šipka",+Q58,"") -> 0.05 | R64: =+IF(P64=0,"",IF(H60="MA","",1/P64)) ->  | T64: 5.04 | U64: 5.04 | V64: XVII-XVII | W64: =+IF(Y64=0,$U$52+12*$X$53,Y64) -> 5.04 | X64: 3.14 | Y64: =+IF(X64>$U$52+12*$X$53-$X$53/2,IF(X64<$U$52+12*$X$53+$X$53/2,X64,$U$52+12*$X$53)) -> FALSE | AA64: 3.44 | AB64: =+IF(AA64>$U$52+12*$X$53-$X$53/2,IF(AA64<$U$52+12*$X$53+$X$53/2,AA64,$U$52+12*$X$53)) -> FALSE | AC64: gc = | AD64: =+M42 -> 1.5 | AF64: gs = | AG64: =+M41 -> 1.15 | AL64: gc = | AM64: =+M42 -> 1.5 | AO64: gs = | AP64: =+M41 -> 1.15
A65: visina nasipa na temelju ispred zida ............................... | C65: ................. | D65: hn= | E65: =+'Unos podataka'!G54 -> 0.300001 | F65: m | N65: =+IF(H60="mreža","","Razdjelna") -> Razdjelna | O65: =+IF(H54="MA","",O62) -> 8 | R65: =IF(H54="MA","",R59) -> 0.4 | T65: 5.36 | U65: 5.36 | V65: XVIII-XVIII | W65: =+IF(Y65=0,U52+13*X53,Y65) -> 5.36 | X65: 3.14 | Y65: =+IF(X65>$U$52+13*$X$53-$X$53/2,IF(X65<$U$52+13*$X$53+$X$53/2,X65,$U$52+13*$X$53)) -> FALSE | AA65: 3.44 | AB65: =+IF(AA65>$U$52+13*$X$53-$X$53/2,IF(AA65<$U$52+13*$X$53+$X$53/2,AA65,$U$52+13*$X$53)) -> FALSE | AC65: fck= | AD65: =IF(I53=25,I52,IF(I53=30,I52,IF(I53=37,I52,IF(I53=45,I52,IF(I53=50,I52,IF(I53=55,I52,IF(I53=60,I52))))))) -> 30 | AE65: Mpa | AF65: fyk= | AG65: 500 | AH65: Mpa | AL65: fck= | AM65: =+AD65 -> 30 | AN65: MPa | AO65: fyk= | AP65: =+AG65 -> 500 | AQ65: MPa
A66: jedinična težina nasipa ispred zida ........................................... | C66: ...................... | D66: gn= | E66: =+'Unos podataka'!F55 -> 20 | F66: kN/m3 | N66: =+IF(G78>0,"Armatura konzole","") -> Armatura konzole | P66: =+IF(E426>0.252,"DVOSTRUKO ARMIRANJE","") ->  | T66: 5.68 | U66: =+T66 -> 5.68 | V66: XIX | W66: =+IF(Y66=0,U53+14*X53,Y66) -> 3.14 | X66: 3.14 | Y66: =+MAX(Y54:Y65) -> 3.14 | AB66: =+MAX(AB54:AB65) -> 3.44 | AC66: fcd= | AD66: =IF(I53=25,I52/10/'Unos podataka'!L26,IF(I53=30,I52/10/'Unos podataka'!L26,IF(I53=37,I52/10/'Unos podataka'!L26,IF(I53=45,I52/10/'Unos podataka'!L26,IF(I53=50,I52/10/'Unos podataka'!L26,IF(I53=55,I52/10/'Unos podataka'!L26,IF(I53=60,I52/10/'Unos podataka'!L26,))))))) -> 2 | AE66: kN/cm2 | AF66: fyd= | AG66: =+AG65/10/'Unos podataka'!$L$25 -> 43.47826087 | AH66: kN/cm2 | AL66: fcd= | AM66: =+AD66 -> 2 | AN66: kN/cm2 | AO66: fyd= | AP66: =+AG66 -> 43.47826087 | AQ66: kN/cm2
A67: =+IF(B9="",""," SIDRA") -> SIDRA | N67: =+IF(G78=0,"","Glavna") -> Glavna | O67: =IF('Unos podataka'!G57="","",'Unos podataka'!B97) -> 12 | P67: =IF(G78=0,"",B405) ->  | Q67: =IF(G78=0,"",Q58) -> 0.05 | R67: =+IF(P67=0,"",IF(H60="MA","",1/P67)) ->  | T67: 6 | U67: =+U66+$X$53 -> 6 | V67: XX
A68: =IF(A67="","","promjer injektirane bušotine………………………………………………………….") -> promjer injektirane bušotine…………………………………………………………. | D68: =+IF('Unos podataka'!G63="","",'Unos podataka'!E64) -> d≈ | E68: =+IF('Unos podataka'!G63="","",'Unos podataka'!F64) -> 0.1 | F68: =IF('Unos podataka'!G63="","",'Unos podataka'!G64) -> m | R68: =IF(G78=0,"",'Unos podataka'!F97/100) -> 0.4 | U68: =+U67 -> 6 | V68: Vrh | AC68: - nosivost presjeka na poprečnu silu bez poprečne armature | AL68: - nosivost presjeka na poprečnu silu bez poprečne armature
A69: =+IF(A67="","","faktor sigurnosti (koeficijent redukcije sile u sidrima)….") -> faktor sigurnosti (koeficijent redukcije sile u sidrima)…. | D69: =+IF('Unos podataka'!G63="","","g=") -> g= | E69: =+IF('Unos podataka'!G63="","",'Unos podataka'!F65) -> 2 | H69: =+IF($B$9="","",IF(H70=0,"",T21)) ->  | S69: =-U69*('Sile i krakovi'!U208-'Sile i krakovi'!U210) ->  | T69: v11= | U69: =+'Sile i krakovi'!Z190 ->  | V69: =+U69*W69 ->  | W69: 0 | AC69: VRd,c = | AD69: [CRd,c*k*(100*r1*fck)1/3+k1*scp]*b*d | AL69: VRd,c = | AM69: [CRd,c*k*(100*r1*fck)1/3+k1*scp]*b*d
D70: =+IF($B$9="","",IF(D71=0,"",P21)) -> I. red | E70: =+IF($B$9="","",IF(E71=0,"",Q21)) -> II. red | F70: =+IF($B$9="","",IF(F71=0,"",R21)) ->  | G70: =+IF($B$9="","",IF(G71=0,"",S21)) ->  | K70: =+IF(A77="","","Preporučene visine podgleda konzole") -> Preporučene visine podgleda konzole | L70: KONTROLA RAVNOTEŽE ELEMENTA | S70: =+U70*('Sile i krakovi'!V208-'Sile i krakovi'!V210) ->  | T70: ¸¸ | U70: =-'Sile i krakovi'!AB190 ->  | AC70: CRd,c = | AD70: =0.18/AD64 -> 0.12 | AE70: k = | AF70: =IF(1+SQRT(20/AE62)>2,2,1+SQRT(20/AE62)) ->  | AG70: =+IF(AF70>2,"","≤ 2,00") ->  | AH70: k1 = | AI70: 0.15 | AL70: CRd,c = | AM70: =0.18/AM64 -> 0.12 | AN70: k = | AO70: =IF(AN60=0,0,IF(1+SQRT(20/AN62)>2,2,1+SQRT(20/AN62))) -> 1.894427191 | AP70: =+IF(AO70>2,"","≤ 2,00") -> ≤ 2,00 | AQ70: k1 = | AR70: 0.15
A71: =+IF(B9="","","visina sidra od dna temelja ……........ (m)") -> visina sidra od dna temelja ……........ (m) | C71: =+IF(B9="","","hs=") -> hs= | D71: =IF($B$9="","",IF(P22=0,"",P22)) -> 5 | E71: 3 | G71: =IF($B$9="","",IF(S22=0,"",S22)) ->  | L71: Između presjeka I-I,II-II, III-III i dna temelja | S71: =+U69+U71+U73+U75 ->  | T71: v22= | U71: =+'Sile i krakovi'!Z191 ->  | AF71: - površina armature u presjeku SAs1 = | AG71: =IF(+'Iskaz armature'!U18*'Iskaz armature'!Z18>F321,+'Iskaz armature'!U18*'Iskaz armature'!Z18,F321) ->  | AH71: cm2 | AO71: - površina armature u presjeku SAs1 = | AP71: =IF(H54="mreža",F348,F349) ->  | AQ71: cm2
A72: =+IF(B9="","","dužina slobodne dionice ……….......... (m)") -> dužina slobodne dionice ……….......... (m) | C72: =+IF(B9="","","lsl=") -> lsl= | D72: 5.9 | E72: 4.9 | G72: =IF($B$9="","",IF(S23=0,"",S23)) ->  | K72: =IF(A$77="","",+U57) -> 2.8 | L72: SV= | M72: =+'Sile i krakovi'!F258 ->  | N72: kN | S72: =+U70+U72+U74+U76 ->  | T72: h22= | U72: =-'Sile i krakovi'!AB191 ->  | AC72: ρ1= | AD72: =IF(AG71/AE59/AE62>0.02,0.02,AG71/AE59/AE62) ->  | AE72: =+IF(AD72<0.02,"< 0,02","> 0,02") ->  | AG72: scp=Ned/Ac= | AH72: =-IF(AG56/AE59/AE60>0.2*AD66,0.2,AG56/AE59/AE60) ->  | AI72: < = 0,02 * fcd = | AK72: =0.02*AD66 -> 0.04 | AL72: ρ1= | AM72: =IF(AP71/AN59/AN62>0.02,0.02,AP71/AN59/AN62) ->  | AN72: =+IF(AM72<0.02,"< 0,02","> 0,02") ->  | AO72: scp = | AP72: =IF(AN60=0,0,IF(AP56/AN59/AN60>0.2*AM66,0.2,AP56/AN59/AN60)) ->  | AQ72: < = 0,02 * fcd = | AS72: =0.02*AM66 -> 0.04
A73: =+IF(B9="","","dužina sidrišne dionice .................... (m)") -> dužina sidrišne dionice .................... (m) | C73: =+IF(B9="","","lsidr=") -> lsidr= | D73: =IF($B$9="","",IF(P24=0,"",P24)) -> 6.7 | E73: =IF($B$9="","",IF(Q24=0,"",Q24)) -> 4.8 | F73: =IF($B$9="","",IF(R24=0,"",R24)) ->  | G73: =IF($B$9="","",IF(S24=0,"",S24)) ->  | H73: =+SUM(D73:G73) -> 11.5 | J73: =+MAX(D74:G74) ->  | K73: 3.14 | L73: SH= | M73: =+'Sile i krakovi'!F233 ->  | N73: kN | S73: =+U73*('Sile i krakovi'!U209-'Sile i krakovi'!U208) ->  | T73: v33= | U73: =+'Sile i krakovi'!Z192 ->  | AC73: VRd,c = | AD73: =(AD70*AF70*(100*AD72*AD65)^(1/3)+AI70*AH72)*AE59*AE62/10 ->  | AE73: kN | AG73: k1 = | AH73: 0.15 | AI73: VRd,c = | AJ73: =+AD73*H84 ->  | AL73: VRd,c = | AM73: =IF(AN60=0,0,(0.18/AM64*AO70*(100*AM72*AM65)^(1/3)+AR70*AP72)*AN59*AN62/10) ->  | AN73: kN
A74: =+IF(B9="","",IF(E70="","računska sila u sidru","računske sile u sidrima ……............. (kN)")) -> računske sile u sidrima ……............. (kN) | C74: =+IF(B9="","","Rd=") -> Rd= | D74: =IF($B$9="","",P29) ->  | E74: =IF($B$9="","",Q29) ->  | F74: =IF($B$9="","",R29) ->  | G74: =IF($B$9="","",S29) ->  | J74: =+IF(J73<160,"R32L",IF(J73<230,"R32N","R32S")) ->  | K74: 3.44 | L74: SM= | M74: =+'Sile i krakovi'!AC253 ->  | N74: kNm | S74: =U74*('Sile i krakovi'!V209-'Sile i krakovi'!V208) ->  | T74: h33= | U74: =-'Sile i krakovi'!AB192 ->  | AC74: VRd,c,min= | AD74: (nmin+k1*scp)*b*d | AL74: VRd,c,min = | AM74: (nmin+k1*scp)*b*d
A75: =+IF(B9="","",IF(Q27>0,"računske sile po m' zida …...…... (kN/m') ","računska sila po m' zida …..... (kN/m')")) ->  | C75: =+IF(B9="","","Psi=") -> Psi= | D75: =IF($B$9="","",IF(P25=0,"",P25)) -> 50 | E75: =IF($B$9="","",IF(Q25=0,"",Q25)) -> 50 | F75: =IF($B$9="","",IF(R25=0,"",R25)) ->  | G75: =IF($B$9="","",IF(S25=0,"",S25)) ->  | K75: 3.76 | R75: =+'Sile i krakovi'!D257+'Sile i krakovi'!D220+'Sile i krakovi'!D232+'Sile i krakovi'!D261 -> 0 | S75: =U75*('Sile i krakovi'!Q209-'Sile i krakovi'!U208) ->  | T75: vtem= | U75: =+'Sile i krakovi'!Z193 ->  | AC75: n1= | AD75: =0.6*(1-AH59/250) -> 0.528 | AE75: nmin= | AF75: =0.035*POWER(AF70,1.5)*SQRT(AD65) ->  | AG75: acw = | AH75: =1+AG56/AE62/AE59/AD66 ->  | AI75: z = | AJ75: =0.9*AE62 ->  | AK75: cm | AL75: n1= | AM75: =0.6*(1-AQ59/250) -> 0.528 | AN75: nmin= | AO75: =IF(AN60=0,0,0.035*POWER(AO70,1.5)*SQRT(AM65)) -> 0.4998567367 | AP75: acw = | AQ75: =1+AP56/AN62/AN59/AM66 ->  | AR75: z = | AS75: =0.9*AN62 -> 22.5 | AT75: cm
A76: =+IF(A67="","","razmak između sidara …................ (m')") -> razmak između sidara …................ (m') | C76: =+IF(B9="","","b<=") -> b<= | D76: =IF(D75="","",ABS(ROUNDDOWN(P27,1))) ->  | E76: =IF(E75="","",ABS(ROUNDDOWN(Q27,1))) ->  | F76: =IF(F75="","",ABS(ROUNDDOWN(R27,1))) ->  | G76: =IF(G75="","",ABS(ROUNDDOWN(S27,1))) ->  | H76: =+E65+0.0001 -> 0.300101 | K76: 4.08 | R76: =+U74*('Sile i krakovi'!V209-'Sile i krakovi'!V208) ->  | S76: =-U76*('Sile i krakovi'!V208-'Sile i krakovi'!R209) ->  | T76: htem= | U76: =-'Sile i krakovi'!AB193 ->  | AC76: VRd,c,min = | AD76: =+(AF75*0.1+0.15*AH72)*AE59*AE62 ->  | AE76: kN | AH76: VRd,c,min = | AI76: =+AD76*H84 ->  | AJ76: za temelj-kontrafora | AL76: VRd,c,min = | AM76: =+(AO75*0.1+0.15*AP72)*AN59*AN62 ->  | AN76: kN
A77: =+IF('Unos podataka'!G57="",""," KONZOLA") -> KONZOLA | B77: =+G78+0.0000001 -> 1.0000001 | C77: =+IF(G78=0,0.000001,H79) -> 0.3 | H77: =+IF('Unos podataka'!G57="",0,E79) -> 3.14 | K77: 4.4 | L77: za n = | M77: =+M79/(1+M79) -> 0.409138989 | R77: =U70*('Sile i krakovi'!V210-'Sile i krakovi'!V208) ->  | S77: =SUM(S69:S76) ->  | T77: MI-I | U77: =+'Sile i krakovi'!Q259 ->  | AC77: - maksimalna vrijednost poprečne sile: | AH77: za presjek temelj kontrafora | AL77: - maksimalna vrijednost poprečne sile:
A78: =+IF('Unos podataka'!G57="","","duljina konzole (zida) ..........................................") -> duljina konzole (zida) .......................................... | D78: =+IF('Unos podataka'!G57="","","lk=") -> lk= | E78: =IF('Unos podataka'!G57="","",E49) -> 12 | F78: =+IF('Unos podataka'!G57="","","m") -> m | G78: =+IF(H77=0,0,H78) -> 1 | H78: =+IF('Unos podataka'!G57="",0,E80) -> 1 | K78: 4.72 | L78: Ko=n/(1-n) = | M78: =+M77/(1-M77) -> 0.6924453998 | R78: =-U76*('Sile i krakovi'!V208-'Sile i krakovi'!R209) ->  | S78: =+R75+S77 ->  | T78: MII-II | U78: ='Sile i krakovi'!R259 ->  | AC78: VRd,max = | AD78: acw*b*z*n1*fcd*1/(ctgΘ+tgΘ) | AH78: VRd,max = | AI78: =(+AH75*AE59*10*AJ75*10*AD75*AD66*10*1/(AJ79+AH79))/1000*H84 ->  | AJ78: kN | AL78: VRd,max = | AM78: acw*b*z*n1*fcd*1/(ctgΘ+tgΘ) | AQ78: VRd,max = | AR78: =(+AQ75*AN59*10*AS75*10*AM75*AM66*10*1/(AS79+AQ79))/1000 ->  | AS78: kN
A79: =+IF('Unos podataka'!G57="","","visina podgleda konzole (od dna temelja) .............") -> visina podgleda konzole (od dna temelja) ............. | D79: =+IF('Unos podataka'!G57="","","hk=") -> hk= | E79: =IF(E78=0,"",'Unos podataka'!H59) -> 3.14 | F79: =+IF('Unos podataka'!G57="","","m") -> m | H79: =+IF('Unos podataka'!G57="",0,E81) -> 0.3 | K79: 5.04 | L79: Ko=1-sinjd1 = | M79: =+M110 -> 0.6924453998 | T79: M III-III | U79: =+'Sile i krakovi'!S259 ->  | AE79: kut nagiba tlačnih dijagonala Θ = | AF79: 40 | AG79: ° tgΘ = | AH79: =+TAN(AF79*PI()/180) -> 0.8390996312 | AI79: ctg Θ = | AJ79: =1/AH79 -> 1.191753593 | AN79: kut nagiba tlačnih dijagonala Θ = | AO79: 39.8 | AP79: ° tgΘ = | AQ79: =+TAN(AO79*PI()/180) -> 0.8331685892 | AR79: ctg Θ = | AS79: =1/AQ79 -> 1.200237278
A80: =+IF('Unos podataka'!G57="","","širina konzole .....................................................") -> širina konzole ..................................................... | D80: =+IF('Unos podataka'!G57="","","bk=") -> bk= | E80: =IF(E78=0,"",'Unos podataka'!F60) -> 1 | F80: =+IF('Unos podataka'!G57="","","m") -> m | K80: 5.36 | O80: X | P80: y | T80: M sredina | U80: =+'Sile i krakovi'!T259 ->  | AE80: a = | AF80: 90 | AG80: ° | AN80: a = | AO80: 90 | AP80: °
A81: =+IF('Unos podataka'!G57="","","visina presjeka konzole ........................................") -> visina presjeka konzole ........................................ | D81: =+IF('Unos podataka'!G57="","","dk=") -> dk= | E81: =IF(E78=0,"",'Unos podataka'!F61) -> 0.3 | F81: =+IF('Unos podataka'!G57="","","m") -> m | K81: 5.68 | L81: jednadžba pravca klizne plohe | O81: =+(P81-N84)/L84 ->  | P81: ='C III-V'!AF104 ->  | U81: SM= | AC81: - Provjera: | AL81: - Provjera:
A82: =+IF(Kontrafore!E3="",""," KONTRAFORE") -> KONTRAFORE | B82: =+IF(A82="","CRTEŽ, SHEMA ZIDA ...., TREBA PREMJESTITI NA OVAJ PRAZNI PROSTOR","") ->  | I82: =IF(Kontrafore!E3=0,"",Kontrafore!E10) -> 5.5 | L82: 2 | M82: 0 | O82: =+(P81-N84)/L84-0.2*E48 ->  | P82: =+P81 ->  | AC82: VRd,c = | AD82: =+AD73 ->  | AE82: =+IF(AD82>AD56,"kN > VEd=","kN < VEd=") ->  | AF82: =+AD56 ->  | AG82: =+IF(AG83="Postojeća armatura zadovoljava","","kN < VRd,max =") ->  | AI82: =+AI78 ->  | AJ82: kN | AL82: VRd,c = | AM82: =+AM73 ->  | AN82: =+IF(AM73>AM56,"kN > VEd=","kN < VEd=") ->  | AO82: =+AM56 ->  | AP82: =+IF(AP83="Postojeća armatura zadovoljava","","kN < VRd,max =") ->  | AR82: =+AR78 ->  | AS82: kN
A83: =+IF(Kontrafore!E3="","","duljina temelja kontrafore ..................") -> duljina temelja kontrafore .................. | C83: =+IF(Kontrafore!E3="","","l =") -> l = | D83: =+IF(Kontrafore!E3=0,"",'Unos podataka'!AB3) -> 1 | E83: =+IF(Kontrafore!E3=0,"","m") -> m | G83: =+IF(Kontrafore!E3=0,"","duljina kontrafore dk=") -> duljina kontrafore dk= | H83: =+IF(Kontrafore!E3=0,"",Kontrafore!E7) -> 1.9000001 | I83: =+IF(Kontrafore!E3=0,"","m") -> m | L83: =+'C III-V'!AE104 ->  | M83: =+'C III-V'!AF104 ->  | P83: 0 | AG83: =+IF(AD73<AD56,"Potrebne su spone", "Postojeća armatura zadovoljava ") ->  | AP83: =+IF(AM73<AM56,"Potrebne su spone", "Postojeća armatura zadovoljava ") -> 
A84: =+IF(Kontrafore!E3="","","širina temelja kontrafore.....................") -> širina temelja kontrafore..................... | C84: =+IF(Kontrafore!E3="","","b₁=") -> b₁= | D84: =+IF(Kontrafore!E3=0,"",'Unos podataka'!AB4) -> 1 | G84: =+IF(Kontrafore!E3=0,"","m osni razmak kontrafora lk=") -> m osni razmak kontrafora lk= | H84: =IF(Kontrafore!E3=0,"",Kontrafore!E8) -> 4 | I84: =+IF(Kontrafore!E3=0,"","m") -> m | L84: =++(M83-M82)/(L83-L82) ->  | M84: *x + | N84: =-L84*L82+M82 ->  | O84: =+(P84-N84)/L84-0.2*E48 ->  | P84: =-P85-P86 ->  | AC84: =+IF(AH84="","","Proračun poprečne armature") ->  | AH84: =+IF(AD73>AD56,"","m =") ->  | AI84: 1 | AL84: =+IF(AM73>AM56,""," - proračun poprečne armature:") ->  | AQ84: =+IF(AM73>AM56,"","m =") ->  | AR84: 1
A85: =+IF(Kontrafore!E3="","","broj kontrafora ..............................................") -> broj kontrafora .............................................. | C85: =+IF(Kontrafore!E3="","","n =") -> n = | D85: =IF(D83=0,"",'Unos podataka'!AB5) -> 3 | G85: =+IF(Kontrafore!E3=0,"","visina kontrafore hk=") -> visina kontrafore hk= | H85: =IF(Kontrafore!E3=0,"",I82-E52) -> 4.3 | I85: =+IF(Kontrafore!E3=0,"","m") -> m | L85: Razmak do sidrene linije d= | M85: =0.2*E48 -> 1.2 | N85: m | O85: =+(P85-N84)/L84 ->  | P85: 0 | AC85: =+IF(AH84="","","spone f=") ->  | AD85: =IF(AH84="","",+'Unos podataka'!E94) ->  | AE85: =+IF(AH84="","","Asw=") ->  | AF85: =IF(AD73>AD56,"",+AI84*AD85^2*PI()/4/100) ->  | AH85: =+IF(AD73>AD56,""," razmak spona:") ->  | AL85: =+IF(AM73>AM56,"","spone ф =") ->  | AM85: =IF(AL85="","",+'Unos podataka'!E97) ->  | AN85: =+IF(AM73>AM56,"","A¹sw =") ->  | AO85: =IF(AM73>AM56,"",+AR84*AM85^2*PI()/4/100) ->  | AP85: =+IF(AM73>AM56,"","cm²") ->  | AQ85: =+IF(AM73>AM56,""," razmak spona:") -> 
A86: =+IF(Kontrafore!E3="","","širina kontrafore ...................................") -> širina kontrafore ................................... | C86: =+IF(Kontrafore!E3="","","b =") -> b = | D86: =+IF(Kontrafore!E3=0,"",Kontrafore!E6) -> 0.25 | E86: =+IF(Kontrafore!E3=0,"","m") -> m | L86: a= | M86: =+ATAN(L84)*180/PI() ->  | O86: Y*= | P86: =+COS(M86*PI()/180) ->  | AC86: =+IF(AD73>AD56,""," - maksimalni razmak spona:") ->  | AG86: =+IF(AC73>AC56,"","S₁ =") ->  | AH86: =+IF(AD73>AD56,"","S₁ =") ->  | AI86: =IF(AD73>AD56,"",+AF85*AJ75*AG66*AJ79/AD56) ->  | AJ86: =+IF(AD73>AD56,"","cm") ->  | AL86: =+IF(AM73>AM56,""," - maksimalni razmak spona:") ->  | AQ86: =+IF(AM73>AM56,"","S₁ =") ->  | AR86: =IF(AN60=0,0,IF(AM73>AM56,"",+AO85*AS75*AP66*AS79/AM56)) ->  | AS86: =+IF(AM73>AM56,"","cm") -> 
C87: Temelj ili vozilo | G87: Voda iza zida | I87: Zid i temelj | K87: 0.2 | L87: =IF(E24>0.1,+ROUNDUP(E48,),ROUNDUP(E48+2,)-1) -> 6 | N87: =+'C III-V'!B25-2.3 ->  | O87: =+'Dijagram momenata'!$Q$22 ->  | P87: =IF(E24=0,Q87,'C III-V'!W14) ->  | Q87: ='C III-V'!B9 ->  | AC87: =+IF(AD73>AD56,"","ρw,min =") ->  | AD87: =+IF(AD73>AD56,"",IF((0.08*SQRT(AD65)/AG65>0.15*2.2/AG66*10),0.08*SQRT(AD65)/AG65,0.15*2.2/(AG66*10))) ->  | AG87: =+IF(AC73>AC56,"","S₁,max =") ->  | AH87: =+IF(AD73>AD56,"","S₁,max =") ->  | AI87: =IF(AD73>AD56,"",+AF85/(AD87*AE59*SIN(AF80*PI()/180))) ->  | AJ87: =+AJ86 ->  | AL87: =+IF(AM73>AM56,"","ρw,min =") ->  | AM87: =+IF(AM73>AM56,"",IF((0.08*SQRT(AM65)/AP65>0.15*2.2/AP66*10),0.08*SQRT(AM65)/AP65,0.15*2.2/(AP66*10))) ->  | AQ87: =+IF(AM73>AM56,"","S₁,max =") ->  | AR87: =IF(AM73>AM56,"",+AO85/(AM87*AN59*SIN(AO80*PI()/180))) ->  | AS87: =+AS86 -> 
B88: Točkasto | C88: =IF(A28="OPTEREĆENJE TEMELJEM ....................",'C III-V'!W38,C91) ->  | D88: =IF(E28=0,-5,+D89+0.5) ->  | E88: (m) na os i y | G88: =IF(H88<0,7,IF(H88>=E52,2+E59-(E41-E51)/F57,2+E60*(E52-E41)/E52)) -> 2 | H88: =E41 -> 0.6 | I88: =+'C III-V'!B2 -> 2 | J88: =+'C III-V'!C2 -> 0.1282051512 | K88: =+ROUNDUP('C III-V'!$AH$45,) -> 8 | L88: 0.2 | N88: =+N90 -> 5.4000022 | O88: =+O87 ->  | P88: =IF(E24=0,Q88,'C III-V'!X14) -> 6.264490647 | Q88: =+'C III-V'!C9 -> A | AQ88: =+IF(AM73>AM56,"","Smax =") ->  | AR88: =+IF(AM73>AM56,"",IF(AR87<30,AR87,30)) ->  | AS88: =+IF(AM73>AM56,"","cm") -> 
A89: =+'C III-V'!W23 ->  | B89: =+E48+'HT III-XX'!E53 ->  | C89: =+C88 ->  | D89: =IF(E28=0,-5,IF(A28="OPTEREĆENJE TEMELJEM ....................",'C III-V'!X34,D90)) ->  | E89: 0 | F89: =+E48+1 -> 7 | G89: =+G90+0.05 -> -1.85 | H89: =+H88 -> 0.6 | I89: =+'C III-V'!B3 -> 2 | J89: =+'C III-V'!C3 -> 1.2 | K89: =-IF(F190/100>F193/100,F190/100,F193/100) ->  | N89: =+N87 ->  | O89: =+'Dijagram momenata'!$Q$21 ->  | P89: =+N93-0.1 -> 3.3000011 | Q89: =+E52+0.01 -> 1.21 | AG89: =+IF(AC73>AC56,"","Smax =") ->  | AH89: =+IF(AD73>AD56,"","Smax =") ->  | AI89: =+IF(AD73>AD56,"",IF(AI87<30,AI87,30)) ->  | AJ89: =+IF(AD73>AD56,"","cm") -> 
C90: =+'C III-V'!W37 ->  | D90: =IF(E28=0,-5,IF(A28="OPTEREĆENJE TEMELJEM ....................",'C III-V'!X34,D91)) ->  | E90: (m) na os i x | G90: =+G91+0.05 -> -1.9 | H90: =+H92-0.25 -> 0.35 | I90: =+'C III-V'!B4 -> 3.4000011 | J90: =+'C III-V'!C4 -> 1.2 | K90: 0.2 | L90: =+ROUNDUP(K89-1,) ->  | N90: =+N96 -> 5.4000022 | O90: =+Q44 ->  | P90: =+N92+0.1 -> 4.3000011 | Q90: =+Q89 -> 1.21 | AC90: =+IF(AD73>AD56,"","Asw =") ->  | AD90: =IF(AD73>AD56,"",AF85*100/AI86) ->  | AE90: =+IF(AD73>AD56,"","cm²") ->  | AF90: =IF(AD73>AD56,"",ROUND(AD90/AF85,0)+1) ->  | AG90: =+IF(AD73<AD56,"kom/m'","") ->  | AL90: =+IF(AM73>AM56,"","Asw =") ->  | AM90: =IF(AM73>AM56,"",AO85*100/AR86) ->  | AN90: =+IF(AM73>AM56,"","cm²") ->  | AO90: =IF(AM73>AM56,"",ROUND(AM90/AO85,0)+1) ->  | AP90: =+IF(AM73<AM56,"kom/m'","") -> 
A91: Voda izvan | C91: =+'C III-V'!W37 ->  | D91: =IF(E28=0,-5,IF(A28="OPTEREĆENJE TEMELJEM ....................",'C III-V'!X35,E48+E31)) ->  | E91: =2+E61+2 -> 6.9000022 | F91: 0.2 | G91: =-2+0.05 -> -1.95 | H91: =+H92+0.25 -> 0.85 | N91: =+'C III-V'!B11 -> 4.2000011 | O91: =+O93 -> 1.3
A92: =IF(E42<=E52,2+E61+E60,2+E59+E55-(B92-E52)/F56) -> 4.9000022 | B92: =IF(E42=0,-5,+E42) -> 0.8 | C92: =+'C III-V'!W34 ->  | D92: =+D91 ->  | E92: *100kN/m2 | G92: =-2+0.05 -> -1.95 | H92: =+H93 -> 0.6 | L92: =+'C III-V'!AE101 -> 0 | M92: =+'C III-V'!AF101 -> 0 | N92: =+N91 -> 4.2000011 | O92: 0
A93: =+A92+2 -> 6.9000022 | B93: =+B92 -> 0.8 | C93: =+C92 ->  | D93: =+D90 ->  | E93: 0.2 | F93: =-+IF(MAX(F190:F195)/100<2,2) ->  | G93: -8 | H93: =+H88 -> 0.6 | L93: =+'C III-V'!AE104 ->  | M93: =+'C III-V'!AF104 ->  | N93: =+'C III-V'!B4 -> 3.4000011 | O93: =+E52+0.1 -> 1.3 | AD93: =+AD85 ->  | AE93: =+IF(AC86="","","na razmaku") ->  | AF93: =IF(AE93="","",+MIN(AI86:AI89)) ->  | AG93: =+IF(AE93="","","cm") ->  | AM93: =+AM85 ->  | AN93: =+IF(AL86="","","na razmaku") ->  | AO93: =IF(AN93="","",+MIN(AR86:AR88)) ->  | AP93: =+IF(AN93="","","cm") -> 
A94: =+'C III-V'!Y101 -> 1.75 | B94: 0 | C94: =IF(A28="OPTEREĆENJE TEMELJEM ....................",+C93-0.3,C93) ->  | D94: =+D93 ->  | G94: =+'Unos podataka'!T55-'Unos podataka'!$F$9 -> 6 | H94: =+'C III-V'!U7 ->  | M94: -2.8 | N94: =+N93+E60 -> 3.4000011 | O94: =+O92 -> 0 | Z94: Dimenzioniranje presjeka radi redukcije Poz.7
A95: =+'C III-V'!Y102 -> 0.9770786366 | B95: =+'C III-V'!$Z$102 -> 1.2 | C95: =+C94 ->  | D95: =+D88 ->  | F95: =+'Unos podataka'!S55 ->  | G95: =+'Unos podataka'!T56 -> 6 | H95: =+'C III-V'!U8 ->  | L95: =+(M93-M92)/(L92-L93) ->  | M95: =+ATAN(L95)*180/PI() ->  | N95: =2-0.3 -> 1.7 | O95: =+E52+0.03 -> 1.23 | S95: kom | T95: 3 Karakteristične točke sidra | V95: Poz 6a
A96: =+'C III-V'!Y103 -> -1.057240442 | B96: =+'C III-V'!$Z$103 -> 4 | C96: =IF(A28="OPTEREĆENJE TEMELJEM ....................",C95,+C88) ->  | D96: =+D88 ->  | E96: 1.sloj dno | F96: =+'Unos podataka'!S56 ->  | G96: =+'Unos podataka'!T57 -> 6.264490647 | H96: =+'C III-V'!U9 ->  | L96: =+SQRT((M93*M93+(-L93+L92)*(-L93+L92))) ->  | M96: =0.2*L96 ->  | N96: =2+E61+0.5 -> 5.4000022 | O96: =+O95 -> 1.23 | Q96: Koordinate armature Poz. 6a | S96: =IF(R100=0,-3,S97+0.15) ->  | T96: =+IF($P$22>0,1,0) -> 1 | W96: =+IF(U28=0,-20,R98) ->  | AA96: presjek na visini (m) | AB96: =+AB97 -> 3.44
A97: =+'C III-V'!Y104 ->  | B97: =+'C III-V'!$Z$104 ->  | D97: =+'C III-V'!B29 ->  | E97: =+E48-D17 -> 4 | F97: =+'Unos podataka'!B105 ->  | G97: =+'Unos podataka'!T58 -> 6.264490647 | H97: -8 | L97: =IF(A67="",0,+'C III-V'!U104-0.2*E48) ->  | M97: =+IF(P25+Q25+R25+S25+T25=0,"",P82) ->  | O97: x | P97: x | Q97: y | S97: =IF(R100=0,-3,P22+0.06) ->  | T97: =+IF($P$22>0,1,0) -> 1 | U97: =+U98+1.5 ->  | V97: =+V98+(U97-U98)*TAN($E$39*PI()/180) ->  | W97: =IF(U28=0,-20,R100+1.2) ->  | AA97: hk= | AB97: =IF(E79>0,+E79+E81,AB44) -> 3.44 | AC97: MEd= | AD97: =+IF(AB97>=AI44,AI45,IF($AB$97>=$AH$44,AH45,IF($AB$97>=$AG$44,AG45,IF($AB$97>=$AF$44,AF45,IF($AB$97>=$AE$44,AE45,IF($AB$97>=$AD$44,AD45,IF($AB$97>=$AC$44,AC45,IF($AB$97>=$AB$44,AB45,AA45))))))))*1.35 ->  | AE97: kNm/m' | AF97: NEd= | AG97: =+IF(AB97>AI44,AI48,IF($AB$97>=$AH$44,AH48,IF($AB$97>=$AG$44,AG48,IF($AB$97>=$AF$44,AF48,IF($AB$97>=$AE$44,AE48,IF($AB$97>=$AD$44,AD48,IF($AB$97>=$AC$44,AD48,IF($AB$97>=$AB$44,AB48,AA45)))))))) ->  | AH97: kN/m'
A98: =+'Unos podataka'!$B$103 ->  | B98: =+'Unos podataka'!$C$103 -> 6 | D98: -8 | E98: =E97+(D97-D98)*TAN(D18*PI()/180) ->  | F98: -8 | I98: =+'C III-V'!V10 -> 6.264490647 | J98: =+'C III-V'!C13 -> 1.2 | L98: =IF(A67="",0,+'C III-V'!U101-0.2*E48) -> 0.55 | M98: 0 | N98: =+IF(P25+Q25+R25+S25+T25=0,"",P83) -> 0 | O98: sidro I | P98: =IF(P25=0,-20,P100+0.5) ->  | Q98: =+Q100 -> 5 | R98: =IF(E56=">100",R100,R99-(S96-S97)/$F$56) ->  | S98: =+P22 -> 5 | U98: =+P100 ->  | V98: =+Q100 -> 5 | X98: =IF(U28=0,0,S96) ->  | AA98: MEd (kNm/m') | AC98: MEds= | AD98: =+'Dijagram momenata'!P27 ->  | AE98: =+IF(AG98<AD99,"kNm/m' >","kNm/m' <") ->  | AF98: MRd,lim= | AG98: =+E367 ->  | AH98: kN/m'
A99: =+A94-0.2*$E$48 -> 0.55 | B99: =+B94 -> 0 | D99: -8 | E99: =E98+(D98-D99)*TAN(D18*PI()/180) ->  | I99: =+'C III-V'!B14 -> 4.9000022 | J99: =+'C III-V'!C14 -> 1.2 | L99: Poz. 1 | M99: =+SQRT(E61^2+(E52-E51)^2) -> 2.942789962 | P99: =IF(P25=0,-20,P98-1) ->  | Q99: =+Q98 -> 5 | R99: =IF(E56=">100",R100,R100-(S97-P22)/$F$56) ->  | S99: =IF(R100=0,-3,P22-0.09) ->  | T99: =+IF($P$22>0,1,0) -> 1 | U99: =+P102 ->  | V99: =+V98-(U98-U99)*TAN($E$39*PI()/180) ->  | W99: =IF(U28=0,-20,R99) ->  | X99: =IF(U28=0,0,(X98+X107)/2) ->  | AD99: =+ABS(AD98) ->  | AF99: fyd = | AG99: =+G369 -> 43.47826087 | AH99: kN/cm2
A100: =+A97-0.2*$E$48 ->  | B100: =+B97 ->  | I100: =+'C III-V'!B15 -> 4.9000022 | J100: =+'C III-V'!C15 -> 0.5 | L100: Poz. 2 | M100: =+E61 -> 2.9000022 | P100: =IF(P22=0,-20,R100+0.07) ->  | Q100: =IF(P25=0,0,P22) -> 5 | R100: =IF(Q100=0,0,'C III-V'!Z35-0.035) ->  | S100: =IF(R100=0,-3,S99-0.15) ->  | T100: =+IF($P$22>0,1,0) -> 1 | W100: =+W97 ->  | AC100: b= | AD100: 100 | AE100: cm | AF100: fcd = | AG100: =+G370 -> 1.7 | AH100: kN/cm2
A101: =IF(A83="",-15,+A94) -> 1.75 | B101: =+B94 -> 0 | D101: =+'Unos podataka'!I121 -> 4 | E101: =+'Unos podataka'!C114 -> Točke | I101: =+'C III-V'!B16 -> 2 | J101: =+'C III-V'!C16 -> 0.1282051512 | P101: =+P100-P23*COS(E39*PI()/180) ->  | Q101: =+Q100-P23*SIN(E39*PI()/180) -> 3.472967634 | R101: =IF(E56=">100",R100,R100+(P22-S99)/$F$56) ->  | S101: =IF(R105=0,-3,S102+0.15) ->  | T101: =+IF($Q$22>0,1,0) -> 1 | X101: =IF(U28=0,0,S97) ->  | AC101: h= | AD101: =+IF($AB$97>=$AH$44,AH49,IF($AB$97>=$AG$44,AG49,IF($AB$97>=$AF$44,AF49,IF($AB$97>=$AE$44,AE49,IF($AB$97>=$AD$44,AD49,IF($AB$97>=$AC$44,AC49,IF($AB$97>=$AB$44,AB49,AA49))))))) ->  | AE101: cm | AF101: mSd= | AG101: =+G315 -> 
A102: =+A101 -> 1.75 | B102: =+B95 -> 1.2 | D102: =+'Unos podataka'!I122 ->  | E102: tgj | F102: j | G102: kh= | H102: =+E44*E46/E45 -> 0.1 | I102: tgQ= | J102: =IF(E41<=E52,H102/(1+H103),G16*H102/(G16-10)/(1+H103)) -> 0.09523809524 | P102: =+P101-$D$73*COS($E$39*PI()/180) ->  | Q102: =+Q101-$D$73*SIN($E$39*PI()/180) -> 1.738880032 | R102: =IF(E56=">100",R100,R101+(S99-S100)/$F$56) ->  | S102: =IF(R105=0,-3,Q22+0.06) ->  | T102: =+IF($Q$22>0,1,0) -> 1 | U102: =+U103+1.5 ->  | V102: =+V103+(U102-U103)*TAN($E$39*PI()/180) ->  | W102: =IF(U28=0,-20,R101) ->  | X102: =+X99 ->  | AC102: d1= | AD102: =+B315 -> 5 | AE102: cm | AF102: ζ = | AG102: =+G316 -> 
A103: Dužina od vrha zida do sjecišta j i b X = | C103: =+A98-A97 ->  | D103: 1 | E103: =+TAN(D14*PI()/180)/J27 -> 0.3232209807 | F103: =+ATAN(E103)*180/PI() -> 17.91192098 | G103: kv= | H103: =+H102/2 -> 0.05 | I103: Q= | J103: =+ATAN(J102)*180/PI() -> 5.440332031 | L103: Prosječna vrijenost koeficijenta tlaka ili tlaka mirovanja za slojeve tla | O103: sidro II | P103: =IF(Q25=0,-20,P105+0.5) ->  | Q103: =+Q105 -> 3 | R103: =IF(E56=">100",R105,R104-(S101-S102)/$F$56) ->  | S103: =+Q22 -> 3 | U103: =+P105 ->  | V103: =+Q105 -> 3 | W103: =+W97 ->  | AC103: d= | AD103: =AD101-AD102 ->  | AE103: cm
D104: 2 | E104: =+TAN(E14*PI()/180)/J27 -> 0.259935757 | F104: =+ATAN(E104)*180/PI() -> 14.57076836 | G104: =+IF(F103<=23,0,IF(F103<=28,0.5*F103,2*F103/3)) -> 0 | H104: Ka1 | I104: Ka2 | J104: Ka3 | L104: Ki= | M104: =+IF('Unos podataka'!F13="Ko",M112,IF(E44>0,M109,M115)) -> 0.7086817997 | O104: S h= | P104: =IF(Q25=0,-20,P103-1) ->  | Q104: =+Q103 -> 3 | R104: =IF(E56=">100",R105,R105-(S102-Q22)/$F$56) ->  | S104: =IF(R105=0,-3,Q22-0.09) ->  | T104: =+IF($Q$22>0,1,0) -> 1 | U104: =+P107 ->  | V104: =+V103-(U103-U104)*TAN($E$39*PI()/180) ->  | X104: =IF(U28=0,0,S99) ->  | AA104: Popr. sila Ved= | AB104: =+IF($AB$97>=$AH$44,AH51,IF($AB$97>=$AG$44,AG51,IF($AB$97>=$AF$44,AF51,IF($AB$97>=$AE$44,AE51,IF($AB$97>=$AD$44,AD51,IF($AB$97>=$AC$44,AC51,IF($AB$97>=$AB$44,AB51,AA51))))))) ->  | AC104: kN | AF104: As1,min≥ | AG104: =0.0015*AD100*AD103 ->  | AH104: cm2
E105: =+TAN(F14*PI()/180)/J27 -> 0.2911761874 | F105: =+ATAN(E105)*180/PI() -> 16.23430213 | G105: =+IF(F104<=23,0,IF(F104<=28,0.5*F104,2*F104/3)) -> 0 | H105: =IF(E44=0,SIN((90-C47+F103)*PI()/180)^2,SIN((90-C47+F103-J103)*PI()/180)^2) -> 0.9196051459 | I105: =IF(E44=0,SIN((90-C47+F104)*PI()/180)^2,SIN((90-C47+F104-J103)*PI()/180)^2) -> 0.9483943975 | J105: =IF(E44=0,SIN((90-D47+F105)*PI()/180)^2,SIN((90-D47+F105-J103)*PI()/180)^2) -> 0.9649269747 | L105: Ko zasipa = | M105: =1-SIN((F107*PI()/180)) -> 0.5806860653 | P105: =IF(Q25=0,-20,R105+0.07) ->  | Q105: =IF(Q25=0,0,Q22) -> 3 | R105: =IF(Q105=0,0,'C III-V'!Z33-0.035) ->  | S105: =IF(R100=0,-3,S104-0.15) ->  | T105: =+IF($Q$22>0,1,0) -> 1 | W105: =IF(U28=0,-20,R102) ->  | X105: =+X102 ->  | AF105: As1,max= | AG105: =0.31*AD100*AD103*AG100/AG99 ->  | AH105: cm2
E106: =+TAN(G14*PI()/180)/J27 -> 0.259935757 | F106: =+ATAN(E106)*180/PI() -> 14.57076836 | G106: =+IF(F105<=23,0,IF(F105<=28,0.5*F105,2*F105/3)) -> 0 | H106: =IF(E44=0,SIN((90-C47)*PI()/180)^2*SIN((90-C47-G104)*PI()/180),COS(J103*PI()/180)*SIN((90-C47)*PI()/180)^2*SIN((90-C47-J103)*PI()/180)) -> 0.9903384232 | I106: =IF(E44=0,SIN((90-C47)*PI()/180)^2*SIN((90-C47-G105)*PI()/180),COS(J103*PI()/180)*SIN((90-C47)*PI()/180)^2*SIN((90-C47-J103)*PI()/180)) -> 0.9903384232 | J106: =IF(E44=0,SIN((90-D47)*PI()/180)^2*SIN((90-D47-G106)*PI()/180),COS(J103*PI()/180)*SIN((90-D47)*PI()/180)^2*SIN((90-D47-J103)*PI()/180)) -> 0.991011236 | P106: =+P105-Q23*COS(E39*PI()/180) ->  | Q106: =+Q105-Q23*SIN(E39*PI()/180) -> 1.731786679 | R106: =IF(E56=">100",R105,R105+(Q22-S104)/$F$56) ->  | S106: =IF(R110=0,-3,S107+0.15) -> -3 | T106: =+IF($R$22>0,1,0) -> 0 | W106: =+W103 ->  | AB106: =+A375 -> odabrano: | AC106: =+B375 -> f | AD106: =+C375 -> 12 | AF106: potrebno As1= | AG106: =ABS(IF(AD98<AG98,ABS(AD98)*100/(AG99*AG102*AD103)+AG97/AG99,AG98*100/(BF89*AD103*AG99)+((AD98-AG98)*100)/((AD103-AD102)*AG99)+AG97/AG99)) ->  | AH106: cm2
E107: =+TAN(H14*PI()/180)/J27 -> 0.4618802154 | F107: =+ATAN(E107)*180/PI() -> 24.7912809 | H107: =IF(E24>0,IF(E44=0,SIN((F103+G104)*PI()/180)*SIN((F103-0)*PI()/180),SIN((F103*PI()/180)*SIN((F103-J103-0)*PI()/180))),IF(E44=0,SIN((F103+G104)*PI()/180)*SIN((F103-H20)*PI()/180),SIN((F103*PI()/180)*SIN((F103-J103-H20)*PI()/180)))) -> 0.06746115727 | I107: =IF(F104-J103-D18<0,0,IF(E44=0,SIN((F104+G105)*PI()/180)*SIN((F104-D18)*PI()/180),SIN((F1120*PI()/180)*SIN((F104-J103-D18)*PI()/180)))) -> 0 | J107: =IF(IF(E44=0,SIN((F105+G106)*PI()/180)*SIN((F105-E18)*PI()/180),SIN((F105*PI()/180)*SIN((F105-J103-E18)*PI()/180)))<0,0.000015,IF(E44=0,SIN((F105+G106)*PI()/180)*SIN((F105-E18)*PI()/180),SIN((F105*PI()/180)*SIN((F105-J103-E18)*PI()/180)))) -> 0.03351293391 | L107: K1= | M107: =+K132 -> 0.5969374041 | P107: =+P106-$E$73*COS($E$39*PI()/180) ->  | Q107: =+Q106-$E$73*SIN($E$39*PI()/180) -> 0.4894552625 | R107: =IF(E56=">100",R105,R106+(S104-S105)/$F$56) ->  | S107: =IF(R110=0,-3,R22+0.06) -> -3 | T107: =+IF($R$22>0,1,0) -> 0 | U107: =+U108+1.5 -> -18.5 | V107: =+V108+(U107-U108)*TAN($E$39*PI()/180) -> 0.4019237886 | X107: =IF(U28=0,0,S100) ->  | AB107: =+A376 -> potrebno: | AC107: =IF(H54="šipka",TRUNC(AG107/(PI()*AD106*AD106/400))+1) ->  | AD107: =+C376 -> kom/m' | AF107: mjerodavno: As1= | AG107: =+MAX(AG106,AG104) ->  | AH107: cm2
A108: =IF('Unos podataka'!F13="Ko"," TLAK MIROVANJA",IF(E44>0," AKTIVNI SEIZMIČKI TLAK"," AKTIVNI TLAK ")) -> AKTIVNI SEIZMIČKI TLAK | H108: =IF(E24>0,IF(E44=0,SIN((90-C47-G104)*PI()/180)*SIN((90-C47+0)*PI()/180),SIN((90-C47-J103)*PI()/180)*SIN((90-E50-0)*PI()/180)),IF(E44=0,SIN((90-E50-2*G104)*PI()/180)*SIN((90-E50+H20)*PI()/180),SIN((90-E50-J103)*PI()/180)*SIN((90-C47-H20)*PI()/180))) -> 0.9972488636 | I108: =IF(E44=0,SIN((90-C47-G105)*PI()/180)*SIN((90-C47+D18)*PI()/180),SIN((90-C47-J103)*PI()/180)*SIN((90-C47-D18)*PI()/180)) -> 0.9990750631 | J108: =IF(E44=0,SIN((90-D47-G106)*PI()/180)*SIN((90-D47+E18)*PI()/180),SIN((90-D47-J103)*PI()/180)*SIN((90-D47-E18)*PI()/180)) -> 0.9930704957 | L108: K2= | M108: =+L132 -> 0.7884992252 | P108: =IF(R25=0,-20,P110+0.5) -> -20 | Q108: =+Q110 -> 0 | R108: =IF(E56=">100",R110,R109-(S106-S107)/$F$56) ->  | S108: =+R22 -> 0 | U108: =+P110 -> -20 | V108: =+Q110 -> 0 | X108: =+X105 ->  | AB108: odabrano: | AC108: =IF(B322="",F322,IF(+AC107<=5,5,AD110)) ->  | AD108: =IF(AC107=0,G322,+C377) ->  | AF108: =+E377 -> A₁= | AG108: =IF(H54="šipka",+AD106*AD106*PI()*(AC108)/400) ->  | AH108: =IF(AC107>0,"cm²","") -> 
B109: Ea (kN/m') | C109: Eh (kN/m') | D109: Ev (kN/m') | E109: =IF('Unos podataka'!$F$13="Ko"," Ko=1-sinϕd",IF(F112=N111,"",IF(F112=J112," Coulumb-Poncelot"," Mononobe-Okabe"))) -> Mononobe-Okabe | H109: =IF(H107<=0,0,SQRT(H107/H108)) -> 0.2600908767 | I109: =SQRT(I107/I108) -> 0 | J109: =SQRT(J107/J108) -> 0.1837029732 | L109: prosječni računski K1= | M109: =+(M107*K111+M108*K112)/(K111+K112) -> 0.7086817997 | P109: =IF(R25=0,-20,P108-1) -> -20 | Q109: =+Q108 -> 0 | R109: =IF(E56=">100",R110,R110-(S107-R22)/$F$56) ->  | S109: =IF(R110=0,-3,R22-0.09) -> -3 | T109: =+IF($R$22>0,1,0) -> 0 | U109: =+P112 -> -20 | V109: =+V108-(U108-U109)*TAN($E$39*PI()/180) -> 0 | AC109: Potrebno iznad presjeka | AD109: =+AC108 ->  | AE109: =+AD108 -> 
A110: sloj 1. ....................... | B110: =+'C III-V'!B85 ->  | C110: =+B110*COS((G104-$H$51)*PI()/180) ->  | D110: =ABS(B110*SIN((G104-$H$51)*PI()/180)) ->  | E110: =IF('Unos podataka'!$F$13="Ko","Ko₁=",IF(E44>0,"K₁=","Ka₁=")) -> K₁= | F110: =IF('Unos podataka'!$F$13="Ko",+M110,IF(E44>0,K132,H112)) -> 0.5969374041 | H110: =(1+H109)^2 -> 1.587829017 | I110: =(1+I109)^2 -> 1 | J110: =(1+J109)^2 -> 1.401152729 | K110: visine slojeva | L110: Ko1= | M110: =1-SIN((F103*PI()/180)) -> 0.6924453998 | N110: Ko3= | P110: =IF(R25=0,-20,R110+0.07) -> -20 | Q110: =IF(R25=0,0,R22) -> 0 | R110: =IF(Q110=0,0,'C III-V'!Z31-0.035) -> 0 | S110: =+S109-0.15 -> -3.15 | T110: =+IF($R$22>0,1,0) -> 0 | AC110: Poz 7 +Poz 7' (ukupna u presjeku III-III) | AD110: =+B322 ->  | AE110: =+AE109 -> 
A111: sloj 2. ....................... | B111: =IF('C III-V'!D85<0,0,'C III-V'!D85) ->  | C111: =+$B$111*COS((G105-$H$51)*PI()/180) ->  | D111: =ABS(B111*SIN((G105-$H$51)*PI()/180)) ->  | E111: =IF('Unos podataka'!$F$13="Ko","Ko₂=",IF(E44>0,"K₂=","Ka₂=")) -> K₂= | F111: =IF('Unos podataka'!$F$13="Ko",+M111,IF(E44>0,L132,I112)) -> 0.7884992252 | H111: Ka1 | I111: Ka2 | J111: Ka3 | K111: =+D17 -> 2 | L111: Ko2= | M111: =1-SIN(F104*PI()/180) -> 0.7484243885 | N111: =1-SIN((F105*PI()/180)) -> 0.7204340304 | P111: =+P110-R23*COS(E39*PI()/180) -> -20 | Q111: =+Q110-R23*SIN(E39*PI()/180) -> 0 | R111: =IF(E56=">100",R110,R110+(R22-S109)/$F$56) ->  | S111: =IF(R115=0,-3,S112+0.15) -> -3 | T111: =+IF($S$22>0,1,0) -> 0 | AC111: Poz 7 (duga armatura) | AD111: =+IF(AD109=AD110,AD110,AD109) ->  | AE111: =+AE110 ->  | AG111: 0
A112: sloj 3. ....................... | B112: =+'C III-V'!F85 ->  | C112: =+B112*COS((G106)*PI()/180) ->  | D112: =B112*SIN((G106)*PI()/180) ->  | E112: =IF('Unos podataka'!$F$13="Ko","Ko₃=",IF(E44>0,"K₃=","Ka₃=")) -> K₃= | F112: =IF('Unos podataka'!$F$13="Ko",+N111,IF(E44>0,M132,J112)) -> 0.7100044457 | H112: =(H105/H106)/H110 -> 0.5848089753 | I112: =(I105/I106)/I110 -> 0.9576467754 | J112: =(J105/J106)/J110 -> 0.694912929 | K112: =+E17 -> 2.8 | L112: prosječni računski Ko= | M112: =(M110*K111+M111*K112)/(K111+K112) -> 0.7250998099 | P112: =+P111-F$73*COS($E$39*PI()/180) -> -20 | Q112: =+Q111-F$73*SIN($E$39*PI()/180) -> 0 | R112: =IF(E56=">100",R110,R111+(S109-S110)/$F$56) ->  | S112: =IF(R115=0,-3,S22+0.06) -> -3 | T112: =+IF($S$22>0,1,0) -> 0 | U112: =+U113+1.5 -> -18.5 | V112: =+V113+(U112-U113)*TAN($E$39*PI()/180) -> 0.4019237886 | AC112: Poz 7' (kratka armatura) | AD112: =+AD110-AD111 ->  | AE112: =+AE111 -> 
A113: SEa= | B113: =SUM(B110:B112) ->  | C113: =SUM(C110:C112) ->  | D113: =SUM(D110:D112) ->  | L113: Ka1= | M113: =+H112 -> 0.5848089753 | P113: =IF(S25=0,-20,P115+0.5) -> -20 | Q113: =+Q115 -> 0 | R113: =IF(E56=">100",R115,R114-(S111-S112)/$F$56) ->  | S113: =+S22 -> 0 | U113: =+P115 -> -20 | V113: =+Q115 -> 0 | AC113: =ROUND(6/'Iskaz armature'!T4,1) -> 2.1
B114: =+COS(($G$105-$H$51)*PI()/180) -> 0.9975640503 | C114: =ABS(SIN(($G$105-$H$51)*PI()/180)) -> 0.06975647374 | L114: Ka2= | M114: =+I112 -> 0.9576467754 | P114: =IF(S25=0,-20,P113-1) -> -20 | Q114: =+Q113 -> 0 | R114: =IF(E56=">100",R115,R115-(S112-S22)/$F$56) ->  | S114: =IF(R115=0,-3,S22-0.09) -> -3 | T114: =+IF($S$22>0,1,0) -> 0 | U114: =P117 -> -20 | V114: =+V113-(U113-U114)*TAN($E$39*PI()/180) -> 0 | AC114: =(TRUNC(AC113)) -> 2 | AD114: kom po m'
A115: SILE KOJE ULAZE U KONTROLE GRANIČNIH STANJA NOSIVOSTI ZIDA | H115: PARCIJALNI KOEFICIJENTI DJELOVANJA | L115: prosječni računski Ka= | M115: =+(M113*K111+M114*K112)/(K111+K112) -> 0.802297692 | P115: =IF(S25=0,-20,R115+0.07) -> -20 | Q115: =IF(S25=0,0,S22) -> 0 | R115: =IF(Q115=0,0,+'C III-V'!Z29-0.035) -> 0 | S115: =+S114-0.15 -> -3.15 | T115: =+IF($S$22>0,1,0) -> 0 | AC115: =+'Iskaz armature'!U1/'Iskaz armature'!U4/2 -> 
P116: =+P115-S23*COS(E39*PI()/180) -> -20 | Q116: =+Q115-S23*SIN(E39*PI()/180) -> 0 | R116: =IF(E56=">100",R115,R115+(S22-S114)/$F$56) ->  | S116: =IF(R120=0,-3,S117+0.15) -> -3 | T116: =+IF($T$22>0,1,0) -> 0
A117: Horizontalne sile | C117: Krakovi do točke prevrtanja"A" | D117: Momenti od horiz. sila na točku "A" | G117: PREVRTANJE | H117: KLIZANJE | I117: SLOM TEMELJNOG TLA | M117: =1-SIN((F105*PI()/180)) -> 0.7204340304 | P117: =+P116-G$73*COS($E$39*PI()/180) -> -20 | Q117: =Q116-G73*SIN(E39*PI()/180) -> 0 | R117: =IF(E56=">100",R115,R116+(S114-S115)/$F$56) ->  | S117: =IF(R120=0,-3,T22+0.06) -> -3 | T117: =+IF($T$22>0,1,0) -> 0 | U117: =+U118+1.5 -> -18.5 | V117: =+V118+(U117-U118)*TAN($E$39*PI()/180) -> 0.4019237886
H118: KLIZANJE | J118: kh=amax*S/r= | K118: =+E44*E46/E45 -> 0.1 | L118: =-0.5*K118 -> -0.05 | O118: sidro IV | P118: =IF(T25=0,-20,P120+0.5) -> -20 | Q118: =+Q120 -> 0 | R118: =IF(E56=">100",R120,R119-(S116-S117)/$F$56) ->  | S118: =+T22 -> 0 | U118: =+P120 -> -20 | V118: =+Q120 -> 0
A119: (kN/m') | C119: (m) | D119: (kNm/m') | G119: EQU problem | H119: GEO problem | I119: GEO problem | J119: tgq=kh/(1±kv)= | K119: =K118/(1+L118) -> 0.1052631579 | L119: =+ATAN(K119)*180/PI() -> 6.009005957 | P119: =IF(T25=0,-20,P118-1) -> -20 | Q119: =+Q118 -> 0 | R119: =IF(E56=">100",R120,R120-(S117-T22)/$F$56) ->  | S119: =IF(R120=0,-3,T22-0.09) -> -3 | T119: =+IF($T$22>0,1,0) -> 0 | U119: =+P122 -> -20 | V119: =+V118-(U118-U119)*TAN($E$39*PI()/180) -> 0
A120: Eh1 ............................ | B120: =+C110 ->  | C120: =IF(B120<=0,0,+'C III-V'!B87-'C III-V'!C15) ->  | D120: =+B120*C120 ->  | G120: =+H$31 -> 1.1 | H120: =+J$31 -> 1 | I120: =+J$31 -> 1 | K120: =+'Sile i krakovi'!T76 -> 0 | L120: nagib gornje plohe b | M120: y= | N120: =90-C47 -> 94 | O120: =90-D47 -> 90 | P120: =IF(T25=0,-20,R120+0.07) -> -20 | Q120: =IF(T25=0,0,T22) -> 0 | R120: =IF(Q120=0,0,'C III-V'!Z27-0.035) -> 0 | S120: =+S119-0.15 -> -3.15 | T120: =+IF($T$22>0,1,0) -> 0
A121: Eh2 ............................ | B121: =+C111 ->  | C121: =IF(B121<=0,0,'C III-V'!D87-'C III-V'!C15) ->  | G121: =+H$31 -> 1.1 | H121: =+J$31 -> 1 | I121: =+J$31 -> 1 | K121: j | L121: b | M121: (y+j-q) | P121: =+P120-T23*COS(E39*PI()/180) -> -20 | Q121: =+Q120-T23*SIN(E39*PI()/180) -> 0 | R121: =IF(E56=">100",R120,R120+(T22-S119)/$F$56) ->  | S121: =SUM(T96:T120) -> 8 | T121: =SUM(T96:T120) -> 8
A122: Eh3 ............................ | B122: =+C112 ->  | C122: =IF(B122=0,0,F122-'C III-V'!C15) ->  | F122: =+'C III-V'!F87 ->  | G122: =+H$31 -> 1.1 | H122: =+J$31 -> 1 | I122: =+J$31 -> 1 | J122: sloj 1 | K122: =+F103 -> 17.91192098 | L122: =IF(E24>0,0,H20) -> 0 | M122: =$N$120+K122-$L$119 -> 105.902915 | P122: =+P121-H$72*COS($E$39*PI()/180) -> -20 | Q122: =+Q121-H$72*SIN($E$39*PI()/180) -> 0 | R122: =IF(E56=">100",R120,R121+(S119-S120)/$F$56) ->  | S122: =+(Q124*COS($E$39*PI()/180)) -> 48.29629131 | T122: VI= | U122: =+Q124*SIN($E$39*PI()/180) -> 12.94095226
A123: Ehw ........................... | B123: =IF(J53=0,0,10*(E41*E41)/2) -> 1.8 | C123: =IF(B123=0,0,(J53/3-'C III-V'!C15)) -> -0.3 | D123: =IF(C123<0,0,+B123*C123) -> 0 | G123: =+H$31 -> 1.1 | H123: =+I$31 -> 1.35 | I123: =+I$31 -> 1.35 | J123: sloj 2 | K123: =+F104 -> 14.57076836 | L123: =+D18 -> 6 | M123: =$N$120+K123-$L$119 -> 102.5617624 | Q123: Ukupno komada: | R123: =SUM(T96:T120) -> 8 | S123: =+(Q125*COS($E$39*PI()/180)) -> 48.29629131 | T123: VII= | U123: =+Q125*SIN($E$39*PI()/180) -> 12.94095226
A124: EPrometno .................... | B124: ='HT III-XX'!G40 ->  | C124: =IF(B124<0.001,0,+'HT III-XX'!G41-(E52-E51)) ->  | G124: =+H$33 -> 1.5 | H124: =+J$33 -> 1.3 | I124: =+J$33 -> 1.3 | J124: sloj 3 | K124: =+F105 -> 16.23430213 | L124: =+E18 -> 4 | M124: =$O$120+K124-$L$119 -> 100.2252962 | P124: SI= | Q124: =+D75 -> 50 | R124: HI= | S124: =+(Q126*COS($E$39*PI()/180)) -> 0 | T124: VIII= | U124: =+Q126*SIN($E$39*PI()/180) -> 0
A125: EPTočkasto .................... | B125: ='HT III-XX'!G80 ->  | C125: =IF(B125<0.001,0,+'HT III-XX'!G81-(E52-E51)) ->  | G125: =+H$31 -> 1.1 | H125: =+J$31 -> 1 | I125: =+J$31 -> 1 | K125: =+SIN(M122*PI()/180)*SIN(M122*PI()/180) -> 0.9249195345 | L125: =+SIN(M123*PI()/180)*SIN(M123*PI()/180) -> 0.9526972763 | M125: =+SIN(M124*PI()/180)*SIN(M124*PI()/180) -> 0.968486917 | P125: SII= | Q125: =+E75 -> 50 | R125: HII= | S125: =+(Q129*COS($E$39*PI()/180)) -> 0 | T125: VIV= | U125: =+Q129*SIN($E$39*PI()/180) -> 0
A126: EPLinijsko ..................... | B126: ='HT III-XX'!G120 ->  | C126: =IF(B126<0.001,0,+'HT III-XX'!G121-(E52-E51)) ->  | F126: =+C126+($E$52-$E$51) ->  | G126: =+H$31 -> 1.1 | H126: =+J$31 -> 1 | I126: =+J$31 -> 1 | K126: =+COS($L$119*PI()/180)*SIN($N$120*PI()/180)*SIN($N$120*PI()/180)*SIN(($N$120-$L$119)*PI()/180) -> 0.9890579045 | L126: =+COS($L$119*PI()/180)*SIN($N$120*PI()/180)*SIN($N$120*PI()/180)*SIN(($N$120-$L$119)*PI()/180) -> 0.9890579045 | M126: =+COS($L$119*PI()/180)*SIN($O$120*PI()/180)*SIN($O$120*PI()/180)*SIN(($O$120-$L$119)*PI()/180) -> 0.9890410959 | P126: SIII= | Q126: =+F75 ->  | R126: HIII= | S126: =+(Q130*COS($E$39*PI()/180)) -> 0 | T126: VV= | U126: =+Q130*SIN($E$39*PI()/180) -> 0
A127: EQTemelj ili vozilo..................... | B127: =+'Sile i krakovi'!T109 ->  | C127: =IF(B127=0,0,+'Sile i krakovi'!T126-(E52-E51)) ->  | G127: =IF(D31="VV=",H33,H31) -> 1.1 | H127: =IF(D31="VV=",J33,J31) -> 1 | I127: =IF(D31="VV=",J33,J31) -> 1
A128: Hsidro ......................... | B128: =K39*COS(E39*PI()/180) -> 96.59258273 | C128: =IF(B128<=0.00001,0,'Sile i krakovi'!E131) -> 3.499999996 | D128: =+B128*C128 -> 338.0740392 | G128: =+H32 -> 0.9 | H128: =+$J$32 -> 1 | I128: =+J32 -> 1 | J128: =2+$E$61-C148 -> 
A129: Hvoda ispred zida............... | B129: ='Sile i krakovi'!$P$109 -> 3.2 | C129: =IF(B129=0,0,'Sile i krakovi'!E111) -> -0.2333333333 | D129: =+B129*C129 -> -0.7466666667 | G129: =+H34 -> 0 | H129: =+$I$34 -> 0 | I129: =+I34 -> 0 | K129: =IF(K122-L122-L119<=0,0,1+SQRT((SIN(K122*PI()/180)*SIN((K122-L122-$L$119)*PI()/180)/SIN(($N$120-$L$119)*PI()/180)*SIN(($N$120+L122)*PI()/180)))) -> 1.25163218 | L129: =IF(K123-L123-L119<=0,0,SQRT((SIN(K123*PI()/180)*SIN((K123-L123-$L$119)*PI()/180)/SIN(($N$120-$L$119)*PI()/180)*SIN(($N$120+L123)*PI()/180)))) -> 0.1052638539 | M129: =IF(K124-L124-L119<=0,0,SQRT((SIN(K124*PI()/180)*SIN((K124-L124-$L$119)*PI()/180)/SIN(($O$120-$L$119)*PI()/180)*SIN(($O$120+L124)*PI()/180)))) -> 0.1743814329 | N129: =+E52+H76 -> 1.500101 | O129: =2+E61+0.2 -> 5.1000022 | P129: SIV= | Q129: =+G75 ->  | R129: HIV= | S129: =+S122+S123+S124+S125+S126 -> 96.59258263 | T129: SV= | U129: =+U122+U123+U124+U125+U126 -> 25.88190451
A130: HPotres ........................ | B130: =+E43 ->  | C130: =IF(B130=0,0,'C III-V'!Y113-'C III-V'!C15) ->  | F130: =+IF($D$83="",'C III-V'!$AC$135,'C III-V'!$AK$113) ->  | G130: 1 | H130: 1 | I130: 1 | K130: =+K129*K129 -> 1.566583114 | L130: =+(1+L129)*(1+L129) -> 1.221608187 | M130: =+(1+M129)*(1+M129) -> 1.37917175 | N130: =+N129-TAN(H22*PI()/180)*2 -> 1.500101 | O130: =+O129+2 -> 7.1000022 | P130: SV= | Q130: =+H74 -> 0 | R130: HV= | S130: =+S122*('C III-V'!B15-P100) ->  | T130: MMVI= | U130: =+U122*(Q100-(E52-E51)) -> 58.23428515
K131: K1 | L131: K2 | M131: K3 | P131: Rsidra= | Q131: =+Q124+Q125+Q126+Q129+Q130 -> 100 | R131: SH= | S131: =+S123*('C III-V'!B15-P105) ->  | T131: MVII= | U131: =+U123*(Q105-(E52-E51)) -> 32.35238064
A132: Vertikalne sile | C132: Krakovi do točke prevrtanja"A" | D132: Momenti od vert. sila na točku A | G132: PREVRTANJE | H132: KLIZANJE | I132: SLOM TEMELJNOG TLA | K132: =IF(L122<=K122-L119,K125/K126/K130,K125/K126) -> 0.5969374041 | L132: =+IF(L123<=K123-L119,L125/L126/L130,L125/L126) -> 0.7884992252 | M132: =IF(L124<=K124-L119,M125/M126/M130,M125/M126) -> 0.7100044457 | R132: MHI= | S132: =+S124*('C III-V'!B15-P110) -> 0 | T132: MVIII= | U132: =+U124*(Q110-(E52-E51)) -> 0
H133: KLIZANJE | R133: MHII= | S133: =+S125*('C III-V'!B15-P115) -> 0 | T133: MVIV= | U133: =+U125*(Q115-(E52-E51)) -> 0
A134: (kN/m') | C134: (m) | D134: (kNm/m') | G134: EQU problem | H134: GEO problem | I134: GEO problem | R134: MHIII= | S134: =+S126*('C III-V'!B15-P120) -> 0 | T134: MVV= | U134: =+U126*(Q120-(E52-E51)) -> 0
A135: Gtem .......................... | B135: =+Kontrafore!AO36 ->  | C135: =2+E59+E55+E58-Kontrafore!AO33 ->  | D135: =B135*C135 ->  | G135: =+H$32 -> 0.9 | H135: =+$I$32 -> 1 | I135: =+Dopušteno!X10 ->  | R135: MHIV= | S135: =+S130+S131+S132+S133+S134 ->  | T135: SVV= | U135: =+U130+U131+U132+U133+U134 -> 90.58666579
A136: Gzid+konz ..................... | B136: =+'C III-V'!D61 ->  | C136: =2+E60+E61-'C III-V'!D59 ->  | G136: 0.9 | H136: 1 | I136: =+Dopušteno!X11 ->  | R136: MHV= | S136: =IF(S129=0,0,+S135/S129) ->  | T136: krak x= | U136: =IF(U129=0,0,U135/U129) -> 3.5
A137: Grebra kontrafora ............ | B137: =IF(A82="",0,Kontrafore!AC17) ->  | C137: =IF(B137=0,0,'C III-V'!$U$2-Kontrafore!AC13) ->  | G137: 0.9 | H137: 1 | I137: =+Dopušteno!X12 ->  | R137: SMH=
A138: Gnasip na konzoli ............ | B138: ='C III-V'!J61 ->  | C138: =IF(B138=0,0,2+E61-'C III-V'!J59) ->  | G138: 0.9 | H138: 1 | I138: =+Dopušteno!X13 ->  | R138: krak y=
A139: Gnasipa iza zida ............. | B139: =+Kontrafore!N32 ->  | C139: =IF(B139=0,0,+'C III-V'!$U$2-Kontrafore!N33) ->  | G139: 0.9 | H139: 1 | I139: =+Dopušteno!X14 ->  | J139: =2+$E$61-C138 -> 
A140: Gnasipa ispred zida ............. | B140: =+Kontrafore!W11 ->  | C140: =IF(B140=0,0,+Kontrafore!W12) ->  | G140: 0.9 | H140: 1 | I140: =+Dopušteno!X15 -> 
A141: PPrometno .................... | B141: =+'Rasprostiranje vertikalnog opt'!R28 ->  | C141: =IF(B141=0,0,+'Rasprostiranje vertikalnog opt'!S29) ->  | G141: =+H34 -> 0 | H141: =+$J$34 -> 0 | I141: =+Dopušteno!X16 -> 
A142: PTočkasto ..................... | B142: =IF('Unos podataka'!$O$48="",+'Rasprostiranje vertikalnog opt'!R46,0) ->  | C142: =IF(B142<=0.00001,0,+'Rasprostiranje vertikalnog opt'!S47) ->  | G142: =+H32 -> 0.9 | H142: =+$J$32 -> 1 | I142: =+Dopušteno!X17 -> 
A143: PLinijsko ...................... | B143: =IF('Unos podataka'!$O$48="",IF(E35<0,E34,+'Rasprostiranje vertikalnog opt'!R37),0) ->  | C143: =IF(B143<=0.00001,0,IF(E35<0,'Unos podataka'!B103+E35,+'Rasprostiranje vertikalnog opt'!S38)) ->  | G143: =+H32 -> 0.9 | H143: =+$J$32 -> 1 | I143: =+Dopušteno!X18 -> 
A144: QTemelj ili vozilo..................... | B144: =IF(E28=0,0,+'Rasprostiranje vertikalnog opt'!R19) ->  | C144: =IF(B144=0,0,+'Rasprostiranje vertikalnog opt'!S20) ->  | G144: =IF(D31="VV=",H34,H32) -> 0.9 | H144: =IF(D31="VV=",$J$34,$J$32) -> 1 | I144: =+Dopušteno!X19 -> 
A145: VSidro ......................... | B145: =+K39*SIN(E39*PI()/180) -> 25.88190454 | C145: =IF(B145=0,0,IF(D71="",0,+'Sile i krakovi'!J132)) ->  | G145: =+H32 -> 0.9 | H145: =+$J$32 -> 1 | I145: =+Dopušteno!X20 -> 
A146: Ev1 ........................... | B146: =D110 ->  | C146: =IF(B146<0.0001,0,2+'Unos podataka'!G49+E61-'C III-V'!A93) ->  | G146: =+H32 -> 0.9 | H146: =+$J$32 -> 1 | I146: =+Dopušteno!X21 -> 
A147: Ev2 .......................... | B147: =D111 ->  | C147: =IF(B147<0.0001,0,2+'Unos podataka'!G49+E61-'C III-V'!C93) ->  | G147: =+H32 -> 0.9 | H147: =+$J$32 -> 1 | I147: =+Dopušteno!X22 -> 
A148: Ev3 .......................... | B148: =D112 ->  | C148: =IF('Unos podataka'!AB1="",E61,IF(B148<=0.0001,0,2+E61+'Unos podataka'!AB3-'C III-V'!E93)) ->  | G148: =+H32 -> 0.9 | H148: =+$J$32 -> 1 | I148: =+IF('Dopušteno Vs+'!$H$84>'Dopušteno Vs-'!$H$84,$J$32,$J$31) -> 1
A149: Vpotres........................ | B149: 0 | C149: =IF(B149>=0,0,+'C III-V'!Y139) -> 0 | D149: =IF(B149<0,-B149*C149*I149,0) -> 0 | G149: 1 | H149: 1 | I149: 1
A150: Uzgon …....................... | B150: =-'Unos podataka'!$R$142*10 ->  | C150: =IF(B150=0,0,+'Unos podataka'!R139-'Unos podataka'!R143) ->  | D150: =+B150*C150 ->  | G150: =+H33 -> 1.5 | H150: =+I33 -> 1.5 | I150: 0
A152: SUMA FAKTORIZIRANIH SILA I MOMENATA ZA KONTROLE GRANIČNIH STANJA NOSIVOSTI ZIDA
A154: SUMA FAKTORIZIRANIH MOMENATA ZA KONTROLU SLOMA PREVRTANJEM
A155: MEd,dst = | B155: =+D120*G120+D121*G121+D122*G122+D123*G123+D124*G124+D125*G125+D126*G126+D127*G127+D130*G130-D149*G149-D150*G150 ->  | C155: kNm/m'
A156: MEd,stb= | B156: =-(+D135*G135+D136*G136+D137*G137+D138*G138+D139*G139+D140*G140+D141*G141+D142*G142+D143*G143+D144*G144+D145*G145+D146*G146+D147*G147+D148*G148+D128*G128+D129*G129) ->  | C156: kNm/m'
A158: SUMA FAKTORIZIRANIH SILA ZA KONTROLU SLOMA KLIZANJEM TEMELJA
A159: Σ(Hi x γi ) = | B159: =+B120*H120+B121*H121+B122*H122+B123*H123+B124*H124+B125*H125+B126*H126+B127*H127+B130*H130-B128*H128-B129*H129 ->  | C159: kN/m' | D159: Rezultanta sila .................................. | G159: R = | H159: =SQRT(B159^2+B160^2) ->  | I159: kN/m'
A160: Σ(Vi x γi ) = | B160: =+B135*H135+B136*H136+B137*H137+B138*H138+B139*H139+B140*H140+B141*H141+B142*H142+B143*H143+B144*H144+B145*H145+B146*H146+B147*H147+B148*H148+B149*H149+B150*H150 ->  | C160: kN/m' | D160: sila okomita na temelj ....................... | G160: =+IF(H162=0,"Rv=","RN=") -> RN= | H160: =H159*COS((H163-H162)*PI()/180) ->  | I160: kN/m'
D161: sila uzduž temelja ............................. | G161: =IF(H162=0," RH="," RT=") -> RT= | H161: =+H159*SIN((H163-H162)*PI()/180) ->  | I161: kN/m'
D162: nagib temelja .................................... | G162: b = | H162: =IF('Unos podataka'!AB1="",ATAN('C III-V'!C15/(E61))*180/PI(),ATAN('C III-V'!C15/(E61+'Unos podataka'!AB3))*180/PI()) -> 7.305755457 | I162: °
D163: otklon rezultante od vertikale....... | G163: a = | H163: =ATAN(B159/B160)*180/PI() ->  | I163: °
A165: SUMA FAKTORIZIRANIH SILA I MOMENATA ZA KONTROLU SLOMA GUBITKOM NOSIVOSTI TLA ISPOD TEMELJA
A167: Σ(Hi x γi ) = | B167: =+B120*I120+B121*I121+B122*I122+B123*I123+B124*I124+B125*I125+B126*I126+B127*I127+B130*I130-B128*I128-B129*I129 ->  | C167: kN/m' | D167: MEd,H,A = | E167: =+D120*I120+D121*I121+D122*I122+D123*I123+D124*I124+D125*I125+D126*I126+D127*I127-D128*I128-D129*I129+D130*I130 ->  | G167: yA = | H167: =E167/B167 -> 
A168: Σ(Vi x γi ) = | B168: =+Dopušteno!V26 ->  | C168: kN/m' | D168: MEd,V,A= | E168: =+Dopušteno!V27 ->  | G168: xA = | H168: =E168/B168 -> 
A169: Rezultanta sila R = | B169: =+SQRT(B167^2+B168^2) ->  | C169: kN/m'
A170: Otklon rezultante od vertikale ............... | C170: a = | D170: =ATAN(B167/B168)*180/PI() ->  | E170: °
A171: Moment oko osi temelja ........................ | C171: Ms = | D171: =+Dopušteno!V28 ->  | E171: kNm/m'
I172: m | AS172: crtanje zida
D173: KONTROLE GRANIČNIH STANJA NOSIVOSTI ZIDA | AS173: =+'C III-V'!B2 -> 2 | AT173: =+'C III-V'!C2 -> 0.1282051512
AS174: =+'C III-V'!B3 -> 2 | AT174: =+'C III-V'!C3 -> 1.2
B175: KONTROLA SLOMA PREVRTANJEM | E175: KONTROLA SLOMA KLIZANJEM TEMELJA | AS175: =+'C III-V'!B4 -> 3.4000011 | AT175: =+'C III-V'!C4 -> 1.2
A176: MEd,stb/gR= | B176: =+(D135*G135+D136*G136+D137*G137+D138*G138+D139*G139+D140*G140+D141*G141+D142*G142+D143*G143+D144*G144+D145*G145+D146*G146+D147*G147+D148*G148+D128*G128+D129*G129)/M36 ->  | C176: kNm/m' | E176: Rd=RN | F176: * tgd4/gRh= | G176: =+H160*I176/M37 ->  | H176: kN/m' | I176: =(TAN(F106*PI()/180)) -> 0.259935757 | AS176: =+'C III-V'!B10 ->  | AT176: =+'C III-V'!C10 -> A
A177: MEd,dst = | B177: =+D120*G120+D121*G121+D122*G122+D123*G123+D124*G124+D125*G125+D126*G126+D127*G127+D130*G130+D149*G149 ->  | C177: kNm/m' | E177: =+H160*I176/M37 ->  | F177: Hd=RT= | G177: =+H161 ->  | H177: kN/m' | I177: =IF(E177/I178<0,">10",E177/I178) ->  | J177: =+E177/I178 ->  | AS177: =+'C III-V'!B11 -> 4.2000011 | AT177: =+'C III-V'!C11 -> 1.2
A178: MEd,dst | B178: =+IF(B176>B177,"≤",">") ->  | C178: MEd,stb | F178: Hd | G178: =+IF(G176>G177,"≤",">") ->  | H178: Rd | I178: =H161 ->  | AS178: =+'C III-V'!B5 ->  | AT178: =+'C III-V'!C5 -> 3.14
A179: Iskorištenost: | B179: =+B177/B176 ->  | C179: =+IF(A177<A176,"(Zadovoljava) ","(NE Zadovoljava)") -> (Zadovoljava) | F179: Iskorištenost: | G179: =+G177/G176 ->  | H179: =+IF(E177>I178,"(Zadovoljava)","(Ne zadovoljava)") ->  | AT179: =+'C III-V'!B6 ->  | AU179: =+'C III-V'!C6 -> 3.14
AS180: =+'C III-V'!B14 -> 4.9000022 | AT180: =+'C III-V'!C14 -> 1.2
D181: KONTROLA SLOMA GUBITKOM NOSIVOSTI TLA ISPOD TEMELJA | AS181: =+'C III-V'!B15 -> 4.9000022 | AT181: =+'C III-V'!C15 -> 0.5
C182: Kontaktna naprezanje: temelj-tlo | AS182: =+'C III-V'!B16 -> 2 | AT182: =+'C III-V'!C16 -> 0.1282051512
B183: =+IF(A82=""," Temelj", " Temelj s kontraforama" ) -> Temelj s kontraforama | F183: Rotacija temelja i otklon vrha zida | AS183: =+'C III-V'!B25 ->  | AT183: =+'C III-V'!C25 -> 
B185: B = | C185: =+MT!G13 -> 3.1500022 | D185: m | F185: a ≈ | G185: =IF(Slijeganje!M76<=0,0,Slijeganje!M76) ->  | H185: ° | I185: =IF(E51=E52,"",+E61/COS(H162*PI()/180)) -> 2.923738059 | J185: m | AS185: ARM I-I
B186: W = | C186: =+MT!G14 -> 1.65375231 | D186: m3 | F186: D ≈ | G186: =IF(G185>0,+Slijeganje!AB31,0) ->  | H186: cm | I186: =IF(E51=E52,"",+(I185^2)/6) -> 1.424707373 | AS186: =+AS188 -> 1.95 | AT186: =+AT194 -> 0.07820515122
AS187: =+(AS186+AS188)/2 -> 1.95 | AT187: =+(AT186+AT188)/2 -> 0.6641025756
C188: visine temelja u presjeku | F188: naprezanja temelj-tlo | J188: Mt | AS188: =+AS174-A260 -> 1.95 | AT188: =+AT174+Q52 -> 1.25
H189: =+H190 -> 4.9000011 | I189: 0 | J189: =((F192-F191)*E55*E5*E55/3)/(E55*F191+E55*(F192-F191)*0.5*2/3) ->  | AS189: =+AS192 -> 2.05 | AT189: =+AT192 -> 0.1782051512
B190: hA= | C190: =E51 -> 0.7 | D190: m | E190: sA = | F190: =$B$168/$C$185+$D$171/$C$186 ->  | G190: kN/m2 | H190: =+Kontrafore!P29 -> 4.9000011 | I190: =-F190/100 ->  | J190: =+E62*C192*(F46+0.000001)*(F46+0.000001)/2 -> 21.86160484
B191: dl-l= | C191: =+E52-(F46+Kontrafore!E3+E55)*(E52-E51)/(E61+Kontrafore!E3) -> 0.7897436801 | D191: m | E191: s l-l= | F191: =+Kontrafore!C50 ->  | G191: kN/m2 | H191: =+Kontrafore!P28 -> 4.2000001 | J191: =+E62*(C193-C192)*(F46+0.000001)*(F46+0.000001)/3 -> 2.948633332 | AS191: ARM II-II
B192: dll-ll= | C192: =E52-(F46+Kontrafore!E3)*(E52-E51)/(E61+Kontrafore!E3) -> 0.8923077249 | D192: m | E192: sll-ll= | F192: =+Kontrafore!C49 ->  | G192: kN/m2 | H192: =+Kontrafore!P27 -> 3.4000001 | J192: =SUM(J190:J191) -> 24.81023818 | AS192: =+AS173+A287 -> 2.05 | AT192: =+AT173+A287 -> 0.1782051512
B193: hB= | C193: =E52-D83*SIN(H162*PI()/180) -> 1.072835755 | D193: m | E193: sB = | F193: =IF('Unos podataka'!O48="",+Kontrafore!C48,$B$168/$C$185-$D$171/$C$186) ->  | G193: kN/m2 | H193: =+Kontrafore!P26 -> 2 | AS193: =+(AS192+AS194)/2 -> 2.05 | AT193: =+(AT192+AT194)/2 -> 0.1282051512
B194: =+IF(D83="","","hҝ =") -> hҝ = | C194: =IF(D83="","",+E52-'Unos podataka'!J46) -> 1.103846105 | D194: =+IF(D83="","","m") -> m | E194: =+IF(A83="","","sk =") -> sk = | F194: =IF(A83="","",$B$168/$C$185-$D$171/$C$186) ->  | G194: =+IF('Unos podataka'!AB1="","","kN/m²") -> kN/m² | H194: =2+E61-C185+E60 -> 1.75 | AS194: =+AS192 -> 2.05 | AT194: =+AT182-A287 -> 0.07820515122
B195: =+IF(D83="","","h₀ =") -> h₀ = | C195: =+IF(D83="","",E52) -> 1.2 | D195: =+IF(D83="","","m") -> m | E195: =+IF(A84="","","so =") -> so = | F195: =IF(A83="","",+Kontrafore!C46) ->  | G195: =+IF('Unos podataka'!AB1="","","kN/m²") -> kN/m² | H195: =2-Kontrafore!E3-E60 -> 1 | AS195: =+AS175-A287 -> 3.3500011 | AT195: =+AT194 -> 0.07820515122
A196: PRORAČUN PROJEKTNE OTPORNOSTI TLA | H196: =+H195 -> 1 | I196: 0 | AS196: Ankeri
AS197: =+B548+2 ->  | AT197: =+C548 -> 
A198: Proračun projektne otpornosti tla provodi se prema EC7, prema izrazu: | AS198: =+B550+2 ->  | AT198: =+C550 -> 1.692307725
B199: qa=R/A'= c' *Nc*bc*sc*ic+q' *Nq*bq*sq*iq+0,5*g' *B' *Ng*bg*sg*ig | AS199: =+B547+2 ->  | AT199: =+C547 -> 
A201: gdje je:
A202: g ............................... | B202: prostorna efektivna težina
A203: B' ............................ | B203: širina temelja (efektivna)
A204: Nc, Nq, Ng .................. | B204: faktori nosivosti | AQ204: PRESJEK I-I
A205: ic, iq, ig ..................... | B205: faktori nagiba opterećenja | AQ205: =+'C III-V'!W2 ->  | AS205: =+BQ601 -> 0
A206: sc,sq, sg ..................... | B206: faktori oblika temelja | AQ206: =+'C III-V'!W3 ->  | AS206: 0 | AT206: =+BR577 ->  | AU206: =+BS575 -> 0
A207: bc, bq, bg .................. | B207: faktori nagiba dna temelja | AQ207: PRESJEK II-II | AS207: 0 | AU207: =+BS576 -> 0
... 495 more rows

Sheet Sile i krakovi (hidden)
A1: =+'C III-V'!A1 -> Točke | B1: =+'C III-V'!B1 -> ZID I TEMELJ | D1: =+A1 -> Točke | E1: TEMELJ
B2: =IF('Analiza i dimenzioniranje'!D83="",+B7,2-'Analiza i dimenzioniranje'!D83) -> 1 | C2: 0 | D2: =+A7 -> 1 | E2: 2 | F2: 0.1282051512
B3: =+B2 -> 1 | C3: =IF('Analiza i dimenzioniranje'!D83="",0,+F3) -> 1.2 | D3: 2 | E3: 2 | F3: 1.2
B4: =+B7 -> 2 | C4: =IF('Analiza i dimenzioniranje'!$D$83=0,'Sile i krakovi'!B7,'Unos podataka'!J43) -> 1.2 | D4: 3 | E4: 3.4000011 | F4: 1.2
B5: =+B4 -> 2 | C5: =+C7 -> 0.1282051512 | D5: =+A10 -> 4 | E5: =+E4 -> 3.4000011 | F5: =+F4-'Analiza i dimenzioniranje'!$C$192 -> 0.3076922751
B6: =+B2 -> 1 | C6: 0 | D6: 5 | E6: =+E5 -> 3.4000011 | F6: =+F7 -> 1.2
A7: =+'C III-V'!A2 -> 1 | B7: =+'C III-V'!B2 -> 2 | C7: =+'C III-V'!C2 -> 0.1282051512 | D7: 6 | E7: =+B16 -> 4.2000011 | F7: 1.2
A8: =+'C III-V'!A3 -> 2 | B8: =+'C III-V'!B3 -> 2 | C8: =+'C III-V'!C3 -> 1.2 | D8: 7 | E8: 4.2000011 | F8: 1.2
A9: =+'C III-V'!A4 -> 3 | B9: =+'C III-V'!B4 -> 3.4000011 | C9: =+'C III-V'!C4 -> 1.2 | D9: 8 | E9: 4.2000011 | F9: 1.2
A10: =+'C III-V'!A5 -> 4 | B10: =+'C III-V'!B5 ->  | C10: =+'C III-V'!C5 -> 3.14 | D10: 9 | E10: 4.9000022 | F10: 1.2
A11: =+'C III-V'!A6 -> 5 | B11: =+'C III-V'!B6 ->  | C11: =+'C III-V'!C6 -> 3.14 | D11: 10 | E11: 4.9000022 | F11: 0.5
A12: =+'C III-V'!A7 -> 6 | B12: =+'C III-V'!B7 ->  | C12: =+'C III-V'!C7 -> 3.44 | D12: 11 | E12: 2 | F12: 0.1282051512
A13: =+'C III-V'!A8 -> 7 | B13: =+'C III-V'!B8 ->  | C13: =+'C III-V'!C8 -> 3.44
A14: =+'C III-V'!A9 -> 8 | B14: =+'C III-V'!B9 ->  | C14: =+'C III-V'!C9 -> A
A15: =+'C III-V'!A10 -> 9 | B15: =+'C III-V'!B10 ->  | C15: =+'C III-V'!C10 -> A | D15: Temelj kontrafore
A16: =+'C III-V'!A11 -> 10 | B16: =+'C III-V'!B11 -> 4.2000011 | C16: =+'C III-V'!C11 -> 1.2 | D16: ='Unos podataka'!I49 -> 1.500001 | E16: ='Unos podataka'!J49 -> 1.2
A17: =+'C III-V'!A12 -> 11 | B17: =+'C III-V'!B12 -> 4.2000011 | C17: =+'C III-V'!C12 -> 1.2 | D17: ='Unos podataka'!I50 -> 1.500001 | E17: ='Unos podataka'!J50 -> 1.7
A18: =+'C III-V'!A13 -> 12 | B18: =+'C III-V'!B13 -> 4.2000011 | C18: =+'C III-V'!C13 -> 1.2 | D18: ='Unos podataka'!I51 ->  | E18: ='Unos podataka'!J51 -> 
A19: =+'C III-V'!A14 -> 13 | B19: =+'C III-V'!B14 -> 4.9000022 | C19: =+'C III-V'!C14 -> 1.2 | D19: ='Unos podataka'!I52 ->  | E19: ='Unos podataka'!J52 -> 
A20: =+'C III-V'!A15 -> 14 | B20: =+'C III-V'!B15 -> 4.9000022 | C20: =+'C III-V'!C15 -> 0.5 | D20: ='Unos podataka'!I53 -> 3.4000001 | E20: ='Unos podataka'!J53 -> 1.2
A21: =+'C III-V'!A16 -> 15 | B21: =+'C III-V'!B16 -> 2 | C21: =+'C III-V'!C16 -> 0.1282051512 | D21: ='Unos podataka'!I54 -> 1.500001 | E21: ='Unos podataka'!J54 -> 1.2
B23: Naprezanja | D23: Beton do profila II-II
A24: 1 | B24: =+B37 -> 1 | C24: =+C37 ->  | D24: oznaka | E24: x | F24: y
A25: 2 | B25: =+B26 -> 4.9000011 | C25: 0 | D25: 1 | E25: =+Y197 -> 1.75 | F25: 0.09615389546
A26: 3 | B26: =+'Analiza i dimenzioniranje'!H190 -> 4.9000011 | C26: =-'Analiza i dimenzioniranje'!F190/100 ->  | D26: 2 | E26: 1.75
A27: 4 | B27: =+'Analiza i dimenzioniranje'!H191 -> 4.2000001 | C27: =-'Analiza i dimenzioniranje'!F191/100 ->  | D27: 3 | E27: 3.4000001
A28: 5 | B28: =+B27 -> 4.2000001 | C28: 0 | D28: 4 | E28: 3.4000001
A29: 6 | B29: =+B28 -> 4.2000001 | C29: =-'Analiza i dimenzioniranje'!F191/100 ->  | D29: 5 | E29: 1.75 | F29: 0.09615389546
A30: 7 | B30: =+'Analiza i dimenzioniranje'!H192 -> 3.4000001 | C30: ='Analiza i dimenzioniranje'!I192 ->  | D30: 6 | E30: =+Y188 -> sredina dole | F30: =+Z188 -> 0
A31: 8 | B31: =+B30 -> 3.4000001 | C31: 0
A32: 9 | B32: =+B31 -> 3.4000001 | C32: ='Analiza i dimenzioniranje'!I192 ->  | D32: Naprezanja do profila II-II
A33: 10 | B33: =+'Analiza i dimenzioniranje'!H193 -> 2 | C33: ='Analiza i dimenzioniranje'!I193 ->  | D33: oznaka | E33: x | F33: y
A34: 11 | B34: =+B33 -> 2 | C34: 0 | D34: 1 | E34: =+B31 -> 3.4000001 | F34: =+C31 -> 0
A35: 12 | B35: =+B33 -> 2 | C35: ='Analiza i dimenzioniranje'!I193 ->  | D35: 2 | E35: =+B30 -> 3.4000001 | F35: =+C30 -> 
A36: 13 | B36: =+'Analiza i dimenzioniranje'!H194 -> 1.75 | C36: ='Analiza i dimenzioniranje'!I194 ->  | D36: 3 | E36: =+B33 -> 2 | F36: =+C33 -> 
A37: 14 | B37: =+'Analiza i dimenzioniranje'!H195 -> 1 | C37: ='Analiza i dimenzioniranje'!I195 ->  | D37: 4 | E37: =IF('Analiza i dimenzioniranje'!$D$83="",'Sile i krakovi'!E36,B36) -> 1.75 | F37: =+C36 -> 
D38: 5 | E38: =+IF('Analiza i dimenzioniranje'!$D$83="",'Sile i krakovi'!B34,B37) -> 1 | F38: =+C37 -> 
D39: 6 | E39: =+E34 -> 3.4000001 | F39: =+F34 -> 0
A40: =+D1 -> Točke | B40: TEMELJ | D40: Beton ispod zida
A41: 1 | B41: =+E2 -> 2 | C41: =+F2 -> 0.1282051512 | D41: oznaka | E41: x | F41: y
A42: 2 | B42: 2 | C42: 1.2 | D42: 1 | E42: =+B44 -> 3.4000011 | F42: 0.3076922751
A43: 3 | B43: 3.4000011 | C43: 1.2 | D43: 2 | E43: 3.4000011 | F43: 1.2
A44: 4 | B44: 3.4000011 | C44: 0.3076922751 | D44: 3 | E44: 4.2000011 | F44: 1.2
A45: 5 | B45: 3.4000011 | C45: 1.2 | D45: 4 | E45: =+E44 -> 4.2000011 | F45: =+F44-'Analiza i dimenzioniranje'!$C$191 -> 0.4102563199
A46: 6 | B46: 4.2000011 | C46: 1.2 | D46: 5 | E46: =+E42 -> 3.4000011 | F46: =+F42 -> 0.3076922751
A47: 7 | B47: 4.2000011 | C47: 1.2 | D47: 6 | E47: =+E42 -> 3.4000011 | F47: =+F42 -> 0.3076922751
A48: 8 | B48: 4.2000011 | C48: 1.2
A49: 9 | B49: 4.9000022 | C49: 1.2 | D49: Naponi ispod zida
A50: 10 | B50: 4.9000022 | C50: 0.5 | D50: oznaka | E50: x | F50: y
A51: 11 | B51: 2 | C51: 0.1282051512 | D51: 1 | E51: =+E42 -> 3.4000011 | F51: 0
D52: 2 | E52: =+E44 -> 4.2000011 | F52: 0
A53: =+A40 -> Točke | B53: TEMELJ | D53: 3 | E53: =+E52 -> 4.2000011 | F53: =+'Analiza i dimenzioniranje'!$I$192 -> 
A54: 1 | B54: =+B41 -> 2 | C54: 0.1282051512 | D54: 4 | E54: =+E51 -> 3.4000011 | F54: =+'Analiza i dimenzioniranje'!$I$191 -> 
A55: 2 | B55: 2 | C55: 1.2 | D55: 5 | E55: =+E54 -> 3.4000011 | F55: =+L28 -> 0
A56: 3 | B56: 3.4000011 | C56: 1.2
A57: 4 | B57: 3.4000011 | C57: 0.3076922751
A58: 5 | B58: =+E5 -> 3.4000011 | C58: =+C45 -> 1.2 | D58: Beton do I-I
A59: 6 | B59: =+B46 -> 4.2000011 | C59: 1.2 | D59: oznaka | E59: x | F59: y
A60: 7 | B60: 4.2000011 | C60: 1.2 | D60: 1 | E60: =+E45 -> 4.2000011 | F60: =+F45 -> 0.4102563199
A61: 8 | B61: 4.2000011 | C61: 1.2 | D61: 2 | E61: =+E44 -> 4.2000011 | F61: =+F44 -> 1.2
A62: 9 | B62: 4.9000022 | C62: 1.2 | D62: 3 | E62: =+B62 -> 4.9000022 | F62: =+C59 -> 1.2
A63: 10 | B63: 4.9000022 | C63: 0.5 | D63: 4 | E63: =+B63 -> 4.9000022 | F63: =+C63 -> 0.5
A64: 11 | B64: 2 | C64: 0.1282051512 | D64: 5 | E64: =+E60 -> 4.2000011 | F64: =+F60 -> 0.4102563199
D68: Naponi ispod I-I
D69: oznaka | E69: x | F69: y
D70: 1 | E70: =+E73 -> 4.2000011 | F70: 0
D71: 2 | E71: =+B62 -> 4.9000022 | F71: 0
D72: 3 | E72: =+E71 -> 4.9000022 | F72: =+'Analiza i dimenzioniranje'!$I$190 -> 
D73: 4 | E73: =+E53 -> 4.2000011 | F73: =+F54 -> 
D74: 5 | E74: =+E73 -> 4.2000011 | F74: =+L44 -> 0
A82: Jednadžba leđa zida sa horizontalnim silama
A83: x= | B83: =+B9 -> 3.4000011 | C83: =+B14 -> 
A84: Y= | B84: =+C9 -> 1.2 | C84: =+C14 -> A
A85: Y= | B85: =(C84-B84)/(C83-B83) ->  | C85: *x + | D85: =-B85*B83+B84 ->  | L85: x | M85: =2+'Poprečni presjek zida'!O26 -> 2 | N85: =2+'Poprečni presjek zida'!O21+'Poprečni presjek zida'!O24 -> 3.500001 | O85: x | P85: =2+'Poprečni presjek zida'!O21 -> 2.8 | Q85: =+P85 -> 2.8
A86: Vrijednosti X za poznati Y | C86: naprimjer za +c 115 | L86: Y | M86: 0 | N86: =+'Poprečni presjek zida'!O18-'Poprečni presjek zida'!O16 -> 0.5 | O86: Y | P86: =+'Poprečni presjek zida'!O18 -> 1.2 | Q86: =+Q85*M87+O87 -> 0.2666664889
A87: X= | B87: =+D87/$B$85-$D$85/$B$85 ->  | C87: y= | D87: 2.26 | L87: Y= | M87: =(N86-M86)/(N85-M85) -> 0.3333331111 | N87: *x + | O87: =-M87*M85+M86 -> -0.6666662222
L88: x= | M88: 4.09 | N88: y= | O88: =+M87*M88+O87 -> 0.6966662022
A89: Jednadžba osi zida sa horizontalnim silama
A90: x= | B90: =+(B83+B97)/2 -> 3.8000011 | C90: =+(C83+C97)/2 ->  | G90: Dijagrami pritiska vode ispred i iza zida s težištima
A91: Y= | B91: =+C16 -> 1.2 | C91: =+C84 -> A
A92: Y= | B92: =(C91-B91)/(C90-B90) ->  | C92: *x + | D92: =-B92*B90+B91 -> 
A93: Vrijednosti X za poznati Y | C93: naprimjer za +c 115 | R93: Ove tablice odnose se isključivo na presjeke iznad temelja (III-III do XX-XX)
A94: X= | B94: =+D94/$B$92-$D$92/$B$92 ->  | C94: y= | D94: 2.26 | R94: Visinski položaj vanjskog opterećenja temeljem | T94: =+'Analiza i dimenzioniranje'!E48+'Analiza i dimenzioniranje'!E31 -> 5 | U94: =+T94 -> 5 | V94: =+U94 -> 5 | W94: =+V94 -> 5 | X94: 5 | Y94: 5 | Z94: 5 | AA94: 5 | AB94: 5 | AC94: 5 | AD94: 5 | AE94: 5 | AF94: 5 | AG94: 5 | AH94: 5 | AI94: 5
R95: Horizontalne komponente sila sidara i tlakova | T95: PIII | U95: PVI | V95: PVII | W95: PVIII | X95: PIX | Y95: PX | Z95: P XI | AA95: P XII | AB95: P XIII | AC95: P XIV | AD95: P XV | AE95: PXVI | AF95: PXVII | AG95: PXVIII | AH95: PXIX | AI95: PXX
A96: Jednadžba lica zida sa horizontalnim silama | T96: =+T97/$B$92-$D$92/$B$92 -> 
A97: x= | B97: =+B18 -> 4.2000011 | C97: =+B15 ->  | T97: =+'Analiza i dimenzioniranje'!E52 -> 1.2 | U97: =+'Analiza i dimenzioniranje'!V44 -> 1.52 | V97: =+'Analiza i dimenzioniranje'!W44 -> 1.84 | W97: =+'Analiza i dimenzioniranje'!X44 -> 2.16 | X97: =+'Analiza i dimenzioniranje'!Y44 -> 2.48 | Y97: =+'Analiza i dimenzioniranje'!Z44 -> 2.8 | Z97: =+'Analiza i dimenzioniranje'!AA44 -> 3.14 | AA97: =+'Analiza i dimenzioniranje'!AB44 -> 3.44 | AB97: =+'Analiza i dimenzioniranje'!AC44 -> 3.76 | AC97: =+'Analiza i dimenzioniranje'!AD44 -> 4.08 | AD97: =+'Analiza i dimenzioniranje'!AE44 -> 4.4 | AE97: =+'Analiza i dimenzioniranje'!AF44 -> 4.72 | AF97: =+'Analiza i dimenzioniranje'!AG44 -> 5.04 | AG97: =+'Analiza i dimenzioniranje'!AH44 -> 5.36 | AH97: =+'Analiza i dimenzioniranje'!AI44 -> 5.68 | AI97: =+'Analiza i dimenzioniranje'!AJ44 -> 6
A98: Y= | B98: =+C18 -> 1.2 | C98: =+C15 -> A | R98: Sh1= | S98: =IF(F107="",0,-IF($F$107="","",$F$107)) -> -48.29629131 | T98: =IF($C107>T$97,$S98,0) -> -48.29629131 | U98: -48.29629131 | V98: -48.29629131 | W98: -48.29629131 | X98: -48.29629131 | Y98: -48.29629131 | Z98: -48.29629131 | AA98: -48.29629131 | AB98: -48.29629131 | AC98: -48.29629131 | AD98: -48.29629131 | AE98: -48.29629131 | AF98: 0 | AG98: 0 | AH98: 0 | AI98: 0 | AK98: VODA IZA ZIDA | AR98: VODA ISPRED ZIDA
A99: Y= | B99: =(C98-B98)/(C97-B97) ->  | C99: *x + | D99: =-B99*B97+B98 ->  | R99: Sh2= | S99: =IF(F108="",0,-IF($F$108="","",$F$108)) -> -48.29629131 | T99: =IF($C108>T$97,$S99,0) -> -48.29629131 | U99: -48.29629131 | V99: -48.29629131 | W99: -48.29629131 | X99: -48.29629131 | Y99: -48.29629131 | Z99: 0 | AA99: 0 | AB99: 0 | AC99: 0 | AD99: 0 | AE99: 0 | AF99: 0 | AG99: 0 | AH99: 0 | AI99: 0
A100: Vrijednosti X za poznati Y | C100: naprimjer za +c 115 | R100: Sh3= | U100: =IF($C109>U$97,$S100,0) -> 0 | V100: 0 | W100: 0 | X100: 0 | Y100: 0 | Z100: 0 | AA100: 0 | AB100: 0 | AC100: 0 | AD100: 0 | AE100: 0 | AF100: 0 | AG100: 0 | AH100: 0 | AI100: 0 | AK100: visina vode h= | AM100: =+'Analiza i dimenzioniranje'!E41 -> 0.6 | AN100: m | AR100: visina vode h= | AT100: =IF('Analiza i dimenzioniranje'!E42="",0,'Analiza i dimenzioniranje'!E42) -> 0.8 | AU100: m
A101: X= | B101: =+D101/B99-D99/B99 ->  | C101: za y= | D101: =+C115 ->  | R101: Sh4= | U101: =IF($C110>U$97,$S101,0) -> 0 | V101: 0 | W101: 0 | X101: 0 | Y101: 0 | Z101: 0 | AA101: 0 | AB101: 0 | AC101: 0 | AD101: 0 | AE101: 0 | AF101: 0 | AG101: 0 | AH101: 0 | AI101: 0 | AK101: Visina temelja | AM101: =+'Analiza i dimenzioniranje'!E52 -> 1.2 | AN101: m | AR101: Visina temelja | AT101: =+'Analiza i dimenzioniranje'!E52 -> 1.2 | AU101: m
I102: Voda iza zida | M102: Ukupno vode za okretanje oko "A" | R102: Voda ispred = | S102: =-N109 -> 0 | T102: =-AV114 -> 0 | U102: =-$AV115 -> 0 | V102: =-$AV116 -> 0 | W102: =-$AV117 -> 0 | X102: =-$AV118 -> 0 | Y102: =-$AV119 -> 0 | Z102: =-$AV120 -> 0 | AA102: =-$AV121 -> 0 | AB102: =-$AV122 -> 0 | AC102: =-$AV123 -> 0 | AD102: =-$AV124 -> 0 | AE102: =-$AV125 -> 0 | AF102: =-$AV126 -> 0 | AG102: =-$AV127 -> 0 | AH102: =-$AV128 -> 0 | AI102: =-$AV129 -> 0 | AK102: Visina segmenta | AM102: =+AT102 -> -0.08 | AN102: m | AR102: Visina segmenta | AT102: =+(AT100-AT101)/5 -> -0.08 | AU102: m
A103: horizontalne S I L E i vert. KRAKOVI SILA za prevrtanje oko točke A | G103: Pritisak vode iza zida iznad III-III | I103: Pritisak vode iza zida od 0,00 | K103: Pritisak vode ispred zida od 0 do III-III | M103: Pritisak vode ispred zida iznad III-III | O103: Pritisak vode ispred od 0 do Vrha vode | R103: Eh1= | S103: =+'Analiza i dimenzioniranje'!C110 ->  | T103: =+T176 ->  | AI103: 0
B104: Koordinate na licu zida | D104: X Točka A Y | F104: Sile | G104: 0 | H104: =+J115 -> 0.6 | I104: =+I113 -> 0 | J104: =+J113 -> 0 | K104: 0 | L104: 0 | M104: =+K106 -> 0 | N104: =+'Analiza i dimenzioniranje'!E52 -> 1.2 | O104: =+K104 -> 0 | P104: 0 | R104: Eh2= | S104: =+'Analiza i dimenzioniranje'!C111 ->  | T104: =+S104 ->  | U104: =+U179 ->  | AG104: 0 | AI104: 0 | AK104: Dijagram pritiska vode | AR104: Dijagram pritiska vode
B105: X | C105: Y | D105: =+B20 -> 4.9000022 | E105: =+C20 -> 0.5 | F105: kN/m' zida | G105: 0 | H105: =+'Analiza i dimenzioniranje'!E41 -> 0.6 | I105: =+I114 -> 0 | J105: =+H105 -> 0.6 | K105: 0 | L105: =+'Analiza i dimenzioniranje'!E52 -> 1.2 | M105: 0 | N105: =+'Analiza i dimenzioniranje'!F44 -> 0.8 | O105: =+K105 -> 0 | P105: =+'Analiza i dimenzioniranje'!E42 -> 0.8 | R105: Eh3= | S105: =+'Analiza i dimenzioniranje'!C112 ->  | T105: 0 | U105: 0 | V105: 0 | W105: 0 | X105: 0 | Y105: 0 | Z105: 0 | AA105: 0 | AB105: 0 | AC105: 0 | AD105: 0 | AE105: 0 | AF105: 0 | AG105: 0 | AH105: 0 | AI105: 0 | AK105: 0 | AL105: 0 | AR105: 0 | AS105: 0
A106: SS= | B106: =IF(C106=0,0,+C106/$B$99-$D$99/$B$99) ->  | C106: =+'Analiza i dimenzioniranje'!E40 -> 3.999999996 | D106: =IF(B106="","",$D$105-B106) ->  | E106: =IF(C106="","",C106-$E$105) -> 3.499999996 | F106: =+'Analiza i dimenzioniranje'!B128 -> 96.59258273 | G106: =+(H105-H104)*10 -> 0 | H106: =+H104 -> 0.6 | I106: =+G106 -> 0 | J106: =+J115 -> 0.6 | K106: =IF('Analiza i dimenzioniranje'!E42=0,0,IF('Analiza i dimenzioniranje'!E42>'Analiza i dimenzioniranje'!E52,'Sile i krakovi'!O106,+M107)) -> 0 | L106: =IF('Analiza i dimenzioniranje'!E42<'Analiza i dimenzioniranje'!E52,'Analiza i dimenzioniranje'!E42,+N104) -> 0.8 | M106: 0 | N106: =+N104 -> 1.2 | O106: =IF('Analiza i dimenzioniranje'!F44="",0,+M107) -> 0 | P106: =+L106 -> 0.8 | R106: Eprometno= | S106: =+T106 ->  | T106: =+'HT III-XX'!G40 ->  | U106: =+'HT III-XX'!I40 ->  | V106: =+'HT III-XX'!K40 ->  | W106: =+'HT III-XX'!M40 ->  | X106: =++'HT III-XX'!O40 ->  | Y106: =++'HT III-XX'!Q40 ->  | Z106: =++'HT III-XX'!S40 ->  | AA106: =++'HT III-XX'!U40 ->  | AB106: =++'HT III-XX'!W40 ->  | AC106: =++'HT III-XX'!Y40 ->  | AD106: =++'HT III-XX'!AA40 ->  | AE106: =++'HT III-XX'!AC40 ->  | AF106: =++'HT III-XX'!AE40 ->  | AG106: =++'HT III-XX'!AG40 ->  | AH106: =++'HT III-XX'!AI40 ->  | AI106: =++'HT III-XX'!AK40 ->  | AK106: 0 | AL106: =+AM100 -> 0.6 | AR106: 0 | AS106: =+AT100 -> 0.8
A107: Sh1 (za MIII-III) | B107: =IF(C107="","",+C107/$B$99-$D$99/$B$99) ->  | C107: =+'Analiza i dimenzioniranje'!D71 -> 5 | E107: 4.5 | F107: =IF('Analiza i dimenzioniranje'!D$71="","",'Analiza i dimenzioniranje'!D$75*COS('Analiza i dimenzioniranje'!$E$39*PI()/180)) -> 48.29629131 | G107: 0 | H107: =+H104 -> 0.6 | I107: =+I116 -> 6 | J107: =+J116 -> 0 | K107: =IF('Analiza i dimenzioniranje'!E42=0,0,+('Analiza i dimenzioniranje'!E42-'Sile i krakovi'!L104)*10) -> 8 | L107: 0 | M107: =IF('Analiza i dimenzioniranje'!F44="",0,-IF('Analiza i dimenzioniranje'!F44<'Analiza i dimenzioniranje'!E52,0,+(N104-N105)*10)) -> 0 | N107: =+N104 -> 1.2 | O107: =+P105*10 -> 8 | P107: 0 | R107: Etočkasto = | S107: =+T107 ->  | T107: =++'HT III-XX'!G80 ->  | U107: =++'HT III-XX'!I80 ->  | V107: =++'HT III-XX'!K80 ->  | W107: =++'HT III-XX'!M80 ->  | X107: =++'HT III-XX'!O80 ->  | Y107: =++'HT III-XX'!Q80 ->  | Z107: =++'HT III-XX'!S80 ->  | AA107: =++'HT III-XX'!U80 ->  | AB107: =++'HT III-XX'!W80 ->  | AC107: =++'HT III-XX'!Y80 ->  | AD107: =++'HT III-XX'!AA80 ->  | AE107: =++'HT III-XX'!AC80 ->  | AF107: =++'HT III-XX'!AE80 ->  | AG107: =++'HT III-XX'!AG80 ->  | AH107: =++'HT III-XX'!AI80 ->  | AI107: =++'HT III-XX'!AK80 ->  | AK107: =+AL106*10 -> 6 | AL107: 0 | AR107: =+AS106*10 -> 8 | AS107: 0
A108: Sh2 (za MIII-III) | B108: =IF(C108="","",C108/$B$99-$D$99/$B$99) ->  | C108: =+'Analiza i dimenzioniranje'!E71 -> 3 | E108: 2.5 | F108: =IF('Analiza i dimenzioniranje'!$E$71="","",'Analiza i dimenzioniranje'!E$75*COS('Analiza i dimenzioniranje'!$E$39*PI()/180)) -> 48.29629131 | G108: =+G107 -> 0 | H108: =+H104 -> 0.6 | I108: =+I117 -> 0 | J108: =+J117 -> 0 | K108: =+K104 -> 0 | L108: =+L107 -> 0 | M108: =+M107 -> 0 | N108: =+N104 -> 1.2 | O108: =+K108 -> 0 | P108: 0 | R108: Elinijsko = | S108: =+T108 ->  | T108: =++'HT III-XX'!G120 ->  | U108: =++'HT III-XX'!I120 ->  | V108: =+'HT III-XX'!K120 ->  | W108: =+'HT III-XX'!M120 ->  | X108: =+'HT III-XX'!O120 ->  | Y108: =+'HT III-XX'!Q120 ->  | Z108: =+'HT III-XX'!S120 ->  | AA108: =+'HT III-XX'!U120 ->  | AB108: =+'HT III-XX'!W120 ->  | AC108: =+'HT III-XX'!Y120 ->  | AD108: =+'HT III-XX'!AA120 ->  | AE108: =+'HT III-XX'!AC120 ->  | AF108: =+'HT III-XX'!AE120 ->  | AG108: =+'HT III-XX'!AG120 ->  | AH108: =+'HT III-XX'!AI120 ->  | AI108: =+'HT III-XX'!AK120 ->  | AK108: 0 | AL108: 0 | AR108: 0 | AS108: 0
A109: Sh3 (za MIII-III) | B109: =++IF(C109="","",C109/$B$99-$D$99/$B$99) ->  | C109: =+'Analiza i dimenzioniranje'!F71 ->  | F109: =IF('Analiza i dimenzioniranje'!$F$71="","",'Analiza i dimenzioniranje'!F$75*COS('Analiza i dimenzioniranje'!$E$39*PI()/180)) ->  | G109: A= | H109: =-IF('Analiza i dimenzioniranje'!E41=0,0,0.5*(+(G104*H105-G105*H104)+(G105*H106-G106*H105)+(G106*H107-G107*H106) +(G107*H108-G108*H107))) -> 0 | I109: A= | J109: =-IF('Analiza i dimenzioniranje'!H46=0,0,0.5*(+(I104*J105-I105*J104)+(I105*J106-I106*J105)+(I106*J107-I107*J106) +(I107*J108-I108*J107))) -> 1.8 | K109: A= | L109: =IF('Analiza i dimenzioniranje'!$E$42="",0,IF(-0.5*((K104*L105-K105*L104)+(K105*L106-K106*L105)+(K106*L107-K107*L106)+(K107*L108-K108*L107))<0,0,-0.5*((K105*L106-K106*L105)+(K106*L107-K107*L106)+(K107*L108-K108*L107)))) -> 3.2 | M109: A= | N109: =0.5*(+(M104*N105-M105*N104)+(M105*N106-M106*N105)+(M106*N107-M107*N106)+(M107*N108-M108*N107)) -> 0 | O109: A= | P109: =IF('Analiza i dimenzioniranje'!$E$42<=0,0,IF(-0.5*((O104*P105-O105*P104)+(O105*P106-O106*P105)+(O106*P107-O107*P106)+(O107*P108-O108*P107))<0,0,-0.5*((O105*P106-O106*P105)+(O106*P107-O107*P106)+(O107*P108-O108*P107)))) -> 3.2 | R109: Etemelja = | S109: =+'HT III-XX'!G160 ->  | T109: =+IF(T$94>'HT III-XX'!D$176,'HT III-XX'!G$160,IF(T$94>'HT III-XX'!D$216,'HT III-XX'!G$200,IF(T$94>'HT III-XX'!D$257,'HT III-XX'!G$240,IF(T$94>'HT III-XX'!D$296,'HT III-XX'!G$280,IF(T$94>'HT III-XX'!D$336,'HT III-XX'!G$320,IF(T$94>'HT III-XX'!D$376,'HT III-XX'!G$360,IF(T$94>'HT III-XX'!D$416,'HT III-XX'!G$400,IF(TT94>'HT III-XX'!D$456,'HT III-XX'!G$440,IF(T$94>'HT III-XX'!D$496,'HT III-XX'!G$480,IF(T$94>'HT III-XX'!D$536,'HT III-XX'!G$520,IF(T$94>'HT III-XX'!D$576,'HT III-XX'!G$560,IF(T$94>'HT III-XX'!D$616,'HT III-XX'!G$600,IF(T$94>'HT III-XX'!D$656,'HT III-XX'!G$640,IF(T$94>'HT III-XX'!D$687,'HT III-XX'!$G682,'HT III-XX'!$G$689)))))))))))))) ->  | U109: =+IF('Sile i krakovi'!U94>'HT III-XX'!D176,'HT III-XX'!I160,IF(U94>'HT III-XX'!D216,'HT III-XX'!I200,IF(U94>'HT III-XX'!D257,'HT III-XX'!I240,IF(U94>'HT III-XX'!D296,'HT III-XX'!I280,IF(U94>'HT III-XX'!D336,'HT III-XX'!I320,IF(U94>'HT III-XX'!D376,'HT III-XX'!I360,IF(U94>'HT III-XX'!D416,'HT III-XX'!I400,IF(U94>'HT III-XX'!D456,'HT III-XX'!I440,IF(U94>'HT III-XX'!D496,'HT III-XX'!I480,IF(U94>'HT III-XX'!D536,'HT III-XX'!I520,IF(U94>'HT III-XX'!D576,'HT III-XX'!I560,IF(U94>'HT III-XX'!D616,'HT III-XX'!I600,IF(U94>'HT III-XX'!D656,'HT III-XX'!I640,IF(U94>'HT III-XX'!D687,'HT III-XX'!G680,+'HT III-XX'!G687)))))))))))))) ->  | V109: =+IF('Sile i krakovi'!U94>'HT III-XX'!D176,'HT III-XX'!K160,IF(U94>'HT III-XX'!D216,'HT III-XX'!K200,IF(U94>'HT III-XX'!D257,'HT III-XX'!K240,IF(U94>'HT III-XX'!D296,'HT III-XX'!K280,IF(U94>'HT III-XX'!D336,'HT III-XX'!K320,IF(U94>'HT III-XX'!D376,'HT III-XX'!K360,IF(U94>'HT III-XX'!D416,'HT III-XX'!K400,IF(U94>'HT III-XX'!D456,'HT III-XX'!K440,IF(U94>'HT III-XX'!D496,'HT III-XX'!K480,IF(U94>'HT III-XX'!D536,'HT III-XX'!K520,IF(U94>'HT III-XX'!D576,'HT III-XX'!K560,IF(U94>'HT III-XX'!D616,'HT III-XX'!K600,IF(U94>'HT III-XX'!D656,'HT III-XX'!K640,IF(U94>'HT III-XX'!$D687,'HT III-XX'!G680,+'HT III-XX'!$G687)))))))))))))) ->  | W109: =+IF('Sile i krakovi'!W94>'HT III-XX'!$D176,'HT III-XX'!M160,IF(W94>'HT III-XX'!$D216,'HT III-XX'!M200,IF(W94>'HT III-XX'!$D257,'HT III-XX'!M240,IF(W94>'HT III-XX'!$D296,'HT III-XX'!M280,IF(W94>'HT III-XX'!$D336,'HT III-XX'!M320,IF(W94>'HT III-XX'!$D376,'HT III-XX'!M360,IF(W94>'HT III-XX'!$D416,'HT III-XX'!M400,IF(W94>'HT III-XX'!$D456,'HT III-XX'!M440,IF(W94>'HT III-XX'!$D496,'HT III-XX'!M480,IF(W94>'HT III-XX'!$D536,'HT III-XX'!M520,IF(W94>'HT III-XX'!DD576,'HT III-XX'!M560,IF(W94>'HT III-XX'!$D616,'HT III-XX'!M600,IF(W94>'HT III-XX'!$D656,'HT III-XX'!M640,IF(W94>'HT III-XX'!$D687,'HT III-XX'!$G680,+'HT III-XX'!$G687)))))))))))))) ->  | X109: =+IF('Sile i krakovi'!V94>'HT III-XX'!D176,'HT III-XX'!O160,IF(V94>'HT III-XX'!D216,'HT III-XX'!O200,IF(V94>'HT III-XX'!D257,'HT III-XX'!O240,IF(V94>'HT III-XX'!D296,'HT III-XX'!O280,IF(V94>'HT III-XX'!D336,'HT III-XX'!O320,IF(V94>'HT III-XX'!D376,'HT III-XX'!O360,IF(V94>'HT III-XX'!D416,'HT III-XX'!O400,IF(V94>'HT III-XX'!D456,'HT III-XX'!O440,IF(V94>'HT III-XX'!D496,'HT III-XX'!O480,IF(V94>'HT III-XX'!D536,'HT III-XX'!O520,IF(V94>'HT III-XX'!D576,'HT III-XX'!O560,IF(V94>'HT III-XX'!D616,'HT III-XX'!O600,IF(V94>'HT III-XX'!D656,'HT III-XX'!O640,IF(V94>'HT III-XX'!D687,'HT III-XX'!$G680,+'HT III-XX'!$G687)))))))))))))) ->  | Y109: =+IF('Sile i krakovi'!X94>'HT III-XX'!$D176,'HT III-XX'!Q160,IF(X94>'HT III-XX'!$D216,'HT III-XX'!Q200,IF(X94>'HT III-XX'!$D257,'HT III-XX'!Q240,IF(X94>'HT III-XX'!$D296,'HT III-XX'!Q280,IF(X94>'HT III-XX'!$D336,'HT III-XX'!Q320,IF(X94>'HT III-XX'!$D376,'HT III-XX'!Q360,IF(X94>'HT III-XX'!$D416,'HT III-XX'!Q400,IF(X94>'HT III-XX'!$D456,'HT III-XX'!Q440,IF(X94>'HT III-XX'!$D496,'HT III-XX'!Q480,IF(X94>'HT III-XX'!$D536,'HT III-XX'!Q520,IF(X94>'HT III-XX'!$D576,'HT III-XX'!Q560,IF(X94>'HT III-XX'!$D616,'HT III-XX'!Q600,IF(X94>'HT III-XX'!$D656,'HT III-XX'!Q640,IF(X94>'HT III-XX'!$D687,'HT III-XX'!$G680,+'HT III-XX'!$G687)))))))))))))) ->  | Z109: =+IF('Sile i krakovi'!W94>'HT III-XX'!$D176,'HT III-XX'!S160,IF(W94>'HT III-XX'!$D216,'HT III-XX'!S200,IF(W94>'HT III-XX'!$D257,'HT III-XX'!S240,IF(W94>'HT III-XX'!$D296,'HT III-XX'!S280,IF(W94>'HT III-XX'!$D336,'HT III-XX'!S320,IF(W94>'HT III-XX'!$D376,'HT III-XX'!S360,IF(W94>'HT III-XX'!$D416,'HT III-XX'!S400,IF(W94>'HT III-XX'!$D456,'HT III-XX'!S440,IF(W94>'HT III-XX'!$D496,'HT III-XX'!S480,IF(W94>'HT III-XX'!$D536,'HT III-XX'!S520,IF(W94>'HT III-XX'!$D576,'HT III-XX'!S560,IF(W94>'HT III-XX'!$D616,'HT III-XX'!S600,IF(W94>'HT III-XX'!$D656,'HT III-XX'!S640,IF(W94>'HT III-XX'!$D687,'HT III-XX'!$G680,+'HT III-XX'!$G687)))))))))))))) ->  | AA109: =+IF('Sile i krakovi'!X94>'HT III-XX'!$D176,'HT III-XX'!U160,IF(X94>'HT III-XX'!$D216,'HT III-XX'!U200,IF(X94>'HT III-XX'!$D257,'HT III-XX'!U240,IF(X94>'HT III-XX'!$D296,'HT III-XX'!U280,IF(X94>'HT III-XX'!$D336,'HT III-XX'!U320,IF(X94>'HT III-XX'!$D376,'HT III-XX'!U360,IF(X94>'HT III-XX'!$D416,'HT III-XX'!U400,IF(X94>'HT III-XX'!$D456,'HT III-XX'!U440,IF(X94>'HT III-XX'!$D496,'HT III-XX'!U480,IF(X94>'HT III-XX'!$D536,'HT III-XX'!U520,IF(X94>'HT III-XX'!$D576,'HT III-XX'!U560,IF(X94>'HT III-XX'!$D616,'HT III-XX'!U600,IF(X94>'HT III-XX'!$D656,'HT III-XX'!U640,IF(X94>'HT III-XX'!$D687,'HT III-XX'!$G680,+'HT III-XX'!$G687)))))))))))))) ->  | AB109: =+IF('Sile i krakovi'!Y94>'HT III-XX'!$D176,'HT III-XX'!W160,IF(Y94>'HT III-XX'!$D216,'HT III-XX'!W200,IF(Y94>'HT III-XX'!$D257,'HT III-XX'!W240,IF(Y94>'HT III-XX'!$D296,'HT III-XX'!W280,IF(Y94>'HT III-XX'!$D336,'HT III-XX'!W320,IF(Y94>'HT III-XX'!$D376,'HT III-XX'!W360,IF(Y94>'HT III-XX'!$D416,'HT III-XX'!W400,IF(Y94>'HT III-XX'!$D456,'HT III-XX'!W440,IF(Y94>'HT III-XX'!$D496,'HT III-XX'!W480,IF(Y94>'HT III-XX'!$D536,'HT III-XX'!W520,IF(Y94>'HT III-XX'!$D576,'HT III-XX'!W560,IF(Y94>'HT III-XX'!$D616,'HT III-XX'!W600,IF(Y94>'HT III-XX'!$D656,'HT III-XX'!W640,IF(Y94>'HT III-XX'!$D687,'HT III-XX'!$G680,+'HT III-XX'!$G687)))))))))))))) ->  | AC109: =+IF('Sile i krakovi'!Z94>'HT III-XX'!$D176,'HT III-XX'!Y160,IF(Z94>'HT III-XX'!$D216,'HT III-XX'!Y200,IF(Z94>'HT III-XX'!$D257,'HT III-XX'!Y240,IF(Z94>'HT III-XX'!$D296,'HT III-XX'!Y280,IF(Z94>'HT III-XX'!$D336,'HT III-XX'!Y320,IF(Z94>'HT III-XX'!$D376,'HT III-XX'!Y360,IF(Z94>'HT III-XX'!$D416,'HT III-XX'!Y400,IF(Z94>'HT III-XX'!$D456,'HT III-XX'!Y440,IF(Z94>'HT III-XX'!$D496,'HT III-XX'!Y480,IF(Z94>'HT III-XX'!$D536,'HT III-XX'!Y520,IF(Z94>'HT III-XX'!$D576,'HT III-XX'!Y560,IF(Z94>'HT III-XX'!$D616,'HT III-XX'!Y600,IF(Z94>'HT III-XX'!$D656,'HT III-XX'!Y640,IF(Z94>'HT III-XX'!$D687,'HT III-XX'!$G680,+'HT III-XX'!$G687)))))))))))))) ->  | AD109: =+IF('Sile i krakovi'!Z94>'HT III-XX'!$D176,'HT III-XX'!AA160,IF(Z94>'HT III-XX'!$D216,'HT III-XX'!AA200,IF(Z94>'HT III-XX'!$D257,'HT III-XX'!AA240,IF(Z94>'HT III-XX'!$D296,'HT III-XX'!AA280,IF(Z94>'HT III-XX'!$D336,'HT III-XX'!AA320,IF(Z94>'HT III-XX'!$D376,'HT III-XX'!AA360,IF(Z94>'HT III-XX'!$D416,'HT III-XX'!AA400,IF(Z94>'HT III-XX'!$D456,'HT III-XX'!AA440,IF(Z94>'HT III-XX'!$D496,'HT III-XX'!AA480,IF(Z94>'HT III-XX'!$D536,'HT III-XX'!AA520,IF(Z94>'HT III-XX'!$D576,'HT III-XX'!AA560,IF(Z94>'HT III-XX'!$D616,'HT III-XX'!AA600,IF(Z94>'HT III-XX'!$D656,'HT III-XX'!Y640,IF(Z94>'HT III-XX'!$D687,'HT III-XX'!$G680,+'HT III-XX'!$G687)))))))))))))) ->  | AE109: =+IF('Sile i krakovi'!AC94>'HT III-XX'!$D176,'HT III-XX'!AC160,IF(AC94>'HT III-XX'!$D216,'HT III-XX'!AC200,IF(AC94>'HT III-XX'!$D257,'HT III-XX'!AC240,IF(AC94>'HT III-XX'!$D296,'HT III-XX'!AC280,IF(AC94>'HT III-XX'!$D336,'HT III-XX'!AC320,IF(AC94>'HT III-XX'!$D376,'HT III-XX'!AC360,IF(AC94>'HT III-XX'!$D416,'HT III-XX'!AC400,IF(AC94>'HT III-XX'!$D456,'HT III-XX'!AC440,IF(AC94>'HT III-XX'!$D496,'HT III-XX'!AC480,IF(AC94>'HT III-XX'!$D536,'HT III-XX'!AC520,IF(AC94>'HT III-XX'!$D576,'HT III-XX'!AC560,IF(AC94>'HT III-XX'!$D616,'HT III-XX'!AC600,IF(AC94>'HT III-XX'!$D656,'HT III-XX'!AC640,IF(AC94>'HT III-XX'!$D680,'HT III-XX'!$G687,+'HT III-XX'!$G687)))))))))))))) ->  | AF109: =+IF('Sile i krakovi'!AD94>'HT III-XX'!$D176,'HT III-XX'!AE160,IF(AD94>'HT III-XX'!$D216,'HT III-XX'!AE200,IF(AD94>'HT III-XX'!$D257,'HT III-XX'!AE240,IF(AD94>'HT III-XX'!$D296,'HT III-XX'!AE280,IF(AD94>'HT III-XX'!$D336,'HT III-XX'!AE320,IF(AE94>'HT III-XX'!$D376,'HT III-XX'!AE360,IF(AD94>'HT III-XX'!$D416,'HT III-XX'!AE400,IF(AD94>'HT III-XX'!$D456,'HT III-XX'!AE440,IF(AD94>'HT III-XX'!$D496,'HT III-XX'!AE480,IF(AD94>'HT III-XX'!$D536,'HT III-XX'!AE520,IF(AD94>'HT III-XX'!$D576,'HT III-XX'!AE560,IF(AD94>'HT III-XX'!$D616,'HT III-XX'!AE600,IF(AD94>'HT III-XX'!$D656,'HT III-XX'!AE640,IF(AD94>'HT III-XX'!$D687,'HT III-XX'!$G680,+'HT III-XX'!$G687)))))))))))))) -> 0 | AG109: =+IF('Sile i krakovi'!AE94>'HT III-XX'!$D176,'HT III-XX'!AI160,IF(AE94>'HT III-XX'!$D216,'HT III-XX'!AI200,IF(AE94>'HT III-XX'!$D257,'HT III-XX'!AI240,IF(AE94>'HT III-XX'!$D296,'HT III-XX'!AI280,IF(AE94>'HT III-XX'!$D336,'HT III-XX'!AI320,IF(AF94>'HT III-XX'!$D376,'HT III-XX'!AI360,IF(AE94>'HT III-XX'!$D416,'HT III-XX'!AI400,IF(AE94>'HT III-XX'!$D456,'HT III-XX'!AI440,IF(AE94>'HT III-XX'!$D496,'HT III-XX'!AI480,IF(AE94>'HT III-XX'!$D536,'HT III-XX'!AI520,IF(AE94>'HT III-XX'!$D576,'HT III-XX'!AI560,IF(AE94>'HT III-XX'!$D616,'HT III-XX'!AI600,IF(AE94>'HT III-XX'!$D656,'HT III-XX'!AH640,IF(AE94>'HT III-XX'!$D687,'HT III-XX'!$G680,+'HT III-XX'!$G687)))))))))))))) -> 0 | AH109: =+IF('Sile i krakovi'!AE94>'HT III-XX'!$D176,'HT III-XX'!AK160,IF(AE94>'HT III-XX'!$D216,'HT III-XX'!AK200,IF(AE94>'HT III-XX'!$D257,'HT III-XX'!AK240,IF(AE94>'HT III-XX'!$D296,'HT III-XX'!AK280,IF(AE94>'HT III-XX'!$D336,'HT III-XX'!AK320,IF(AF94>'HT III-XX'!$D376,'HT III-XX'!AK360,IF(AE94>'HT III-XX'!$D416,'HT III-XX'!AK400,IF(AE94>'HT III-XX'!$D456,'HT III-XX'!AK440,IF(AE94>'HT III-XX'!$D496,'HT III-XX'!AK480,IF(AE94>'HT III-XX'!$D536,'HT III-XX'!AK520,IF(AE94>'HT III-XX'!$D576,'HT III-XX'!AK560,IF(AE94>'HT III-XX'!$D616,'HT III-XX'!AK600,IF(AE94>'HT III-XX'!$D656,'HT III-XX'!AK640,IF(AE94>'HT III-XX'!$D687,'HT III-XX'!$G680,+'HT III-XX'!$G687)))))))))))))) -> 0 | AI109: 0
A110: Sh4 (za MIII-III) | B110: =+IF(C110="","",C110/$B$99-$D$99/$B$99) ->  | C110: =+'Analiza i dimenzioniranje'!G71 ->  | F110: =IF('Analiza i dimenzioniranje'!$G$71="","",'Analiza i dimenzioniranje'!G$75*COS('Analiza i dimenzioniranje'!$E$39*PI()/180)) ->  | G110: x= | H110: =IF(H109=0,0,-((G104*H105-G105*H104)*(G104+G105)+(G105*H106-G106*H105)*(G105+G106)+(G106*H107-G107*H106)*(G106+G107)+(G107*H108-G108*H107)*(G107+G108))/6/H109) -> 0 | I110: x= | J110: =IF(J109=0,0,-((I104*J105-I105*J104)*(I104+I105)+(I105*J106-I106*J105)*(I105+I106)+(I106*J107-I107*J106)*(I106+I107)+(I107*J108-I108*J107)*(I107+I108))/6/J109) -> 2 | K110: x= | L110: =IF(L109=0,0,-((K104*L105-K105*L104)*(K104+K105)+(K105*L106-K106*L105)*(K105+K106)+(K106*L107-K107*L106)*(K106+K107)+(K107*L108-K108*L107)*(K107+K108))/6/L109) -> 2.666666667 | M110: x= | N110: =IF(N109=0,0,IF('Analiza i dimenzioniranje'!E42<='Analiza i dimenzioniranje'!E52,0,((M104*N105-M105*N104)*(M104+M105)+(M105*N106-M106*N105)*(M105+M106)+(M106*N107-M107*N106)*(M106+M107)+(M107*N108-M108*N107)*(M107+M107))/6/N109)) -> 0 | O110: x= | P110: =IF(P109=0,0,-((O104*P105-O105*P104)*(O104+O105)+(O105*P106-O106*P105)*(O105+O106)+(O106*P107-O107*P106)*(O106+O107)+(O107*P108-O108*P107)*(O107+O108))/6/P109) -> 2.666666667 | R110: E voda iza = | S110: =+H109 -> 0 | T110: =$AO114 -> 0 | U110: =$AO115 -> 0 | V110: =$AO116 -> 0 | W110: =$AO117 -> 0 | X110: =$AO118 -> 0 | Y110: =$AO119 -> 0 | Z110: =$AO120 -> 0 | AA110: =$AO121 -> 0 | AB110: =$AO122 -> 0 | AC110: =$AO123 -> 0 | AD110: =$AO124 -> 0 | AE110: =$AO125 -> 0 | AF110: =$AO126 -> 0 | AG110: =$AO127 -> 0 | AH110: =$AO128 -> 0 | AI110: =$AO129 -> 0 | AN110: visina vode od presjeka do vrha vode | AP110: koord. težišta | AU110: visina vode od presjeka do vrha vode | AW110: koord. težišta
A111: Voda izvan zida | B111: =+D105 -> 4.9000022 | C111: =+P111 -> 0.2666666667 | D111: 0 | E111: -0.2333333333 | F111: =+P109 -> 3.2 | G111: Y= | H111: =IF(H109=0,0,-((G104*H105-G105*H104)*(H104+H105)+(G105*H106-G106*H105)*(H105+H106)+(G106*H107-G107*H106)*(H106+H107)+(G107*H108-G108*H107)*(H107+H108))/6/H109) -> 0 | I111: Y= | J111: =IF(J109=0,0,-((I104*J105-I105*J104)*(J104+J105)+(I105*J106-I106*J105)*(J105+J106)+(I106*J107-I107*J106)*(J106+J107)+(I107*J108-I108*J107)*(J107+J108))/6/J109) -> 0.2 | K111: Y= | L111: =IF(L109=0,0,-((K104*L105-K105*L104)*(L104+L105)+(K105*L106-K106*L105)*(L105+L106)+(K106*L107-K107*L106)*(L106+L107)+(K107*L108-K108*L107)*(L107+L108))/6/L109) -> 0.2666666667 | M111: Y= | N111: =IF('Analiza i dimenzioniranje'!E43>0,0,IF('Analiza i dimenzioniranje'!E42<='Analiza i dimenzioniranje'!E52,0,((M104*N105-M105*N104)*(N104+N105)+(M105*N106-M106*N105)*(N105+N106)+(M106*N107-M107*N106)*(N106+N107)+(M107*N108-M108*N107)*(N107+N108))/6/N109)) ->  | O111: Y= | P111: =IF(P109=0,0,-((O104*P105-O105*P104)*(P104+P105)+(O105*P106-O106*P105)*(P105+P106)+(O106*P107-O107*P106)*(P106+P107)+(O107*P108-O108*P107)*(P107+P108))/6/P109) -> 0.2666666667 | R111: Hpotres = | S111: =+F226 ->  | T111: =+'C III-V'!AE114 ->  | U111: =+'C VI-VII'!$AC$114 ->  | V111: =+'C VI-VII'!$AE$114 ->  | W111: =+'C VIII-IX'!$AC$114 ->  | X111: =+'C VIII-IX'!$AE$114 ->  | Y111: ='C X-XI'!AC114 ->  | Z111: ='C X-XI'!AE114 ->  | AA111: ='C XII-XIII'!AC114 ->  | AB111: ='C XII-XIII'!AE114 ->  | AC111: ='C XIV-XV'!AC114 ->  | AD111: ='C XIV-XV'!AE114 ->  | AE111: ='C XVI-XVII'!AC114 ->  | AF111: ='C XVI-XVII'!AE114 ->  | AG111: ='C XVIII-XIX'!AC114 ->  | AH111: ='C XVIII-XIX'!AE114 ->  | AI111: 0 | AK111: oznaka | AL111: Presjeci za krakove y | AO111: Tlak vode | AR111: oznaka | AS111: Presjeci za krakove y | AV111: Tlak vode
A112: Eh1 (za MIII-III) | B112: =+$C112/$B$85-$D$85/$B$85 ->  | C112: =+'C III-V'!$B$87 ->  | I112: Pritisak vode iza zida od 0 do III-III | K112: Pritisak vode od 0 do I-I | M112: Voda ispred zida razdjeljena od 0 do A od A do III-III | R112: SH= | S112: =SUM(S98:S111) ->  | AI112: 0 | AK112: presjeka | AL112: intezitet | AM112: y | AP112: y | AR112: presjeka | AS112: intezitet | AT112: y | AW112: y
A113: Eh2 (za MIII-III) | B113: =+$C113/$B$85-$D$85/$B$85 ->  | C113: =+'C III-V'!$D$87 ->  | I113: 0 | J113: 0 | M113: 0 | N113: 0 | O113: 0 | P113: =+P114 -> 0.4102563199 | R113: Vertikalni krakovi od vrha temalja do težišta horizontalnih sila SILA | T113: PIII | U113: PVI | V113: PVII | W113: PVIII | X113: PIX | Y113: PX | Z113: P XI | AA113: P XII | AB113: P XIII | AC113: P XIV | AD113: PXV | AE113: PXVI | AF113: PXVII | AG113: PXVIII | AH113: PXIX | AI113: PXX | AK113: presjek na koti 0 | AL113: =IF(+AN113*10<=0,0,AN113*10) -> 6 | AM113: 0 | AN113: =+$AL$106-AM113 -> 0.6 | AO113: =+AL113*AN113/2-AO114 -> 1.8 | AP113: =IF(AL113=0,0,+AN113/3) -> 0.2 | AR113: presjek na koti 0 | AS113: =IF(+AU113*10<=0,0,AU113*10) -> 8 | AT113: 0 | AU113: =+$AS$106-AT113 -> 0.8 | AV113: =+AS113*AU113/2-AV114 -> 3.2 | AW113: =IF(AS113=0,0,+AU113/3) -> 0.2666666667
A114: Eh3 (za MIII-III) | B114: =2 -> 2 | C114: =+'C III-V'!$F$87 ->  | F114: =+'Analiza i dimenzioniranje'!C112 ->  | I114: 0 | J114: =IF('Analiza i dimenzioniranje'!E41>'Analiza i dimenzioniranje'!E52,'Analiza i dimenzioniranje'!E52,+'Analiza i dimenzioniranje'!E41) -> 0.6 | M114: 0 | N114: =+'Analiza i dimenzioniranje'!E52-'Analiza i dimenzioniranje'!C191 -> 0.4102563199 | O114: =IF('Analiza i dimenzioniranje'!E42=0,0,+M115) -> 3.897436801 | P114: =+N115 -> 0.4102563199 | T114: =+T97 -> 1.2 | U114: 1.52 | V114: 1.84 | W114: 2.16 | X114: 2.48 | Y114: 2.8 | Z114: 3.14 | AA114: 3.44 | AB114: 3.76 | AC114: 4.08 | AD114: 4.4 | AE114: 4.72 | AF114: 5.04 | AG114: 5.36 | AH114: 5.68 | AI114: 6 | AK114: III-III | AL114: =IF(AN114*10<0,0,AN114*10) -> 0 | AM114: =+T97 -> 1.2 | AN114: =IF(+$AL$106-AM114<0,0,+$AL$106-AM114) -> 0 | AO114: =+AN114*10*AN114/2 -> 0 | AP114: 0 | AR114: III-III | AS114: =IF(AU114*10<0,0,AU114*10) -> 0 | AT114: =+AM114 -> 1.2 | AU114: =IF(+$AS$106-AT114<0,0,+$AS$106-AT114) -> 0 | AV114: =+AU114*10*AU114/2 -> 0 | AW114: 0
A115: Eprometno (III-III) | B115: =IF('Analiza i dimenzioniranje'!E24=0,0,+C115/$B$85-$D$85/$B$85) ->  | C115: =IF(A115=0,0,#REF!) ->  | I115: =IF('Analiza i dimenzioniranje'!$E41<'Analiza i dimenzioniranje'!$E52,0,+('Analiza i dimenzioniranje'!$E41-'Analiza i dimenzioniranje'!$E52)*10) -> 0 | J115: =+J114 -> 0.6 | M115: =+O107-N115*10 -> 3.897436801 | N115: =+N114 -> 0.4102563199 | O115: =+O106 -> 0 | P115: =+P106 -> 0.8 | T115: =+T96 ->  | AK115: VI | AL115: 0 | AM115: =+U97 -> 1.52 | AN115: 0 | AO115: 0 | AP115: 0 | AR115: VI | AS115: 0 | AT115: 1.52 | AU115: 0 | AV115: 0 | AW115: 0
A116: EPTočkasto (III-III) | B116: =IF('Analiza i dimenzioniranje'!E36=0,0,+C116/$B$85-$D$85/$B$85) ->  | C116: =IF(A116=0,0,#REF!) ->  | I116: ='Analiza i dimenzioniranje'!E41*10 -> 6 | J116: 0 | M116: =+O107 -> 8 | N116: =+P107 -> 0 | O116: 0 | P116: =+P115 -> 0.8 | R116: Sh1= | S116: =+C107 -> 5 | T116: =IF(IF($S116="",0,+$S116-T$114)<0,0,IF($S$116="",0,+$S116-T$114)) -> 3.8 | U116: =IF(IF($S$116="",0,+$S116-U$114)<0,0,IF($S$116="",0,+$S116-U$114)) -> 3.48 | V116: 3.16 | W116: 2.84 | X116: 2.52 | Y116: 2.2 | Z116: 1.86 | AA116: 1.56 | AB116: 1.24 | AC116: 0.92 | AD116: 0.6 | AE116: 0.28 | AF116: 0 | AG116: 0 | AH116: 0 | AI116: 0 | AK116: VII | AL116: 0 | AM116: =+V97 -> 1.84 | AN116: 0 | AO116: 0 | AP116: 0 | AR116: VII | AS116: 0 | AT116: 1.84 | AU116: 0 | AV116: 0 | AW116: 0
A117: EPLinijsko (III-III) | B117: =IF('Analiza i dimenzioniranje'!E34=0,0,+C117/$B$85-$D$85/$B$85) ->  | C117: =IF(A117=0,0,#REF!-('Analiza i dimenzioniranje'!E52-'Analiza i dimenzioniranje'!E51)) ->  | I117: =+I113 -> 0 | J117: 0 | M117: =+M113 -> 0 | N117: =+N113 -> 0 | O117: 0 | P117: =+P113 -> 0.4102563199 | R117: Sh2= | S117: =+C108 -> 3 | T117: =IF(IF($S117="",0,+$S117-T$114)<0,0,IF($S$117="",0,+$S117-T$114)) -> 1.8 | U117: 1.48 | V117: 1.16 | W117: 0.84 | X117: 0.52 | Y117: 0.2 | Z117: 0 | AA117: 0 | AB117: 0 | AC117: 0 | AD117: 0 | AE117: 0 | AF117: 0 | AG117: 0 | AH117: 0 | AI117: 0 | AK117: VIII | AL117: 0 | AM117: =+W97 -> 2.16 | AN117: 0 | AO117: 0 | AP117: 0 | AR117: VIII | AS117: 0 | AT117: 2.16 | AU117: 0 | AV117: 0 | AW117: 0
A118: EQTemelj(EIII-III) | B118: =IF('Analiza i dimenzioniranje'!E28=0,0,+C118/$B$85-$D$85/$B$85) ->  | C118: =IF(A118=0,0,#REF!-('Analiza i dimenzioniranje'!E52-'Analiza i dimenzioniranje'!E51)) ->  | I118: A= | J118: =IF('Analiza i dimenzioniranje'!E41<=0,0,IF(-0.5*((I113*J114-I114*J113)+(I114*J115-I115*J114)+(I115*J116-I116*J115)+(I116*J117-I117*J116))<0,0,-0.5*((I114*J115-I115*J114)+(I115*J116-I116*J115)+(I116*J117-I117*J116)))) -> 1.8 | M118: A= | N118: =IF('Analiza i dimenzioniranje'!$E$42="",0,IF(-0.5*((M113*N114-M114*N113)+(M114*N115-M115*N114)+(M115*N116-M116*N115)+(M116*N117-M117*N116))<0,0,-0.5*((M114*N115-M115*N114)+(M115*N116-M116*N115)+(M116*N117-M117*N116)))) -> 2.440499319 | O118: A= | P118: =(0.5*((O113*P114-O114*P113)+(O114*P115-O115*P114)+(O115*P116-O116*P115)+(O116*P117-O117*P116))) -> 0.7595006811 | R118: Sh3= | S118: =+C109 ->  | T118: =IF(IF($S118="",0,+$S118-T$114)<0,0,IF($S118="",0,+$S118-T$114)) -> 0 | U118: =IF(IF($S118="",0,+$S118-U$114)<0,0,IF($S118="",0,+$S118-U$114)) -> 0 | V118: =IF(IF($S118="",0,+$S118-V$114)<0,0,IF($S$118="",0,+$S118-V$114)) -> 0 | W118: 0 | X118: 0 | Y118: 0 | Z118: 0 | AA118: 0 | AB118: 0 | AC118: 0 | AD118: 0 | AE118: 0 | AF118: 0 | AG118: 0 | AH118: 0 | AI118: 0 | AK118: IX | AL118: 0 | AM118: =+X97 -> 2.48 | AN118: 0 | AO118: 0 | AP118: 0 | AR118: IX | AS118: 0 | AT118: 2.48 | AU118: 0 | AV118: 0 | AW118: 0
A119: Evoda (I-I) | B119: =2 -> 2 | C119: =+'Analiza i dimenzioniranje'!$E$41/3 -> 0.2 | F119: =+J118 -> 1.8 | I119: x= | J119: =IF(J118=0,0,-((I113*J114-I114*J113)*(I113+I114)+(I114*J115-I115*J114)*(I114+I115)+(I115*J116-I116*J115)*(I115+I116)+(I116*J117-I117*J116)*(I116+I117))/6/J118) -> 2 | M119: x= | N119: =IF(N118=0,0,-((M113*N114-M114*N113)*(M113+M114)+(M114*N115-M115*N114)*(M114+M115)+(M115*N116-M116*N115)*(M115+M116)+(M116*N117-M117*N116)*(M116+M117))/6/N118) -> 3.092248913 | O119: x= | P119: =IF(P118=0,0,((O113*P114-O114*P113)*(O113+O114)+(O114*P115-O115*P114)*(O114+O115)+(O115*P116-O116*P115)*(O115+O116)+(O116*P117-O117*P116)*(O116+O117))/6/P118) -> 1.2991456 | R119: Sh4= | S119: =+C110 ->  | T119: =IF(IF($S119="",0,+$S119-T$114)<0,0,IF($S119="",0,+$S119-T$114)) -> 0 | U119: =IF(IF($S119="",0,+$S119-U$114)<0,0,IF($S119="",0,+$S119-U$114)) -> 0 | V119: =IF(IF($S119="",0,+$S119-V$114)<0,0,IF($S119="",0,+$S119-V$114)) -> 0 | W119: 0 | X119: 0 | Y119: 0 | Z119: 0 | AA119: 0 | AB119: 0 | AC119: 0 | AD119: 0 | AE119: 0 | AF119: 0 | AG119: 0 | AH119: 0 | AI119: 0 | AK119: X | AL119: 0 | AM119: =+Y97 -> 2.8 | AN119: 0 | AO119: 0 | AP119: 0 | AR119: X | AS119: 0 | AT119: 2.8 | AU119: 0 | AV119: 0 | AW119: 0
A120: Hpotres (III-III) | B120: =+'C III-V'!Y112 ->  | C120: =+'C III-V'!Y113 ->  | I120: Y= | J120: =IF(J118=0,0,-((I113*J114-I114*J113)*(J113+J114)+(I114*J115-I115*J114)*(J114+J115)+(I115*J116-I116*J115)*(J115+J116)+(I116*J117-I117*J116)*(J116+J117))/6/J118) -> 0.2 | M120: Y= | N120: =IF(N118=0,0,-((M113*N114-M114*N113)*(N113+N114)+(M114*N115-M115*N114)*(N114+N115)+(M115*N116-M116*N115)*(N115+N116)+(M116*N117-M117*N116)*(N116+N117))/6/N118) -> 0.1815502175 | O120: Y= | P120: =IF(P118=0,0,((O113*P114-O114*P113)*(P113+P114)+(O114*P115-O115*P114)*(P114+P115)+(O115*P116-O116*P115)*(P115+P116)+(O116*P117-O117*P116)*(P116+P117))/6/P118) -> 0.5401708799 | R120: Voda ispred = | S120: =IF('Analiza i dimenzioniranje'!F44="",0,+'Analiza i dimenzioniranje'!F44) -> 0.8 | T120: =IF('Analiza i dimenzioniranje'!E42<'Analiza i dimenzioniranje'!E52,0,+$N$111-T114) -> 0 | U120: =+IF($S$120>U$114,($S$120-U$114)/3,0) -> 0 | V120: 0 | W120: 0 | X120: 0 | Y120: 0 | Z120: 0 | AA120: 0 | AB120: 0 | AC120: 0 | AD120: 0 | AE120: 0 | AF120: 0 | AG120: 0 | AH120: 0 | AI120: 0 | AK120: XI | AL120: 0 | AM120: =+Z97 -> 3.14 | AN120: 0 | AO120: 0 | AP120: 0 | AR120: XI | AS120: 0 | AT120: 3.14 | AU120: 0 | AV120: 0 | AW120: 0
B121: hb= | C121: =+'Analiza i dimenzioniranje'!E52 -> 1.2 | D121: hA= | E121: =+'Analiza i dimenzioniranje'!E51 -> 0.7 | G121: x | H121: y | I121: x | J121: y | K121: x | L121: y | M121: x | N121: y | O121: x | P121: y | R121: Eh1= | S121: =+'C III-V'!C76 ->  | T121: =IF($S121-T$114<0,0,'C III-V'!B87-T114) ->  | U121: =IF($S121-U$114<0,0,'C VI-VII'!I87-U114) ->  | V121: =IF($S121-V$114<0,0,'C VI-VII'!N87-V114) ->  | W121: =IF($S121-W$114<0,0,'C VIII-IX'!I87-W114) ->  | X121: =IF($S121-X$114<0,0,'C VIII-IX'!N87-X114) ->  | Y121: =IF($S121-Y$114<0,0,'C X-XI'!$I$87-Y114) ->  | Z121: =IF($S121-Z$114<0,0,'C X-XI'!$N$87-Z114) ->  | AA121: =IF($S121-AA$114<0,0,'C XII-XIII'!$I$87-AA114) ->  | AB121: =IF($S121-AB$114<0,0,'C XII-XIII'!N87-AB114) ->  | AC121: =IF($S121-AC$114<0,0,'C XIV-XV'!$I$87-AC114) ->  | AD121: =IF($S121-AD$114<0,0,'C XIV-XV'!N87-AD114) ->  | AE121: =IF($S121-AE$114<0,0,'C XVI-XVII'!$I$87-AE114) ->  | AF121: =IF($S121-AF$114<0,0,'C XVI-XVII'!N87-AF114) ->  | AG121: =IF($S121-AG$114<0,0,'C XVIII-XIX'!$I$87-AG114) ->  | AH121: =IF($S121-AH$114<0,0,'C XVIII-XIX'!$N$87-AH114) ->  | AI121: =IF($S121-AI114<0,0,AH121-'Analiza i dimenzioniranje'!$X$53) ->  | AK121: XX | AL121: 0 | AM121: =+AA97 -> 3.44 | AN121: 0 | AO121: 0 | AP121: 0 | AR121: XX | AS121: 0 | AT121: 3.44 | AU121: 0 | AV121: 0 | AW121: 0
A122: koordinate sila i kraka vode - samo voda iznad nivoa temelja | R122: Eh2= | S122: =+'C III-V'!E76 ->  | T122: =+IF($S122-T$114<0,0,'C III-V'!D87-T114) ->  | U122: =IF($S122-U$114<0,0,'C VI-VII'!K87-U114) ->  | V122: =IF($S122-V$114<0,0,'C VI-VII'!P87-V114) ->  | W122: =IF($S122-W$114<0,0,'C VIII-IX'!K87-W114) ->  | X122: =IF($S122-X$114<0,0,'C VIII-IX'!P87-X114) ->  | Y122: =IF($S122-Y$114<0,0,'C X-XI'!$K$87-Y114) ->  | Z122: =IF($S122-Z$114<0,0,'C X-XI'!$P$87-Z114) ->  | AA122: =IF($S122-AA$114<0,0,'C XII-XIII'!$K$87-AA114) ->  | AB122: =IF($S122-AB$114<=0,0,'C XII-XIII'!$P$87-AB114) ->  | AC122: =+IF($S122-AC$114<=0,0,'C XIV-XV'!$K$87-AC114) ->  | AD122: =IF($S122-AD$114<0,0,'C XIV-XV'!$P$87-AD114) ->  | AE122: =IF($S122-AE$114<0,0,'C XVI-XVII'!$K$87-AE114) ->  | AF122: =IF($S122-AF$114<0,0,'C XVI-XVII'!P87-AF114) ->  | AG122: =IF($S122-AG$114<0,0,'C XVIII-XIX'!$K$87-AG114) ->  | AH122: =IF($S122-AH$114<0,0,'C XVIII-XIX'!$P$87-AH114) ->  | AI122: 0 | AK122: XIII | AL122: 0 | AM122: =+AB97 -> 3.76 | AN122: 0 | AO122: 0 | AP122: 0 | AR122: XIII | AS122: 0 | AT122: 3.76 | AU122: 0 | AV122: 0 | AW122: 0
A123: Evoda | B123: =+B119+'Analiza i dimenzioniranje'!E59 -> 3.4000001 | C123: =+('Analiza i dimenzioniranje'!E41-'Analiza i dimenzioniranje'!E52)/3+'Analiza i dimenzioniranje'!E52 -> 1 | D123: =IF(B123="","",$D$105-B123) -> 1.5000021 | E123: =C123/3+('Analiza i dimenzioniranje'!E52-'Analiza i dimenzioniranje'!E51) -> 0.8333333333 | F123: =+AO114 -> 0 | R123: Eprometno= | S123: =+S106 ->  | T123: =+'HT III-XX'!G41-'Analiza i dimenzioniranje'!$E$52 ->  | U123: =+'HT III-XX'!I41-'Analiza i dimenzioniranje'!$E$52 ->  | V123: =+'HT III-XX'!K41-'Analiza i dimenzioniranje'!$E$52 ->  | W123: =+'HT III-XX'!M41-'Analiza i dimenzioniranje'!$E$52 ->  | X123: =+'HT III-XX'!O41-'Analiza i dimenzioniranje'!$E$52 ->  | Y123: =+'HT III-XX'!Q41-'Analiza i dimenzioniranje'!$E$52 ->  | Z123: =+'HT III-XX'!S41-'Analiza i dimenzioniranje'!$E$52 ->  | AA123: =+'HT III-XX'!U41-'Analiza i dimenzioniranje'!$E$52 ->  | AB123: =+'HT III-XX'!W41-'Analiza i dimenzioniranje'!$E$52 ->  | AC123: =+'HT III-XX'!Y41-'Analiza i dimenzioniranje'!$E$52 ->  | AD123: =+'HT III-XX'!AA41-'Analiza i dimenzioniranje'!$E$52 ->  | AE123: =+'HT III-XX'!AC41-'Analiza i dimenzioniranje'!$E$52 ->  | AF123: =+'HT III-XX'!AE41-'Analiza i dimenzioniranje'!$E$52 ->  | AG123: =+'HT III-XX'!AG41-'Analiza i dimenzioniranje'!$E$52 ->  | AH123: =+'HT III-XX'!AI41-'Analiza i dimenzioniranje'!$E$52 ->  | AI123: =+'HT III-XX'!AK41-'Analiza i dimenzioniranje'!$E$52 ->  | AK123: XIV | AL123: 0 | AM123: =+AC97 -> 4.08 | AN123: 0 | AO123: 0 | AP123: 0 | AR123: XIV | AS123: 0 | AT123: 4.08 | AU123: 0 | AV123: 0 | AW123: 0
A124: Ewater izvan | B124: =IF('Analiza i dimenzioniranje'!F44="",0,IF('Analiza i dimenzioniranje'!F44=0,0,2+'Analiza i dimenzioniranje'!E59+'Analiza i dimenzioniranje'!E55)) -> 4.2000001 | C124: =IF('Analiza i dimenzioniranje'!F44="",0,('Analiza i dimenzioniranje'!F44-'Analiza i dimenzioniranje'!E52)/3+'Analiza i dimenzioniranje'!E52) -> 1.066666667 | D124: =IF(B124="","",$D$105-B124) -> 0.7000021 | E124: =+C123/3+('Analiza i dimenzioniranje'!E52-'Analiza i dimenzioniranje'!E51) -> 0.8333333333 | F124: =+AV114 -> 0 | J124: x | K124: y | R124: Etočkasto = | S124: =+S107 ->  | T124: =+'HT III-XX'!G81-'Analiza i dimenzioniranje'!$E$52 ->  | U124: =+'HT III-XX'!I81-'Analiza i dimenzioniranje'!$E$52 ->  | V124: =+'HT III-XX'!K81-'Analiza i dimenzioniranje'!$E$52 ->  | W124: =+'HT III-XX'!M81-'Analiza i dimenzioniranje'!$E$52 ->  | X124: =+'HT III-XX'!O81-'Analiza i dimenzioniranje'!$E$52 ->  | Y124: =+'HT III-XX'!Q81-'Analiza i dimenzioniranje'!$E$52 ->  | Z124: =+'HT III-XX'!S81-'Analiza i dimenzioniranje'!$E$52 ->  | AA124: =+'HT III-XX'!U81-'Analiza i dimenzioniranje'!$E$52 ->  | AB124: =+'HT III-XX'!W81-'Analiza i dimenzioniranje'!$E$52 ->  | AC124: =+'HT III-XX'!Y81-'Analiza i dimenzioniranje'!$E$52 ->  | AD124: =+'HT III-XX'!AA81-'Analiza i dimenzioniranje'!$E$52 ->  | AE124: =+'HT III-XX'!AC81-'Analiza i dimenzioniranje'!$E$52 ->  | AF124: =+'HT III-XX'!AE81-'Analiza i dimenzioniranje'!$E$52 ->  | AG124: =+'HT III-XX'!AG81-'Analiza i dimenzioniranje'!$E$52 ->  | AH124: =+'HT III-XX'!AI81-'Analiza i dimenzioniranje'!$E$52 ->  | AI124: =+'HT III-XX'!AK81-'Analiza i dimenzioniranje'!$E$52 ->  | AK124: XV | AL124: 0 | AM124: =+AD97 -> 4.4 | AN124: 0 | AO124: 0 | AP124: 0 | AR124: XV | AS124: 0 | AT124: 4.4 | AU124: 0 | AV124: 0 | AW124: 0
R125: Elinijsko = | S125: =+S108 ->  | T125: =+'HT III-XX'!G121-'Analiza i dimenzioniranje'!$E$52 ->  | U125: =+'HT III-XX'!I121-'Analiza i dimenzioniranje'!$E$52 ->  | V125: =+'HT III-XX'!K121-'Analiza i dimenzioniranje'!$E$52 ->  | W125: =+'HT III-XX'!M121-'Analiza i dimenzioniranje'!$E$52 ->  | X125: =+'HT III-XX'!O121-'Analiza i dimenzioniranje'!$E$52 ->  | Y125: =+'HT III-XX'!Q121-'Analiza i dimenzioniranje'!$E$52 ->  | Z125: =+'HT III-XX'!S121-'Analiza i dimenzioniranje'!$E$52 ->  | AA125: =+'HT III-XX'!U121-'Analiza i dimenzioniranje'!$E$52 ->  | AB125: =+'HT III-XX'!W121-'Analiza i dimenzioniranje'!$E$52 ->  | AC125: =+'HT III-XX'!Y121-'Analiza i dimenzioniranje'!$E$52 ->  | AD125: =+'HT III-XX'!AA121-'Analiza i dimenzioniranje'!$E$52 ->  | AE125: =+'HT III-XX'!AC121-'Analiza i dimenzioniranje'!$E$52 ->  | AF125: =+'HT III-XX'!AE121-'Analiza i dimenzioniranje'!$E$52 ->  | AG125: =+'HT III-XX'!AG121-'Analiza i dimenzioniranje'!$E$52 ->  | AH125: =+'HT III-XX'!AI121-'Analiza i dimenzioniranje'!$E$52 ->  | AI125: =+'HT III-XX'!AK121-'Analiza i dimenzioniranje'!$E$52 ->  | AK125: XVI | AL125: 0 | AM125: =+AE97 -> 4.72 | AN125: 0 | AO125: 0 | AP125: 0 | AR125: XVI | AS125: 0 | AT125: 4.72 | AU125: 0 | AV125: 0 | AW125: 0
R126: Etemelja = | T126: =+IF(T$94>'HT III-XX'!$D$176,'HT III-XX'!$G$161,IF(T$94>'HT III-XX'!$D$216,'HT III-XX'!$G$201,IF(T$94>'HT III-XX'!$D$257,'HT III-XX'!$G$241,IF(T$94>'HT III-XX'!$D$296,'HT III-XX'!$G$281,IF(T$94>'HT III-XX'!$D$336,'HT III-XX'!$G$321,IF(T$94>'HT III-XX'!$D$376,'HT III-XX'!$G$361,IF(T$94>'HT III-XX'!$D$416,'HT III-XX'!$G$401,IF(T$94>'HT III-XX'!$D$456,'HT III-XX'!$G$441,IF(T$94>'HT III-XX'!$D$496,'HT III-XX'!$G$481,IF(T$94>'HT III-XX'!$D$536,'HT III-XX'!$G$521,IF(T$94>'HT III-XX'!$D$576,'HT III-XX'!$G$561,IF(T$94>'HT III-XX'!$D$616,'HT III-XX'!$G$601,IF(T$94>'HT III-XX'!$D$656,'HT III-XX'!$G$641,IF(T$94>'HT III-XX'!$D$687,'HT III-XX'!$G$699,'HT III-XX'!$G$689)))))))))))))) ->  | U126: =+IF(U$94>'HT III-XX'!$D$176,'HT III-XX'!I$161,IF(U$94>'HT III-XX'!D$216,'HT III-XX'!I$201,IF(U$94>'HT III-XX'!D$257,'HT III-XX'!I$241,IF(U$94>'HT III-XX'!$D$296,'HT III-XX'!I$281,IF(U$94>'HT III-XX'!$D$336,'HT III-XX'!I$312,IF(U$94>'HT III-XX'!$D$376,'HT III-XX'!I$361,IF(U$94>'HT III-XX'!$D$416,'HT III-XX'!I$401,IF(U94>'HT III-XX'!$D$456,'HT III-XX'!I$441,IF(U$94>'HT III-XX'!$D$496,'HT III-XX'!I$481,IF(U$94>'HT III-XX'!$D$536,'HT III-XX'!I$521,IF(U$94>'HT III-XX'!$D$576,'HT III-XX'!I$561,IF(U$94>'HT III-XX'!$D$616,'HT III-XX'!I$601,IF(U$94>'HT III-XX'!$D$656,'HT III-XX'!I$641,IF(U$94>'HT III-XX'!$D$687,'HT III-XX'!$G692,'HT III-XX'!$G$688)))))))))))))) ->  | V126: =+IF(V$94>'HT III-XX'!$D$176,'HT III-XX'!K$161,IF(V$94>'HT III-XX'!D$216,'HT III-XX'!K$201,IF(V$94>'HT III-XX'!D$257,'HT III-XX'!K$241,IF(V$94>'HT III-XX'!$D$296,'HT III-XX'!K$281,IF(V$94>'HT III-XX'!$D$336,'HT III-XX'!K$321,IF(V$94>'HT III-XX'!$D$376,'HT III-XX'!K$361,IF(V$94>'HT III-XX'!$D$416,'HT III-XX'!K$401,IF(V94>'HT III-XX'!$D$456,'HT III-XX'!K$441,IF(V$94>'HT III-XX'!$D$496,'HT III-XX'!K$481,IF(V$94>'HT III-XX'!$D$536,'HT III-XX'!K$521,IF(V$94>'HT III-XX'!$D$576,'HT III-XX'!K$561,IF(V$94>'HT III-XX'!$D$616,'HT III-XX'!K$601,IF(V$94>'HT III-XX'!$D$656,'HT III-XX'!K641,IF(V$94>'HT III-XX'!$D$687,'HT III-XX'!$G692,'HT III-XX'!$G$688)))))))))))))) ->  | W126: =+IF(W$94>'HT III-XX'!$D$176,'HT III-XX'!M161,IF(W$94>'HT III-XX'!D$216,'HT III-XX'!M$201,IF(W$94>'HT III-XX'!D$257,'HT III-XX'!M$241,IF(W$94>'HT III-XX'!$D$296,'HT III-XX'!M$281,IF(W$94>'HT III-XX'!$D$336,'HT III-XX'!M$312,IF(W$94>'HT III-XX'!$D$376,'HT III-XX'!M$361,IF(W$94>'HT III-XX'!$D$416,'HT III-XX'!M$401,IF(W94>'HT III-XX'!$D$456,'HT III-XX'!M$441,IF(W$94>'HT III-XX'!$D$496,'HT III-XX'!M$481,IF(W$94>'HT III-XX'!$D$536,'HT III-XX'!M$521,IF(W$94>'HT III-XX'!$D$576,'HT III-XX'!M$561,IF(W$94>'HT III-XX'!$D$616,'HT III-XX'!M$601,IF(W$94>'HT III-XX'!$D$656,'HT III-XX'!M$641,IF(W$94>'HT III-XX'!$D$687,'HT III-XX'!$G692,'HT III-XX'!$G$688)))))))))))))) ->  | X126: =+IF(X$94>'HT III-XX'!$D$176,'HT III-XX'!O161,IF(X$94>'HT III-XX'!D$216,'HT III-XX'!O$201,IF(X$94>'HT III-XX'!D$257,'HT III-XX'!O$241,IF(X$94>'HT III-XX'!$D$296,'HT III-XX'!O$281,IF(X$94>'HT III-XX'!$D$336,'HT III-XX'!O$321,IF(X$94>'HT III-XX'!$D$376,'HT III-XX'!O$361,IF(X$94>'HT III-XX'!$D$416,'HT III-XX'!O$401,IF(X94>'HT III-XX'!$D$456,'HT III-XX'!O$441,IF(X$94>'HT III-XX'!$D$496,'HT III-XX'!O$481,IF(X$94>'HT III-XX'!$D$536,'HT III-XX'!O$521,IF(X$94>'HT III-XX'!$D$576,'HT III-XX'!O$561,IF(X$94>'HT III-XX'!$D$616,'HT III-XX'!O$601,IF(X$94>'HT III-XX'!$D$656,'HT III-XX'!O$641,IF(X$94>'HT III-XX'!$D$687,'HT III-XX'!$G692,'HT III-XX'!$G$688)))))))))))))) ->  | Y126: =+IF(Y$94>'HT III-XX'!$D$176,'HT III-XX'!Q161,IF(Y$94>'HT III-XX'!D$216,'HT III-XX'!Q$201,IF(Y$94>'HT III-XX'!D$257,'HT III-XX'!Q$241,IF(Y$94>'HT III-XX'!$D$296,'HT III-XX'!Q$281,IF(Y$94>'HT III-XX'!$D$336,'HT III-XX'!Q$312,IF(Y$94>'HT III-XX'!$D$376,'HT III-XX'!Q$361,IF(Y$94>'HT III-XX'!$D$416,'HT III-XX'!Q$401,IF(Y94>'HT III-XX'!$D$456,'HT III-XX'!Q$441,IF(Y$94>'HT III-XX'!$D$496,'HT III-XX'!Q$481,IF(Y$94>'HT III-XX'!$D$536,'HT III-XX'!Q$521,IF(Y$94>'HT III-XX'!$D$576,'HT III-XX'!Q$561,IF(Y$94>'HT III-XX'!$D$616,'HT III-XX'!Q$601,IF(Y$94>'HT III-XX'!$D$656,'HT III-XX'!Q$641,IF(Y$94>'HT III-XX'!$D$687,'HT III-XX'!$G692,'HT III-XX'!$G$688)))))))))))))) ->  | Z126: =+IF(Y$94>'HT III-XX'!$D$176,'HT III-XX'!S161,IF(Y$94>'HT III-XX'!D$216,'HT III-XX'!S$201,IF(Y$94>'HT III-XX'!D$257,'HT III-XX'!S$241,IF(Y$94>'HT III-XX'!$D$296,'HT III-XX'!S$281,IF(Y$94>'HT III-XX'!$D$336,'HT III-XX'!S$312,IF(Y$94>'HT III-XX'!$D$376,'HT III-XX'!S$361,IF(Y$94>'HT III-XX'!$D$416,'HT III-XX'!S$401,IF(Y94>'HT III-XX'!$D$456,'HT III-XX'!S$441,IF(Y$94>'HT III-XX'!$D$496,'HT III-XX'!S$481,IF(Y$94>'HT III-XX'!$D$536,'HT III-XX'!S$521,IF(Y$94>'HT III-XX'!$D$576,'HT III-XX'!S$561,IF(Y$94>'HT III-XX'!$D$616,'HT III-XX'!S$601,IF(Y$94>'HT III-XX'!$D$656,'HT III-XX'!S$641,IF(Y$94>'HT III-XX'!$D$687,'HT III-XX'!$G692,'HT III-XX'!$G$688)))))))))))))) ->  | AA126: =+IF(Z$94>'HT III-XX'!$D$176,'HT III-XX'!U161,IF(Z$94>'HT III-XX'!D$216,'HT III-XX'!U$201,IF(Z$94>'HT III-XX'!D$257,'HT III-XX'!U$241,IF(Z$94>'HT III-XX'!$D$296,'HT III-XX'!U$281,IF(Z$94>'HT III-XX'!$D$336,'HT III-XX'!U$321,IF(Z$94>'HT III-XX'!$D$376,'HT III-XX'!U$361,IF(Z$94>'HT III-XX'!$D$416,'HT III-XX'!U$401,IF(Z94>'HT III-XX'!$D$456,'HT III-XX'!U$441,IF(Z$94>'HT III-XX'!$D$496,'HT III-XX'!U$481,IF(Z$94>'HT III-XX'!$D$536,'HT III-XX'!U$521,IF(Z$94>'HT III-XX'!$D$576,'HT III-XX'!U$561,IF(Z$94>'HT III-XX'!$D$616,'HT III-XX'!U$601,IF(Z$94>'HT III-XX'!$D$656,'HT III-XX'!U$641,IF(Z$94>'HT III-XX'!$D$687,'HT III-XX'!$G692,'HT III-XX'!$G$688)))))))))))))) ->  | AB126: =+IF(AA$94>'HT III-XX'!$D$176,'HT III-XX'!W161,IF(AA$94>'HT III-XX'!D$216,'HT III-XX'!W$201,IF(AA$94>'HT III-XX'!D$257,'HT III-XX'!W$241,IF(AA$94>'HT III-XX'!$D$296,'HT III-XX'!W$281,IF(AA$94>'HT III-XX'!$D$336,'HT III-XX'!W$321,IF(AA$94>'HT III-XX'!$D$376,'HT III-XX'!W$361,IF(AA$94>'HT III-XX'!$D$416,'HT III-XX'!W$401,IF(AA94>'HT III-XX'!$D$456,'HT III-XX'!W$441,IF(AA$94>'HT III-XX'!$D$496,'HT III-XX'!W$481,IF(AA$94>'HT III-XX'!$D$536,'HT III-XX'!W$521,IF(AA$94>'HT III-XX'!$D$576,'HT III-XX'!W$561,IF(AA$94>'HT III-XX'!$D$616,'HT III-XX'!W$601,IF(AA$94>'HT III-XX'!$D$656,'HT III-XX'!W$641,IF(AA$94>'HT III-XX'!$D$687,'HT III-XX'!$G692,'HT III-XX'!$G$688)))))))))))))) ->  | AC126: =+IF(AB$94>'HT III-XX'!$D$176,'HT III-XX'!Y161,IF(AB$94>'HT III-XX'!D$216,'HT III-XX'!Y$201,IF(AB$94>'HT III-XX'!D$257,'HT III-XX'!Y$241,IF(AB$94>'HT III-XX'!$D$296,'HT III-XX'!Y$281,IF(AB$94>'HT III-XX'!$D$336,'HT III-XX'!Y$321,IF(AB$94>'HT III-XX'!$D$376,'HT III-XX'!Y$361,IF(AB$94>'HT III-XX'!$D$416,'HT III-XX'!Y$401,IF(AB94>'HT III-XX'!$D$456,'HT III-XX'!Y$441,IF(AB$94>'HT III-XX'!$D$496,'HT III-XX'!Y$481,IF(AB$94>'HT III-XX'!$D$536,'HT III-XX'!Y$521,IF(AB$94>'HT III-XX'!$D$576,'HT III-XX'!Y$561,IF(AB$94>'HT III-XX'!$D$616,'HT III-XX'!Y$601,IF(AB$94>'HT III-XX'!$D$656,'HT III-XX'!Y$641,IF(AB$94>'HT III-XX'!$D$687,'HT III-XX'!$G692,'HT III-XX'!$G$688)))))))))))))) ->  | AD126: =+IF(AD$94>'HT III-XX'!$D$176,'HT III-XX'!AA161,IF(AD$94>'HT III-XX'!D$216,'HT III-XX'!AA$201,IF(AD$94>'HT III-XX'!D$257,'HT III-XX'!AA$241,IF(AD$94>'HT III-XX'!$D$296,'HT III-XX'!AA$281,IF(AD$94>'HT III-XX'!$D$336,'HT III-XX'!AA$321,IF(AD$94>'HT III-XX'!$D$376,'HT III-XX'!AA$361,IF(AD$94>'HT III-XX'!$D$416,'HT III-XX'!AA$401,IF(AD94>'HT III-XX'!$D$456,'HT III-XX'!AA$441,IF(AD$94>'HT III-XX'!$D$496,'HT III-XX'!AA$481,IF(AD$94>'HT III-XX'!$D$536,'HT III-XX'!AA$521,IF(AD$94>'HT III-XX'!$D$576,'HT III-XX'!AA$561,IF(AD$94>'HT III-XX'!$D$616,'HT III-XX'!AA$601,IF(AD$94>'HT III-XX'!$D$656,'HT III-XX'!AA$641,IF(AD$94>'HT III-XX'!$D$687,'HT III-XX'!$G692,'HT III-XX'!$G$688)))))))))))))) ->  | AE126: =+IF(AC$94>'HT III-XX'!$D$176,'HT III-XX'!AC161,IF(AC$94>'HT III-XX'!D$216,'HT III-XX'!AC$201,IF(AC$94>'HT III-XX'!D$257,'HT III-XX'!AC$241,IF(AC$94>'HT III-XX'!$D$296,'HT III-XX'!AC$281,IF(AC$94>'HT III-XX'!$D$336,'HT III-XX'!AC$321,IF(AC$94>'HT III-XX'!$D$376,'HT III-XX'!AC$361,IF(AC$94>'HT III-XX'!$D$416,'HT III-XX'!AC$401,IF(AC94>'HT III-XX'!$D$456,'HT III-XX'!AC$441,IF(AC$94>'HT III-XX'!$D$496,'HT III-XX'!AC$481,IF(AC$94>'HT III-XX'!$D$536,'HT III-XX'!AC$521,IF(AC$94>'HT III-XX'!$D$576,'HT III-XX'!AC$561,IF(AC$94>'HT III-XX'!$D$616,'HT III-XX'!AC$601,IF(AC$94>'HT III-XX'!$D$656,'HT III-XX'!AC$641,IF(AC$94>'HT III-XX'!$D$687,'HT III-XX'!$G692,'HT III-XX'!$G$688)))))))))))))) ->  | AF126: =+IF(AD$94>'HT III-XX'!$D$176,'HT III-XX'!AG161,IF(AD$94>'HT III-XX'!D$216,'HT III-XX'!AG$201,IF(AD$94>'HT III-XX'!D$257,'HT III-XX'!AG$241,IF(AD$94>'HT III-XX'!$D$296,'HT III-XX'!AG$281,IF(AD$94>'HT III-XX'!$D$336,'HT III-XX'!AG$321,IF(AD$94>'HT III-XX'!$D$376,'HT III-XX'!AG$361,IF(AD$94>'HT III-XX'!$D$416,'HT III-XX'!AG$401,IF(AD94>'HT III-XX'!$D$456,'HT III-XX'!AG$441,IF(AD$94>'HT III-XX'!$D$496,'HT III-XX'!AG$481,IF(AD$94>'HT III-XX'!$D$536,'HT III-XX'!AG$521,IF(AD$94>'HT III-XX'!$D$576,'HT III-XX'!AG$561,IF(AD$94>'HT III-XX'!$D$616,'HT III-XX'!AG$601,IF(AD$94>'HT III-XX'!$D$656,'HT III-XX'!AG$641,IF(AD$94>'HT III-XX'!$D$687,'HT III-XX'!$G692,'HT III-XX'!$G$688)))))))))))))) -> 0 | AG126: =+IF(AE$94>'HT III-XX'!$D$176,'HT III-XX'!AI161,IF(AE$94>'HT III-XX'!D$216,'HT III-XX'!AI$201,IF(AE$94>'HT III-XX'!D$257,'HT III-XX'!AI$241,IF(AE$94>'HT III-XX'!$D$296,'HT III-XX'!AI$281,IF(AE$94>'HT III-XX'!$D$336,'HT III-XX'!AI$321,IF(AE$94>'HT III-XX'!$D$376,'HT III-XX'!AI$361,IF(AE$94>'HT III-XX'!$D$416,'HT III-XX'!AI$401,IF(AE94>'HT III-XX'!$D$456,'HT III-XX'!AI$441,IF(AE$94>'HT III-XX'!$D$496,'HT III-XX'!AI$481,IF(AE$94>'HT III-XX'!$D$536,'HT III-XX'!AI$521,IF(AE$94>'HT III-XX'!$D$576,'HT III-XX'!AI$561,IF(AE$94>'HT III-XX'!$D$616,'HT III-XX'!AI$601,IF(AE$94>'HT III-XX'!$D$656,'HT III-XX'!AI$641,IF(AE$94>'HT III-XX'!$D$687,'HT III-XX'!$G692,'HT III-XX'!$G$688)))))))))))))) -> 0 | AH126: =+IF(AF$94>'HT III-XX'!$D$176,'HT III-XX'!AK161,IF(AF$94>'HT III-XX'!D$216,'HT III-XX'!AK$201,IF(AF$94>'HT III-XX'!D$257,'HT III-XX'!AK$241,IF(AF$94>'HT III-XX'!$D$296,'HT III-XX'!AK$281,IF(AF$94>'HT III-XX'!$D$336,'HT III-XX'!AK$321,IF(AF$94>'HT III-XX'!$D$376,'HT III-XX'!AK$361,IF(AF$94>'HT III-XX'!$D$416,'HT III-XX'!AK$401,IF(AF94>'HT III-XX'!$D$456,'HT III-XX'!AK$441,IF(AF$94>'HT III-XX'!$D$496,'HT III-XX'!AK$481,IF(AF$94>'HT III-XX'!$D$536,'HT III-XX'!AK$521,IF(AF$94>'HT III-XX'!$D$576,'HT III-XX'!AK$561,IF(AF$94>'HT III-XX'!$D$616,'HT III-XX'!AK$601,IF(AF$94>'HT III-XX'!$D$656,'HT III-XX'!AK$641,IF(AF$94>'HT III-XX'!$D$687,'HT III-XX'!$G692,'HT III-XX'!$G$688)))))))))))))) -> 0 | AI126: 0 | AJ126: =+(AI126-AF126)/3 -> 0 | AK126: XVII | AL126: 0 | AM126: =+AF97 -> 5.04 | AN126: 0 | AO126: 0 | AP126: 0 | AR126: XVII | AS126: 0 | AT126: 5.04 | AU126: 0 | AV126: 0 | AW126: 0
R127: E voda = | S127: =+'Analiza i dimenzioniranje'!E41 -> 0.6 | T127: =IF('Analiza i dimenzioniranje'!$E$41>'Sile i krakovi'!T114,('Analiza i dimenzioniranje'!$E$41-'Sile i krakovi'!T114)/3,0) -> 0 | U127: =IF('Analiza i dimenzioniranje'!$E$41>'Sile i krakovi'!U114,('Analiza i dimenzioniranje'!$E$41-'Sile i krakovi'!U114)/3,0) -> 0 | V127: =IF('Analiza i dimenzioniranje'!$E$41>'Sile i krakovi'!V114,('Analiza i dimenzioniranje'!$E$41-'Sile i krakovi'!V114)/3,0) -> 0 | W127: =IF('Analiza i dimenzioniranje'!$E$41>'Sile i krakovi'!W114,('Analiza i dimenzioniranje'!$E$41-'Sile i krakovi'!W114)/3,0) -> 0 | X127: =IF('Analiza i dimenzioniranje'!$E$41>'Sile i krakovi'!X114,('Analiza i dimenzioniranje'!$E$41-'Sile i krakovi'!X114)/3,0) -> 0 | Y127: =IF('Analiza i dimenzioniranje'!$E$41>'Sile i krakovi'!Y114,('Analiza i dimenzioniranje'!$E$41-'Sile i krakovi'!Y114)/3,0) -> 0 | Z127: =IF('Analiza i dimenzioniranje'!$E$41>'Sile i krakovi'!Z114,('Analiza i dimenzioniranje'!$E$41-'Sile i krakovi'!Z114)/3,0) -> 0 | AA127: =IF('Analiza i dimenzioniranje'!$E$41>'Sile i krakovi'!AA114,('Analiza i dimenzioniranje'!$E$41-'Sile i krakovi'!AA114)/3,0) -> 0 | AB127: =IF('Analiza i dimenzioniranje'!$E$41>'Sile i krakovi'!AB114,('Analiza i dimenzioniranje'!$E$41-'Sile i krakovi'!AB114)/3,0) -> 0 | AC127: =IF('Analiza i dimenzioniranje'!$E$41>'Sile i krakovi'!AC114,('Analiza i dimenzioniranje'!$E$41-'Sile i krakovi'!AC114)/3,0) -> 0 | AD127: =IF('Analiza i dimenzioniranje'!$E$41>'Sile i krakovi'!AD114,('Analiza i dimenzioniranje'!$E$41-'Sile i krakovi'!AD114)/3,0) -> 0 | AE127: =IF('Analiza i dimenzioniranje'!$E$41>'Sile i krakovi'!AE114,('Analiza i dimenzioniranje'!$E$41-'Sile i krakovi'!AE114)/3,0) -> 0 | AF127: =IF('Analiza i dimenzioniranje'!$E$41>'Sile i krakovi'!AF114,('Analiza i dimenzioniranje'!$E$41-'Sile i krakovi'!AF114)/3,0) -> 0 | AG127: =IF('Analiza i dimenzioniranje'!$E$41>'Sile i krakovi'!AG114,('Analiza i dimenzioniranje'!$E$41-'Sile i krakovi'!AG114)/3,0) -> 0 | AH127: =IF('Analiza i dimenzioniranje'!$E$41>'Sile i krakovi'!AH114,('Analiza i dimenzioniranje'!$E$41-'Sile i krakovi'!AH114)/3,0) -> 0 | AI127: =IF('Analiza i dimenzioniranje'!$E$41>'Sile i krakovi'!AI114,('Analiza i dimenzioniranje'!$E$41-'Sile i krakovi'!AI114)/3,0) -> 0 | AK127: XVIII | AL127: 0 | AM127: =+AG97 -> 5.36 | AN127: 0 | AO127: 0 | AP127: 0 | AR127: XVIII | AS127: 0 | AT127: 5.36 | AU127: 0 | AV127: 0 | AW127: 0
A128: vertikalne S I L E i HORIZ. KRAKOVI SILA za prevrtanje oko točke A | I128: EQTemelj | R128: Hpotres = | S128: =+'C III-V'!AE113 ->  | T128: =+'C III-V'!AE113-T114 ->  | U128: =+'C VI-VII'!AC113-'Sile i krakovi'!U114 ->  | V128: =+'C VI-VII'!AE113-'Sile i krakovi'!V114 ->  | W128: =+'C VIII-IX'!AC113-'Sile i krakovi'!W114 ->  | X128: =+'C VIII-IX'!AE113-'Sile i krakovi'!X114 ->  | Y128: =+'C X-XI'!AC113-'Sile i krakovi'!Y114 ->  | Z128: =+'C X-XI'!AE113-'Sile i krakovi'!Z114 ->  | AA128: =+'C XII-XIII'!AC113-AA114 ->  | AB128: =+'C XII-XIII'!AE113-AB114 ->  | AC128: =+'C XIV-XV'!AC113-AC114 ->  | AD128: =+'C XIV-XV'!AE113-AD114 ->  | AE128: =+'C XVI-XVII'!AC113-AE114 ->  | AF128: =+'C XVI-XVII'!AE113-AF114 ->  | AG128: =+'C XVIII-XIX'!AC113-AG114 ->  | AH128: =+'C XVIII-XIX'!AE113-AH114 ->  | AI128: 0 | AK128: XIX | AL128: 0 | AM128: =+AH97 -> 5.68 | AN128: 0 | AO128: 0 | AP128: 0 | AR128: XIX | AS128: 0 | AT128: 5.68 | AU128: 0 | AV128: 0 | AW128: 0
A129: Koord. na licu zida i temelja za opterećenja | D129: X Točka A Y | F129: Sile | R129: Eprometno= | S129: Mprometno | T129: =+T123*T106 ->  | AK129: XX | AL129: 0 | AM129: =+AI97 -> 6 | AN129: 0 | AO129: 0 | AP129: 0 | AR129: XX | AS129: 0 | AT129: 6 | AU129: 0 | AV129: 0 | AW129: 0
A130: koordinate | B130: X | C130: Y | D130: =+D105 -> 4.9000022 | E130: 0.5 | F130: kN | S130: SMH= | T130: =+T98*T116+T117*T99+T100*T118+T101*T119+T102*T120+T103*T121+T122*T104+T106*T123+T124*T107+T108*T125+T126*T109+T110*T127+T128*T111-T129 -> 
A131: SS= | B131: =+B106 ->  | C131: 3.999999996 | E131: 3.499999996 | F131: =SUM(F132:F135) -> 25.88190451 | I131: y | J131: x | R131: Vertikalne komponente sila sidara i tlakova, uzgona | T131: PIII | U131: PVI | V131: PVII | W131: PVIII | X131: PIX | Y131: PX | Z131: P XI | AA131: P XII | AB131: P XIII | AC131: P XIV | AD131: PXV | AE131: PXVI | AF131: PXVII | AG131: PXVIII | AH131: PXIX | AI131: PXX
A132: Sv1= | C132: 5 | E132: 4.5 | F132: =+S134 -> 12.94095226 | I132: =IF(F131=0,0,+(I133*F132+I134*F133+I135*F134+I136*F135)/F131) -> 3.5 | J132: =IF(F131=0,0,+(F132*J133+F133*J134+F134*J135+F135*J136)/F131) ->  | T132: =+T96 -> 
A133: Sv2= | C133: 3 | E133: 2.5 | F133: =+S135 -> 12.94095226 | I133: =+IF(E132="",0,E132) -> 4.5 | J133: =+IF(D132="",0,D132) ->  | T133: =+T97 -> 1.2 | U133: 1.52 | V133: 1.84 | W133: 2.16 | X133: 2.48 | Y133: 2.8 | Z133: 3.14 | AA133: 3.44 | AB133: 3.76 | AC133: 4.08 | AD133: 4.4 | AE133: 4.72 | AF133: 5.04 | AG133: 5.36 | AH133: 5.68 | AI133: 6
A134: Sv3= | F134: =+S136 -> 0 | I134: =+IF(E133="",0,E133) -> 2.5 | J134: =+IF(D133="",0,D133) ->  | R134: Sv1= | S134: =IF(F107="",0,'Analiza i dimenzioniranje'!D75*SIN('Analiza i dimenzioniranje'!$E$39*PI()/180)) -> 12.94095226 | T134: =IF($C132>T$133,$S134,0) -> 12.94095226 | U134: =IF($C$132>U$133,$S134,0) -> 12.94095226 | V134: 12.94095226 | W134: 12.94095226 | X134: 12.94095226 | Y134: 12.94095226 | Z134: 12.94095226 | AA134: 12.94095226 | AB134: 12.94095226 | AC134: 12.94095226 | AD134: 12.94095226 | AE134: 12.94095226 | AF134: 0 | AG134: 0 | AH134: 0 | AI134: 0
A135: Sv4= | F135: =+S137 -> 0 | I135: =+IF(E134="",0,E134) -> 0 | J135: =+IF(D134="",0,D134) -> 0 | R135: Sv2= | S135: =IF(F108="",0,'Analiza i dimenzioniranje'!E75*SIN('Analiza i dimenzioniranje'!$E$39*PI()/180)) -> 12.94095226 | T135: =IF($C$133>T$133,$S135,0) -> 12.94095226 | U135: 12.94095226 | V135: 12.94095226 | W135: 12.94095226 | X135: 12.94095226 | Y135: 12.94095226 | Z135: 0 | AA135: 0 | AB135: 0 | AC135: 0 | AD135: 0 | AE135: 0 | AF135: 0 | AG135: 0 | AH135: 0 | AI135: 0
A136: Voda izvan zida | B136: =+P110 -> 2.666666667 | C136: =+P111 -> 0.2666666667 | D136: =+D130-B136 -> 2.233335533 | E136: =+C136-E130 -> -0.2333333333 | F136: =+P109 -> 3.2 | I136: =+IF(E135="",0,E135) -> 0 | J136: =+IF(D135="",0,D135) -> 0 | R136: Sv3= | S136: =IF(F109="",0,'Analiza i dimenzioniranje'!F75*SIN('Analiza i dimenzioniranje'!$E$39*PI()/180)) -> 0 | T136: =IF($C$134>T$133,$S136,0) -> 0 | U136: 0 | V136: 0 | W136: 0 | X136: 0 | Y136: 0 | Z136: 0 | AA136: 0 | AB136: 0 | AC136: 0 | AD136: 0 | AE136: 0 | AF136: 0 | AG136: 0 | AH136: 0 | AI136: 0
A137: Ev1= | B137: =+B112 ->  | F137: =+S139 ->  | I137: =+IF(E136="",0,E136) -> -0.2333333333 | J137: =+IF(D136="",0,D136) -> 2.233335533 | R137: Sv4= | S137: =IF(F110="",0,'Analiza i dimenzioniranje'!G75*SIN('Analiza i dimenzioniranje'!$E$39*PI()/180)) -> 0 | T137: =IF($C$135>T$133,$S137,0) -> 0 | U137: 0 | V137: 0 | W137: 0 | X137: 0 | Y137: 0 | Z137: 0 | AA137: 0 | AB137: 0 | AC137: 0 | AD137: 0 | AE137: 0 | AF137: 0 | AG137: 0 | AH137: 0 | AI137: 0
A138: Ev2= | F138: =+S140 ->  | R138: Voda ispred = | S138: =+'Analiza i dimenzioniranje'!B131 -> 0 | T138: 0 | U138: =IF($C$136>U$133,$S138,0) -> 0 | V138: 0 | W138: 0 | X138: 0 | Y138: 0 | Z138: 0 | AA138: 0 | AB138: 0 | AC138: 0 | AD138: 0 | AE138: 0 | AF138: 0 | AG138: 0 | AH138: 0 | AI138: 0
A139: Ev3= | B139: 2 | F139: =+'Analiza i dimenzioniranje'!D112 ->  | K139: koordinate leđa zida s položajem horizontalnih sila | P139: Sjecište presjeka u zidu i leđa zida | R139: Ev1= | S139: ='Analiza i dimenzioniranje'!D110 ->  | T139: =-T177 ->  | AI139: 0
A140: Eprometno | B140: =+'Rasprostiranje vertikalnog opt'!S30 ->  | C140: =+C8 -> 1.2 | D140: =+D130-B140 ->  | F140: =+'Analiza i dimenzioniranje'!B141 ->  | K140: visina presjeka | L140: X | M140: E1 | N140: X | O140: E2 | P140: x | Q140: y | R140: Ev2= | S140: ='Analiza i dimenzioniranje'!D111 ->  | T140: =-T180 ->  | AG140: 0 | AI140: 0
A141: EPTočkasto | B141: =+'Rasprostiranje vertikalnog opt'!$S$48 ->  | C141: =+C140 -> 1.2 | D141: =+D130-B141 ->  | F141: =+'Analiza i dimenzioniranje'!B142 ->  | K141: =+C8 -> 1.2 | L141: =+M141/$B$85-$D$85/$B$85 ->  | M141: =+'C III-V'!B87 ->  | N141: =+O141/$B$85-$D$85/$B$85 ->  | O141: =+'C III-V'!D87 ->  | P141: =+Q141/$B$85-$D$85/$B$85 ->  | Q141: =+'Analiza i dimenzioniranje'!U52 -> 1.2 | R141: Ev3= | S141: ='Analiza i dimenzioniranje'!B148 ->  | T141: 0 | U141: 0 | V141: 0 | W141: 0 | X141: 0 | Y141: 0 | Z141: 0 | AA141: 0 | AB141: 0 | AC141: 0 | AD141: 0 | AE141: 0 | AF141: 0 | AG141: 0 | AH141: 0 | AI141: 0
A142: EPLinijsko | B142: =+'Rasprostiranje vertikalnog opt'!$S$39 ->  | C142: =+C141 -> 1.2 | D142: =+D130-B142 ->  | F142: =+'Analiza i dimenzioniranje'!B143 ->  | K142: =+K141+'Analiza i dimenzioniranje'!X$53 -> 1.52 | M142: =+'C VI-VII'!I$87 ->  | O142: =+'C VI-VII'!K87 ->  | Q142: =+'Analiza i dimenzioniranje'!U53 -> 1.52 | R142: Eprometno= | S142: =+'Analiza i dimenzioniranje'!B141 ->  | T142: =IF($C$140>T$133,$S142,0) -> 0 | U142: 0 | V142: 0 | W142: 0 | X142: 0 | Y142: 0 | Z142: 0 | AA142: 0 | AB142: 0 | AC142: 0 | AD142: 0 | AE142: 0 | AF142: 0 | AG142: 0 | AH142: 0 | AI142: 0
A143: EQTemelj | B143: =+'Rasprostiranje vertikalnog opt'!$S$21 ->  | C143: =+C142 -> 1.2 | D143: =+D130-B143 ->  | F143: =+'Analiza i dimenzioniranje'!B144 ->  | K143: =+K142+'Analiza i dimenzioniranje'!X$53 -> 1.84 | M143: =+'C VI-VII'!N87 ->  | O143: =+'C VI-VII'!P87 ->  | Q143: =+'Analiza i dimenzioniranje'!U54 -> 1.84 | R143: Etočkasto = | S143: =+F141 ->  | T143: =IF($C$141>T$133,$S143,0) -> 0 | U143: 0 | V143: 0 | W143: 0 | X143: 0 | Y143: 0 | Z143: 0 | AA143: 0 | AB143: 0 | AC143: 0 | AD143: 0 | AE143: 0 | AF143: 0 | AG143: 0 | AH143: 0 | AI143: 0
A144: Vsidro | B144: =+B131 ->  | C144: =+C131 -> 3.999999996 | D144: =+D131 ->  | E144: =+E131 -> 3.499999996 | F144: =+'Analiza i dimenzioniranje'!B145 -> 25.88190454 | K144: =+K143+'Analiza i dimenzioniranje'!X$53 -> 2.16 | M144: =+'C VIII-IX'!I$87 ->  | O144: =+'C VIII-IX'!K$87 ->  | Q144: =+'Analiza i dimenzioniranje'!U55 -> 2.16 | R144: Elinijsko = | S144: =+F142 ->  | T144: =IF($C$142>T$133,$S144,0) -> 0 | U144: 0 | V144: 0 | W144: 0 | X144: 0 | Y144: 0 | Z144: 0 | AA144: 0 | AB144: 0 | AC144: 0 | AD144: 0 | AE144: 0 | AF144: 0 | AG144: 0 | AH144: 0 | AI144: 0
A145: Vvoda | B145: =+J145 -> 0 | C145: =+J146 -> 0 | D145: =+B145 -> 0 | E145: =+C145-('Analiza i dimenzioniranje'!E52-'Analiza i dimenzioniranje'!E51) -> -0.5 | K145: =+K144+'Analiza i dimenzioniranje'!X$53 -> 2.48 | M145: =+'C VIII-IX'!N$87 ->  | O145: =+'C VIII-IX'!P$87 ->  | Q145: =+'Analiza i dimenzioniranje'!U56 -> 2.48 | R145: Etemelja = | S145: =+F143 ->  | T145: =IF($C$143>T$133,$S145,0) -> 0 | U145: 0 | V145: 0 | W145: 0 | X145: 0 | Y145: 0 | Z145: 0 | AA145: 0 | AB145: 0 | AC145: 0 | AD145: 0 | AE145: 0 | AF145: 0 | AG145: 0 | AH145: 0 | AI145: 0
A146: Gtemelja | B146: =+$D$130-D146 ->  | C146: 0.5 | D146: =+'Analiza i dimenzioniranje'!C135 ->  | F146: =+'Analiza i dimenzioniranje'!B135 ->  | K146: =+K145+'Analiza i dimenzioniranje'!X$53 -> 2.8 | M146: =+'C X-XI'!I$87 ->  | O146: =+'C X-XI'!K$87 ->  | Q146: =+'Analiza i dimenzioniranje'!U57 -> 2.8 | R146: Gtemelja | S146: 0 | T146: 0 | U146: 0 | V146: 0 | W146: 0 | X146: 0 | Y146: 0 | Z146: 0 | AA146: 0 | AB146: 0 | AC146: 0 | AD146: 0 | AE146: 0 | AF146: 0 | AG146: 0 | AH146: 0 | AI146: 0
A147: Gzid+konzola | B147: =+$D$130-D147 ->  | C147: 0.5 | D147: =+'Analiza i dimenzioniranje'!C136 ->  | F147: =+S147 ->  | K147: =+K146+'Analiza i dimenzioniranje'!X$53 -> 3.12 | M147: =+'C X-XI'!N$87 ->  | O147: =+'C X-XI'!P$87 ->  | Q147: =+'Analiza i dimenzioniranje'!U58 -> 3.14 | R147: Gzid+konzola | S147: =+'Analiza i dimenzioniranje'!B136 ->  | T147: =-'C III-V'!$H$61 ->  | U147: =-'C VI-VII'!L61 ->  | V147: =-'C VI-VII'!P61 ->  | W147: =-'C VIII-IX'!L61 ->  | X147: =-'C VIII-IX'!P61 ->  | Y147: =-'C X-XI'!$L61 ->  | Z147: =-'C X-XI'!$P61 ->  | AA147: =-'C XII-XIII'!$L61 ->  | AB147: =-'C XII-XIII'!$P61 ->  | AC147: =-'C XIV-XV'!$L61 ->  | AD147: =-'C XIV-XV'!$P61 ->  | AE147: =-'C XVI-XVII'!$L61 ->  | AF147: =-'C XVI-XVII'!$P61 ->  | AG147: =-'C XVIII-XIX'!$L61 ->  | AH147: =-'C XVIII-XIX'!$P61 ->  | AI147: 0
A148: Gnasip na konzoli | B148: =+$D$130-D148 ->  | C148: 0.5 | D148: =+'Analiza i dimenzioniranje'!C138 ->  | F148: =+S148 ->  | K148: =+K147+'Analiza i dimenzioniranje'!X$53 -> 3.44 | M148: =+'C XII-XIII'!I$87 ->  | O148: =+'C XII-XIII'!K$87 ->  | Q148: =+'Analiza i dimenzioniranje'!U59 -> 3.44 | R148: Gnasip na konzoli | S148: =+'Analiza i dimenzioniranje'!B138 ->  | T148: =-S148 ->  | U148: =-'C VI-VII'!N61 ->  | V148: =-'C VI-VII'!R61 ->  | W148: =-'C VIII-IX'!R61 ->  | X148: =-'C VIII-IX'!R61 ->  | Y148: =-'C VI-VII'!N61 ->  | Z148: =-'C X-XI'!R61 ->  | AA148: =-'C XII-XIII'!N61 ->  | AB148: =-'C XII-XIII'!R61 ->  | AC148: =-'C XIV-XV'!N61 ->  | AD148: =-'C XIV-XV'!R61 ->  | AE148: =-'C XVI-XVII'!N61 ->  | AF148: =-'C XVI-XVII'!R61 ->  | AG148: =-'C XVIII-XIX'!N61 ->  | AH148: =-'C XVIII-XIX'!R61 ->  | AI148: =-'P XX-XX'!$B130 -> 0
A149: Gnasipa iza zida | B149: =+$D$130-D149 ->  | C149: 0.5 | D149: =+'Analiza i dimenzioniranje'!C139 ->  | F149: =+'Analiza i dimenzioniranje'!B139 ->  | K149: =+K148+'Analiza i dimenzioniranje'!X$53 -> 3.76 | M149: =+'C XII-XIII'!N$87 ->  | O149: =+'C XII-XIII'!P$87 ->  | Q149: =+'Analiza i dimenzioniranje'!U60 -> 3.76 | R149: Gnasipa iza zida | S149: =+'Analiza i dimenzioniranje'!B139 ->  | T149: 0 | U149: 0 | V149: 0 | W149: 0 | X149: 0 | Y149: 0 | Z149: 0 | AA149: 0 | AB149: 0 | AC149: 0 | AD149: 0 | AE149: 0 | AF149: 0 | AG149: 0 | AH149: 0 | AI149: 0
A150: Gnasipa ispred zida | B150: =+$D$130-D150 ->  | C150: 0.5 | D150: =+'Analiza i dimenzioniranje'!C140 ->  | F150: =+S150 ->  | K150: =+K149+'Analiza i dimenzioniranje'!X$53 -> 4.08 | M150: =+'C XII-XIII'!I$87 ->  | O150: =+'C XIV-XV'!K$87 ->  | Q150: =+'Analiza i dimenzioniranje'!U61 -> 4.08 | R150: Gnasipa ispred zida | S150: =+'Analiza i dimenzioniranje'!B140 ->  | T150: 0 | U150: 0 | V150: 0 | W150: 0 | X150: 0 | Y150: 0 | Z150: 0 | AA150: 0 | AB150: 0 | AC150: 0 | AD150: 0 | AE150: 0 | AF150: 0 | AG150: 0 | AH150: 0 | AI150: 0
B151: =+'C III-V'!B68 -> E1 | D151: =+'C III-V'!D68 -> E2 | F151: =+'C III-V'!F68 -> E3 | K151: =+K150+'Analiza i dimenzioniranje'!X$53 -> 4.4 | M151: =+'C XIV-XV'!N$87 ->  | O151: =+'C XIV-XV'!P$87 ->  | Q151: =+'Analiza i dimenzioniranje'!U62 -> 4.4 | R151: SV= | S151: =SUM(S134:S150) ->  | T151: =SUM(T134:T150) ->  | U151: =SUM(U134:U148) ->  | AI151: 0
A152: =+'C III-V'!M79 -> 0 | B152: =+'C III-V'!K79 -> 0 | C152: =+'C III-V'!L79 -> 0 | E152: =+'C III-V'!N79 -> 0 | F152: =+'C III-V'!O79 -> 0 | K152: =+K151+'Analiza i dimenzioniranje'!X$53 -> 4.72 | M152: =+'C XVI-XVII'!I$87 ->  | O152: =+'C XVI-XVII'!K$87 ->  | Q152: =+'Analiza i dimenzioniranje'!U63 -> 4.72
A153: =+A161 -> 1 | B153: =+'C III-V'!B70 -> 0 | C153: =+'C III-V'!C70 ->  | D153: =+'C III-V'!D71 -> 0 | E153: =+'C III-V'!E71 ->  | F153: =+'C III-V'!F69 -> 0 | I153: =+'C III-V'!P79 -> 0 | K153: =+K152+'Analiza i dimenzioniranje'!X$53 -> 5.04 | M153: =+'C XVI-XVII'!N$87 ->  | O153: =+'C XVI-XVII'!P$87 ->  | Q153: =+'Analiza i dimenzioniranje'!U64 -> 5.04 | R153: Horizontalni krakovi od osi zida do točke djelovanja na zidu za izračun momenta u tom presjeku | T153: PIII | U153: PVI | V153: PVII | W153: PVIII | X153: PIX | Y153: PX | Z153: P XI | AA153: P XII | AB153: P XIII | AC153: P XIV | AD153: PXV | AE153: PXVI | AF153: PXVII | AG153: PXVIII | AH153: PXIX | AI153: PXX
A154: =+A162 -> 2 | B154: =+'C III-V'!B71 ->  | C154: =+'C III-V'!C71 ->  | D154: =+'C III-V'!D72 -> 0 | E154: =+'C III-V'!E72 ->  | F154: =+'C III-V'!F72 -> 0 | I154: =+'C III-V'!G69 -> 1.2 | K154: =+K153+'Analiza i dimenzioniranje'!X$53 -> 5.36 | M154: =+'C XVIII-XIX'!I$87 ->  | O154: =+'C XVIII-XIX'!K$87 -> 0 | Q154: =+'Analiza i dimenzioniranje'!U65 -> 5.36 | T154: =+T132 -> 
A155: =+A163 -> 3 | B155: =+'C III-V'!B72 -> 0 | C155: =+'C III-V'!C72 ->  | D155: =+'C III-V'!D69 ->  | E155: =+'C III-V'!E69 ->  | F155: =+'C III-V'!F70 ->  | I155: =+'C III-V'!G72 -> 0 | K155: =+K154+'Analiza i dimenzioniranje'!X$53 -> 5.68 | M155: =+'C XVIII-XIX'!N$87 ->  | O155: =+'C XVIII-XIX'!P$87 ->  | Q155: =+'Analiza i dimenzioniranje'!U66 -> 5.68 | T155: =+T133 -> 1.2 | U155: 1.52 | V155: 1.84 | W155: 2.16 | X155: 2.48 | Y155: 2.8 | Z155: 3.14 | AA155: 3.44 | AB155: 3.76 | AC155: 4.08 | AD155: 4.4 | AE155: 4.72 | AF155: 5.04 | AG155: 5.36 | AH155: 5.68 | AI155: 6
A156: 4 | B156: =+'C III-V'!B69 -> 0 | C156: =+'C III-V'!C69 ->  | D156: =+'C III-V'!D70 ->  | E156: =+'C III-V'!E70 ->  | F156: =+'C III-V'!F71 ->  | I156: =+'C III-V'!G70 ->  | K156: =+K155+'Analiza i dimenzioniranje'!X$53 -> 6 | M156: 0 | O156: 0 | Q156: =+'Analiza i dimenzioniranje'!U67 -> 6 | R156: Sv1= | S156: =+B132 ->  | T156: =-IF($S156="",0,T$154-$S156) ->  | U156: =-IF($S$156="",0,U154-$S$156) ->  | AN156: x= | AO156: =+B163 -> 12.36187589 | AP156: =+B162 ->  | AQ156: 22.79
I157: =+'C III-V'!G71 -> 0 | R157: Sv2= | S157: =+B133 ->  | T157: =-IF($S157="",0,T$154-$S157) ->  | U157: =-IF($S157="",0,U$154-$S157) ->  | AN157: Y= | AO157: =+C163 ->  | AP157: =+AC133 -> 4.08
A158: Linije AKTIVNIH TLAKOVA ZA PRESJEK III-III umanjeni za koheziju | R158: Sv3= | S158: =+B134 ->  | T158: =-IF($S158="",0,T$154-$S158) -> 0 | U158: 0 | V158: 0 | W158: 0 | X158: 0 | Y158: 0 | Z158: 0 | AA158: 0 | AB158: 0 | AC158: 0 | AD158: 0 | AE158: 0 | AF158: 0 | AG158: 0 | AH158: 0 | AI158: 0 | AL158: Jednadžba pravca E1 | AN158: Y= | AO158: =(AP157-AO157)/(AP156-AO156) ->  | AP158: *x + | AQ158: =-AO158*AO156+AO157 -> 
A159: =+'C III-V'!A78 -> Oznaka | B159: =+B151 -> E1 | C159: =+'C III-V'!C60 -> m | D159: =+D151 -> E2 | E159: =+'C III-V'!E60 -> m | F159: =+F151 -> E3 | R159: Sv4= | S159: =+B135 ->  | T159: =-IF($S159="",0,T$154-$S159) -> 0 | U159: 0 | V159: 0 | W159: 0 | X159: 0 | Y159: 0 | Z159: 0 | AA159: 0 | AB159: 0 | AC159: 0 | AD159: 0 | AE159: 0 | AF159: 0 | AG159: 0 | AH159: 0 | AI159: 0 | AN159: X= | AO159: =-AP157/$AO$158+$AQ$158/$AO$158 ->  | AP159: za Y= | AQ159: 4.2
A160: =+A152 -> 0 | B160: =+'C III-V'!B79 -> x | C160: =+'C III-V'!C79 -> y | D160: =+'C III-V'!D79 -> x | E160: =+'C III-V'!E79 -> y | F160: =+'C III-V'!F79 -> x | R160: Water | S160: =+B136 -> 2.666666667 | T160: 0 | U160: 0 | V160: 0 | W160: 0 | X160: 0 | Y160: 0 | Z160: 0 | AA160: 0 | AB160: 0 | AC160: 0 | AD160: 0 | AE160: 0 | AF160: 0 | AG160: 0 | AH160: 0 | AI160: 0
A161: =+'C III-V'!A80 -> 1 | B161: =+'C III-V'!B80 -> 12.36187589 | C161: =+'C III-V'!C80 ->  | D161: =+'C III-V'!D80 ->  | E161: =+'C III-V'!E80 ->  | F161: =+'C III-V'!F80 ->  | I161: =+'C III-V'!G79 -> y | R161: Ev1= | S161: =+S121 ->  | T161: =+IF(T139<0,T$154-$L141,0) ->  | U161: =+IF(U139<0,U$154-$L142,0) ->  | V161: =+IF(V139<0,V$154-$L143,0) ->  | W161: =+IF(W139<0,W$154-$L144,0) ->  | X161: =+IF(X139<0,X$154-$L145,0) ->  | Y161: =+IF(Y139<0,Y$154-$L146,0) ->  | Z161: =+IF(Z139<0,Z$154-$L147,0) ->  | AA161: =+IF(AA139<0,AA$154-$L148,0) ->  | AB161: =+IF(AB139<0,AB$154-$L149,0) ->  | AC161: =+IF(AC139<0,AC$154-$L150,0) ->  | AD161: =+IF(AD139<0,AD$154-$L151,0) ->  | AE161: =+IF(AE139<0,AE$154-$L152,0) ->  | AF161: =+IF(AF139<0,AF$154-$L152,0) ->  | AG161: =+AF161 ->  | AH161: =+IF(AH139<0,AH$154-$L155,0) ->  | AI161: =+IF(AI139<0,AI$154-$L156,0) -> 0 | AN161: x= | AO161: =+D163 ->  | AP161: =+D164 ->  | AQ161: =+AO161 -> 
A162: =+'C III-V'!A81 -> 2 | B162: =+'C III-V'!B81 ->  | C162: =+'C III-V'!C81 ->  | D162: =+'C III-V'!D81 ->  | E162: =+'C III-V'!E81 ->  | F162: =+'C III-V'!F81 ->  | I162: =+'C III-V'!G80 -> 0 | R162: Ev2= | S162: =+S122 ->  | T162: =+IF(T140<0,T$154-$N141,0) ->  | U162: =+IF(U140<0,U$154-$N142,0) ->  | V162: =+IF(V140<0,V$154-$N143,0) ->  | W162: =+IF(W140<0,W$154-$N144,0) ->  | X162: =+IF(X140<0,X$154-$N145,0) ->  | Y162: =+IF(Y140<0,Y$154-$N146,0) ->  | Z162: =+IF(Z140<0,Z$154-$N147,0) ->  | AA162: =+IF(AA140<0,AA$154-$N148,0) ->  | AB162: =+IF(AB140<0,AB$154-$N149,0) ->  | AC162: =+IF(AC140<0,AC$154-$N150,0) ->  | AD162: =+IF(AD140<0,AD$154-$N151,0) ->  | AE162: =+IF(AE140<0,AE$154-$N152,0) ->  | AF162: =+IF(AF140<0,AF$154-$N153,0) ->  | AG162: =+IF(AG140<0,AG$154-$N154,0) -> 0 | AH162: =+IF(AH140<0,AH$154-$N155,0) ->  | AI162: =+IF(AI140<0,AI$154-$N156,0) -> 0 | AN162: Y= | AO162: =+E162 ->  | AP162: =+E164 -> 
A163: =+'C III-V'!A82 -> 3 | B163: =+'C III-V'!B82 -> 12.36187589 | C163: =+'C III-V'!C82 ->  | D163: =+'C III-V'!D82 ->  | E163: =+'C III-V'!E82 ->  | F163: =+'C III-V'!F82 ->  | I163: =+'C III-V'!G81 ->  | R163: Eprometno= | S163: =+'Rasprostiranje vertikalnog opt'!V34 -> 0 | T163: 0 | U163: 0 | V163: 0 | W163: 0 | X163: 0 | Y163: 0 | Z163: 0 | AA163: 0 | AB163: 0 | AC163: 0 | AD163: 0 | AE163: 0 | AF163: 0 | AG163: 0 | AH163: 0 | AI163: 0 | AL163: Jednadžba pravca E2 | AN163: Y= | AO163: =(AP162-AO162)/(AP161-AO161) ->  | AP163: *x + | AQ163: =-AO163*AO161+AO162 -> 
A164: =+'C III-V'!A83 -> 4 | B164: =+'C III-V'!B83 -> 12.36187589 | C164: =+'C III-V'!C83 ->  | D164: =+'C III-V'!D83 ->  | E164: =+'C III-V'!E83 ->  | F164: =+'C III-V'!F83 ->  | I164: =+'C III-V'!G82 ->  | R164: Etočkasto = | S164: =+'Rasprostiranje vertikalnog opt'!AF48 -> 0 | T164: 0 | U164: 0 | V164: 0 | W164: 0 | X164: 0 | Y164: 0 | Z164: 0 | AA164: 0 | AB164: 0 | AC164: 0 | AD164: 0 | AE164: 0 | AF164: 0 | AG164: 0 | AH164: 0 | AI164: 0 | AN164: X= | AO164: =-4.2/$AO$163+$AQ$163/$AO$163 -> 
I165: =+'C III-V'!G83 -> 0 | R165: Elinijsko = | S165: =+'Rasprostiranje vertikalnog opt'!AF38 -> 0 | T165: 0 | U165: 0 | V165: 0 | W165: 0 | X165: 0 | Y165: 0 | Z165: 0 | AA165: 0 | AB165: 0 | AC165: 0 | AD165: 0 | AE165: 0 | AF165: 0 | AG165: 0 | AH165: 0 | AI165: 0
R166: Etemelja = | S166: =+'Rasprostiranje vertikalnog opt'!AF20 -> 0 | T166: 0 | U166: 0 | V166: 0 | W166: 0 | X166: 0 | Y166: 0 | Z166: 0 | AA166: 0 | AB166: 0 | AC166: 0 | AD166: 0 | AE166: 0 | AF166: 0 | AG166: 0 | AH166: 0 | AI166: 0 | AN166: x= | AO166: =+F164 ->  | AP166: =+F163 ->  | AQ166: =+AO166 -> 
R167: Gzid+konz | S167: =+'C III-V'!H59 ->  | T167: =+T154-'C III-V'!$H$59 ->  | U167: =U154-'C VI-VII'!$L$59 ->  | V167: =V154-'C VI-VII'!$P59 ->  | W167: =W154-'C VIII-IX'!$L$59 ->  | X167: =X154-'C VIII-IX'!$P59 ->  | Y167: =Y154-'C X-XI'!$L$59 ->  | Z167: =Z154-'C X-XI'!$P$59 ->  | AA167: =AA154-'C XII-XIII'!$L$59 ->  | AB167: =AB154-'C XII-XIII'!$P$59 ->  | AC167: =IF(AC154-'C XIV-XV'!$L$59<0,0,AC154-'C XIV-XV'!$L$59) ->  | AD167: =IF(AD154-'C XIV-XV'!$P$59<0,0,AD154-'C XIV-XV'!$P$59) ->  | AE167: =IF(AE154-'C XVI-XVII'!$L$59<0,0,AE154-'C XVI-XVII'!$L$59) ->  | AF167: =IF(AF154-'C XVI-XVII'!$P$59<0,0,AF154-'C XVI-XVII'!$P$59) ->  | AG167: =IF(AG154-'C XVIII-XIX'!$L$59<0,0,AG154-'C XVIII-XIX'!$L$59) ->  | AH167: =IF(AH154-'C XVIII-XIX'!$L$59<0,0,AH154-'C XVIII-XIX'!$L$59) ->  | AI167: 0 | AN167: Y= | AO167: =+I165 -> 0 | AP167: =+I164 -> 
R168: Gnasip na konzoli | S168: =+'C III-V'!$J$59 ->  | T168: =+T154-'C III-V'!$J$59 ->  | U168: =U154-'C VI-VII'!$N59 ->  | V168: =V154-'C VI-VII'!R59 ->  | W168: =W154-'C VIII-IX'!$N59 ->  | X168: =X154-'C VIII-IX'!R59 ->  | Y168: =Y154-'C X-XI'!$N$59 ->  | Z168: =Z154-'C X-XI'!$R$59 ->  | AA168: =AA154-'C XII-XIII'!$N$59 ->  | AB168: =AB154-'C XII-XIII'!$R$59 ->  | AC168: =AC154-'C XIV-XV'!$N$59 ->  | AD168: =AD154-'C XII-XIII'!$R$59 ->  | AE168: =AE154-'C XVI-XVII'!$N$59 ->  | AF168: =AF154-'C XVI-XVII'!$R$59 ->  | AG168: =AG154-'C XVIII-XIX'!$N$59 ->  | AH168: =AH154-'C XVIII-XIX'!$R$59 ->  | AI168: =-'P XX-XX'!$B145 -> 0 | AL168: Jednadžba pravca E3 | AN168: Y= | AO168: =(AP167-AO167)/(AP166-AO166) ->  | AP168: *x + | AQ168: =-AO168*AO166+AO167 -> 
S169: SMV= | T169: =+T134*T156+T135*T157+T136*T158+T137*T159+T138*T160+T139*T161+T140*T162+T142*T163+T143*T164+T144*T165+T145*T166+T147*T167+T148*T168 ->  | AN169: X= | AO169: =-S257/AO168+AQ168/AO168 -> 
U170: =+T167-U167 -> 
S171: oznaka profila | T171: PIII | U171: PVI | V171: PVII | W171: PVIII | X171: PIX | Y171: PX | Z171: P XI | AA171: P XII | AB171: P XIII | AC171: P XIV | AD171: PXV | AE171: PXVI | AF171: PXVII | AG171: PXVIII | AH171: PXIX | AI171: PXX
S172: h= | T172: =+T155 -> 1.2 | U172: 1.52 | V172: 1.84 | W172: 2.16 | X172: 2.48 | Y172: 2.8 | Z172: 3.14 | AA172: 3.44 | AB172: 3.76 | AC172: 4.08 | AD172: 4.4 | AE172: 4.72 | AF172: 5.04 | AG172: 5.36 | AH172: 5.68 | AI172: 6
S173: SM= | T173: =-T169-T130 -> 
S175: E1= | T175: =+'C III-V'!B85 ->  | U175: =+'C VI-VII'!I85 ->  | V175: =+'C VI-VII'!N85 ->  | W175: =+'C VIII-IX'!I85 ->  | X175: =+'C VIII-IX'!N85 ->  | Y175: =+'C X-XI'!I85 ->  | Z175: =+'C X-XI'!N85 ->  | AA175: =+'C XII-XIII'!I85 ->  | AB175: =+'C XII-XIII'!N85 ->  | AC175: =+'C XIV-XV'!I85 ->  | AD175: =+'C XIV-XV'!N85 ->  | AE175: =+'C XVI-XVII'!I85 ->  | AF175: =+'C XVI-XVII'!N85 ->  | AG175: =+'C XVIII-XIX'!I85 ->  | AH175: =+'C XVIII-XIX'!N85 ->  | AI175: 0
S176: EH1= | T176: =+'Analiza i dimenzioniranje'!C110 ->  | U176: =+U175*COS(('Analiza i dimenzioniranje'!$D$19-'Analiza i dimenzioniranje'!$H$51)*PI()/180) ->  | V176: =+V175*COS(('Analiza i dimenzioniranje'!$D$19-'Analiza i dimenzioniranje'!$H$51)*PI()/180) ->  | W176: =+W175*COS(('Analiza i dimenzioniranje'!$D$19-'Analiza i dimenzioniranje'!$H$51)*PI()/180) ->  | X176: =+X175*COS(('Analiza i dimenzioniranje'!$D$19-'Analiza i dimenzioniranje'!$H$51)*PI()/180) ->  | Y176: =+Y175*COS(('Analiza i dimenzioniranje'!$D$19-'Analiza i dimenzioniranje'!$H$51)*PI()/180) ->  | Z176: =+Z175*COS(('Analiza i dimenzioniranje'!$D$19-'Analiza i dimenzioniranje'!$H$51)*PI()/180) ->  | AA176: =+AA175*COS(('Analiza i dimenzioniranje'!$D$19-'Analiza i dimenzioniranje'!$H$51)*PI()/180) ->  | AB176: =+AB175*COS(('Analiza i dimenzioniranje'!$D$19-'Analiza i dimenzioniranje'!$H$51)*PI()/180) ->  | AC176: =+AC175*COS(('Analiza i dimenzioniranje'!$D$19-'Analiza i dimenzioniranje'!$H$51)*PI()/180) ->  | AD176: =+AD175*COS(('Analiza i dimenzioniranje'!$D$19-'Analiza i dimenzioniranje'!$H$51)*PI()/180) ->  | AE176: =+AE175*COS(('Analiza i dimenzioniranje'!$D$19-'Analiza i dimenzioniranje'!$H$51)*PI()/180) ->  | AF176: =+AF175*COS(('Analiza i dimenzioniranje'!$D$19-'Analiza i dimenzioniranje'!$H$51)*PI()/180) ->  | AG176: =+AG175*COS(('Analiza i dimenzioniranje'!$D$19-'Analiza i dimenzioniranje'!$H$51)*PI()/180) ->  | AH176: =+AH175*COS(('Analiza i dimenzioniranje'!$D$19-'Analiza i dimenzioniranje'!$H$51)*PI()/180) ->  | AI176: =+AI175*COS(('Analiza i dimenzioniranje'!$D$19-'Analiza i dimenzioniranje'!$H$51)*PI()/180) -> 0
S177: EV1= | T177: =+'Analiza i dimenzioniranje'!D110 ->  | U177: =ABS(U175*SIN(('Analiza i dimenzioniranje'!$D$19-'Analiza i dimenzioniranje'!$H$51)*PI()/180)) ->  | V177: =ABS(V175*SIN(('Analiza i dimenzioniranje'!$D$19-'Analiza i dimenzioniranje'!$H$51)*PI()/180)) ->  | W177: =ABS(W175*SIN(('Analiza i dimenzioniranje'!$D$19-'Analiza i dimenzioniranje'!$H$51)*PI()/180)) ->  | X177: =ABS(X175*SIN(('Analiza i dimenzioniranje'!$D$19-'Analiza i dimenzioniranje'!$H$51)*PI()/180)) ->  | Y177: =ABS(Y175*SIN(('Analiza i dimenzioniranje'!$D$19-'Analiza i dimenzioniranje'!$H$51)*PI()/180)) ->  | Z177: =ABS(Z175*SIN(('Analiza i dimenzioniranje'!$D$19-'Analiza i dimenzioniranje'!$H$51)*PI()/180)) ->  | AA177: =ABS(AA175*SIN(('Analiza i dimenzioniranje'!$D$19-'Analiza i dimenzioniranje'!$H$51)*PI()/180)) ->  | AB177: =ABS(AB175*SIN(('Analiza i dimenzioniranje'!$D$19-'Analiza i dimenzioniranje'!$H$51)*PI()/180)) ->  | AC177: =ABS(AC175*SIN(('Analiza i dimenzioniranje'!$D$19-'Analiza i dimenzioniranje'!$H$51)*PI()/180)) ->  | AD177: =ABS(AD175*SIN(('Analiza i dimenzioniranje'!$D$19-'Analiza i dimenzioniranje'!$H$51)*PI()/180)) ->  | AE177: =ABS(AE175*SIN(('Analiza i dimenzioniranje'!$D$19-'Analiza i dimenzioniranje'!$H$51)*PI()/180)) ->  | AF177: =ABS(AF175*SIN(('Analiza i dimenzioniranje'!$D$19-'Analiza i dimenzioniranje'!$H$51)*PI()/180)) ->  | AG177: =ABS(AG175*SIN(('Analiza i dimenzioniranje'!$D$19-'Analiza i dimenzioniranje'!$H$51)*PI()/180)) ->  | AH177: =ABS(AH175*SIN(('Analiza i dimenzioniranje'!$D$19-'Analiza i dimenzioniranje'!$H$51)*PI()/180)) ->  | AI177: =ABS(AI175*SIN(('Analiza i dimenzioniranje'!$D$19-'Analiza i dimenzioniranje'!$H$51)*PI()/180)) -> 0
S178: E2= | T178: =+'C III-V'!D85 ->  | U178: =+'C VI-VII'!K85 ->  | V178: =+'C VI-VII'!P85 ->  | W178: =+'C VIII-IX'!K85 ->  | X178: =+'C VIII-IX'!P85 ->  | Y178: =+'C X-XI'!K85 ->  | Z178: =+'C X-XI'!P85 ->  | AA178: =+'C XII-XIII'!K85 ->  | AB178: =+'C XII-XIII'!P85 ->  | AC178: =+'C XIV-XV'!K85 ->  | AD178: =+'C XIV-XV'!P85 ->  | AE178: =+'C XVI-XVII'!K85 ->  | AF178: =+'C XVI-XVII'!P85 ->  | AG178: =+'C XVIII-XIX'!K85 -> 0 | AH178: =+'C XVIII-XIX'!P85 ->  | AI178: 0
S179: EH2= | T179: =+'Analiza i dimenzioniranje'!C111 ->  | U179: =+U178*COS(('Analiza i dimenzioniranje'!$E$19-'Analiza i dimenzioniranje'!$H$51)*PI()/180) ->  | V179: =+V178*COS(('Analiza i dimenzioniranje'!$E$19-'Analiza i dimenzioniranje'!$H$51)*PI()/180) ->  | W179: =+W178*COS(('Analiza i dimenzioniranje'!$E$19-'Analiza i dimenzioniranje'!$H$51)*PI()/180) ->  | X179: =+X178*COS(('Analiza i dimenzioniranje'!$E$19-'Analiza i dimenzioniranje'!$H$51)*PI()/180) ->  | Y179: =+Y178*COS(('Analiza i dimenzioniranje'!$E$19-'Analiza i dimenzioniranje'!$H$51)*PI()/180) ->  | Z179: =+Z178*COS(('Analiza i dimenzioniranje'!$E$19-'Analiza i dimenzioniranje'!$H$51)*PI()/180) ->  | AA179: =+AA178*COS(('Analiza i dimenzioniranje'!$E$19-'Analiza i dimenzioniranje'!$H$51)*PI()/180) ->  | AB179: =+AB178*COS(('Analiza i dimenzioniranje'!$E$19-'Analiza i dimenzioniranje'!$H$51)*PI()/180) ->  | AC179: =+AC178*COS(('Analiza i dimenzioniranje'!$E$19-'Analiza i dimenzioniranje'!$H$51)*PI()/180) ->  | AD179: =+AD178*COS(('Analiza i dimenzioniranje'!$E$19-'Analiza i dimenzioniranje'!$H$51)*PI()/180) ->  | AE179: =+AE178*COS(('Analiza i dimenzioniranje'!$E$19-'Analiza i dimenzioniranje'!$H$51)*PI()/180) ->  | AF179: =+AF178*COS(('Analiza i dimenzioniranje'!$E$19-'Analiza i dimenzioniranje'!$H$51)*PI()/180) ->  | AG179: =+AG178*COS(('Analiza i dimenzioniranje'!$E$19-'Analiza i dimenzioniranje'!$H$51)*PI()/180) -> 0 | AH179: =+AH178*COS(('Analiza i dimenzioniranje'!$E$19-'Analiza i dimenzioniranje'!$H$51)*PI()/180) ->  | AI179: =+AI178*COS(('Analiza i dimenzioniranje'!$E$19-'Analiza i dimenzioniranje'!$H$51)*PI()/180) -> 0
S180: EV2= | T180: =+'Analiza i dimenzioniranje'!D111 ->  | U180: =+SQRT(U178*U178-U179*U179) ->  | V180: =+SQRT(V178*V178-V179*V179) ->  | W180: =+SQRT(W178*W178-W179*W179) ->  | X180: =+SQRT(X178*X178-X179*X179) ->  | Y180: =+SQRT(Y178*Y178-Y179*Y179) ->  | AG180: 0 | AI180: 0
S182: Točke u kojima djeluje trenje | W182: Položaj sile trenja na dnu
S183: Jednadžba dna temelja gdje djeluje naprezanje | W183: x | X183: Y
S184: X= | T184: =+Q196 -> 1.75 | U184: =+O204 -> 4.9000011 | W184: =+T184 -> 1.75 | X184: 0 | Y184: lijevi tub temelja
S185: Y= | T185: =+B218 -> 0.09615389546 | U185: =+('Analiza i dimenzioniranje'!E52-'Analiza i dimenzioniranje'!E51) -> 0.5 | W185: =+T184+(S192-T184)/2 -> 2.57500005 | X185: =+$T$186*W185+$V$186 -> 0.2019230828 | Y185: lijevo
S186: Y= | T186: =(U185-T185)/(U184-T184) -> 0.1282050678 | U186: *x + | V186: =-T186*T184+T185 -> -0.1282049732 | W186: =+Q199+'Analiza i dimenzioniranje'!E55/2 -> 3.8000001 | X186: =IF('Unos podataka'!O48="DA",B319,$T$186*W186+$V$186) -> 0.3589742972 | Y186: sredina
O187: Naponi ispod kontrafore | W187: =S198+(U184-S198)/2 -> 4.5500006 | X187: =+$T$186*W187+$V$186 -> 0.4551281622 | Y187: desno
O188: =+O202 -> 1.75 | P188: =+P202 ->  | S188: Trenje: | W188: =+J200 -> 4.2000001 | X188: =+$T$186*W188+$V$186 -> 0.4102563243 | Y188: sredina dole
O189: =2-'Analiza i dimenzioniranje'!D83 -> 1 | P189: =-'Analiza i dimenzioniranje'!F195/100 ->  | S189: vertikale u naponima | U189: Hor sila trenja
D190: Jednadžba dna temelja s KF | O190: =+O189 -> 1 | P190: 0 | S190: x | T190: y | U190: trenje po presjecima | W190: Horizontalne sile | Y190: V11= | Z190: =+S150+AD204+V202 ->  | AA190: h11 | AB190: =+U193+AV113 -> 
C191: Točke | D191: pravca 1 | J191: Položaji djelovanja | L191: Koord trenja u dnu | Q191: x | R191: y | S191: =+O200 -> 3.4000001 | T191: =+I164 ->  | U191: ='Analiza i dimenzioniranje'!B167*(O200-O202)/(O198-O202) ->  | V191: II-II | Y191: V22= | Z191: =(+S141+S142+S143+S144+S145+S149+R202+Z204+'Analiza i dimenzioniranje'!B137+'Analiza i dimenzioniranje'!B151) ->  | AA191: h22 | AB191: =(+U191-F114-'C III-V'!AH135-'Sile i krakovi'!F119) -> 
D192: T1 | E192: T2 | J192: X | K192: Y | L192: X | M192: Y | O192: Vertikale u betonskim presjecima | Q192: =2+'Analiza i dimenzioniranje'!E61 -> 4.9000022 | R192: =+K196+'Analiza i dimenzioniranje'!E51/2 -> 0.85 | S192: =+S191 -> 3.4000001 | T192: =+P200 ->  | U192: ='Analiza i dimenzioniranje'!B167*(O199-O200)/(O198-O202) ->  | V192: sredina | W192: kN | Y192: V33= | Z192: =+S147+S148+S134+S135+S136+S137-S138+S139+S140 ->  | AA192: h33 | AB192: =-T112 -> 
C193: x= | D193: =+'Unos podataka'!I41 -> 2 | E193: =+J195 -> 4.9000011 | J193: 2 | K193: =+B202 -> 0.1282051512 | L193: =IF('Unos podataka'!O48="DA",0,+W185) -> 2.57500005 | M193: =+R208 ->  | N193: lijevo | Q193: =IF('Unos podataka'!O48="DA",'Sile i krakovi'!A326,S191) -> 3.4000001 | R193: =+(AB198-AB197)/2+AB197 ->  | S193: =+O199 -> 4.2000001 | T193: =+T191 ->  | U193: ='Analiza i dimenzioniranje'!B167*(O198-O199)/(O198-O202) ->  | V193: I-I | W193: =SUM(U191:U193) ->  | Y193: Vtemelja= | Z193: =+AB204+T202 ->  | AA193: Htemelja= | AB193: =+U192 -> 
C194: Y= | D194: =+'Unos podataka'!J41 -> 0.1282051512 | E194: =+K196 -> 0.5 | J194: =+J193 -> 2 | K194: =+'Analiza i dimenzioniranje'!E52 -> 1.2 | L194: =+W186 -> 3.8000001 | M194: =+X186 -> 0.3589742972 | N194: sredina | O194: Točka na II-II za MII-II | Q194: =+S198 -> 4.2000001 | R194: =IF('Unos podataka'!O48="DA",'Sile i krakovi'!B313,(AD197-AD198)/2+AD198) ->  | S194: =+S193 -> 4.2000001 | T194: =+P199 ->  | U194: =SUM(U191:U193) ->  | V194: III-III | W194: ='Analiza i dimenzioniranje'!B167 ->  | Y194: SV= | Z194: =SUM(Z190:Z193) ->  | AA194: SH= | AB194: 0
C195: Y= | D195: =(E194-D194)/(E193-D193) -> 0.1282050716 | E195: *x + | F195: =-D195*D193+D194 -> -0.1282049921 | J195: =+O197 -> 4.9000011 | K195: =+K194 -> 1.2 | L195: =+W187 -> 4.5500006 | M195: =+X187 -> 0.4551281622 | N195: desno | O195: Točka na I-I za MI-I | Q195: vert. Napr. Lijevo | S195: vert. napr između II-II i I-I | U195: Vert. Napr. Desno | Y195: TEMELJ
C196: Y= | D196: =+D195*A204+F195 -> 0.3076923925 | J196: =+J195 -> 4.9000011 | K196: =+K195-'Analiza i dimenzioniranje'!E51 -> 0.5 | L196: Naprezanje | O196: Raspodjela naprezanja | Q196: =+Q197 -> 1.75 | R196: 0 | S196: =+Q199 -> 3.4000001 | T196: =+R200 -> 0 | U196: =+O199 -> 4.2000001 | V196: =+T199 -> 0 | Y196: x lijevo y | AA196: x centar y | AB196: desno | AC196: x desno y | AD196: lijevo
J197: =+J193 -> 2 | K197: =+K193 -> 0.1282051512 | L197: X | M197: Y | O197: =+O198 -> 4.9000011 | P197: 0 | Q197: =+O202 -> 1.75 | R197: =IF(Q196=2,0,P202*100) ->  | S197: =+S196 -> 3.4000001 | T197: =+R199 ->  | U197: =+O199 -> 4.2000001 | V197: =+P199*100 ->  | Y197: =IF('Unos podataka'!$O$48="DA",2+'Analiza i dimenzioniranje'!E60,+Kontrafore!$AF$23) -> 1.75 | Z197: =+B228 -> 0.09615389546 | AA197: =+S196 -> 3.4000001 | AB197: =+AB198-'Analiza i dimenzioniranje'!C192 ->  | AC197: =+AA199 -> 4.2000001 | AD197: =+AB199 -> 
J198: =2+'Analiza i dimenzioniranje'!E59 -> 3.4000001 | K198: =+Z200 ->  | L198: =+IF('Unos podataka'!O48="DA",0,R203) ->  | M198: =IF('Unos podataka'!O48="DA",0,+R204) ->  | N198: lijevo | O198: =+'Analiza i dimenzioniranje'!H190 -> 4.9000011 | P198: =-'Analiza i dimenzioniranje'!F190/100 ->  | Q198: =+O201 -> 2 | R198: =+P201*100 ->  | S198: =+O199 -> 4.2000001 | T198: =+P199*100 ->  | U198: =+O198 -> 4.9000011 | V198: =+P198*100 ->  | Y198: =+Kontrafore!$AF$23 -> 1.75 | Z198: =+T209 ->  | AA198: =AA197-'Analiza i dimenzioniranje'!E60 -> 3.4000001 | AB198: =+Z199 ->  | AC198: =+AC197 -> 4.2000001 | AD198: =+AB200 -> 
J199: =+J198 -> 3.4000001 | K199: =+K194 -> 1.2 | L199: =+T203 ->  | M199: =+T204 ->  | N199: sredina | O199: =+'Analiza i dimenzioniranje'!H191 -> 4.2000001 | P199: =-'Analiza i dimenzioniranje'!F191/100 ->  | Q199: =+O200 -> 3.4000001 | R199: =+P200*100 ->  | S199: =+S198 -> 4.2000001 | T199: 0 | U199: =+U198 -> 4.9000011 | V199: 0 | W199: Vertikalne sile | Y199: =2+'Analiza i dimenzioniranje'!E59 -> 3.4000001 | Z199: =+T209 ->  | AA199: =+S193 -> 4.2000001 | AB199: =+T193 ->  | AC199: =+U198 -> 4.9000011 | AD199: =+'Sile i krakovi'!AD197-'Analiza i dimenzioniranje'!C190 -> 
J200: =+J199+'Analiza i dimenzioniranje'!E55 -> 4.2000001 | K200: =+AB200 ->  | L200: =+V203 ->  | M200: =+V204 ->  | N200: desno | O200: =+'Analiza i dimenzioniranje'!H192 -> 3.4000001 | P200: =-'Analiza i dimenzioniranje'!F192/100 ->  | Q200: =+Q199 -> 3.4000001 | R200: 0 | S200: =+S196 -> 3.4000001 | T200: =+T196 -> 0 | U200: =+U196 -> 4.2000001 | V200: =+V196 -> 0 | Y200: =Y199+'Analiza i dimenzioniranje'!E60 -> 3.4000001 | Z200: =+AB201 ->  | AA200: =+AA199 -> 4.2000001 | AB200: =IF('Unos podataka'!$O$48="DA",'Sile i krakovi'!B310,+AB199-'Analiza i dimenzioniranje'!C191) ->  | AC200: =+AC199 -> 4.9000011 | AD200: =+AB199 -> 
A201: Zid i temelj | J201: =+J200 -> 4.2000001 | K201: =+K199 -> 1.2 | O201: =+'Analiza i dimenzioniranje'!H193 -> 2 | P201: =-'Analiza i dimenzioniranje'!F193/100 ->  | Q201: =+Q196 -> 1.75 | R201: =+R196 -> 0 | S201: =+S200 -> 3.4000001 | T201: =+T200 -> 0 | U201: =+U200 -> 4.2000001 | V201: =+V200 -> 0 | W201: kN | Y201: =+Y197 -> 1.75 | Z201: =IF('Analiza i dimenzioniranje'!D83>0,+Z197,0) -> 0.09615389546 | AA201: =+AA197 -> 3.4000001 | AB201: =+AB197 ->  | AC201: =+AA199 -> 4.2000001 | AD201: =+AB199 ->  | AE201: Temelj
A202: =+B7 -> 2 | B202: 0.1282051512 | O202: =+'Analiza i dimenzioniranje'!H194 -> 1.75 | P202: =+'Analiza i dimenzioniranje'!$I$194 ->  | Q202: A= | R202: =-0.5*((Q196*R197-Q197*R196)+(Q197*R198-Q198*R197)+(Q198*R199-Q199*R198)+(Q199*R200-Q200*R199)+(Q200*R201-Q201*R200)) ->  | S202: A= | T202: =-0.5*((S196*T197-S197*T196)+(S197*T198-S198*T197)+(S198*T199-S199*T198)+(S199*T200-S200*T199)+(S200*T201-S201*T200)) ->  | U202: A= | V202: =-0.5*((U196*V197-U197*V196)+(U197*V198-U198*V197)+(U198*V199-U199*V198)+(U199*V200-U200*V199)+(U200*V201-U201*V200)) ->  | W202: =SUM(R202:V202) ->  | Y202: A= | Z202: =-0.5*(+(Y197*Z198-Y198*Z197)+(Y198*Z199-Y199*Z198)+(Y199*Z200-Y200*Z199)+(Y200*Z201-Y201*Z200)) ->  | AA202: A= | AB202: =-0.5*(+(AA197*AB198-AA198*AB197)+(AA198*AB199-AA199*AB198)+(AA199*AB200-AA200*AB199)+(AA200*AB201-AA201*AB200)) ->  | AC202: A= | AD202: =0.5*(+(AC197*AD198-AC198*AD197)+(AC198*AD199-AC199*AD198)+(AC199*AD200-AC200*AD199)+(AC200*AD201-AC201*AD200)) ->  | AE202: kN
A203: 2 | B203: 1.2 | J203: =2+'Analiza i dimenzioniranje'!E59+'Analiza i dimenzioniranje'!E51 -> 4.1000001 | O203: =+O202 -> 1.75 | P203: 0 | Q203: x= | R203: =-((Q196*R197-Q197*R196)*(Q196+Q197)+(Q197*R198-Q198*R197)*(Q197+Q198)+(Q198*R199-Q199*R198)*(Q198+Q199)+(Q199*R200-Q200*R199)*(Q199+Q200)+(Q200*R201-Q201*R200)*(Q200+Q201))/6/R202 ->  | S203: x= | T203: =-((S196*T197-S197*T196)*(S196+S197)+(S197*T198-S198*T197)*(S197+S198)+(S198*T199-S199*T198)*(S198+S199)+(S199*T200-S200*T199)*(S199+S200)+(S200*T201-S201*T200)*(S200+S201))/6/T202 ->  | U203: x= | V203: =-((U196*V197-U197*V196)*(U196+U197)+(U197*V198-U198*V197)*(U197+U198)+(U198*V199-U199*V198)*(U198+U199)+(U199*V200-U200*V199)*(U199+U200)+(U200*V201-U201*V200)*(U200+U201))/6/V202 ->  | W203: =+'Analiza i dimenzioniranje'!B168 ->  | Y203: x= | Z203: =-IF(Z202=0,0,((Y197*Z198-Y198*Z197)*(Y197+Y198)+(Y198*Z199-Y199*Z198)*(Y198+Y199)+(Y199*Z200-Y200*Z199)*(Y199+Y200)+(Y200*Z201-Y201*Z200)*(Y200+Y201))/6/Z202) ->  | AA203: x= | AB203: =-IF(AB202=0,0,((AA197*AB198-AA198*AB197)*(AA197+AA198)+(AA198*AB199-AA199*AB198)*(AA198+AA199)+(AA199*AB200-AA200*AB199)*(AA199+AA200)+(AA200*AB201-AA201*AB200)*(AA200+AA201))/6/AB202) ->  | AC203: x= | AD203: =IF(AD202=0,0,((AC197*AD198-AC198*AD197)*(AC197+AC198)+(AC198*AD199-AC199*AD198)*(AC198+AC199)+(AC199*AD200-AC200*AD199)*(AC199+AC200)+(AC200*AD201-AC201*AD200)*(AC200+AC201))/6/AD202) -> 
A204: 3.4000011 | B204: 1.2 | O204: =+O197 -> 4.9000011 | P204: 0 | Q204: Y= | R204: =-IF(R202=0,0,((Q197*R198-Q198*R197)*(R197+R198)+(Q198*R199-Q199*R198)*(R198+R199)+(Q199*R200-Q200*R199)*(R199+R200)+(Q200*R201-Q201*R200)*(R200+R201))/6/R202) ->  | S204: Y= | T204: =-IF(T202=0,0,((S197*T198-S198*T197)*(T197+T198)+(S198*T199-S199*T198)*(T198+T199)+(S199*T200-S200*T199)*(T199+T200)+(S200*T201-S201*T200)*(T200+T201))/6/T202) ->  | U204: Y= | V204: =-IF(V202=0,0,((U197*V198-U198*V197)*(V197+V198)+(U198*V199-U199*V198)*(V198+V199)+(U199*V200-U200*V199)*(V199+V200)+(U200*V201-U201*V200)*(V200+V201))/6/V202) ->  | W204: =+W202+W203 ->  | Y204: G= | Z204: =+Z202*'Analiza i dimenzioniranje'!$E$62 ->  | AA204: G= | AB204: =+AB202*'Analiza i dimenzioniranje'!$E$62 ->  | AC204: G= | AD204: =+AD202*'Analiza i dimenzioniranje'!$E$62 ->  | AE204: =+Z204+AB204+AD204 -> 
B205: 3.14 | Y205: Y= | Z205: =-IF(Z202=0,0,((Y197*Z198-Y198*Z197)*(Z197+Z198)+(Y198*Z199-Y199*Z198)*(Z198+Z199)+(Y199*Z200-Y200*Z199)*(Z199+Z200)+(Y200*Z201-Y201*Z200)*(Z200+Z201))/6/Z202) ->  | AA205: Y= | AB205: =-IF(AB202=0,0,((AA197*AB198-AA198*AB197)*(AB197+AB198)+(AA198*AB199-AA199*AB198)*(AB198+AB199)+(AA199*AB200-AA200*AB199)*(AB199+AB200)+(AA200*AB201-AA201*AB200)*(AB200+AB201))/6/AB202) ->  | AC205: Y= | AD205: =IF(AD202=0,0,((AC197*AD198-AC198*AD197)*(AD197+AD198)+(AC198*AD199-AC199*AD198)*(AD198+AD199)+(AC199*AD200-AC200*AD199)*(AD199+AD200)+(AC200*AD201-AC201*AD200)*(AD200+AD201))/6/AD202) ->  | AE205: =+Z204+AB204+AD204 -> 
B206: 3.14 | O206: Težište naprezanja | Q206: Težište sila trenja | S206: Gornja linija za SM | U206: položaj djelovanja u presjecoma
B207: 3.44 | O207: x | P207: y | Q207: x | R207: y | S207: x | T207: y | U207: x | V207: y | W207: presjek
B208: 3.44 | N208: lijevo | O208: =+R203 ->  | Q208: =(+S197-A218)/2+A218 -> 2.57500005 | R208: =IF('Analiza i dimenzioniranje'!E59=0,0,+(Z200-C7)*(Q208-Q198)/(Q199-Q198)+C7) ->  | S208: =+Y199 -> 3.4000001 | T208: =+Z199 ->  | U208: =+AA197 -> 3.4000001 | V208: =+(AB198-AB197)/2+AB197 ->  | W208: II-II
B209: A | N209: sredina | O209: =+T203 ->  | Q209: =+(U210-U208)/2+U208 -> 3.8000001 | R209: =+(Z200+AB200)/2 ->  | S209: =+AA199 -> 4.2000001 | T209: =+AB199 ->  | U209: =+(AA198+AA199)/2 -> 3.8000001 | V209: =+AB198 ->  | W209: između I-I i II-II na vrhu temelja
B210: A | N210: desno | O210: =+V203 ->  | Q210: =+(AC200-AA200)/2+AA200 -> 4.5500006 | R210: =+(AB200+AD199)/2 ->  | U210: =+AC197 -> 4.2000001 | V210: =+(AB199-AB200)/2+AB200 ->  | W210: I-I
A211: 4.2000011 | B211: 1.2 | U211: =+U209 -> 3.8000001 | V211: =+R209 ->  | W211: između I-I i II-II na dnu temelja
A212: 4.2000011 | B212: 1.2
A213: 4.2000011 | B213: 1.2 | D213: SVE SILE I MOMENTI
... 106 more rows

Sheet Dodatni proračuni (hidden)
S1: visine presjeka | V1: Kontaktni naponi | Y1: dimenzije temelja | AB1: koordinate zida s temeljem | AD1: Komponente horiz sila sila
S2: hA= | T2: =+'Analiza i dimenzioniranje'!C190 -> 0.7 | U2: C174 | V2: sA= | W2: =+'Analiza i dimenzioniranje'!F190 ->  | X2: F174 | Y2: b2= | Z2: =+'Analiza i dimenzioniranje'!E59 -> 1.4000001 | AA2: E58 | AB2: =+'C III-V'!B2 -> 2 | AC2: =+'C III-V'!C2 -> 0.1282051512 | AE2: sila | AF2: krak do A | AG2: koordin. Y | AI2: sila | AJ2: krak do A | AK2: koordin. X
S3: dl-l= | T3: =+'Analiza i dimenzioniranje'!C191 -> 0.7897436801 | U3: C175 | V3: s l-l= | W3: =+'Analiza i dimenzioniranje'!F191 ->  | X3: F175 | Y3: d1= | Z3: =+'Analiza i dimenzioniranje'!E55 -> 0.8 | AA3: E54 | AB3: =+'C III-V'!B3 -> 2 | AC3: =+'C III-V'!C3 -> 1.2 | AH3: Gtem .......................... | AI3: =+'Analiza i dimenzioniranje'!B135 ->  | AJ3: =+'Analiza i dimenzioniranje'!C135 ->  | AK3: =2+$Z$5-AJ3 -> 
S4: dll-ll= | T4: =+'Analiza i dimenzioniranje'!C192 -> 0.8923077249 | U4: C176 | V4: sll-ll= | W4: =+'Analiza i dimenzioniranje'!F192 ->  | X4: F176 | Y4: B-b2-d1= | Z4: =+'Analiza i dimenzioniranje'!E61-Z2-Z3 -> 0.7000021 | AA4: E50-E58-E54 | AB4: =+'C III-V'!B4 -> 3.4000011 | AC4: =+'C III-V'!C4 -> 1.2 | AH4: Gzid+konz ................... | AI4: =+'Analiza i dimenzioniranje'!B136 ->  | AJ4: =+'Analiza i dimenzioniranje'!C136 ->  | AK4: =2+$Z$5-AJ4 -> 
S5: hB= | T5: =+'Analiza i dimenzioniranje'!C193 -> 1.072835755 | U5: C177 | V5: sB= | W5: =+'Analiza i dimenzioniranje'!F193 ->  | X5: F177 | Y5: B= | Z5: =+'Analiza i dimenzioniranje'!E61 -> 2.9000022 | AA5: =+T5-T2 -> 0.3728357546 | AB5: =+'C III-V'!B5 ->  | AC5: =+'C III-V'!C5 -> 3.14 | AH5: Gnasip na konzoli ............ | AI5: =+'Analiza i dimenzioniranje'!B138 ->  | AJ5: =+'Analiza i dimenzioniranje'!C138 -> 
S6: Težišta - udaljenost od lijevog ruba elementa i od točke B | AB6: =+'C III-V'!B6 ->  | AC6: =+'C III-V'!C6 -> 3.14 | AD6: HPotres ........................ | AE6: =+'Analiza i dimenzioniranje'!B130 ->  | AF6: =+'Analiza i dimenzioniranje'!C130 ->  | AG6: =+$AA$5+AF6 ->  | AH6: Gnasipa iza zida ............. | AI6: =+'Analiza i dimenzioniranje'!B139 ->  | AJ6: =+'Analiza i dimenzioniranje'!C139 -> 
S7: x1= | T7: =(T4*Z2*Z2*0.5+Z2*(T5-T4)*0.5*Z2/3)/((T5+T4)*Z2*0.5) -> 0.6785648671 | U7: =2+T7 -> 2.678564867 | V7: x2= | W7: =(T3*Z3*Z3*0.5+Z3*(T4-T3)*0.5*Z3/3)/((T4+T3)*Z3*0.5) -> 0.3918699239 | X7: =2+Z2+W7 -> 3.791870024 | Y7: x3= | Z7: =(T2*Z4*Z4*0.5+Z4*(T3-T2)*0.5*Z4/3)/((T3+T2)*Z4*0.5) -> 0.3429729098 | AA7: =2+Z2+Z3+Z7 -> 4.54297301 | AB7: =+'C III-V'!B7 ->  | AC7: =+'C III-V'!C7 -> 3.44 | AD7: Ehw ........................... | AE7: =+'Analiza i dimenzioniranje'!B123 -> 1.8 | AF7: =+'Analiza i dimenzioniranje'!C123 -> -0.3 | AG7: =+$AA$5+AF7 -> 0.07283575459 | AH7: Gnasipa ispred zida ......... | AI7: =+'Analiza i dimenzioniranje'!B140 ->  | AJ7: =+'Analiza i dimenzioniranje'!C140 -> 
S8: y1= | T8: =+T5/2 -> 0.5364178773 | V8: y2= | W8: =+T4*0.5+(T5-T4) -> 0.6266818922 | Y8: y2= | Z8: =+T4*0.5+(T4-T3) -> 0.5487179071 | AB8: =+'C III-V'!B8 ->  | AC8: =+'C III-V'!C8 -> 3.44 | AD8: EPrometno .................... | AE8: =+'Analiza i dimenzioniranje'!B124 ->  | AF8: =+'Analiza i dimenzioniranje'!C124 ->  | AH8: PPrometno ................... | AI8: =+'Analiza i dimenzioniranje'!B141 ->  | AJ8: =+'Analiza i dimenzioniranje'!C141 -> 
S9: X koordinata za trenje na bazi temelja | AB9: =+'C III-V'!B9 ->  | AC9: =+'C III-V'!C9 -> A | AD9: EPTočkasto .................... | AE9: =+'Analiza i dimenzioniranje'!B125 ->  | AF9: =+'Analiza i dimenzioniranje'!C125 ->  | AH9: PTočkasto .................... | AI9: =+'Analiza i dimenzioniranje'!B142 ->  | AJ9: =+'Analiza i dimenzioniranje'!C142 -> 
S10: x1= | T10: =2+Z2/2 -> 2.70000005 | V10: x2= | W10: =2+Z2+Z3/2 -> 3.8000001 | Y10: x3= | Z10: =(W2*Z4*Z4*0.5+Z4*(W3-W2)*0.5*Z4/3)/((W3+W2)*Z4*0.5) ->  | AB10: =+'C III-V'!B10 ->  | AC10: =+'C III-V'!C10 -> A | AD10: EPLinijsko ..................... | AE10: =+'Analiza i dimenzioniranje'!B126 ->  | AF10: =+'Analiza i dimenzioniranje'!C126 ->  | AH10: PLinijsko ...................... | AI10: =+'Analiza i dimenzioniranje'!B143 ->  | AJ10: =+'Analiza i dimenzioniranje'!C143 -> 
S11: y1= | T11: =IF(T2=T5,0,+Z2*0.5/'Analiza i dimenzioniranje'!$E$53) -> 0.08974354553 | V11: y2= | W11: =IF(T2=T5,0,(Z2+Z3*0.5)/'Analiza i dimenzioniranje'!$E$53) -> 0.2307691134 | Y11: y3= | Z11: =IF(T2=T5,0,(Z2+Z3+Z4*0.5)/'Analiza i dimenzioniranje'!$E$53) -> 0.3269230399 | AB11: =+'C III-V'!B11 -> 4.2000011 | AC11: =+'C III-V'!C11 -> 1.2 | AD11: EQTemelj ...................... | AE11: =+'Analiza i dimenzioniranje'!B127 ->  | AF11: =+'Analiza i dimenzioniranje'!C127 ->  | AH11: QTemelj ...................... | AI11: =+'Analiza i dimenzioniranje'!B144 ->  | AJ11: =+'Analiza i dimenzioniranje'!C144 -> 
AB12: =+'C III-V'!B12 -> 4.2000011 | AC12: =+'C III-V'!C12 -> 1.2 | AD12: HSidro ........................ | AE12: =+'Analiza i dimenzioniranje'!B128 -> 96.59258273 | AF12: =+'Analiza i dimenzioniranje'!C128 -> 3.499999996 | AG12: 3.872835751 | AH12: VSidro ........................ | AI12: =+'Analiza i dimenzioniranje'!B145 -> 25.88190454 | AJ12: =+'Analiza i dimenzioniranje'!C145 -> 
AB13: =+'C III-V'!B13 -> 4.2000011 | AC13: =+'C III-V'!C13 -> 1.2 | AD13: Eh1 ............................ | AE13: =+'Analiza i dimenzioniranje'!B120 ->  | AF13: =+'Analiza i dimenzioniranje'!C120 ->  | AG13: =+$AA$5+AF13 ->  | AH13: Ev1 ........................... | AI13: =+'Analiza i dimenzioniranje'!B146 ->  | AJ13: =+'Analiza i dimenzioniranje'!C146 -> 
S14: krak E3 | T14: =+T4*0.5-'C III-V'!F87 ->  | AB14: =+'C III-V'!B14 -> 4.9000022 | AC14: =+'C III-V'!C14 -> 1.2 | AD14: Eh2 ............................ | AE14: =+'Analiza i dimenzioniranje'!B121 ->  | AF14: =+'Analiza i dimenzioniranje'!C121 ->  | AG14: =+$AA$5+AF14 ->  | AH14: Ev2 .......................... | AI14: =+'Analiza i dimenzioniranje'!B147 ->  | AJ14: =+'Analiza i dimenzioniranje'!C147 -> 
S15: krak Vt | T15: =1-T7 -> 0.3214351329 | AB15: =+'C III-V'!B15 -> 4.9000022 | AC15: =+'C III-V'!C15 -> 0.5 | AD15: Eh3 ............................ | AE15: =+'Analiza i dimenzioniranje'!B122 ->  | AF15: =+'Analiza i dimenzioniranje'!C122 ->  | AG15: =+$AA$5+AF15 ->  | AH15: Ev3 .......................... | AI15: =+'Analiza i dimenzioniranje'!B148 ->  | AJ15: =+'Analiza i dimenzioniranje'!C148 -> 
AB16: =+'C III-V'!B16 -> 2 | AC16: =+'C III-V'!C16 -> 0.1282051512 | AD16: SRh= | AE16: =SUM(AE6:AE15) ->  | AF16: kn | AH16: SRv= | AI16: =SUM(AI3:AI15) ->  | AJ16: kn
AB17: linije presjeka
S18: krakEt | T18: =+T4/2-T11 -> 0.3564103169 | AB18: Presjek I-I
AB19: =+AB22+Z3 -> 4.2000001 | AC19: =+AC22 -> 0
AB20: =+AB19 -> 4.2000001 | AC20: =+AC23 -> 1.372835755
AB21: Presjek II-II
AB22: =2+Z2 -> 3.4000001 | AC22: 0 | AE22: Ver Komponente betona
AB23: =+AB22 -> 3.4000001 | AC23: =+T5+0.3 -> 1.372835755 | AE23: B II-II | AF23: =+(T4+T5)*Z2*'Analiza i dimenzioniranje'!E62/2 -> 34.39001335
AB24: Presjek III-III | AE24: II-II I-I | AF24: =+(T3+T4)*Z3*'Analiza i dimenzioniranje'!E62/2 -> 16.82051405
AB25: =2+Z2-0.25 -> 3.1500001 | AC25: =+T5 -> 1.072835755 | AE25: I-I A | AF25: =+(T2+T3)*Z4*'Analiza i dimenzioniranje'!E62/2 -> 13.03529631
AB26: =2+Z2+Z3+0.25 -> 4.4500001 | AC26: =+AC25 -> 1.072835755 | AD26: kn | AE26: S= | AF26: =SUM(AF23:AF25) -> 64.2458237
AB27: Hor Komponente trenja | AD27: kn | AE27: Ver Komponente napona
AB28: B II-II | AC28: =+Z2*AE16/Z5 ->  | AD28: kn | AE28: B II-II | AF28: =+(W4+W5)*Z2/2 -> 
AB29: II-II I-I | AC29: =+Z3*AE16/Z5 ->  | AD29: kn | AE29: II-II I-I | AF29: =+(W3+W4)*Z3/2 -> 
AB30: I-I A | AC30: =+Z4*AE16/Z5 ->  | AD30: kn | AE30: I-I A | AF30: =+(W2+W3)*Z4/2 -> 
AB31: S= | AC31: =SUM(AC28:AC30) ->  | AE31: S= | AF31: =SUM(AF28:AF30) -> 

Sheet Rasprostiranje vertikalnog opt (hidden)
D1: Rasprostiranje vertikalnog opterećenja
D3: koordinate zida i opterećenja
A5: Točke | B5: =+'C III-V'!B1 -> ZID I TEMELJ
A6: 1 | B6: =+'C III-V'!B2 -> 2 | C6: =+'C III-V'!C2 -> 0.1282051512
A7: 2 | B7: =+'C III-V'!B3 -> 2 | C7: =+'C III-V'!C3 -> 1.2 | M7: vertikalno opter od rasprostiranje na vrhu temelja za stabilnost oko točke A | T7: Za II-II
A8: 3 | B8: =+'C III-V'!B4 -> 3.4000011 | C8: =+'C III-V'!C4 -> 1.2
A9: 4 | B9: =+'C III-V'!B5 ->  | C9: =+'C III-V'!C5 -> 3.14 | N9: zid | Q9: temelj
A10: 5 | B10: =+'C III-V'!B6 ->  | C10: =+'C III-V'!C6 -> 3.14 | M10: zid | N10: =+B13 ->  | O10: =+C13 -> A
A11: 6 | B11: =+'C III-V'!B7 ->  | C11: =+'C III-V'!C7 -> 3.44 | M11: linija temelja | N11: =+B8 -> 3.4000011 | O11: =+O14 -> 1.2
A12: 7 | B12: =+'C III-V'!B8 ->  | C12: =+'C III-V'!C8 -> 3.44 | N12: -10 | O12: =+O11 -> 1.2
A13: 8 | B13: =+'C III-V'!B9 ->  | C13: =+'C III-V'!C9 -> A | N13: Temelj - | O13: Vozilo | R13: tg | S13: j | U13: Os zida
A14: 9 | B14: =+'C III-V'!B10 ->  | C14: =+'C III-V'!C10 -> A | M14: lijevi vrh temelja | N14: =2+'Analiza i dimenzioniranje'!E61-MT!G13 -> 1.75 | O14: =+C7 -> 1.2 | P14: duljina opt na temelju | R14: =+TAN(S14*PI()/180) -> 0.5773502692 | S14: 30 | U14: Visina presjeka | W14: x | X14: y
A15: 10 | B15: =+'C III-V'!B11 -> 4.2000011 | C15: =+'C III-V'!C11 -> 1.2 | M15: položaj na temelju | N15: =+B26 ->  | O15: =C26 ->  | P15: =+B27 ->  | Q15: =+O15 ->  | R15: h= | S15: =+O15-O14 ->  | U15: III | V15: =+'Sile i krakovi'!T$97 -> 1.2 | W15: =+'Sile i krakovi'!T$96 ->  | X15: =+IF($AB$14=V15,W15,0) -> 0
A16: 11 | B16: =+'C III-V'!B12 -> 4.2000011 | C16: =+'C III-V'!C12 -> 1.2 | M16: x lijevo= | N16: =+N15-S15*$R$14 ->  | O16: =+O14 -> 1.2 | P16: =P15+S15*$R$14 ->  | Q16: =+O16 -> 1.2 | R16: = x desno | U16: VI | V16: =+'Sile i krakovi'!U$97 -> 1.52 | W16: =+'Sile i krakovi'!U$96 ->  | X16: =+IF($AB$14=V16,W16,0) -> 0
A17: 12 | B17: =+'C III-V'!B13 -> 4.2000011 | C17: =+'C III-V'!C13 -> 1.2 | M17: opter. Temelja zida od temelja | Q17: Q/m' zida= | R17: =IF('Analiza i dimenzioniranje'!E28=0,0,+'Analiza i dimenzioniranje'!E28*'Analiza i dimenzioniranje'!E29) -> 120 | S17: kN/m' | U17: VII | V17: =+'Sile i krakovi'!V$97 -> 1.84 | W17: =+'Sile i krakovi'!V$96 ->  | X17: 0
A18: 13 | B18: =+'C III-V'!B14 -> 4.9000022 | C18: =+'C III-V'!C14 -> 1.2 | N18: duljina rasprostiranja= | O18: =+P16-N16 ->  | Q18: specifično opterećenje = | R18: =+R17/O18 ->  | S18: kN/m' | U18: VIII | V18: =+'Sile i krakovi'!W$97 -> 2.16 | W18: =+'Sile i krakovi'!W$96 ->  | X18: 0
A19: 14 | B19: =+'C III-V'!B15 -> 4.9000022 | C19: =+'C III-V'!C15 -> 0.5 | N19: dio iznad temelja= | O19: =+P16-N14 ->  | Q19: opt na nivo temelja = | R19: =IF(O20<=0.0001,0,+R18*O19) ->  | S19: kN | U19: IX | V19: =+'Sile i krakovi'!X$97 -> 2.48 | W19: =+'Sile i krakovi'!X$96 ->  | X19: 0
A20: 15 | B20: =+'C III-V'!B16 -> 2 | C20: =+'C III-V'!C16 -> 0.1282051512 | M20: Optreć. dio temelja = | O20: =IF(O19<=0,0,IF(O19>'Analiza i dimenzioniranje'!$E$59+Kontrafore!$E$4,'Analiza i dimenzioniranje'!$E$59+Kontrafore!$E$4,O19)) ->  | P20: m | R20: krak od "A"= | S20: =IF(O20=0,0,$B$18-S21) ->  | T20: =+$N$11-S21 ->  | U20: X | V20: =+'Sile i krakovi'!Y97 -> 2.8 | W20: =+'Sile i krakovi'!Y$96 ->  | X20: 0
R21: koord težišta opterećenja | S21: =+N14+O20/3 ->  | U21: XI | V21: =+'Sile i krakovi'!Z$97 -> 3.14 | W21: =+'Sile i krakovi'!Z96 ->  | X21: 0
A22: Opter. Temeljem | N22: Promet | U22: XIII | V22: =+'Sile i krakovi'!AA$97 -> 3.44 | W22: =+'Sile i krakovi'!AA$96 ->  | X22: 0
B23: =+'Analiza i dimenzioniranje'!C88 ->  | C23: =+'Analiza i dimenzioniranje'!D88 ->  | M23: lijevi vrh temelja | N23: =+N14 -> 1.75 | O23: =+C7 -> 1.2 | P23: duljina opt na temelju | R23: =+R14 -> 0.5773502692 | S23: =+S14 -> 30 | U23: XIII | V23: =+'Sile i krakovi'!AB$97 -> 3.76 | W23: =+'Sile i krakovi'!AB$96 ->  | X23: 0
B24: =+'Analiza i dimenzioniranje'!C89 ->  | C24: =+'Analiza i dimenzioniranje'!D89 ->  | M24: položaj na temelju | N24: =+B35 ->  | O24: =+C35 -> 6.264490647 | P24: =+B32 ->  | Q24: =+O24 -> 6.264490647 | R24: h= | S24: =+O24-O23 -> 5.064490647 | U24: XIV | V24: =+'Sile i krakovi'!AC$97 -> 4.08 | W24: =+'Sile i krakovi'!AC$96 ->  | X24: 0
B25: =+'Analiza i dimenzioniranje'!C90 ->  | C25: =+'Analiza i dimenzioniranje'!D90 ->  | M25: x lijevo= | N25: =+N24-S24*$R$23 ->  | O25: =+O23 -> 1.2 | P25: =P24+S24*$R$14 ->  | Q25: =+O25 -> 1.2 | R25: = x desno | U25: XV | V25: =+'Sile i krakovi'!AD$97 -> 4.4 | W25: =+'Sile i krakovi'!AD$96 ->  | X25: 0
B26: =+'Analiza i dimenzioniranje'!C91 ->  | C26: =+C27 ->  | M26: opter. Temelja zida od prometa | Q26: Q/m' zida= | R26: =IF('Analiza i dimenzioniranje'!E24=0,0,+'Analiza i dimenzioniranje'!E24*'Analiza i dimenzioniranje'!E25) -> 30 | S26: kN/m' | U26: XVI | V26: =+'Sile i krakovi'!AE$97 -> 4.72 | W26: =+'Sile i krakovi'!AE$96 ->  | X26: 0
B27: =+'Analiza i dimenzioniranje'!C92 ->  | C27: =+'Analiza i dimenzioniranje'!D92 ->  | I27: Oznaka linije djelovanja na dijagramu | N27: duljina rasprostiranja= | O27: =+P25-N25 ->  | Q27: specifično opterećenje = | R27: =+R26/O27 ->  | S27: kN/m' | U27: XVII | V27: =+'Sile i krakovi'!AF$97 -> 5.04 | W27: =+'Sile i krakovi'!AF$96 ->  | X27: 0
B28: =+'Analiza i dimenzioniranje'!C93 ->  | C28: =+'Analiza i dimenzioniranje'!D93 ->  | I28: Temelj | J28: x= | K28: =+(N14+O20/2) ->  | L28: =+K28 ->  | N28: dio iznad temelja= | O28: =+P25-N23 ->  | Q28: opt na nivo temelja = | R28: =IF(O29<=0.001,0,+R27*O28) ->  | S28: kN | U28: XVIII | V28: =+'Sile i krakovi'!AG$97 -> 5.36 | W28: =+'Sile i krakovi'!AG$96 ->  | X28: 0
B29: =+'Analiza i dimenzioniranje'!C94 ->  | C29: =+'Analiza i dimenzioniranje'!D94 ->  | J29: y= | K29: =+O11 -> 1.2 | L29: 2.2 | M29: Optreć. dio temelja = | O29: =IF(O28<=0,0,IF(O28>'Analiza i dimenzioniranje'!$E$59+Kontrafore!$E$4,'Analiza i dimenzioniranje'!$E$59+Kontrafore!$E$4,O28)) ->  | P29: m | R29: krak od "A"= | S29: =IF(O29=0,0,$B$18-S30) ->  | T29: =+$N$11-S30 ->  | U29: XIX | V29: =+'Sile i krakovi'!AH$97 -> 5.68 | W29: =+'Sile i krakovi'!AH$96 ->  | X29: 0
B30: =+'Analiza i dimenzioniranje'!C95 ->  | C30: =+'Analiza i dimenzioniranje'!D95 ->  | I30: Promet | J30: x= | K30: =+S30 ->  | L30: =+K30 ->  | R30: koord | S30: =+N23+O29/3 ->  | U30: XX | V30: =+'Sile i krakovi'!AI$97 -> 6 | W30: =+'Sile i krakovi'!AI$96 ->  | X30: =+IF($AB$14=V30,W30,0) -> 0
A31: opt prometom | J31: y= | K31: =+K29 -> 1.2 | L31: =+L29 -> 2.2 | N31: linijsko | X31: =SUM(X15:X30) -> 0
B32: =+'C III-V'!W14 ->  | C32: =+'C III-V'!X14 -> 6.264490647 | I32: Linijsko | J32: x= | K32: =+S39 ->  | L32: =+K32 ->  | M32: lijevi vrh temelja | N32: =+N14 -> 1.75 | O32: =+C7 -> 1.2 | P32: duljina opt na temelju | R32: =+R23 -> 0.5773502692 | S32: =+S23 -> 30
B33: =+'C III-V'!W15 ->  | C33: =+'C III-V'!X15+0.8 -> 7.264490647 | J33: y= | K33: =+K31 -> 1.2 | L33: =+L31 -> 2.2 | M33: položaj na temelju | N33: =+D40-0.5 ->  | O33: =+C40 ->  | P33: =+N33+1 ->  | Q33: =+O33 ->  | R33: h= | S33: =+O33-O32 ->  | U33: Krak sile na konzoli
B34: =+'C III-V'!W16 ->  | C34: =+C33 -> 7.264490647 | I34: Točkasto | J34: x= | K34: =+S48 ->  | L34: =+S48 ->  | M34: x lijevo= | N34: =+N33-S33*$R$32 ->  | O34: =+O32 -> 1.2 | P34: =P33+S33*$R$14 ->  | Q34: =+O34 -> 1.2 | R34: = x desno | U34: promet | V34: =IF(+$X$31-2*AB28/3<$X$31,X$31-2*AB28/3,0) -> 0
B35: =+'C III-V'!W17 ->  | C35: =+'C III-V'!X17 -> 6.264490647 | J35: y= | K35: =+K33 -> 1.2 | L35: =+L33 -> 2.2 | M35: opter. Temelja zida od linijskog | Q35: Q/m' zida= | R35: =+'Analiza i dimenzioniranje'!E34 -> 20.000001 | S35: kN/m' | U35: točkasto | V35: =IF(+$X$31-2*AB47/3<$X$31,X31-2*AB47/3,0) -> 0
N36: duljina rasprostiranja= | O36: =+P34-N34 ->  | Q36: specifično opterećenje = | R36: =+R35/O36 ->  | S36: kN/m' | U36: linijsko | V36: =IF(+$X$31-2*AB37/3<$X$31,X$31-2*AB37/3,0) -> 0
B37: linijsko opterećenje Temelj | N37: dio iznad temelja= | O37: =+P34-N32 ->  | Q37: opt na nivo temelja = | R37: =IF(O38<=0.0001,0,+R36*O37) ->  | S37: kN | U37: temelj | V37: =IF(+$X$31-2*AB38/3<$X$31,X$31-2*AB19/3,0) -> 0
B38: =+B39 ->  | C38: =+C39+0.35 ->  | I38: za konzolu | J38: -8 | K38: 5 | M38: Optreć. dio temelja = | O38: =+O37 ->  | P38: m | R38: krak od "A"= | S38: =IF(O38=0,0,$B$18-S39) ->  | T38: =+$N$11-S39 -> 
B39: =+D40-0.5 ->  | C39: =+'C III-V'!X27 ->  | J39: =+C12 -> 3.44 | K39: =+C12 -> 3.44 | R39: koord | S39: =+N32+O38/3 -> 
B40: =+D40+0.5 ->  | C40: =+'C III-V'!X27 ->  | D40: =+N10-'Analiza i dimenzioniranje'!E35 ->  | E40: =IF('Analiza i dimenzioniranje'!$E$36=0.000001,"",+C40) ->  | I40: Jednadžba osi zida sa horizontalnim silama | N40: točkasto | O40: - površina 1*1 m
B41: =+B40 ->  | C41: =+C38 ->  | D41: =+D40 ->  | E41: =IF(E40="","",+E40+0.5) ->  | I41: x= | J41: =+N42 ->  | K41: =+N43 ->  | M41: lijevi vrh temelja | N41: =+D46-0.5 ->  | O41: =+C7 -> 1.2 | P41: duljina opt na temelju | R41: =+R32 -> 0.5773502692 | S41: =+S32 -> 30
B42: =+B38 ->  | C42: =+C38 ->  | I42: Y= | J42: =+O42 ->  | K42: =+O43 -> 1.2 | M42: položaj na temelju | N42: =D47-0.5 ->  | O42: =+C46 ->  | P42: =+D47+0.5 ->  | Q42: =+O42 ->  | R42: h= | S42: =+O42-O41 -> 
A43: točkasto | I43: Y= | J43: =(K42-J42)/(K41-J41) ->  | K43: *x + | L43: =-J43*J41+J42 ->  | M43: x lijevo= | N43: =+N42-S42*$R$23 ->  | O43: =+O41 -> 1.2 | P43: =P42+S42*$R$14 ->  | Q43: =+O43 -> 1.2 | R43: = x desno
B44: =+B45 ->  | C44: =+C45+0.2 ->  | I44: Vrijednosti X za poznati Y | M44: opter. Temelja zida od točkastog | Q44: Q/m' zida= | R44: =+'Analiza i dimenzioniranje'!E36 -> 20.000001 | S44: kN
B45: =+D46+0.5 ->  | C45: =+C46 ->  | I45: X= | J45: =+L45/$J$43-$L$43/$L$43 ->  | L45: =+J39 -> 3.44 | N45: duljina rasprostiranja= | O45: =+P43-N43 ->  | Q45: specifično opterećenje = | R45: =+R44/O45 ->  | S45: kN/m'
B46: =+D46-0.5 ->  | C46: =+'C III-V'!X23 ->  | D46: =+N10-'Analiza i dimenzioniranje'!E37 ->  | E46: =IF('Analiza i dimenzioniranje'!$E$36=0.000001,-5,+C46) ->  | N46: dio iznad temelja= | O46: =+P43-N41 ->  | Q46: opt na nivo temelja = | R46: =IF(O47<=0.0001,0,+R45*O46) ->  | S46: kN
B47: =+D46-0.5 ->  | C47: =+C44 ->  | D47: =+D46 ->  | E47: =IF('Analiza i dimenzioniranje'!$E$36=0.000001,-5,+E46+0.6) ->  | M47: Optreć. dio temelja = | O47: =+O46 ->  | P47: m | R47: krak od "A"= | S47: =IF(O47=0,0,$B$18-S48) ->  | T47: =+$N$11-S48 -> 
B48: =+B44 ->  | C48: =+C44 ->  | R48: koord | S48: =+N41+O47/3 -> 
A50: teren
B51: =+'Analiza i dimenzioniranje'!F95 ->  | C51: =+'Analiza i dimenzioniranje'!G94 -> 6 | H51: Jednadžbe pravaca rasprostiranja | K51: Temelj | L51: X= | M51: =+Kontrafore!H20 -> 1.75 | N51: =+Kontrafore!J20 -> 3.4000011
B52: =+'Analiza i dimenzioniranje'!F96 ->  | C52: =+'Analiza i dimenzioniranje'!G95 -> 6 | G52: prema tlu | H52: x= | I52: =+N15 ->  | J52: =+N16 ->  | L52: y= | M52: =+I54*$M$51+K54 ->  | N52: =+I54*$N$51+K54 -> 
B53: =+'Analiza i dimenzioniranje'!F97 ->  | C53: =+'Analiza i dimenzioniranje'!G96 -> 6.264490647 | H53: Y= | I53: =+O15 ->  | J53: =+O16 -> 1.2
B54: =+'Analiza i dimenzioniranje'!F98 -> -8 | C54: =+'Analiza i dimenzioniranje'!G97 -> 6.264490647 | H54: Y= | I54: =(J53-I53)/(J52-I52) ->  | J54: *x + | K54: =-I54*I52+I53 -> 
G56: prema zidu | H56: x= | I56: =+P15 ->  | J56: =+P16 ->  | L56: y= | M56: =+I58*$M$51+K58 ->  | N56: =+I58*$N$51+K58 -> 
H57: Y= | I57: =+Q15 ->  | J57: =+O25 -> 1.2
H58: Y= | I58: =(J57-I57)/(J56-I56) ->  | J58: *x + | K58: =-I58*I56+I57 -> 
H60: Jednadžbe pravaca rasprostiranja | K60: Promet
G61: prema tlu | H61: x= | I61: =+P24 ->  | J61: =+P25 ->  | L61: y= | M61: =+I63*$M$51+K63 ->  | N61: =+I63*$N$51+K63 -> 
H62: Y= | I62: =+I53 ->  | J62: =+Q25 -> 1.2
H63: Y= | I63: =(J62-I62)/(J61-I61) ->  | J63: *x + | K63: =-I63*I61+I62 -> 
G65: prema zidu | H65: x= | I65: =+P24 ->  | J65: =++'Analiza i dimenzioniranje'!E48+'Analiza i dimenzioniranje'!E20 ->  | L65: y= | M65: =+I67*$M$51+K67 ->  | N65: =+I67*$N$51+K67 -> 
H66: Y= | I66: =+P25 ->  | J66: =+O25 -> 1.2
H67: Y= | I67: =(J66-I66)/(J65-I65) ->  | J67: *x + | K67: =-I67*I65+I66 -> 

Sheet MT (hidden)
B1: IZRAČUN MOMENATA TROMOSTI ZA n KONTRAFORA | Q1: =+'Poprečni presjek zida'!CH1 -> x | R1: =+'Poprečni presjek zida'!CI1 -> y
E2: n= 0 - 10 | Q2: =+'Poprečni presjek zida'!CH2 -> 4 | R2: =+'Poprečni presjek zida'!CI2 -> 4.9000022
Q3: =+'Poprečni presjek zida'!CH3 -> 0 | R3: =+'Poprečni presjek zida'!CI3 -> 4.9000022
B4: Oznaka | C4: Koordinate točaka | Q4: =+'Poprečni presjek zida'!CH4 -> 0 | R4: =+'Poprečni presjek zida'!CI4 -> 2
B5: točke | C5: x | D5: y | Q5: =+'Poprečni presjek zida'!CH5 -> 1.5 | R5: =+'Poprečni presjek zida'!CI5 -> 2
B6: 1 | C6: =2+G11 -> 4.9000022 | D6: =+G10 -> 4 | F6: duljina zida L= | G6: =+'Analiza i dimenzioniranje'!E49 -> 12 | Q6: =+'Poprečni presjek zida'!CH6 -> 1.5 | R6: =+'Poprečni presjek zida'!CI6 -> 1
B7: 2 | C7: =+C6 -> 4.9000022 | D7: 0 | F7: duljina kontrafore l= | G7: =+Kontrafore!$E$3 -> 1 | Q7: =+'Poprečni presjek zida'!CH7 -> 2.5 | R7: =+'Poprečni presjek zida'!CI7 -> 1
B8: 3 | C8: 2 | D8: 0 | F8: širina kontrafore b= | G8: =+Kontrafore!$E$4 -> 1 | Q8: =+'Poprečni presjek zida'!CH8 -> 2.5 | R8: =+'Poprečni presjek zida'!CI8 -> 2
B9: 4 | C9: =+C8 -> 2 | D9: =0+(D6-G8)/2 -> 1.5 | F9: broj kontrafora n= | G9: =+Kontrafore!E5 -> 3 | Q9: =+'Poprečni presjek zida'!CH9 -> 4 | R9: =+'Poprečni presjek zida'!CI9 -> 2
C10: =+C9-G7 -> 1 | D10: =+D9 -> 1.5 | F10: dulj tem. za 1 rebro b= | G10: =IF(G9=0,0,+G6/G9) -> 4 | Q10: =+'Poprečni presjek zida'!CH10 -> 4 | R10: =+'Poprečni presjek zida'!CI10 -> 4.9000022
C11: =+C10 -> 1 | D11: =+D10++G7 -> 2.5 | F11: širina temelja B= | G11: =+'Analiza i dimenzioniranje'!$E$61 -> 2.9000022 | Q11: =+'Poprečni presjek zida'!CH11 -> 8 | R11: =+'Poprečni presjek zida'!CI11 -> 4.9000022
B12: 5 | C12: =+C9 -> 2 | D12: =+D11 -> 2.5 | Q12: =+'Poprečni presjek zida'!CH12 -> 4 | R12: =+'Poprečni presjek zida'!CI12 -> 4.9000022
B13: 6 | C13: =+C9 -> 2 | D13: =+D10 -> 1.5 | F13: B= | G13: =+IF($G$9=F18,H18,IF($G$9=F19,H19,IF($G$9=F20,H20,IF($G$9=F21,H21,IF($G$9=F22,H22,IF($G$9=F23,H23,IF($G$9=F24,H24,IF($G$9=F25,H25,IF($G$9=F26,H26,IF($G$9=F27,H27, H28)))))))))) -> 3.1500022 | H13: m | Q13: =+'Poprečni presjek zida'!CH13 -> 4 | R13: =+'Poprečni presjek zida'!CI13 -> 2
B14: 7 | C14: =+C12 -> 2 | D14: =+D12 -> 2.5 | F14: W= | G14: =+IF(G9=F18,G18,IF(G9=F20,G20,IF(G9=F21,G21,IF(G9=F22,G22,IF(G9=F23,G23,IF(G9=F24,G24,IF(G9=F25,G25,IF(G9=F26,G26,IF(G9=F27,G27,G28))))))))) -> 1.65375231 | H14: m3 | Q14: =+'Poprečni presjek zida'!CH14 -> 5.5 | R14: =+'Poprečni presjek zida'!CI14 -> 2
B15: 8 | C15: =+C14 -> 2 | D15: =+D6 -> 4 | Q15: =+'Poprečni presjek zida'!CH15 -> 5.5 | R15: =+'Poprečni presjek zida'!CI15 -> 1
B16: 9 | C16: =+C6 -> 4.9000022 | D16: =+D6 -> 4 | F16: Izračun W i B po broju n KF | Q16: =+'Poprečni presjek zida'!CH16 -> 6.5 | R16: =+'Poprečni presjek zida'!CI16 -> 1
B17: A= | C17: =-0.5*(+(C6*D7-C7*D6)+(C7*D8-C8*D7)+(C8*D9-C9*D8)+(C9*D10-C10*D9)+(C10*D11-C11*D10)+(C11*D12-C12*D11)+(C12*D13-C13*D12)+(C13*D14-C14*D13)+(C14*D15-C15*D14)+(C15*D16-C16*D15)) -> 12.6000088 | D17: m2 | F17: n KF | G17: W a' m' | H17: B | Q17: =+'Poprečni presjek zida'!CH17 -> 6.5 | R17: =+'Poprečni presjek zida'!CI17 -> 2
B18: xt= | C18: =IF(C17=0,0,-((C6*D7-C7*D6)*(C6+C7)+(C7*D8-C8*D7)*(C7+C8)+(C8*D9-C9*D8)*(C8+C9)+(C9*D10-C10*D9)*(C9+C10)+(C10*D11-C11*D10)*(C10+C11)+(C11*D12-C12*D11)*(C11+C12)+(C12*D13-C13*D12)*(C12+C13)+(C13*D14-C14*D13)*(C13+C14)+(C14*D15-C15*D14)*(C14+C15)+(C15*D16-C16*D15)*(C15+C16))/6/C17) -> 3.295239216 | D18: m | F18: 0 | G18: =+I39 -> 1.401668793 | H18: =+I38 -> 2.9000022 | Q18: =+'Poprečni presjek zida'!CH18 -> 8 | R18: =+'Poprečni presjek zida'!CI18 -> 2
B19: yt= | C19: =IF(C17=0,0,((D6*C7-D7*C6)*(D6+D7)+(D7*C8-D8*C7)*(D7+D8)+(D8*C9-D9*C8)*(D8+D9)+(D9*C10-D10*C9)*(D9+D10)+(D10*C11-D11*C10)*(D10+D11)+(D11*C12-D12*C11)*(D11+D12)+(D12*C13-D13*C12)*(D12+D13)+(D13*C14-D14*C13)*(D13+D14)+(D14*C15-D15*C14)*(D14+D15)+(D15*C16-D16*C15)*(D15+D16))/6/C17) -> 2 | D19: m | F19: 1 | G19: =+I54 -> 1.483381817 | H19: =+I53 -> 2.983335533 | Q19: =+'Poprečni presjek zida'!CH19 -> 8 | R19: =+'Poprečni presjek zida'!CI19 -> 4.9000022
F20: 2 | G20: =+I69 -> 1.567409656 | H20: =+I68 -> 3.066668867 | Q20: =+'Poprečni presjek zida'!CH20 -> 12 | R20: =+'Poprečni presjek zida'!CI20 -> 0
B21: A= | C21: =IF(Kontrafore!E1="",0,+G8*G7) -> 1 | D21: m2 | F21: 3 | G21: =+I84 -> 1.65375231 | H21: =+I83 -> 3.1500022 | Q21: =+'Poprečni presjek zida'!CH21 -> 8 | R21: =+'Poprečni presjek zida'!CI21 -> 4.9000022
B22: xt= | C22: =2-G7/2 -> 1.5 | D22: m | F22: 4 | G22: =+I99 -> 1.742409779 | H22: =+I98 -> 3.233335533 | Q22: =+'Poprečni presjek zida'!CH22 -> 8 | R22: =+'Poprečni presjek zida'!CI22 -> 2
B23: yt= | C23: =+C27 -> 2 | D23: m | F23: 5 | G23: =+I114 -> 1.833382062 | H23: =+I113 -> 3.316668867 | Q23: =+'Poprečni presjek zida'!CH23 -> 9.5 | R23: =+'Poprečni presjek zida'!CI23 -> 2
F24: 6 | G24: =+I129 -> 1.92666916 | H24: =+I128 -> 3.4000022 | Q24: =+'Poprečni presjek zida'!CH24 -> 9.5 | R24: =+'Poprečni presjek zida'!CI24 -> 1
B25: A= | C25: =+G11*G10 -> 11.6000088 | D25: m2 | F25: 7 | G25: =+I144 -> 2.022271073 | H25: =+I143 -> 3.483335533 | Q25: =+'Poprečni presjek zida'!CH25 -> 10.5 | R25: =+'Poprečni presjek zida'!CI25 -> 1
B26: xt= | C26: =2+G11/2 -> 3.4500011 | D26: m | F26: 8 | G26: =+I159 -> 2.120187801 | H26: =+I158 -> 3.566668867 | Q26: =+'Poprečni presjek zida'!CH26 -> 10.5 | R26: =+'Poprečni presjek zida'!CI26 -> 2
B27: yt= | C27: =+G10/2 -> 2 | D27: m | F27: 9 | G27: =+I174 -> 2.220419343 | H27: =+I173 -> 3.6500022 | Q27: =+'Poprečni presjek zida'!CH27 -> 12 | R27: =+'Poprečni presjek zida'!CI27 -> 2
F28: 10 | G28: =+I189 -> 2.322965701 | H28: =+I188 -> 3.733335533 | Q28: =+'Poprečni presjek zida'!CH28 -> 12 | R28: =+'Poprečni presjek zida'!CI28 -> 4.9000022
E29: Broj rebara | G29: 0 | S29: =+'Poprečni presjek zida'!CH29 -> 16 | T29: =+'Poprečni presjek zida'!CI29 -> 0
E30: 1 | F30: =2+J35 -> 4.9000022 | G30: 10 | I30: duljina zida L= | J30: =+'Analiza i dimenzioniranje'!$E$49 -> 12 | S30: =+'Poprečni presjek zida'!CH30 -> 12 | T30: =+'Poprečni presjek zida'!CI30 -> 4.9000022
E31: 2 | F31: =+F30 -> 4.9000022 | G31: 0 | I31: duljina kontrafore l= | J31: =+Kontrafore!$E$3 -> 1 | S31: =+'Poprečni presjek zida'!CH31 -> 12 | T31: =+'Poprečni presjek zida'!CI31 -> 2
E32: 3 | F32: 2 | G32: 0 | I32: širina kontrafore b= | J32: =+Kontrafore!$E$4 -> 1 | S32: =+'Poprečni presjek zida'!CH32 -> 13.5 | T32: =+'Poprečni presjek zida'!CI32 -> 2
E33: 4 | F33: =+F32 -> 2 | G33: =0+(G30-J32)/2 -> 4.5 | I33: broj kontrafora n= | J33: =+G29 -> 0 | S33: =+'Poprečni presjek zida'!CH33 -> 13.5 | T33: =+'Poprečni presjek zida'!CI33 -> 1
F34: 2 | G34: =+G33 -> 4.5 | I34: temelja za 1 rebro b= | J34: 0 | S34: =+'Poprečni presjek zida'!CH34 -> 14.5 | T34: =+'Poprečni presjek zida'!CI34 -> 1
F35: 2 | G35: =+G34++J31 -> 5.5 | I35: širina zida B= | J35: =+'Analiza i dimenzioniranje'!$E$61 -> 2.9000022 | S35: =+'Poprečni presjek zida'!CH35 -> 14.5 | T35: =+'Poprečni presjek zida'!CI35 -> 2
E36: 5 | F36: =+F33 -> 2 | G36: =+G35 -> 5.5 | S36: =+'Poprečni presjek zida'!CH36 -> 16 | T36: =+'Poprečni presjek zida'!CI36 -> 2
E37: 6 | F37: =+F33 -> 2 | G37: =+G34 -> 4.5 | S37: =+'Poprečni presjek zida'!CH37 -> 16 | T37: =+'Poprečni presjek zida'!CI37 -> 4.9000022
E38: 7 | F38: =+F36 -> 2 | G38: =+G36 -> 5.5 | H38: B= | I38: =+$G$11+G29/$G$6 -> 2.9000022 | S38: =+'Poprečni presjek zida'!CH38 -> 20 | T38: =+'Poprečni presjek zida'!CI38 -> 0
E39: 8 | F39: =+F38 -> 2 | G39: =+G30 -> 10 | H39: W= | I39: =+I38*I38/6 -> 1.401668793 | S39: =+'Poprečni presjek zida'!CH39 -> 16 | T39: =+'Poprečni presjek zida'!CI39 -> 0
E40: 9 | F40: =+F30 -> 4.9000022 | G40: =+G30 -> 10 | S40: =+'Poprečni presjek zida'!CH40 -> 16 | T40: =+'Poprečni presjek zida'!CI40 -> 0
E41: A= | F41: =-0.5*(+(F30*G31-F31*G30)+(F31*G32-F32*G31)+(F32*G33-F33*G32)+(F33*G34-F34*G33)+(F34*G35-F35*G34)+(F35*G36-F36*G35)+(F36*G37-F37*G36)+(F37*G38-F38*G37)+(F38*G39-F39*G38)+(F39*G40-F40*G39)) -> 29.000022 | G41: m2 | S41: =+'Poprečni presjek zida'!CH41 -> 17.5 | T41: =+'Poprečni presjek zida'!CI41 -> 0
E42: xt= | F42: =IF(F41=0,0,-((F30*G31-F31*G30)*(F30+F31)+(F31*G32-F32*G31)*(F31+F32)+(F32*G33-F33*G32)*(F32+F33)+(F33*G34-F34*G33)*(F33+F34)+(F34*G35-F35*G34)*(F34+F35)+(F35*G36-F36*G35)*(F35+F36)+(F36*G37-F37*G36)*(F36+F37)+(F37*G38-F38*G37)*(F37+F38)+(F38*G39-F39*G38)*(F38+F39)+(F39*G40-F40*G39)*(F39+F40))/6/F41) -> 3.4500011 | G42: m | S42: =+'Poprečni presjek zida'!CH42 -> 17.5 | T42: =+'Poprečni presjek zida'!CI42 -> 0
E43: yt= | F43: =IF(F41=0,0,((G30*F31-G31*F30)*(G30+G31)+(G31*F32-G32*F31)*(G31+G32)+(G32*F33-G33*F32)*(G32+G33)+(G33*F34-G34*F33)*(G33+G34)+(G34*F35-G35*F34)*(G34+G35)+(G35*F36-G36*F35)*(G35+G36)+(G36*F37-G37*F36)*(G36+G37)+(G37*F38-G38*F37)*(G37+G38)+(G38*F39-G39*F38)*(G38+G39)+(G39*F40-G40*F39)*(G39+G40))/6/F41) -> 5 | G43: m | S43: =+'Poprečni presjek zida'!CH43 -> 18.5 | T43: =+'Poprečni presjek zida'!CI43 -> 0
G44: 1 | S44: =+'Poprečni presjek zida'!CH44 -> 18.5 | T44: =+'Poprečni presjek zida'!CI44 -> 0
E45: 1 | F45: =2+J50 -> 4.9000022 | G45: =+G6/G44 -> 12 | I45: duljina zida L= | J45: =+'Analiza i dimenzioniranje'!$E$49 -> 12
E46: 2 | F46: =+F45 -> 4.9000022 | G46: 0 | I46: duljina kontrafore l= | J46: =+Kontrafore!$E$3 -> 1
E47: 3 | F47: 2 | G47: 0 | I47: širina kontrafore b= | J47: =+Kontrafore!$E$4 -> 1
E48: 4 | F48: =+F47 -> 2 | G48: =0+(G45-J47)/2 -> 5.5 | I48: broj kontrafora n= | J48: =+G44 -> 1
F49: =+F48-J46 -> 1 | G49: =+G48 -> 5.5 | I49: temelja za 1 rebro b= | J49: 10
F50: =+F49 -> 1 | G50: =+G49++J46 -> 6.5 | I50: širina zida B= | J50: =+'Analiza i dimenzioniranje'!$E$61 -> 2.9000022
E51: 5 | F51: =+F48 -> 2 | G51: =+G50 -> 6.5 | I51: razmak težišta lT= | J51: =+C3-(2-$G$7/2) -> -1.5
E52: 6 | F52: =+F48 -> 2 | G52: =+G49 -> 5.5
E53: 7 | F53: =+F51 -> 2 | G53: =+G51 -> 6.5 | H53: B= | I53: =+$G$11+G44/$G$6 -> 2.983335533
E54: 8 | F54: =+F53 -> 2 | G54: =+G45 -> 12 | H54: W= | I54: =+I53*I53/6 -> 1.483381817
E55: 9 | F55: =+F45 -> 4.9000022 | G55: =+G45 -> 12
E56: A= | F56: =-0.5*(+(F45*G46-F46*G45)+(F46*G47-F47*G46)+(F47*G48-F48*G47)+(F48*G49-F49*G48)+(F49*G50-F50*G49)+(F50*G51-F51*G50)+(F51*G52-F52*G51)+(F52*G53-F53*G52)+(F53*G54-F54*G53)+(F54*G55-F55*G54)) -> 35.8000264 | G56: m2
E57: xt= | F57: =-((F45*G46-F46*G45)*(F45+F46)+(F46*G47-F47*G46)*(F46+F47)+(F47*G48-F48*G47)*(F47+F48)+(F48*G49-F49*G48)*(F48+F49)+(F49*G50-F50*G49)*(F49+F50)+(F50*G51-F51*G50)*(F50+F51)+(F51*G52-F52*G51)*(F51+F52)+(F52*G53-F53*G52)*(F52+F53)+(F53*G54-F54*G53)*(F53+F54)+(F54*G55-F55*G54)*(F54+F55))/6/F56 -> 3.395531836 | G57: m
E58: yt= | F58: =((G45*F46-G46*F45)*(G45+G46)+(G46*F47-G47*F46)*(G46+G47)+(G47*F48-G48*F47)*(G47+G48)+(G48*F49-G49*F48)*(G48+G49)+(G49*F50-G50*F49)*(G49+G50)+(G50*F51-G51*F50)*(G50+G51)+(G51*F52-G52*F51)*(G51+G52)+(G52*F53-G53*F52)*(G52+G53)+(G53*F54-G54*F53)*(G53+G54)+(G54*F55-G55*F54)*(G54+G55))/6/F56 -> 6 | G58: m
E59: Broj rebara | G59: =+F20 -> 2
E60: 1 | F60: =2+J65 -> 4.9000022 | G60: =+J64 -> 6 | I60: duljina zida L= | J60: =+'Analiza i dimenzioniranje'!$E$49 -> 12
E61: 2 | F61: =+F60 -> 4.9000022 | G61: 0 | I61: duljina kontrafore l= | J61: =+Kontrafore!$E$3 -> 1
E62: 3 | F62: 2 | G62: 0 | I62: širina kontrafore b= | J62: =+Kontrafore!$E$4 -> 1
E63: 4 | F63: =+F62 -> 2 | G63: =0+(G60-J62)/2 -> 2.5 | I63: broj kontrafora n= | J63: =+G59 -> 2
F64: =+F63-J61 -> 1 | G64: =+G63 -> 2.5 | I64: temelja za 1 rebro b= | J64: =+J60/J63 -> 6
F65: =+F64 -> 1 | G65: =+G64++J61 -> 3.5 | I65: širina zida B= | J65: =+'Analiza i dimenzioniranje'!$E$61 -> 2.9000022
E66: 5 | F66: =+F63 -> 2 | G66: =+G65 -> 3.5 | I66: razmak težišta lT= | J66: =+C18-(2-$G$7/2) -> 1.795239216
E67: 6 | F67: =+F63 -> 2 | G67: =+G64 -> 2.5
E68: 7 | F68: =+F66 -> 2 | G68: =+G66 -> 3.5 | H68: B= | I68: =+$G$11+G59/$G$6 -> 3.066668867
E69: 8 | F69: =+F68 -> 2 | G69: =+G60 -> 6 | H69: W= | I69: =+I68*I68/6 -> 1.567409656
E70: 9 | F70: =+F60 -> 4.9000022 | G70: =+G60 -> 6
E71: A= | F71: =-0.5*(+(F60*G61-F61*G60)+(F61*G62-F62*G61)+(F62*G63-F63*G62)+(F63*G64-F64*G63)+(F64*G65-F65*G64)+(F65*G66-F66*G65)+(F66*G67-F67*G66)+(F67*G68-F68*G67)+(F68*G69-F69*G68)+(F69*G70-F70*G69)) -> 18.4000132 | G71: m2
E72: xt= | F72: =-((F60*G61-F61*G60)*(F60+F61)+(F61*G62-F62*G61)*(F61+F62)+(F62*G63-F63*G62)*(F62+F63)+(F63*G64-F64*G63)*(F63+F64)+(F64*G65-F65*G64)*(F64+F65)+(F65*G66-F66*G65)*(F65+F66)+(F66*G67-F67*G66)*(F66+F67)+(F67*G68-F68*G67)*(F67+F68)+(F68*G69-F69*G68)*(F68+F69)+(F69*G70-F70*G69)*(F69+F70))/6/F71 -> 3.344022855 | G72: m
E73: yt= | F73: =((G60*F61-G61*F60)*(G60+G61)+(G61*F62-G62*F61)*(G61+G62)+(G62*F63-G63*F62)*(G62+G63)+(G63*F64-G64*F63)*(G63+G64)+(G64*F65-G65*F64)*(G64+G65)+(G65*F66-G66*F65)*(G65+G66)+(G66*F67-G67*F66)*(G66+G67)+(G67*F68-G68*F67)*(G67+G68)+(G68*F69-G69*F68)*(G68+G69)+(G69*F70-G70*F69)*(G69+G70))/6/F71 -> 3 | G73: m
E74: Broj rebara | G74: 3
E75: 1 | F75: =2+J80 -> 4.9000022 | G75: =+J79 -> 4 | I75: duljina zida L= | J75: =+'Analiza i dimenzioniranje'!$E$49 -> 12
E76: 2 | F76: =+F75 -> 4.9000022 | G76: 0 | I76: duljina kontrafore l= | J76: =+Kontrafore!$E$3 -> 1
E77: 3 | F77: 2 | G77: 0 | I77: širina kontrafore b= | J77: =+Kontrafore!$E$4 -> 1
E78: 4 | F78: =+F77 -> 2 | G78: =0+(G75-J77)/2 -> 1.5 | I78: broj kontrafora n= | J78: =+G74 -> 3
F79: =+F78-J76 -> 1 | G79: =+G78 -> 1.5 | I79: temelja za 1 rebro b= | J79: =+J75/J78 -> 4
F80: =+F79 -> 1 | G80: =+G79++J76 -> 2.5 | I80: širina zida B= | J80: =+'Analiza i dimenzioniranje'!$E$61 -> 2.9000022
E81: 5 | F81: =+F78 -> 2 | G81: =+G80 -> 2.5 | I81: razmak težišta lT= | J81: =+F63-(2-$G$7/2) -> 0.5
E82: 6 | F82: =+F78 -> 2 | G82: =+G79 -> 1.5
E83: 7 | F83: =+F81 -> 2 | G83: =+G81 -> 2.5 | H83: B= | I83: =+$G$11+G74/$G$6 -> 3.1500022
E84: 8 | F84: =+F83 -> 2 | G84: =+G75 -> 4 | H84: W= | I84: =+I83*I83/6 -> 1.65375231
E85: 9 | F85: =+F75 -> 4.9000022 | G85: =+G75 -> 4
E86: A= | F86: =-0.5*(+(F75*G76-F76*G75)+(F76*G77-F77*G76)+(F77*G78-F78*G77)+(F78*G79-F79*G78)+(F79*G80-F80*G79)+(F80*G81-F81*G80)+(F81*G82-F82*G81)+(F82*G83-F83*G82)+(F83*G84-F84*G83)+(F84*G85-F85*G84)) -> 12.6000088 | G86: m2
E87: xt= | F87: =-((F75*G76-F76*G75)*(F75+F76)+(F76*G77-F77*G76)*(F76+F77)+(F77*G78-F78*G77)*(F77+F78)+(F78*G79-F79*G78)*(F78+F79)+(F79*G80-F80*G79)*(F79+F80)+(F80*G81-F81*G80)*(F80+F81)+(F81*G82-F82*G81)*(F81+F82)+(F82*G83-F83*G82)*(F82+F83)+(F83*G84-F84*G83)*(F83+F84)+(F84*G85-F85*G84)*(F84+F85))/6/F86 -> 3.295239216 | G87: m
E88: yt= | F88: =((G75*F76-G76*F75)*(G75+G76)+(G76*F77-G77*F76)*(G76+G77)+(G77*F78-G78*F77)*(G77+G78)+(G78*F79-G79*F78)*(G78+G79)+(G79*F80-G80*F79)*(G79+G80)+(G80*F81-G81*F80)*(G80+G81)+(G81*F82-G82*F81)*(G81+G82)+(G82*F83-G83*F82)*(G82+G83)+(G83*F84-G84*F83)*(G83+G84)+(G84*F85-G85*F84)*(G84+G85))/6/F86 -> 2 | G88: m
E89: Broj rebara | G89: =+F22 -> 4
E90: 1 | F90: =2+J95 -> 4.9000022 | G90: =+J94 -> 3 | I90: duljina zida L= | J90: =+'Analiza i dimenzioniranje'!$E$49 -> 12
E91: 2 | F91: =+F90 -> 4.9000022 | G91: 0 | I91: duljina kontrafore l= | J91: =+Kontrafore!$E$3 -> 1
E92: 3 | F92: 2 | G92: 0 | I92: širina kontrafore b= | J92: =+Kontrafore!$E$4 -> 1
E93: 4 | F93: =+F92 -> 2 | G93: =0+(G90-J92)/2 -> 1 | I93: broj kontrafora n= | J93: =+G89 -> 4
F94: =+F93-J91 -> 1 | G94: =+G93 -> 1 | I94: temelja za 1 rebro b= | J94: =+J90/J93 -> 3
F95: =+F94 -> 1 | G95: =+G94++J91 -> 2 | I95: širina zida B= | J95: =+'Analiza i dimenzioniranje'!$E$61 -> 2.9000022
E96: 5 | F96: =+F93 -> 2 | G96: =+G95 -> 2 | I96: razmak težišta lT= | J96: =+$C$18-(2-$G$7/2) -> 1.795239216
E97: 6 | F97: =+F93 -> 2 | G97: =+G94 -> 1
E98: 7 | F98: =+F96 -> 2 | G98: =+G96 -> 2 | H98: B= | I98: =+$G$11+G89/$G$6 -> 3.233335533
E99: 8 | F99: =+F98 -> 2 | G99: =+G90 -> 3 | H99: W= | I99: =+I98*I98/6 -> 1.742409779
E100: 9 | F100: =+F90 -> 4.9000022 | G100: =+G90 -> 3
E101: A= | F101: =-0.5*(+(F90*G91-F91*G90)+(F91*G92-F92*G91)+(F92*G93-F93*G92)+(F93*G94-F94*G93)+(F94*G95-F95*G94)+(F95*G96-F96*G95)+(F96*G97-F97*G96)+(F97*G98-F98*G97)+(F98*G99-F99*G98)+(F99*G100-F100*G99)) -> 9.7000066 | G101: m2
E102: xt= | F102: =-((F90*G91-F91*G90)*(F90+F91)+(F91*G92-F92*G91)*(F91+F92)+(F92*G93-F93*G92)*(F92+F93)+(F93*G94-F94*G93)*(F93+F94)+(F94*G95-F95*G94)*(F94+F95)+(F95*G96-F96*G95)*(F95+F96)+(F96*G97-F97*G96)*(F96+F97)+(F97*G98-F98*G97)*(F97+F98)+(F98*G99-F99*G98)*(F98+F99)+(F99*G100-F100*G99)*(F99+F100))/6/F101 -> 3.248970196 | G102: m
E103: yt= | F103: =((G90*F91-G91*F90)*(G90+G91)+(G91*F92-G92*F91)*(G91+G92)+(G92*F93-G93*F92)*(G92+G93)+(G93*F94-G94*F93)*(G93+G94)+(G94*F95-G95*F94)*(G94+G95)+(G95*F96-G96*F95)*(G95+G96)+(G96*F97-G97*F96)*(G96+G97)+(G97*F98-G98*F97)*(G97+G98)+(G98*F99-G99*F98)*(G98+G99)+(G99*F100-G100*F99)*(G99+G100))/6/F101 -> 1.5 | G103: m
E104: Broj rebara | G104: =+F23 -> 5
E105: 1 | F105: =2+J110 -> 4.9000022 | G105: =+J109 -> 2.4 | I105: duljina zida L= | J105: =+'Analiza i dimenzioniranje'!$E$49 -> 12
E106: 2 | F106: =+F105 -> 4.9000022 | G106: 0 | I106: duljina kontrafore l= | J106: =+Kontrafore!$E$3 -> 1
E107: 3 | F107: 2 | G107: 0 | I107: širina kontrafore b= | J107: =+Kontrafore!$E$4 -> 1
E108: 4 | F108: =+F107 -> 2 | G108: =0+(G105-J107)/2 -> 0.7 | I108: broj kontrafora n= | J108: =+G104 -> 5
F109: =+F108-J106 -> 1 | G109: =+G108 -> 0.7 | I109: temelja za 1 rebro b= | J109: =+J105/J108 -> 2.4
F110: =+F109 -> 1 | G110: =+G109++J106 -> 1.7 | I110: širina zida B= | J110: =+'Analiza i dimenzioniranje'!$E$61 -> 2.9000022
E111: 5 | F111: =+F108 -> 2 | G111: =+G110 -> 1.7 | I111: razmak težišta lT= | J111: =+$C$18-(2-$G$7/2) -> 1.795239216
E112: 6 | F112: =+F108 -> 2 | G112: =+G109 -> 0.7
E113: 7 | F113: =+F111 -> 2 | G113: =+G111 -> 1.7 | H113: B= | I113: =+$G$11+G104/$G$6 -> 3.316668867
E114: 8 | F114: =+F113 -> 2 | G114: =+G105 -> 2.4 | H114: W= | I114: =+I113*I113/6 -> 1.833382062
E115: 9 | F115: =+F105 -> 4.9000022 | G115: =+G105 -> 2.4
E116: A= | F116: =-0.5*(+(F105*G106-F106*G105)+(F106*G107-F107*G106)+(F107*G108-F108*G107)+(F108*G109-F109*G108)+(F109*G110-F110*G109)+(F110*G111-F111*G110)+(F111*G112-F112*G111)+(F112*G113-F113*G112)+(F113*G114-F114*G113)+(F114*G115-F115*G114)) -> 7.96000528 | G116: m2
E117: xt= | F117: =-((F105*G106-F106*G105)*(F105+F106)+(F106*G107-F107*G106)*(F106+F107)+(F107*G108-F108*G107)*(F107+F108)+(F108*G109-F109*G108)*(F108+F109)+(F109*G110-F110*G109)*(F109+F110)+(F110*G111-F111*G110)*(F110+F111)+(F111*G112-F112*G111)*(F111+F112)+(F112*G113-F113*G112)*(F112+F113)+(F113*G114-F114*G113)*(F113+F114)+(F114*G115-F115*G114)*(F114+F115))/6/F116 -> 3.20502625 | G117: m
E118: yt= | F118: =((G105*F106-G106*F105)*(G105+G106)+(G106*F107-G107*F106)*(G106+G107)+(G107*F108-G108*F107)*(G107+G108)+(G108*F109-G109*F108)*(G108+G109)+(G109*F110-G110*F109)*(G109+G110)+(G110*F111-G111*F110)*(G110+G111)+(G111*F112-G112*F111)*(G111+G112)+(G112*F113-G113*F112)*(G112+G113)+(G113*F114-G114*F113)*(G113+G114)+(G114*F115-G115*F114)*(G114+G115))/6/F116 -> 1.2 | G118: m
E119: Broj rebara | G119: =+F24 -> 6
E120: 1 | F120: =2+J125 -> 4.9000022 | G120: =+J124 -> 2 | I120: duljina zida L= | J120: =+'Analiza i dimenzioniranje'!$E$49 -> 12
E121: 2 | F121: =+F120 -> 4.9000022 | G121: 0 | I121: duljina kontrafore l= | J121: =+Kontrafore!$E$3 -> 1
